Workbook

Sheet Yfirlit
A1: VMST - gögn um stöðu vinnumarkaðar
A2: Talnagögn úr mánaðarskýrslu Vinnumálastofnunar
A3: Uppfært í júlí 2026
A5: 1. Árlegt atvinnuleysi á Íslandi (2000-2025)
A6: 2. Mánaðarlegt atvinnuleysi, % og meðalfjöldi (2000-2026)
A7: 3. Fjöldi á skrá í lok mánaðar eftir landsvæðum og sveitarfélögum (2000-2026)
A8: 4. Fjöldi á skrá eftir aldri og lengd á skrá (2000-2026)
A9: 5. Atvinnuleysi eftir atvinnugreinum (2000-2026)

Sheet G1
A1: Efnisyfirlit
A3: Árlegt almennt atvinnuleysi á Íslandi
A5: Ár | B5: Atvinnuleysi
A6: 2000 | B6: 0.013
A7: 2001 | B7: 0.014
A8: 2002 | B8: 0.025
A9: 2003 | B9: 0.033
A10: 2004 | B10: 0.031
A11: 2005 | B11: 0.021
A12: 2006 | B12: 0.013
A13: 2007 | B13: 0.01
A14: 2008 | B14: 0.017
A15: 2009 | B15: 0.08
A16: 2010 | B16: 0.081
A17: 2011 | B17: 0.074
A18: 2012 | B18: 0.057
A19: 2013 | B19: 0.044
A20: 2014 | B20: 0.036
A21: 2015 | B21: 0.029
A22: 2016 | B22: 0.023
A23: 2017 | B23: 0.022
A24: 2018 | B24: 0.024
A25: 2019 | B25: 0.036
A26: 2020 | B26: 0.079
A27: 2021 | B27: 0.077
A28: 2022 | B28: 0.039
A29: 2023 | B29: 0.033
A30: 2024 | B30: 0.035
A31: 2025 | B31: 0.039

Sheet G2
A1: Efnisyfirlit
A3: Mánaðarlegt atvinnuleysi og meðalfjöldi atvinnulausra
A4: Fjöldi og hlutfall atvinnulausra eftir landsvæði, kyni og ríkisfangi
C7: 2000-02-01 | D7: 2000-03-01 | E7: 2000-04-01 | F7: 2000-05-01 | G7: 2000-06-01 | H7: 2000-07-01 | I7: 2000-08-01 | J7: 2000-09-01 | K7: 2000-10-01 | L7: 2000-11-01 | M7: 2000-12-01 | N7: 2001-01-01 | O7: 2001-02-01 | P7: 2001-03-01 | Q7: 2001-04-01 | R7: 2001-05-01 | S7: 2001-06-01 | T7: 2001-07-01 | U7: 2001-08-01 | V7: 2001-09-01 | W7: 2001-10-01 | X7: 2001-11-01 | Y7: 2001-12-01 | Z7: 2002-01-01 | AA7: 2002-02-01 | AB7: 2002-03-01 | AC7: 2002-04-01 | AD7: 2002-05-01 | AE7: 2002-06-01 | AF7: 2002-07-01 | AG7: 2002-08-01 | AH7: 2002-09-01 | AI7: 2002-10-01 | AJ7: 2002-11-01 | AK7: 2002-12-01 | AL7: 2003-01-01 | AM7: 2003-02-01 | AN7: 2003-03-01 | AO7: 2003-04-01 | AP7: 2003-05-01 | AQ7: 2003-06-01 | AR7: 2003-07-01 | AS7: 2003-08-01 | AT7: 2003-09-01 | AU7: 2003-10-01 | AV7: 2003-11-01 | AW7: 2003-12-01 | AX7: 2004-01-01 | AY7: 2004-02-01 | AZ7: 2004-03-01 | BA7: 2004-04-01 | BB7: 2004-05-01 | BC7: 2004-06-01 | BD7: 2004-07-01 | BE7: 2004-08-01 | BF7: 2004-09-01 | BG7: 2004-10-01 | BH7: 2004-11-01 | BI7: 2004-12-01 | BJ7: 2005-01-01 | BK7: 2005-02-01 | BL7: 2005-03-01 | BM7: 2005-04-01 | BN7: 2005-05-01 | BO7: 2005-06-01 | BP7: 2005-07-01 | BQ7: 2005-08-01 | BR7: 2005-09-01 | BS7: 2005-10-01 | BT7: 2005-11-01 | BU7: 2005-12-01 | BV7: 2006-01-01 | BW7: 2006-02-01 | BX7: 2006-03-01 | BY7: 2006-04-01 | BZ7: 2006-05-01 | CA7: 2006-06-01 | CB7: 2006-07-01 | CC7: 2006-08-01 | CD7: 2006-09-01 | CE7: 2006-10-01 | CF7: 2006-11-01 | CG7: 2006-12-01 | CH7: 2007-01-01 | CI7: 2007-02-01 | CJ7: 2007-03-01 | CK7: 2007-04-01 | CL7: 2007-05-01 | CM7: 2007-06-01 | CN7: 2007-07-01 | CO7: 2007-08-01 | CP7: 2007-09-01 | CQ7: 2007-10-01 | CR7: 2007-11-01 | CS7: 2007-12-01 | CT7: 2008-01-01 | CU7: 2008-02-01 | CV7: 2008-03-01 | CW7: 2008-04-01 | CX7: 2008-05-01 | CY7: 2008-06-01 | CZ7: 2008-07-01 | DA7: 2008-08-01 | DB7: 2008-09-01 | DC7: 2008-10-01 | DD7: 2008-11-01 | DE7: 2008-12-01 | DF7: 2009-01-01 | DG7: 2009-02-01 | DH7: 2009-03-01 | DI7: 2009-04-01 | DJ7: 2009-05-01 | DK7: 2009-06-01 | DL7: 2009-07-01 | DM7: 2009-08-01 | DN7: 2009-09-01 | DO7: 2009-10-01 | DP7: 2009-11-01 | DQ7: 2009-12-01 | DR7: 2010-01-01 | DS7: 2010-02-01 | DT7: 2010-03-01 | DU7: 2010-04-01 | DV7: 2010-05-01 | DW7: 2010-06-01 | DX7: 2010-07-01 | DY7: 2010-08-01 | DZ7: 2010-09-01 | EA7: 2010-10-01 | EB7: 2010-11-01 | EC7: 2010-12-01 | ED7: 2011-01-01 | EE7: 2011-02-01 | EF7: 2011-03-01 | EG7: 2011-04-01 | EH7: 2011-05-01 | EI7: 2011-06-01 | EJ7: 2011-07-01 | EK7: 2011-08-01 | EL7: 2011-09-01 | EM7: 2011-10-01 | EN7: 2011-11-01 | EO7: 2011-12-01 | EP7: 2012-01-01 | EQ7: 2012-02-01 | ER7: 2012-03-01 | ES7: 2012-04-01 | ET7: 2012-05-01 | EU7: 2012-06-01 | EV7: 2012-07-01 | EW7: 2012-08-01 | EX7: 2012-09-01 | EY7: 2012-10-01 | EZ7: 2012-11-01 | FA7: 2012-12-01 | FB7: 2013-01-01 | FC7: 2013-02-01 | FD7: 2013-03-01 | FE7: 2013-04-01 | FF7: 2013-05-01 | FG7: 2013-06-01 | FH7: 2013-07-01 | FI7: 2013-08-01 | FJ7: 2013-09-01 | FK7: 2013-10-01 | FL7: 2013-11-01 | FM7: 2013-12-01 | FN7: 2014-01-01 | FO7: 2014-02-01 | FP7: 2014-03-01 | FQ7: 2014-04-01 | FR7: 2014-05-01 | FS7: 2014-06-01 | FT7: 2014-07-01 | FU7: 2014-08-01 | FV7: 2014-09-01 | FW7: 2014-10-01 | FX7: 2014-11-01 | FY7: 2014-12-01 | FZ7: 2015-01-01 | GA7: 2015-02-01 | GB7: 2015-03-01 | GC7: 2015-04-01 | GD7: 2015-05-01 | GE7: 2015-06-01 | GF7: 2015-07-01 | GG7: 2015-08-01 | GH7: 2015-09-01 | GI7: 2015-10-01 | GJ7: 2015-11-01 | GK7: 2015-12-01 | GL7: 2016-01-01 | GM7: 2016-02-01 | GN7: 2016-03-01 | GO7: 2016-04-01 | GP7: 2016-05-01 | GQ7: 2016-06-01 | GR7: 2016-07-01 | GS7: 2016-08-01 | GT7: 2016-09-01 | GU7: 2016-10-01 | GV7: 2016-11-01 | GW7: 2016-12-01 | GX7: 2017-01-01 | GY7: 2017-02-01 | GZ7: 2017-03-01 | HA7: 2017-04-01 | HB7: 2017-05-01 | HC7: 2017-06-01 | HD7: 2017-07-01 | HE7: 2017-08-01 | HF7: 2017-09-01 | HG7: 2017-10-01 | HH7: 2017-11-01 | HI7: 2017-12-01 | HJ7: 2018-01-01 | HK7: 2018-02-01 | HL7: 2018-03-01 | HM7: 2018-04-01 | HN7: 2018-05-01 | HO7: 2018-06-01 | HP7: 2018-07-01 | HQ7: 2018-08-01 | HR7: 2018-09-01 | HS7: 2018-10-01 | HT7: 2018-11-01 | HU7: 2018-12-01 | HV7: 2019-01-01 | HW7: 2019-02-01 | HX7: 2019-03-01 | HY7: 2019-04-01 | HZ7: 2019-05-01 | IA7: 2019-06-01 | IB7: 2019-07-01 | IC7: 2019-08-01 | ID7: 2019-09-01 | IE7: 2019-10-01 | IF7: 2019-11-01 | IG7: 2019-12-01 | IH7: 2020-01-01 | II7: 2020-02-01 | IJ7: 2020-03-01 | IK7: 2020-04-01 | IL7: 2020-05-01 | IM7: 2020-06-01 | IN7: 2020-07-01 | IO7: 2020-08-01 | IP7: 2020-09-01 | IQ7: 2020-10-01 | IR7: 2020-11-01 | IS7: 2020-12-01 | IT7: 2021-01-01 | IU7: 2021-02-01 | IV7: 2021-03-01 | IW7: 2021-04-01 | IX7: 2021-05-01 | IY7: 2021-06-01 | IZ7: 2021-07-01 | JA7: 2021-08-01 | JB7: 2021-09-01 | JC7: 2021-10-01 | JD7: 2021-11-01 | JE7: 2021-12-01 | JF7: 2022-01-01 | JG7: 2022-02-01 | JH7: 2022-03-01 | JI7: 2022-04-01 | JJ7: 2022-05-01 | JK7: 2022-06-01 | JL7: 2022-07-01 | JM7: 2022-08-01 | JN7: 2022-09-01 | JO7: 2022-10-01 | JP7: 2022-11-01 | JQ7: 2022-12-01 | JR7: 2023-01-01 | JS7: 2023-02-01 | JT7: 2023-03-01 | JU7: 2023-04-01 | JV7: 2023-05-01 | JW7: 2023-06-01 | JX7: 2023-07-01 | JY7: 2023-08-01 | JZ7: 2023-09-01 | KA7: 2023-10-01 | KB7: 2023-11-01 | KC7: 2023-12-01 | KD7: 2024-01-01 | KE7: 2024-02-01 | KF7: 2024-03-01 | KG7: 2024-04-01 | KH7: 2024-05-01 | KI7: 2024-06-01 | KJ7: 2024-07-01 | KK7: 2024-08-01 | KL7: 2024-09-01 | KM7: 2024-10-01 | KN7: 2024-11-01 | KO7: 2024-12-01 | KP7: 2025-01-01 | KQ7: 2025-02-01 | KR7: 2025-03-01 | KS7: 2025-04-01 | KT7: 2025-05-01 | KU7: 2025-06-01 | KV7: 2025-07-01 | KW7: 2025-08-01 | KX7: 2025-09-01 | KY7: 2025-10-01 | KZ7: 2025-11-01 | LA7: 2025-12-01 | LB7: 2026-01-01 | LC7: 2026-02-01 | LD7: 2026-03-01 | LE7: 2026-04-01 | LF7: 2026-05-01 | LG7: 2026-06-01
A8: Atvinnuleysi %
A9: Landið allt | C9: 0.01841049534 | D9: 0.01789867453 | E9: 0.01623546587 | F9: 0.01388620608 | G9: 0.01254733039 | H9: 0.0113245771 | I9: 0.01073401188 | J9: 0.009046151666 | K9: 0.009299401717 | L9: 0.01073516726 | M9: 0.01411939924 | N9: 0.01604368842 | O9: 0.01567469835 | P9: 0.01485554039 | Q9: 0.01633039593 | R9: 0.01580320694 | S9: 0.01239790462 | T9: 0.01128884887 | U9: 0.01092650495 | V9: 0.01055731511 | W9: 0.01250407357 | X9: 0.01565809544 | Y9: 0.01956900478 | Z9: 0.02421623205 | AA9: 0.02578942025 | AB9: 0.02654014808 | AC9: 0.02641973895 | AD9: 0.02455741544 | AE9: 0.02291728393 | AF9: 0.0229371211 | AG9: 0.02249700943 | AH9: 0.02192298671 | AI9: 0.02461420292 | AJ9: 0.02790745431 | AK9: 0.02995136161 | AL9: 0.03785351388 | AM9: 0.04143549002 | AN9: 0.04026620635 | AO9: 0.03911669684 | AP9: 0.0362130129 | AQ9: 0.03247392371 | AR9: 0.03010218884 | AS9: 0.02919516562 | AT9: 0.02672197239 | AU9: 0.02812344105 | AV9: 0.02988521361 | AW9: 0.03134322422 | AX9: 0.03665045921 | AY9: 0.03635131762 | AZ9: 0.03528305622 | BA9: 0.03450993638 | BB9: 0.03319310938 | BC9: 0.03089133244 | BD9: 0.03010824143 | BE9: 0.02893407943 | BF9: 0.02639576691 | BG9: 0.02664359386 | BH9: 0.02615157818 | BI9: 0.02685868965 | BJ9: 0.02980107508 | BK9: 0.0284520834 | BL9: 0.02601431164 | BM9: 0.02305359212 | BN9: 0.02168677835 | BO9: 0.02110100103 | BP9: 0.0200085523 | BQ9: 0.01819597531 | BR9: 0.01446870433 | BS9: 0.0144163451 | BT9: 0.01477133034 | BU9: 0.01523149639 | BV9: 0.01624151525 | BW9: 0.01554345586 | BX9: 0.01451298723 | BY9: 0.01334588723 | BZ9: 0.01302993346 | CA9: 0.01282140397 | CB9: 0.01353294007 | CC9: 0.012064393 | CD9: 0.01008774104 | CE9: 0.01029888684 | CF9: 0.01095000188 | CG9: 0.01176389567 | CH9: 0.01279661346 | CI9: 0.01318497806 | CJ9: 0.0125182855 | CK9: 0.01148025102 | CL9: 0.01082195152 | CM9: 0.009886226565 | CN9: 0.00941651052 | CO9: 0.008807838738 | CP9: 0.007972406879 | CQ9: 0.00808439742 | CR9: 0.008121284405 | CS9: 0.008342606311 | CT9: 0.009675661796 | CU9: 0.01021424232 | CV9: 0.01048353259 | CW9: 0.0102204206 | CX9: 0.01035137532 | CY9: 0.01096448151 | CZ9: 0.01148714117 | DA9: 0.01246775079 | DB9: 0.01301058825 | DC9: 0.01867383319 | DD9: 0.03273632379 | DE9: 0.04750825172 | DF9: 0.06559680799 | DG9: 0.08157045866 | DH9: 0.08937359835 | DI9: 0.09102024515 | DJ9: 0.08698476649 | DK9: 0.08075071633 | DL9: 0.07959726883 | DM9: 0.07746209929 | DN9: 0.07238300713 | DO9: 0.07558347438 | DP9: 0.07960640809 | DQ9: 0.08210360693 | DR9: 0.09004678391 | DS9: 0.09266728338 | DT9: 0.09287079864 | DU9: 0.09046561825 | DV9: 0.08323934536 | DW9: 0.0756259462 | DX9: 0.07489125901 | DY9: 0.07313710789 | DZ9: 0.07086614173 | EA9: 0.0749914514 | EB9: 0.07734319282 | EC9: 0.07973299301 | ED9: 0.08470064007 | EE9: 0.08641688681 | EF9: 0.08580802505 | EG9: 0.08081066589 | EH9: 0.07419644651 | EI9: 0.0671640078 | EJ9: 0.06621952209 | EK9: 0.06743693089 | EL9: 0.06622838606 | EM9: 0.0681714589 | EN9: 0.0708563579 | EO9: 0.07320808277 | EP9: 0.07206277491 | EQ9: 0.07290738673 | ER9: 0.07144950764 | ES9: 0.06467379628 | ET9: 0.05629493827 | EU9: 0.04794931828 | EV9: 0.04714282497 | EW9: 0.04802173862 | EX9: 0.04871355908 | EY9: 0.05193511758 | EZ9: 0.05431397053 | FA9: 0.05665675795 | FB9: 0.05498477569 | FC9: 0.05504558176 | FD9: 0.05337004488 | FE9: 0.04863129477 | FF9: 0.04320029436 | FG9: 0.03892504488 | FH9: 0.03893376505 | FI9: 0.0395782558 | FJ9: 0.03755442448 | FK9: 0.03883301305 | FL9: 0.04071102348 | FM9: 0.04249270638 | FN9: 0.04531274618 | FO9: 0.04536649182 | FP9: 0.04481188593 | FQ9: 0.04133567534 | FR9: 0.03616458824 | FS9: 0.03206141974 | FT9: 0.03091019821 | FU9: 0.03121959084 | FV9: 0.03016271914 | FW9: 0.03205313312 | FX9: 0.03336180043 | FY9: 0.03448719441 | FZ9: 0.03575084898 | GA9: 0.03635956259 | GB9: 0.03607421476 | GC9: 0.03376657618 | GD9: 0.02921928915 | GE9: 0.02630211213 | GF9: 0.02582775241 | GG9: 0.02557336776 | GH9: 0.02415430615 | GI9: 0.02571500021 | GJ9: 0.02690689737 | GK9: 0.02799290733 | GL9: 0.02922523346 | GM9: 0.02875380194 | GN9: 0.02742478905 | GO9: 0.02526922652 | GP9: 0.0220798347 | GQ9: 0.02031864178 | GR9: 0.02000621446 | GS9: 0.01994957861 | GT9: 0.01902104703 | GU9: 0.01978511219 | GV9: 0.02129062927 | GW9: 0.02324064355 | GX9: 0.03024293217 | GY9: 0.02949763473 | GZ9: 0.02369085228 | HA9: 0.02140537514 | HB9: 0.01913773743 | HC9: 0.0181762201 | HD9: 0.01841400596 | HE9: 0.01880902876 | HF9: 0.01833116079 | HG9: 0.01930069774 | HH9: 0.02076946231 | HI9: 0.02178508645 | HJ9: 0.02410409313 | HK9: 0.02432027161 | HL9: 0.02433493191 | HM9: 0.02314932447 | HN9: 0.02183545993 | HO9: 0.02114195685 | HP9: 0.02176557499 | HQ9: 0.02292817382 | HR9: 0.02279306762 | HS9: 0.02353078449 | HT9: 0.02535188036 | HU9: 0.0267635737 | HV9: 0.02989319905 | HW9: 0.03128780381 | HX9: 0.03249931862 | HY9: 0.0367491357 | HZ9: 0.03556151138 | IA9: 0.03424859908 | IB9: 0.03439577039 | IC9: 0.03489141675 | ID9: 0.03506250668 | IE9: 0.03810632308 | IF9: 0.04139223997 | IG9: 0.04340225157 | IH9: 0.04800104634 | II9: 0.04974751588 | IJ9: 0.05716283215 | IK9: 0.1777962496 | IL9: 0.1300413211 | IM9: 0.09517305542 | IN9: 0.08799627931 | IO9: 0.0939690647 | IP9: 0.0983304469 | IQ9: 0.1106570328 | IR9: 0.1195822734 | IS9: 0.1205845814 | IT9: 0.1281360451 | IU9: 0.1246568859 | IV9: 0.1207978659 | IW9: 0.1150987262 | IX9: 0.1001371522 | IY9: 0.07351386046 | IZ9: 0.06099214155 | JA9: 0.05500258499 | JB9: 0.04972398137 | JC9: 0.04922221229 | JD9: 0.04930254292 | JE9: 0.04944709494 | JF9: 0.05235907096 | JG9: 0.05174461163 | JH9: 0.04889989972 | JI9: 0.04467948013 | JJ9: 0.03927926094 | JK9: 0.03528615477 | JL9: 0.03404471545 | JM9: 0.03393158318 | JN9: 0.03208122146 | JO9: 0.03265656033 | JP9: 0.03299787627 | JQ9: 0.03415181882 | JR9: 0.03653481762 | JS9: 0.03662543745 | JT9: 0.03512342229 | JU9: 0.03269405169 | JV9: 0.03026886731 | JW9: 0.0288650917 | JX9: 0.0283341936 | JY9: 0.02925633176 | JZ9: 0.02977664917 | KA9: 0.03152009734 | KB9: 0.03424715044 | KC9: 0.03575811058 | KD9: 0.03758378265 | KE9: 0.038741328 | KF9: 0.03802539072 | KG9: 0.03644716386 | KH9: 0.03383237005 | KI9: 0.03127398936 | KJ9: 0.03142727374 | KK9: 0.03196111367 | KL9: 0.03304388481 | KM9: 0.03414814024 | KN9: 0.03684447696 | KO9: 0.03843825961 | KP9: 0.04203256382 | KQ9: 0.04290424178 | KR9: 0.04151460744 | KS9: 0.03931082333 | KT9: 0.03653910971 | KU9: 0.03430078049 | KV9: 0.03405448559 | KW9: 0.03416694193 | KX9: 0.03479279594 | KY9: 0.03940937576 | KZ9: 0.04273127753 | LA9: 0.04442617534 | LB9: 0.04853936684 | LC9: 0.04860005272 | LD9: 0.04767998357 | LE9: 0.0460864352 | LF9: 0.04240090082 | LG9: 0.04024530554
A10: Karlar | C10: 0.0138050496 | D10: 0.01342449215 | E10: 0.01189068285 | F10: 0.009205208801 | G10: 0.007509962814 | H10: 0.006392973616 | I10: 0.006165437213 | J10: 0.005644205118 | K10: 0.005895765883 | L10: 0.0073143768 | M10: 0.01051522007 | N10: 0.0120559437 | O10: 0.01174714685 | P10: 0.01098802126 | Q10: 0.01199868922 | R10: 0.01070061513 | S10: 0.007648637735 | T10: 0.006649120377 | U10: 0.006662866101 | V10: 0.007168892818 | W10: 0.009115612648 | X10: 0.01247762849 | Y10: 0.01669985632 | Z10: 0.02147172931 | AA10: 0.02304286577 | AB10: 0.02367557723 | AC10: 0.02307988522 | AD10: 0.02062939988 | AE10: 0.018847839 | AF10: 0.01762099638 | AG10: 0.01760878033 | AH10: 0.01839141253 | AI10: 0.02106478668 | AJ10: 0.02506700488 | AK10: 0.02777259584 | AL10: 0.03606984031 | AM10: 0.039975515 | AN10: 0.03836909659 | AO10: 0.0367779505 | AP10: 0.03174339372 | AQ10: 0.02686670154 | AR10: 0.02312171089 | AS10: 0.02266598396 | AT10: 0.02177572437 | AU10: 0.02367385373 | AV10: 0.02590642788 | AW10: 0.0282432229 | AX10: 0.03333416752 | AY10: 0.03273820571 | AZ10: 0.03111885538 | BA10: 0.02992533939 | BB10: 0.02710106758 | BC10: 0.02421737213 | BD10: 0.02239079083 | BE10: 0.02131064405 | BF10: 0.02087028497 | BG10: 0.02137912068 | BH10: 0.0211626511 | BI10: 0.02214728922 | BJ10: 0.02477699517 | BK10: 0.02324476488 | BL10: 0.02089296956 | BM10: 0.01784887725 | BN10: 0.01566998205 | BO10: 0.01386364406 | BP10: 0.01249847782 | BQ10: 0.01173462045 | BR10: 0.01042831365 | BS10: 0.010821104 | BT10: 0.01133422274 | BU10: 0.01189295203 | BV10: 0.01251455845 | BW10: 0.01188654685 | BX10: 0.01100733061 | BY10: 0.01005014218 | BZ10: 0.009127612928 | CA10: 0.008498122382 | CB10: 0.009056659997 | CC10: 0.008205270103 | CD10: 0.007364522583 | CE10: 0.007956538478 | CF10: 0.008576806263 | CG10: 0.009475125123 | CH10: 0.01011698105 | CI10: 0.01058136706 | CJ10: 0.01001746976 | CK10: 0.009059189507 | CL10: 0.008008239448 | CM10: 0.006906191758 | CN10: 0.006562739586 | CO10: 0.006296958855 | CP10: 0.005867620751 | CQ10: 0.005940719206 | CR10: 0.006067117487 | CS10: 0.00648844509 | CT10: 0.007699033889 | CU10: 0.008125573162 | CV10: 0.008658747254 | CW10: 0.008574642977 | CX10: 0.008290848646 | CY10: 0.008382068253 | CZ10: 0.008984654528 | DA10: 0.01020712412 | DB10: 0.01109167528 | DC10: 0.01730068384 | DD10: 0.03350599894 | DE10: 0.05219892715 | DF10: 0.07475971677 | DG10: 0.09385869565 | DH10: 0.1028369565 | DI10: 0.1043586957 | DJ10: 0.09734830513 | DK10: 0.08601060432 | DL10: 0.08217831917 | DM10: 0.07926092742 | DN10: 0.07622963783 | DO10: 0.08000421741 | DP10: 0.08506510623 | DQ10: 0.08888185988 | DR10: 0.09853696769 | DS10: 0.1021005547 | DT10: 0.1021224812 | DU10: 0.09802223343 | DV10: 0.08796598734 | DW10: 0.07731326528 | DX10: 0.0744668404 | DY10: 0.07257655402 | DZ10: 0.07195757921 | EA10: 0.07752247752 | EB10: 0.08149066381 | EC10: 0.08518717055 | ED10: 0.09128889797 | EE10: 0.09312959819 | EF10: 0.09170895262 | EG10: 0.08633261454 | EH10: 0.07682106353 | EI10: 0.06751805715 | EJ10: 0.06472296409 | EK10: 0.06515948737 | EL10: 0.06437092055 | EM10: 0.06518300822 | EN10: 0.06879493881 | EO10: 0.07244707382 | EP10: 0.07535233179 | EQ10: 0.07603400735 | ER10: 0.07338716124 | ES10: 0.06481928239 | ET10: 0.05392089777 | EU10: 0.04336427407 | EV10: 0.04108192704 | EW10: 0.0420833958 | EX10: 0.04416137316 | EY10: 0.04679159568 | EZ10: 0.05003975014 | FA10: 0.05311668459 | FB10: 0.05194535469 | FC10: 0.05215218443 | FD10: 0.05012832852 | FE10: 0.04500123537 | FF10: 0.03834554529 | FG10: 0.03309775963 | FH10: 0.0319389159 | FI10: 0.03230950717 | FJ10: 0.03164218503 | FK10: 0.03306380594 | FL10: 0.03593444423 | FM10: 0.03881458169 | FN10: 0.04183591987 | FO10: 0.04175184505 | FP10: 0.04111777371 | FQ10: 0.03670028104 | FR10: 0.03017829789 | FS10: 0.02582980801 | FT10: 0.0248335396 | FU10: 0.0252526327 | FV10: 0.02500775606 | FW10: 0.02703317967 | FX10: 0.02917306926 | FY10: 0.03121914684 | FZ10: 0.03234387003 | GA10: 0.03246493444 | GB10: 0.03214553553 | GC10: 0.02970340664 | GD10: 0.02476248021 | GE10: 0.02120629886 | GF10: 0.02024599647 | GG10: 0.02002759543 | GH10: 0.019763144 | GI10: 0.02130213358 | GJ10: 0.02298553719 | GK10: 0.02480024206 | GL10: 0.02619539387 | GM10: 0.02576280944 | GN10: 0.02465114232 | GO10: 0.02192531318 | GP10: 0.01834599398 | GQ10: 0.01634414618 | GR10: 0.01539467069 | GS10: 0.01544229594 | GT10: 0.01528999744 | GU10: 0.01618611316 | GV10: 0.01809310615 | GW10: 0.0201175603 | GX10: 0.02714194373 | GY10: 0.02697126327 | GZ10: 0.02175730446 | HA10: 0.01934196596 | HB10: 0.01674923559 | HC10: 0.01546548256 | HD10: 0.01511986187 | HE10: 0.01570451383 | HF10: 0.0160050835 | HG10: 0.01713447631 | HH10: 0.0190857085 | HI10: 0.02059376326 | HJ10: 0.02297448199 | HK10: 0.02357053327 | HL10: 0.02364857986 | HM10: 0.02229956045 | HN10: 0.0206749949 | HO10: 0.01949769291 | HP10: 0.01960452456 | HQ10: 0.02109852466 | HR10: 0.02188426552 | HS10: 0.02274038316 | HT10: 0.02477394399 | HU10: 0.02610984278 | HV10: 0.02906574394 | HW10: 0.03051578741 | HX10: 0.03207510458 | HY10: 0.03598766027 | HZ10: 0.03476911502 | IA10: 0.03290422715 | IB10: 0.03255855856 | IC10: 0.03300092336 | ID10: 0.03414285714 | IE10: 0.03765158807 | IF10: 0.04166264828 | IG10: 0.04424591739 | IH10: 0.04964732208 | II10: 0.05153869281 | IJ10: 0.05919949707 | IK10: 0.1798213299 | IL10: 0.1341734485 | IM10: 0.09658106752 | IN10: 0.08674054946 | IO10: 0.09270542047 | IP10: 0.09708097307 | IQ10: 0.1082324478 | IR10: 0.1174035121 | IS10: 0.120227958 | IT10: 0.1300287139 | IU10: 0.1264046911 | IV10: 0.121815706 | IW10: 0.1144791687 | IX10: 0.09773270831 | IY10: 0.07030760161 | IZ10: 0.05797902212 | JA10: 0.05297752658 | JB10: 0.04968736144 | JC10: 0.04941200646 | JD10: 0.05016321679 | JE10: 0.05086973256 | JF10: 0.05430017845 | JG10: 0.05344041341 | JH10: 0.05023600167 | JI10: 0.04540041679 | JJ10: 0.03816848958 | JK10: 0.03426657736 | JL10: 0.03301138821 | JM10: 0.03321689601 | JN10: 0.03162018117 | JO10: 0.03198209306 | JP10: 0.03253874224 | JQ10: 0.0341386505 | JR10: 0.03678463638 | JS10: 0.03731521335 | JT10: 0.03537864663 | JU10: 0.03239275991 | JV10: 0.02972637815 | JW10: 0.02808914445 | JX10: 0.02743155428 | JY10: 0.02852565853 | JZ10: 0.02955632924 | KA10: 0.0315469794 | KB10: 0.03498027042 | KC10: 0.03702358332 | KD10: 0.0384037026 | KE10: 0.03942697427 | KF10: 0.03860955818 | KG10: 0.03651707617 | KH10: 0.03359778001 | KI10: 0.03102656609 | KJ10: 0.03087474353 | KK10: 0.03179868316 | KL10: 0.0327857567 | KM10: 0.03400169154 | KN10: 0.03671187105 | KO10: 0.03914566366 | KP10: 0.04422108774 | KQ10: 0.04547347528 | KR10: 0.04430452103 | KS10: 0.04195358104 | KT10: 0.03839220879 | KU10: 0.03575157487 | KV10: 0.03501374007 | KW10: 0.03486091668 | KX10: 0.03576741083 | KY10: 0.04069052614 | KZ10: 0.04458777 | LA10: 0.04757888334 | LB10: 0.05277233048 | LC10: 0.05256488605 | LD10: 0.05151395925 | LE10: 0.04962476487 | LF10: 0.04553587171 | LG10: 0.04306820218
A11: Konur | C11: 0.02460506575 | D11: 0.02391668873 | E11: 0.0220792918 | F11: 0.02018219337 | G11: 0.01932288442 | H11: 0.01795781339 | I11: 0.01687901202 | J11: 0.01362194129 | K11: 0.01387735737 | L11: 0.01533620347 | M11: 0.01896709719 | N11: 0.02140730998 | O11: 0.02095735844 | P11: 0.02005745535 | Q11: 0.02215667328 | R11: 0.02266633769 | S11: 0.0187856424 | T11: 0.01752942272 | U11: 0.0166610757 | V11: 0.01511474502 | W11: 0.01706150115 | X11: 0.01993592026 | Y11: 0.02342809676 | Z11: 0.02794231932 | AA11: 0.02952964955 | AB11: 0.03043618411 | AC11: 0.03095828902 | AD11: 0.02990098044 | AE11: 0.02841864481 | AF11: 0.03016963711 | AG11: 0.02916139512 | AH11: 0.02667918603 | AI11: 0.02940597309 | AJ11: 0.0317048981 | AK11: 0.03287538336 | AL11: 0.04026971984 | AM11: 0.04341922124 | AN11: 0.04284080974 | AO11: 0.04228768338 | AP11: 0.0422796191 | AQ11: 0.04003722997 | AR11: 0.03957747549 | AS11: 0.0380769588 | AT11: 0.03336862707 | AU11: 0.03411714964 | AV11: 0.03519284729 | AW11: 0.03549442541 | AX11: 0.04114960871 | AY11: 0.04126818427 | AZ11: 0.04094259698 | BA11: 0.04073539416 | BB11: 0.04147421247 | BC11: 0.03990708202 | BD11: 0.04059941807 | BE11: 0.03932014985 | BF11: 0.03383195417 | BG11: 0.03374574549 | BH11: 0.03281652934 | BI11: 0.03317695916 | BJ11: 0.03664057952 | BK11: 0.03554103874 | BL11: 0.0329862234 | BM11: 0.03013909168 | BN11: 0.02987781449 | BO11: 0.03095366172 | BP11: 0.03023269834 | BQ11: 0.02699240415 | BR11: 0.01996925488 | BS11: 0.01931077305 | BT11: 0.01945048122 | BU11: 0.01977646694 | BV11: 0.02143573259 | BW11: 0.02064004838 | BX11: 0.01939878101 | BY11: 0.01793898326 | BZ11: 0.0184683799 | CA11: 0.01884652035 | CB11: 0.01977158113 | CC11: 0.01744289528 | CD11: 0.01388312074 | CE11: 0.01360657223 | CF11: 0.01430124739 | CG11: 0.01499592256 | CH11: 0.01658027852 | CI11: 0.01686130019 | CJ11: 0.01604945981 | CK11: 0.01489879504 | CL11: 0.01479491898 | CM11: 0.01409418542 | CN11: 0.01341877769 | CO11: 0.01232921881 | CP11: 0.01092426132 | CQ11: 0.0110896177 | CR11: 0.01100101889 | CS11: 0.01094195301 | CT11: 0.01248842961 | CU11: 0.01318644634 | CV11: 0.0130802264 | CW11: 0.01256237921 | CX11: 0.01328352612 | CY11: 0.01463928231 | CZ11: 0.01504822787 | DA11: 0.01568466608 | DB11: 0.01574123837 | DC11: 0.02062786802 | DD11: 0.03164105179 | DE11: 0.04083327263 | DF11: 0.05368275225 | DG11: 0.06559253763 | DH11: 0.07186771253 | DI11: 0.07367677196 | DJ11: 0.07350945259 | DK11: 0.07391149603 | DL11: 0.07624118195 | DM11: 0.07512311993 | DN11: 0.06738137998 | DO11: 0.06983535089 | DP11: 0.07250867115 | DQ11: 0.07329010323 | DR11: 0.07912933931 | DS11: 0.08053738581 | DT11: 0.08097439946 | DU11: 0.08074884403 | DV11: 0.07721897123 | DW11: 0.07347684486 | DX11: 0.0754318228 | DY11: 0.07385106061 | DZ11: 0.06947603433 | EA11: 0.07176877959 | EB11: 0.07206053882 | EC11: 0.07278598048 | ED11: 0.07650481598 | EE11: 0.07806581523 | EF11: 0.07846705112 | EG11: 0.07411053867 | EH11: 0.07101180041 | EI11: 0.06673440874 | EJ11: 0.06802651447 | EK11: 0.0701867693 | EL11: 0.06847118612 | EM11: 0.07192349942 | EN11: 0.07344449765 | EO11: 0.07416351919 | EP11: 0.06810557542 | EQ11: 0.06914614258 | ER11: 0.06911853602 | ES11: 0.06450007856 | ET11: 0.05912964779 | EU11: 0.05342422704 | EV11: 0.0544584602 | EW11: 0.05518934988 | EX11: 0.05424912689 | EY11: 0.05844314475 | EZ11: 0.05972208251 | FA11: 0.06113618454 | FB11: 0.05867915796 | FC11: 0.05856253062 | FD11: 0.05731038133 | FE11: 0.05291699814 | FF11: 0.04893184895 | FG11: 0.04580488879 | FH11: 0.04711096923 | FI11: 0.04807569528 | FJ11: 0.044466022 | FK11: 0.04575845358 | FL11: 0.04644489902 | FM11: 0.04690793616 | FN11: 0.04947001356 | FO11: 0.04968858323 | FP11: 0.04923255943 | FQ11: 0.04703506965 | FR11: 0.04352505542 | FS11: 0.03972342394 | FT11: 0.03808132868 | FU11: 0.0382611752 | FV11: 0.03624619167 | FW11: 0.03794088591 | FX11: 0.03827463755 | FY11: 0.03832024491 | FZ11: 0.03982294821 | GA11: 0.04101429079 | GB11: 0.04076976356 | GC11: 0.03861161107 | GD11: 0.0345337325 | GE11: 0.03237850484 | GF11: 0.0324877399 | GG11: 0.03219047381 | GH11: 0.02939399005 | GI11: 0.03097386538 | GJ11: 0.03157993336 | GK11: 0.03179754274 | GL11: 0.03280884709 | GM11: 0.03229143478 | GN11: 0.03070535098 | GO11: 0.02914387514 | GP11: 0.02640632043 | GQ11: 0.02492417402 | GR11: 0.02546640791 | GS11: 0.02528634145 | GT11: 0.02343868521 | GU11: 0.02412763282 | GV11: 0.02514882123 | GW11: 0.02700898991 | GX11: 0.03396883523 | GY11: 0.0325329994 | GZ11: 0.02601398601 | HA11: 0.0239274338 | HB11: 0.02205717124 | HC11: 0.02148953936 | HD11: 0.02242918934 | HE11: 0.02259304063 | HF11: 0.02116639034 | HG11: 0.02195406001 | HH11: 0.02283184304 | HI11: 0.02324430032 | HJ11: 0.02549835371 | HK11: 0.02525638089 | HL11: 0.02519276281 | HM11: 0.0241843598 | HN11: 0.02325388257 | HO11: 0.02318796606 | HP11: 0.02446353947 | HQ11: 0.02519337815 | HR11: 0.02390822804 | HS11: 0.02449301432 | HT11: 0.0260625452 | HU11: 0.02757553244 | HV11: 0.03094519859 | HW11: 0.03227341012 | HX11: 0.03303992065 | HY11: 0.03771962158 | HZ11: 0.03656503097 | IA11: 0.03594560332 | IB11: 0.03672374429 | IC11: 0.0372972973 | ID11: 0.03623752738 | IE11: 0.03869091809 | IF11: 0.04104319681 | IG11: 0.04231341433 | IH11: 0.04590452355 | II11: 0.04746925231 | IJ11: 0.05456774241 | IK11: 0.175212671 | IL11: 0.1248216833 | IM11: 0.09340186603 | IN11: 0.08957991745 | IO11: 0.09556637562 | IP11: 0.0999219641 | IQ11: 0.1137720887 | IR11: 0.1223855009 | IS11: 0.1210426944 | IT11: 0.1257663294 | IU11: 0.1224646049 | IV11: 0.119518927 | IW11: 0.1158801461 | IX11: 0.1031976036 | IY11: 0.07763116783 | IZ11: 0.06486832906 | JA11: 0.05759330023 | JB11: 0.04977082272 | JC11: 0.04897787398 | JD11: 0.0481945271 | JE11: 0.04761559471 | JF11: 0.04987463072 | JG11: 0.04956506654 | JH11: 0.04717502672 | JI11: 0.04375037468 | JJ11: 0.04071901078 | JK11: 0.03659122085 | JL11: 0.03535134889 | JM11: 0.03482730738 | JN11: 0.03265869365 | JO11: 0.03351989219 | JP11: 0.03358933346 | JQ11: 0.03416864737 | JR11: 0.03621681145 | JS11: 0.03574810031 | JT11: 0.03479875419 | JU11: 0.03307789651 | JV11: 0.0309638926 | JW11: 0.02985714125 | JX11: 0.02947863671 | JY11: 0.03017780686 | JZ11: 0.03005461272 | KA11: 0.0314857095 | KB11: 0.03330941275 | KC11: 0.03414344287 | KD11: 0.036502849 | KE11: 0.0378397542 | KF11: 0.03725395838 | KG11: 0.03635499722 | KH11: 0.03414045208 | KI11: 0.031598533 | KJ11: 0.032150693 | KK11: 0.03217155289 | KL11: 0.03338045869 | KM11: 0.03434064392 | KN11: 0.0370191552 | KO11: 0.03750070938 | KP11: 0.03930540243 | KQ11: 0.03970617431 | KR11: 0.03803793931 | KS11: 0.03601156385 | KT11: 0.03422154793 | KU11: 0.03247991166 | KV11: 0.03283409097 | KW11: 0.03327533787 | KX11: 0.0335393097 | KY11: 0.03776452935 | KZ11: 0.04035046651 | LA11: 0.04040699496 | LB11: 0.04332015195 | LC11: 0.04368757447 | LD11: 0.04291962021 | LE11: 0.04169285208 | LF11: 0.03851142833 | LG11: 0.03673760506
A12: Íslenskt ríkisfang | JF12: 0.0372843737 | JG12: 0.03662480513 | JH12: 0.03484772463 | JI12: 0.03199624659 | JJ12: 0.02822796011 | JK12: 0.02469252219 | JL12: 0.02406684447 | JM12: 0.0239153995 | JN12: 0.02267692373 | JO12: 0.02299860917 | JP12: 0.02268417938 | JQ12: 0.02296455521 | JR12: 0.02451879931 | JS12: 0.02501896388 | JT12: 0.02405463022 | JU12: 0.02226618459 | JV12: 0.02022964932 | JW12: 0.01912591739 | JX12: 0.01890982077 | JY12: 0.01967807866 | JZ12: 0.01956285311 | KA12: 0.01992499268 | KB12: 0.02076203584 | KC12: 0.0209753546 | KD12: 0.02208690075 | KE12: 0.02306636076 | KF12: 0.02246678025 | KG12: 0.02140287791 | KH12: 0.01975822839 | KI12: 0.01826745313 | KJ12: 0.01897433145 | KK12: 0.01968077 | KL12: 0.02025857489 | KM12: 0.02100879556 | KN12: 0.02170334853 | KO12: 0.02141872063 | KP12: 0.02350353208 | KQ12: 0.02437354332 | KR12: 0.02406380255 | KS12: 0.02299151223 | KT12: 0.02152616737 | KU12: 0.02028013442 | KV12: 0.02028926765 | KW12: 0.02026649121 | KX12: 0.02052566216 | KY12: 0.02329020527 | KZ12: 0.02408859205 | LA12: 0.02396241272 | LB12: 0.02735313113 | LC12: 0.02792329952 | LD12: 0.02817549268 | LE12: 0.02753346587 | LF12: 0.02565790428 | LG12: 0.02476571255
A13: Erlent ríkisfang | JF13: 0.1119771664 | JG13: 0.1099378709 | JH13: 0.1023154898 | JI13: 0.0921921046 | JJ13: 0.08021606937 | JK13: 0.07490677337 | JL13: 0.07140790746 | JM13: 0.069988595 | JN13: 0.06366612262 | JO13: 0.06489518603 | JP13: 0.06753284605 | JQ13: 0.07269678175 | JR13: 0.07821500564 | JS13: 0.07573337647 | JT13: 0.07147213181 | JU13: 0.0665430275 | JV13: 0.06238827532 | JW13: 0.06056324392 | JX13: 0.05929643867 | JY13: 0.05989138958 | JZ13: 0.0603806889 | KA13: 0.06621984167 | KB13: 0.07487853636 | KC13: 0.08177419768 | KD13: 0.08659811158 | KE13: 0.08731569914 | KF13: 0.08537280177 | KG13: 0.08166576284 | KH13: 0.0758120474 | KI13: 0.0707511194 | KJ13: 0.06968343099 | KK13: 0.06870033657 | KL13: 0.06919673899 | KM13: 0.07161612439 | KN13: 0.08031200266 | KO13: 0.08861345105 | KP13: 0.09741429971 | KQ13: 0.0972270565 | KR13: 0.0918682987 | KS13: 0.08624515741 | KT13: 0.07904692615 | KU13: 0.07483435004 | KV13: 0.07416481624 | KW13: 0.07362712642 | KX13: 0.07336788853 | KY13: 0.08321308703 | KZ13: 0.09365182053 | LA13: 0.1017714208 | LB13: 0.1057237445 | LC13: 0.1036484517 | LD13: 0.0991914383 | LE13: 0.09484813932 | LF13: 0.08659113054 | LG13: 0.08133256271
A14: Höfuðborgarsvæði alls | C14: 0.01841550939 | D14: 0.01836505594 | E14: 0.01680402308 | F14: 0.01504597715 | G14: 0.01450726528 | H14: 0.01369320432 | I14: 0.01279573398 | J14: 0.01057729976 | K14: 0.01042562209 | L14: 0.01058900572 | M14: 0.01139213918 | N14: 0.01225575068 | O14: 0.01242888944 | P14: 0.01272569874 | Q14: 0.01298685565 | R14: 0.01238950536 | S14: 0.01365327976 | T14: 0.01348112642 | U14: 0.01299116418 | V14: 0.01200037247 | W14: 0.01365309272 | X14: 0.01640317403 | Y14: 0.01918953298 | Z14: 0.02250830176 | AA14: 0.02580518188 | AB14: 0.0281947122 | AC14: 0.02855739465 | AD14: 0.02753463822 | AE14: 0.02718430631 | AF14: 0.02800510315 | AG14: 0.02708205853 | AH14: 0.02556761875 | AI14: 0.0279319646 | AJ14: 0.02949884736 | AK14: 0.03078678525 | AL14: 0.03777932152 | AM14: 0.04272416718 | AN14: 0.04280389973 | AO14: 0.04171473815 | AP14: 0.03979704054 | AQ14: 0.03788202716 | AR14: 0.03657334182 | AS14: 0.03509010185 | AT14: 0.03130212933 | AU14: 0.0320173938 | AV14: 0.03303871826 | AW14: 0.03343118414 | AX14: 0.03800290395 | AY14: 0.0382273036 | AZ14: 0.03851979848 | BA14: 0.03767368092 | BB14: 0.03726601224 | BC14: 0.036573106 | BD14: 0.03596275938 | BE14: 0.03451619558 | BF14: 0.03057643031 | BG14: 0.03003618292 | BH14: 0.02862972577 | BI14: 0.02818443443 | BJ14: 0.03057467759 | BK14: 0.03012809341 | BL14: 0.02797141861 | BM14: 0.02486799876 | BN14: 0.02427787556 | BO14: 0.02453670152 | BP14: 0.02341069217 | BQ14: 0.02070008731 | BR14: 0.01572556902 | BS14: 0.01431499258 | BT14: 0.01372942677 | BU14: 0.01345755694 | BV14: 0.01404982464 | BW14: 0.01400718481 | BX14: 0.01326098775 | BY14: 0.01243224074 | BZ14: 0.01238157961 | CA14: 0.01367850448 | CB14: 0.01433695317 | CC14: 0.01219088118 | CD14: 0.00963745293 | CE14: 0.009624446093 | CF14: 0.009494115052 | CG14: 0.009965311892 | CH14: 0.01031258404 | CI14: 0.01094354455 | CJ14: 0.01064357972 | CK14: 0.009644784836 | CL14: 0.009507142646 | CM14: 0.009366615329 | CN14: 0.008842833126 | CO14: 0.008025987101 | CP14: 0.006544266406 | CQ14: 0.006427502275 | CR14: 0.006036177935 | CS14: 0.005918780633 | CT14: 0.006718557153 | CU14: 0.007096787037 | CV14: 0.007843293387 | CW14: 0.007965790619 | CX14: 0.008476660801 | CY14: 0.01000927135 | CZ14: 0.0108540364 | DA14: 0.01226413344 | DB14: 0.01269087333 | DC14: 0.01834599398 | DD14: 0.03287946109 | DE14: 0.04786202284 | DF14: 0.06612297351 | DG14: 0.0848476634 | DH14: 0.09465490701 | DI14: 0.09823701968 | DJ14: 0.09525285251 | DK14: 0.09252871487 | DL14: 0.09252454891 | DM14: 0.09020869993 | DN14: 0.08265013852 | DO14: 0.08497910504 | DP14: 0.08720477062 | DQ14: 0.08842559985 | DR14: 0.09527290917 | DS14: 0.09873797205 | DT14: 0.09933755621 | DU14: 0.09734538949 | DV14: 0.09108733563 | DW14: 0.08497461465 | DX14: 0.08464152321 | DY14: 0.08334599894 | DZ14: 0.08022870145 | EA14: 0.08402121778 | EB14: 0.08399429947 | EC14: 0.08537028847 | ED14: 0.08975345927 | EE14: 0.09171775217 | EF14: 0.09183473855 | EG14: 0.0873428364 | EH14: 0.08197951902 | EI14: 0.07629878894 | EJ14: 0.07556670484 | EK14: 0.07748766582 | EL14: 0.07622669189 | EM14: 0.07719875448 | EN14: 0.07884378121 | EO14: 0.08010113928 | EP14: 0.07752608106 | EQ14: 0.07875226483 | ER14: 0.07787340096 | ES14: 0.07075515642 | ET14: 0.06260340741 | EU14: 0.05510504184 | EV14: 0.05403623513 | EW14: 0.05521068559 | EX14: 0.05554751498 | EY14: 0.05807653066 | EZ14: 0.05933454182 | FA14: 0.06064885685 | FB14: 0.05628943218 | FC14: 0.05724011727 | FD14: 0.05585793719 | FE14: 0.05161754542 | FF14: 0.04695361037 | FG14: 0.04394087637 | FH14: 0.04398829564 | FI14: 0.04502374012 | FJ14: 0.04238356217 | FK14: 0.04290419423 | FL14: 0.04389518785 | FM14: 0.0443159363 | FN14: 0.04686275278 | FO14: 0.04661282121 | FP14: 0.0465107182 | FQ14: 0.04284906194 | FR14: 0.03859011045 | FS14: 0.0358745955 | FT14: 0.03510926029 | FU14: 0.03548689557 | FV14: 0.03344898472 | FW14: 0.03508270447 | FX14: 0.03531138044 | FY14: 0.03536687312 | FZ14: 0.03545421182 | GA14: 0.03633019749 | GB14: 0.03666835763 | GC14: 0.03474681549 | GD14: 0.03132944126 | GE14: 0.02928118665 | GF14: 0.02905074698 | GG14: 0.02848822375 | GH14: 0.02644873969 | GI14: 0.02767686109 | GJ14: 0.02842245459 | GK14: 0.02885612474 | GL14: 0.02980762979 | GM14: 0.02984756719 | GN14: 0.0287579052 | GO14: 0.02694822962 | GP14: 0.02407267607 | GQ14: 0.02324291662 | GR14: 0.02326833907 | GS14: 0.02328161567 | GT14: 0.02167832793 | GU14: 0.02226987793 | GV14: 0.02287009091 | GW14: 0.02272373541 | GX14: 0.02445791707 | GY14: 0.02459790163 | GZ14: 0.02357161387 | HA14: 0.02178322527 | HB14: 0.02011996177 | HC14: 0.01975342554 | HD14: 0.02008710915 | HE14: 0.02053857821 | HF14: 0.01974847129 | HG14: 0.02045693776 | HH14: 0.0213240057 | HI14: 0.02210882888 | HJ14: 0.02411108736 | HK14: 0.02447783847 | HL14: 0.02505534047 | HM14: 0.02404723748 | HN14: 0.02348562096 | HO14: 0.0232731034 | HP14: 0.02424242424 | HQ14: 0.02543412249 | HR14: 0.02497529579 | HS14: 0.02534303263 | HT14: 0.02678494457 | HU14: 0.0274595381 | HV14: 0.03014370536 | HW14: 0.03180269211 | HX14: 0.03326022775 | HY14: 0.03874039425 | HZ14: 0.03766935484 | IA14: 0.03661236262 | IB14: 0.03751164958 | IC14: 0.03813369583 | ID14: 0.03781824174 | IE14: 0.04034999581 | IF14: 0.04230672163 | IG14: 0.04372852953 | IH14: 0.04845721286 | II14: 0.05045708481 | IJ14: 0.05894701904 | IK14: 0.1846194896 | IL14: 0.1343471955 | IM14: 0.09922441018 | IN14: 0.0927864856 | IO14: 0.09874850821 | IP14: 0.1005471115 | IQ14: 0.1127207597 | IR14: 0.119985005 | IS14: 0.1194074418 | IT14: 0.123885372 | IU14: 0.1212092992 | IV14: 0.1188705153 | IW14: 0.1149087458 | IX14: 0.1029641442 | IY14: 0.07942176733 | IZ14: 0.06726143688 | JA14: 0.0605978889 | JB14: 0.05391229913 | JC14: 0.05223892544 | JD14: 0.05087198726 | JE14: 0.05013515253 | JF14: 0.05277213353 | JG14: 0.05288585256 | JH14: 0.05059031634 | JI14: 0.04720511892 | JJ14: 0.04220491463 | JK14: 0.0387270324 | JL14: 0.03720588235 | JM14: 0.0370049943 | JN14: 0.03538030178 | JO14: 0.03520758879 | JP14: 0.03413682712 | JQ14: 0.03482915323 | JR14: 0.03754949162 | JS14: 0.03836514854 | JT14: 0.03768454095 | JU14: 0.03555792846 | JV14: 0.03361943346 | JW14: 0.03281883749 | JX14: 0.03213121499 | JY14: 0.03301479779 | JZ14: 0.03296126067 | KA14: 0.03381041278 | KB14: 0.03543698985 | KC14: 0.03592014447 | KD14: 0.03648882594 | KE14: 0.03796968428 | KF14: 0.03826634824 | KG14: 0.03743639542 | KH14: 0.03571885032 | KI14: 0.0335466059 | KJ14: 0.03402260335 | KK14: 0.03443941118 | KL14: 0.0345896819 | KM14: 0.03480040163 | KN14: 0.03624343264 | KO14: 0.03721365986 | KP14: 0.04083275288 | KQ14: 0.04247602846 | KR14: 0.04209161161 | KS14: 0.04046097863 | KT14: 0.03921098746 | KU14: 0.03772804832 | KV14: 0.0377295521 | KW14: 0.03816857043 | KX14: 0.03820222344 | KY14: 0.04115638795 | KZ14: 0.04241960534 | LA14: 0.04328136864 | LB14: 0.0474496049 | LC14: 0.04840233884 | LD14: 0.04870805696 | LE14: 0.04846422229 | LF14: 0.04602511059 | LG14: 0.04456377418
A15: Höfuðborgarsvæði karlar | C15: 0.01487940211 | D15: 0.01501528706 | E15: 0.01333333333 | F15: 0.01102141858 | G15: 0.009302811749 | H15: 0.008229365628 | I15: 0.007818542908 | J15: 0.007311094533 | K15: 0.0075225568 | L15: 0.007942318358 | M15: 0.009095951192 | N15: 0.01005906648 | O15: 0.01019229915 | P15: 0.01034773727 | Q15: 0.01044091097 | R15: 0.00977205572 | S15: 0.009039293254 | T15: 0.00864627951 | U15: 0.008465369873 | V15: 0.008965704612 | W15: 0.01102086931 | X15: 0.01439975638 | Y15: 0.01737976638 | Z15: 0.02111241435 | AA15: 0.02441654628 | AB15: 0.02635402373 | AC15: 0.02590225866 | AD15: 0.02405305594 | AE15: 0.02300371612 | AF15: 0.02234096878 | AG15: 0.02203565736 | AH15: 0.02259557422 | AI15: 0.02536523979 | AJ15: 0.02769820378 | AK15: 0.02997038797 | AL15: 0.03744111589 | AM15: 0.04294960982 | AN15: 0.04283571643 | AO15: 0.04124265658 | AP15: 0.03665593623 | AQ15: 0.03255187281 | AR15: 0.02971317031 | AS15: 0.02903741253 | AT15: 0.02753743279 | AU15: 0.02907361939 | AV15: 0.03061400648 | AW15: 0.03211274977 | AX15: 0.03680981595 | AY15: 0.03673574923 | AZ15: 0.03682736311 | BA15: 0.03541613467 | BB15: 0.03265923266 | BC15: 0.03056613803 | BD15: 0.02886226691 | BE15: 0.02706521739 | BF15: 0.0256985364 | BG15: 0.02583274069 | BH15: 0.02478572645 | BI15: 0.02476078099 | BJ15: 0.02714445 | BK15: 0.0266253989 | BL15: 0.02451074628 | BM15: 0.02114091507 | BN15: 0.01922233592 | BO15: 0.01735857331 | BP15: 0.01553457204 | BQ15: 0.01435200946 | BR15: 0.01268567128 | BS15: 0.01208799321 | BT15: 0.0120141734 | BU15: 0.01188498874 | BV15: 0.01226524288 | BW15: 0.01237725423 | BX15: 0.01174252324 | BY15: 0.01085953581 | BZ15: 0.009865852793 | CA15: 0.01013201789 | CB15: 0.01061386414 | CC15: 0.009361080178 | CD15: 0.008334493318 | CE15: 0.008845234564 | CF15: 0.008845234564 | CG15: 0.009351175003 | CH15: 0.009479610742 | CI15: 0.01030705305 | CJ15: 0.01021711367 | CK15: 0.008976200246 | CL15: 0.008155519081 | CM15: 0.007411649766 | CN15: 0.006788787764 | CO15: 0.006243702615 | CP15: 0.005351745098 | CQ15: 0.005325121644 | CR15: 0.005189016299 | CS15: 0.005410187485 | CT15: 0.00611799481 | CU15: 0.006530443898 | CV15: 0.007458454347 | CW15: 0.007726233257 | CX15: 0.007677229664 | CY15: 0.008363279974 | CZ15: 0.009129933368 | DA15: 0.01073167606 | DB15: 0.01199705279 | DC15: 0.01849407728 | DD15: 0.03578381232 | DE15: 0.05482231828 | DF15: 0.07817957312 | DG15: 0.1010469214 | DH15: 0.1124835879 | DI15: 0.1164397761 | DJ15: 0.1106344472 | DK15: 0.1025603841 | DL15: 0.09948913185 | DM15: 0.09607249772 | DN15: 0.09121225324 | DO15: 0.09372591078 | DP15: 0.09662499581 | DQ15: 0.09828400979 | DR15: 0.1068301528 | DS15: 0.111714871 | DT15: 0.1120620812 | DU15: 0.1084510954 | DV15: 0.09929114182 | DW15: 0.08984130126 | DX15: 0.08730882204 | DY15: 0.08607989585 | DZ15: 0.08457218368 | EA15: 0.08972077865 | EB15: 0.09127968805 | EC15: 0.09345976604 | ED15: 0.09894062843 | EE15: 0.1009378306 | EF15: 0.1002281559 | EG15: 0.09531943368 | EH15: 0.08689191036 | EI15: 0.07872174591 | EJ15: 0.07624372471 | EK15: 0.0773381295 | EL15: 0.07673518872 | EM15: 0.07652118283 | EN15: 0.07886693204 | EO15: 0.08121755461 | EP15: 0.08293365308 | EQ15: 0.08464046368 | ER15: 0.082839704 | ES15: 0.07342288609 | ET15: 0.06195542131 | EU15: 0.05173706972 | EV15: 0.04884343803 | EW15: 0.05008863003 | EX15: 0.05190170105 | EY15: 0.05423455685 | EZ15: 0.05652641003 | FA15: 0.05832158095 | FB15: 0.05396387902 | FC15: 0.05526801549 | FD15: 0.05360583416 | FE15: 0.04881923118 | FF15: 0.04247258891 | FG15: 0.03781451022 | FH15: 0.03646117026 | FI15: 0.03700969874 | FJ15: 0.03642443316 | FK15: 0.0370616676 | FL15: 0.03911066377 | FM15: 0.04048096911 | FN15: 0.04329350234 | FO15: 0.04300782949 | FP15: 0.04325146707 | FQ15: 0.03825589017 | FR15: 0.03250322097 | FS15: 0.02928304289 | FT15: 0.02834824644 | FU15: 0.02881638089 | FV15: 0.02788374835 | FW15: 0.02981990488 | FX15: 0.03079965085 | FY15: 0.03168401236 | FZ15: 0.03181533506 | GA15: 0.03254063119 | GB15: 0.03341017911 | GC15: 0.03108826109 | GD15: 0.02692420252 | GE15: 0.02370375071 | GF15: 0.0229022142 | GG15: 0.0223984078 | GH15: 0.02166162126 | GI15: 0.02307422969 | GJ15: 0.02448171319 | GK15: 0.02548227434 | GL15: 0.02686582646 | GM15: 0.02712997914 | GN15: 0.0265565569 | GO15: 0.02393634954 | GP15: 0.02048102517 | GQ15: 0.01900643917 | GR15: 0.01828485551 | GS15: 0.01844655498 | GT15: 0.01791977658 | GU15: 0.0186249324 | GV15: 0.01965859683 | GW15: 0.01963631452 | GX15: 0.0217029492 | GY15: 0.02224104711 | GZ15: 0.02156810895 | HA15: 0.01963866133 | HB15: 0.01779139253 | HC15: 0.01679466122 | HD15: 0.01654863958 | HE15: 0.01741180049 | HF15: 0.01767425982 | HG15: 0.01856170427 | HH15: 0.02001577287 | HI15: 0.02148692682 | HJ15: 0.02357786859 | HK15: 0.02432436752 | HL15: 0.0250347261 | HM15: 0.0239688814 | HN15: 0.02317558737 | HO15: 0.0222891124 | HP15: 0.02255505565 | HQ15: 0.0243095446 | HR15: 0.0246991968 | HS15: 0.02499523598 | HT15: 0.02637424522 | HU15: 0.02664017771 | HV15: 0.02992424242 | HW15: 0.03153125 | HX15: 0.0333230198 | HY15: 0.03827274122 | HZ15: 0.0372172619 | IA15: 0.03581334874 | IB15: 0.03628267739 | IC15: 0.03692579505 | ID15: 0.03785293674 | IE15: 0.04125745755 | IF15: 0.04412936849 | IG15: 0.04607633588 | IH15: 0.05198124598 | II15: 0.05431000858 | IJ15: 0.06357824544 | IK15: 0.1927316543 | IL15: 0.1446254072 | IM15: 0.1047845451 | IN15: 0.09464270209 | IO15: 0.1005073582 | IP15: 0.1024711154 | IQ15: 0.1132306668 | IR15: 0.121293719 | IS15: 0.1228771379 | IT15: 0.1299233537 | IU15: 0.1277489845 | IV15: 0.1247444713 | IW15: 0.118913143 | IX15: 0.1048746016 | IY15: 0.07942997659 | IZ15: 0.06643605512 | JA15: 0.06079506607 | JB15: 0.05582254041 | JC15: 0.0540231879 | JD15: 0.05339777473 | JE15: 0.05345053029 | JF15: 0.05711143585 | JG15: 0.05645774616 | JH15: 0.05361989615 | JI15: 0.04988786805 | JJ15: 0.04310417664 | JK15: 0.03882225253 | JL15: 0.03701015965 | JM15: 0.03706280797 | JN15: 0.03587621026 | JO15: 0.03519406762 | JP15: 0.03415587446 | JQ15: 0.03513596089 | JR15: 0.0385427097 | JS15: 0.03986023631 | JT15: 0.03872288791 | JU15: 0.03623554591 | JV15: 0.03411529316 | JW15: 0.0329203995 | JX15: 0.03191718474 | JY15: 0.03271055406 | JZ15: 0.03302956212 | KA15: 0.03375783004 | KB15: 0.03618241599 | KC15: 0.03733806722 | KD15: 0.03741548332 | KE15: 0.03893382507 | KF15: 0.03964517706 | KG15: 0.03829963426 | KH15: 0.03614056589 | KI15: 0.03356027963 | KJ15: 0.03348299517 | KK15: 0.03413142468 | KL15: 0.03421681512 | KM15: 0.03469655742 | KN15: 0.03631508316 | KO15: 0.03838803036 | KP15: 0.04313000616 | KQ15: 0.04538580031 | KR15: 0.04529718457 | KS15: 0.04378120523 | KT15: 0.04178402472 | KU15: 0.03960138626 | KV15: 0.03906946265 | KW15: 0.03902049089 | KX15: 0.03930408023 | KY15: 0.04256088414 | KZ15: 0.04477496262 | LA15: 0.0472022883 | LB15: 0.05257277516 | LC15: 0.05344748956 | LD15: 0.05380836775 | LE15: 0.05336244284 | LF15: 0.05041792702 | LG15: 0.04846834799
A16: Höfuðborgarsvæði konur | C16: 0.02286055913 | D16: 0.02257586973 | E16: 0.0211668247 | F16: 0.02010498972 | G16: 0.02104958873 | H16: 0.02056141606 | I16: 0.01905237432 | J16: 0.01468302878 | K16: 0.01407488385 | L16: 0.01391600201 | M16: 0.01427854314 | N16: 0.01501702674 | O16: 0.01524032825 | P16: 0.01571484397 | Q16: 0.01618724707 | R16: 0.01567971983 | S16: 0.01945324779 | T16: 0.01955873882 | U16: 0.01868027106 | V16: 0.0158150532 | W16: 0.01696186929 | X16: 0.01892157935 | Y16: 0.02146450837 | Z16: 0.02434532998 | AA16: 0.02763825844 | AB16: 0.03062147494 | AC16: 0.03205484528 | AD16: 0.03212564697 | AE16: 0.03266266005 | AF16: 0.03547463864 | AG16: 0.03375134711 | AH16: 0.02944760357 | AI16: 0.03129101155 | AJ16: 0.03183243447 | AK16: 0.0318488529 | AL16: 0.03822355557 | AM16: 0.04242714062 | AN16: 0.04276203258 | AO16: 0.04233538421 | AP16: 0.04393110231 | AQ16: 0.04485326943 | AR16: 0.04560268335 | AS16: 0.04307379233 | AT16: 0.03620750264 | AU16: 0.03586245514 | AV16: 0.03617506947 | AW16: 0.03514307211 | AX16: 0.0395740623 | AY16: 0.04019757238 | AZ16: 0.04075259583 | BA16: 0.04064935401 | BB16: 0.04334488865 | BC16: 0.04445012431 | BD16: 0.04533264327 | BE16: 0.04436990896 | BF16: 0.03694874851 | BG16: 0.03554078884 | BH16: 0.0336146825 | BI16: 0.03264130565 | BJ16: 0.03505906007 | BK16: 0.03470721287 | BL16: 0.03249560191 | BM16: 0.02974057618 | BN16: 0.0308872008 | BO16: 0.03392097845 | BP16: 0.03370733878 | BQ16: 0.02899908646 | BR16: 0.01969970251 | BS16: 0.01722640417 | BT16: 0.01597182011 | BU16: 0.0155134144 | BV16: 0.01642521681 | BW16: 0.01617672639 | BX16: 0.01528216087 | BY16: 0.01452561468 | BZ16: 0.01573017785 | CA16: 0.01839911193 | CB16: 0.01929267897 | CC16: 0.01595757 | CD16: 0.01137179517 | CE16: 0.01067716313 | CF16: 0.01037075447 | CG16: 0.01079501261 | CH16: 0.01143969819 | CI16: 0.01180479494 | CJ16: 0.01122064014 | CK16: 0.01054945055 | CL16: 0.01133603239 | CM16: 0.01201194356 | CN16: 0.01162218944 | CO16: 0.01043762013 | CP16: 0.008157882973 | CQ16: 0.007919150993 | CR16: 0.007182485785 | CS16: 0.00660696609 | CT16: 0.007545116961 | CU16: 0.007876250621 | CV16: 0.00837295111 | CW16: 0.008295490311 | CX16: 0.009576907513 | CY16: 0.01227462794 | CZ16: 0.01322693003 | DA16: 0.01437326397 | DB16: 0.01364578281 | DC16: 0.01814218569 | DD16: 0.02888217797 | DE16: 0.03828250948 | DF16: 0.05075331684 | DG16: 0.06419715022 | DH16: 0.07192723589 | DI16: 0.07503248398 | DJ16: 0.07564461345 | DK16: 0.07974036111 | DL16: 0.0836461682 | DM16: 0.08273358913 | DN16: 0.0717352759 | DO16: 0.07382880092 | DP16: 0.07519600094 | DQ16: 0.07585823845 | DR16: 0.08074008122 | DS16: 0.08241818222 | DT16: 0.08333515272 | DU16: 0.08337881798 | DV16: 0.08087519573 | DW16: 0.0789165657 | DX16: 0.08132131375 | DY16: 0.07994285227 | DZ16: 0.07482198126 | EA16: 0.07692645059 | EB16: 0.07492553778 | EC16: 0.07530060673 | ED16: 0.07858189533 | EE16: 0.08050588748 | EF16: 0.08162822958 | EG16: 0.07788220551 | EH16: 0.07615323839 | EI16: 0.07342499164 | EJ16: 0.07476765155 | EK16: 0.0776641561 | EL16: 0.07562653873 | EM16: 0.07803026999 | EN16: 0.07881537052 | EO16: 0.07873108367 | EP16: 0.07115968687 | EQ16: 0.07182002346 | ER16: 0.07202662314 | ES16: 0.06763773006 | ET16: 0.06336061441 | EU16: 0.05904072803 | EV16: 0.06017027151 | EW16: 0.06126111754 | EX16: 0.05988631321 | EY16: 0.06283395783 | EZ16: 0.06281178636 | FA16: 0.06353066006 | FB16: 0.05905988076 | FC16: 0.05958951363 | FD16: 0.05854087565 | FE16: 0.05485550904 | FF16: 0.05213865019 | FG16: 0.05102983021 | FH16: 0.05261266713 | FI16: 0.0542060854 | FJ16: 0.04921122721 | FK16: 0.04977796574 | FL16: 0.04952421231 | FM16: 0.04882779558 | FN16: 0.05104472531 | FO16: 0.05083666015 | FP16: 0.05033585579 | FQ16: 0.04838642602 | FR16: 0.04592819787 | FS16: 0.04382110857 | FT16: 0.04293228626 | FU16: 0.04320523933 | FV16: 0.03988844078 | FW16: 0.04113489706 | FX16: 0.04049984636 | FY16: 0.03960214044 | FZ16: 0.03972134209 | GA16: 0.04077405858 | GB16: 0.04048911348 | GC16: 0.03902713794 | GD16: 0.03648329909 | GE16: 0.03580643365 | GF16: 0.03624867892 | GG16: 0.03561743249 | GH16: 0.03205292276 | GI16: 0.03305835875 | GJ16: 0.0330300795 | GK16: 0.03280096522 | GL16: 0.03322359176 | GM16: 0.03300310217 | GN16: 0.03131403561 | GO16: 0.03037450383 | GP16: 0.02815854366 | GQ16: 0.02806235292 | GR16: 0.02906119775 | GS16: 0.02890184245 | GT16: 0.02604730252 | GU16: 0.02658765116 | GV16: 0.02667441581 | GW16: 0.02638105524 | GX16: 0.02770850107 | GY16: 0.02737873591 | GZ16: 0.02593553168 | HA16: 0.02436230335 | HB16: 0.02292029617 | HC16: 0.02331168253 | HD16: 0.02432620693 | HE16: 0.02428449108 | HF16: 0.02223337609 | HG16: 0.02275067699 | HH16: 0.0229073208 | HI16: 0.02286149743 | HJ16: 0.02476088847 | HK16: 0.02466703444 | HL16: 0.02508077863 | HM16: 0.02414078364 | HN16: 0.02385772914 | HO16: 0.02447747246 | HP16: 0.02633316218 | HQ16: 0.02682079178 | HR16: 0.02531399085 | HS16: 0.02576573447 | HT16: 0.02728913812 | HU16: 0.02847554943 | HV16: 0.03040681173 | HW16: 0.03212813788 | HX16: 0.03318493786 | HY16: 0.03929946818 | HZ16: 0.03820422535 | IA16: 0.03754867107 | IB16: 0.03895840379 | IC16: 0.03956947847 | ID16: 0.03777656873 | IE16: 0.0392526822 | IF16: 0.04008950214 | IG16: 0.0408727948 | IH16: 0.04427790382 | II16: 0.04588768619 | IJ16: 0.05345449928 | IK16: 0.174959701 | IL16: 0.1222089246 | IM16: 0.09268399508 | IN16: 0.0906080163 | IO16: 0.09665394672 | IP16: 0.0982204342 | IQ16: 0.1120958173 | IR16: 0.1183810442 | IS16: 0.115167711 | IT16: 0.1166834583 | IU16: 0.1134089517 | IV16: 0.1118643442 | IW16: 0.1101036744 | IX16: 0.100660066 | IY16: 0.07941181751 | IZ16: 0.06827915467 | JA16: 0.0603547649 | JB16: 0.05155696115 | JC16: 0.05002511121 | JD16: 0.04773810171 | JE16: 0.04602155965 | JF16: 0.04745737693 | JG16: 0.04840098862 | JH16: 0.04676948263 | JI16: 0.04384182841 | JJ16: 0.04107430554 | JK16: 0.03860802421 | JL16: 0.03744960378 | JM16: 0.03693322051 | JN16: 0.03476412008 | JO16: 0.03522504892 | JP16: 0.03411215836 | JQ16: 0.03442760302 | JR16: 0.03631016454 | JS16: 0.03650539479 | JT16: 0.03639814345 | JU16: 0.03472081964 | JV16: 0.0330079033 | JW16: 0.03269356175 | JX16: 0.0323939442 | JY16: 0.03338778294 | JZ16: 0.03287646031 | KA16: 0.03387777504 | KB16: 0.03447818089 | KC16: 0.03410032387 | KD16: 0.03526489764 | KE16: 0.03671525683 | KF16: 0.03649451595 | KG16: 0.03632486227 | KH16: 0.03517249711 | KI16: 0.03352912791 | KJ16: 0.03470409232 | KK16: 0.03482670607 | KL16: 0.03506903835 | KM16: 0.03493358799 | KN16: 0.03615129859 | KO16: 0.03570362829 | KP16: 0.03799439427 | KQ16: 0.03888792955 | KR16: 0.03814270544 | KS16: 0.0364640884 | KT16: 0.03609510564 | KU16: 0.03542739106 | KV16: 0.03606453833 | KW16: 0.03709777842 | KX16: 0.03682347883 | KY16: 0.03940226752 | KZ16: 0.03948214805 | LA16: 0.0384306606 | LB16: 0.04134396496 | LC16: 0.0423628764 | LD16: 0.04259067005 | LE16: 0.04258763383 | LF16: 0.04076213771 | LG16: 0.03986878459
A17: Landsbyggð alls | C17: 0.01840307589 | D17: 0.01720855575 | E17: 0.01539417873 | F17: 0.01217002555 | G17: 0.00964735473 | H17: 0.007819825854 | I17: 0.007683428946 | J17: 0.00678049466 | K17: 0.007632903908 | L17: 0.01095144069 | M17: 0.0181548925 | N17: 0.02164882423 | O17: 0.02047762833 | P17: 0.01800713698 | Q17: 0.02127773993 | R17: 0.02085435002 | S17: 0.01054036249 | T17: 0.008044920208 | U17: 0.007871488657 | V17: 0.008422031621 | W17: 0.01080387886 | X17: 0.01455562327 | Y17: 0.02013049869 | Z17: 0.02708055534 | AA17: 0.02576298827 | AB17: 0.02376553901 | AC17: 0.02283481159 | AD17: 0.01956481652 | AE17: 0.01576079459 | AF17: 0.01443779571 | AG17: 0.0148081312 | AH17: 0.01580969267 | AI17: 0.01904957751 | AJ17: 0.02523780722 | AK17: 0.02854996243 | AL17: 0.03797863824 | AM17: 0.03926230934 | AN17: 0.03598666309 | AO17: 0.03473533619 | AP17: 0.03016893133 | AQ17: 0.02335245029 | AR17: 0.01918980239 | AS17: 0.01925448332 | AT17: 0.01899665306 | AU17: 0.02155581616 | AV17: 0.02456518168 | AW17: 0.02782131661 | AX17: 0.0343471319 | AY17: 0.03315662651 | AZ17: 0.02977089026 | BA17: 0.02912196607 | BB17: 0.0262570037 | BC17: 0.02121430039 | BD17: 0.02013816926 | BE17: 0.01942839075 | BF17: 0.01927450117 | BG17: 0.02086504548 | BH17: 0.02192982456 | BI17: 0.02460035524 | BJ17: 0.02849134195 | BK17: 0.02561454626 | BL17: 0.02270086857 | BM17: 0.01998177102 | BN17: 0.01730000701 | BO17: 0.01528430204 | BP17: 0.01424863787 | BQ17: 0.01395644626 | BR17: 0.01234079854 | BS17: 0.0145879437 | BT17: 0.01653536337 | BU17: 0.01823492963 | BV17: 0.01987351611 | BW17: 0.018089316 | BX17: 0.01658776145 | BY17: 0.01485996373 | BZ17: 0.01410437236 | CA17: 0.01140103432 | CB17: 0.01220054334 | CC17: 0.01185477896 | CD17: 0.01083395077 | CE17: 0.01142047349 | CF17: 0.01337112371 | CG17: 0.01475491831 | CH17: 0.01695032517 | CI17: 0.01693302892 | CJ17: 0.01565310641 | CK17: 0.01454945994 | CL17: 0.01302053364 | CM17: 0.0107551265 | CN17: 0.0103860663 | CO17: 0.01012922385 | CP17: 0.0103860663 | CQ17: 0.01088646967 | CR17: 0.01164752986 | CS17: 0.01244167963 | CT17: 0.01469321579 | CU17: 0.01550387597 | CV17: 0.01496343585 | CW17: 0.01404607111 | CX17: 0.01353238623 | CY17: 0.01258527972 | CZ17: 0.01256139025 | DA17: 0.0128132477 | DB17: 0.01355307896 | DC17: 0.0192301456 | DD17: 0.03249343321 | DE17: 0.04690793527 | DF17: 0.06468285312 | DG17: 0.07587784206 | DH17: 0.08019978474 | DI17: 0.07848446119 | DJ17: 0.07262287327 | DK17: 0.06029236464 | DL17: 0.05714195214 | DM17: 0.0553206316 | DN17: 0.05454871703 | DO17: 0.05926300507 | DP17: 0.06640784301 | DQ17: 0.07112213105 | DR17: 0.08089300758 | DS17: 0.08198144523 | DT17: 0.08148778619 | DU17: 0.07835560473 | DV17: 0.06950150983 | DW17: 0.05925510613 | DX17: 0.05781682868 | DY17: 0.05525983099 | DZ17: 0.05447024061 | EA17: 0.05918465064 | EB17: 0.06569594327 | EC17: 0.06986110394 | ED17: 0.07580732017 | EE17: 0.07708694146 | EF17: 0.07520013773 | EG17: 0.06930892941 | EH17: 0.06049183271 | EI17: 0.05107893153 | EJ17: 0.04975992318 | EK17: 0.04973787464 | EL17: 0.0486225591 | EM17: 0.05228420273 | EN17: 0.05679918661 | EO17: 0.06107722704 | EP17: 0.06232602111 | EQ17: 0.06249018136 | ER17: 0.06000034702 | ES17: 0.05383414699 | ET17: 0.04505021521 | EU17: 0.03519421196 | EV17: 0.03485767104 | EW17: 0.03520977597 | EX17: 0.03653588253 | EY17: 0.04099777723 | EZ17: 0.04537275518 | FA17: 0.04954709348 | FB17: 0.05264368223 | FC17: 0.0511077765 | FD17: 0.04890559674 | FE17: 0.04327061983 | FF17: 0.03646268561 | FG17: 0.02992096349 | FH17: 0.02985901229 | FI17: 0.0298018694 | FJ17: 0.02888439386 | FK17: 0.03152626898 | FL17: 0.03499625102 | FM17: 0.03922045862 | FN17: 0.0425182385 | FO17: 0.04311955717 | FP17: 0.04172733407 | FQ17: 0.03858982912 | FR17: 0.03176400188 | FS17: 0.0251428391 | FT17: 0.02328735095 | FU17: 0.02347296071 | FV17: 0.02419708892 | FW17: 0.02655295888 | FX17: 0.029822346 | FY17: 0.03289008468 | FZ17: 0.03629302736 | GA17: 0.03641323478 | GB17: 0.03498827893 | GC17: 0.03197492163 | GD17: 0.02536249299 | GE17: 0.02085711159 | GF17: 0.01993692625 | GG17: 0.02024571447 | GH17: 0.01996054311 | GI17: 0.02212908345 | GJ17: 0.02413674033 | GK17: 0.02641509434 | GL17: 0.02815409584 | GM17: 0.0267420668 | GN17: 0.02497291074 | GO17: 0.0221804139 | GP17: 0.01841361984 | GQ17: 0.01493878297 | GR17: 0.01400668606 | GS17: 0.01382135854 | GT17: 0.01413381103 | GU17: 0.0152163656 | GV17: 0.01838638395 | GW17: 0.02419110468 | GX17: 0.04078182952 | GY17: 0.03842374214 | GZ17: 0.02390808344 | HA17: 0.02071604782 | HB17: 0.01734581912 | HC17: 0.01529890343 | HD17: 0.01537576178 | HE17: 0.01566827213 | HF17: 0.01575746406 | HG17: 0.01719616188 | HH17: 0.01976011193 | HI17: 0.02119581418 | HJ17: 0.02409158944 | HK17: 0.02403861321 | HL17: 0.02304721368 | HM17: 0.02152124932 | HN17: 0.01885038166 | HO17: 0.01729594143 | HP17: 0.01741046356 | HQ17: 0.01854073186 | HR17: 0.01898984973 | HS17: 0.02033991901 | HT17: 0.02282869373 | HU17: 0.02553820821 | HV17: 0.02944186047 | HW17: 0.03035049628 | HX17: 0.03110939908 | HY17: 0.03310397554 | HZ17: 0.03161864535 | IA17: 0.0297897368 | IB17: 0.02865120275 | IC17: 0.02895815042 | ID17: 0.02998024616 | IE17: 0.03400214428 | IF17: 0.0397237145 | IG17: 0.04280691026 | IH17: 0.04718797859 | II17: 0.04847796456 | IJ17: 0.05394693548 | IK17: 0.1657430155 | IL17: 0.1224475689 | IM17: 0.08799154798 | IN17: 0.07947930704 | IO17: 0.08543155105 | IP17: 0.09432564205 | IQ17: 0.1069408817 | IR17: 0.1188573142 | IS17: 0.1227030497 | IT17: 0.136325634 | IU17: 0.1312797827 | IV17: 0.1244896971 | IW17: 0.1154601616 | IX17: 0.09484615385 | IY17: 0.06262898161 | IZ17: 0.04943334976 | JA17: 0.04454397511 | JB17: 0.0418555013 | JC17: 0.04345029329 | JD17: 0.04629973393 | JE17: 0.04813064692 | JF17: 0.05156975546 | JG17: 0.04959504675 | JH17: 0.04573593274 | JI17: 0.03997119193 | JJ17: 0.03387078065 | JK17: 0.02893505308 | JL17: 0.02817387305 | JM17: 0.0281785525 | JN17: 0.02605723417 | JO17: 0.02807868579 | JP17: 0.03089764019 | JQ17: 0.03293612612 | JR17: 0.03481090819 | JS17: 0.03367696605 | JT17: 0.03079671615 | JU17: 0.02787340827 | JV17: 0.02466523835 | JW17: 0.02221573415 | JX17: 0.02194407457 | JY17: 0.022869906 | JZ17: 0.0242905821 | KA17: 0.02758492879 | KB17: 0.03219816011 | KC17: 0.03547835991 | KD17: 0.03962355425 | KE17: 0.04015125274 | KF17: 0.03758982078 | KG17: 0.03466165624 | KH17: 0.03043789992 | KI17: 0.02728612624 | KJ17: 0.02699480435 | KK17: 0.02772730161 | KL17: 0.03032339579 | KM17: 0.03299927651 | KN17: 0.03787878788 | KO17: 0.04054760023 | KP17: 0.04412652826 | KQ17: 0.04363704971 | KR17: 0.04051 | KS17: 0.03727775689 | KT17: 0.03191254847 | KU17: 0.02846171249 | KV17: 0.02780786144 | KW17: 0.0274417347 | KX17: 0.02895761233 | KY17: 0.03629218884 | KZ17: 0.0432890112 | LA17: 0.04648100214 | LB17: 0.05048996515 | LC17: 0.04895223868 | LD17: 0.04585173324 | LE17: 0.04188737674 | LF17: 0.03599691527 | LG17: 0.03259136664
A18: Landsbyggð karlar | C18: 0.01232487753 | D18: 0.01123279978 | E18: 0.009903108476 | F18: 0.006702850194 | G18: 0.005040032256 | H18: 0.003863057414 | I18: 0.003888024883 | J18: 0.003347722668 | K18: 0.003654445243 | L18: 0.006449246569 | M18: 0.01247058104 | N18: 0.01480710986 | O18: 0.01388931379 | P18: 0.01187016245 | Q18: 0.01414486499 | R18: 0.01197987846 | S18: 0.005732681935 | T18: 0.003897565394 | U18: 0.004179492248 | V18: 0.00469334869 | W18: 0.006490645834 | X18: 0.009829482454 | Y18: 0.01576313345 | Z18: 0.02205343461 | AA18: 0.0208189215 | AB18: 0.01933945314 | AC18: 0.01851068675 | AD18: 0.0150870164 | AE18: 0.01211996713 | AF18: 0.009979627388 | AG18: 0.01044167067 | AH18: 0.01158507792 | AI18: 0.01410244166 | AJ18: 0.02080721985 | AK18: 0.02421447983 | AL18: 0.03383695833 | AM18: 0.03513265038 | AN18: 0.03109634984 | AO18: 0.02950809041 | AP18: 0.02374414977 | AQ18: 0.01760954777 | AR18: 0.01238927636 | AS18: 0.01229140499 | AT18: 0.01239410104 | AU18: 0.01488133012 | AV18: 0.01824087956 | AW18: 0.02194290584 | AX18: 0.02761315101 | AY18: 0.02615812735 | AZ18: 0.02172218975 | BA18: 0.02088722193 | BB18: 0.01795158982 | BC18: 0.01376695348 | BD18: 0.01173812249 | BE18: 0.01183837781 | BF18: 0.012922403 | BG18: 0.01404796558 | BH18: 0.01519870437 | BI18: 0.01784522003 | BJ18: 0.02094924315 | BK18: 0.01777888291 | BL18: 0.01504367016 | BM18: 0.01252621939 | BN18: 0.009926438004 | BO18: 0.00821294573 | BP18: 0.007589803013 | BQ18: 0.007502896871 | BR18: 0.006778679027 | BS18: 0.008772715066 | BT18: 0.01023483424 | BU18: 0.01190582759 | BV18: 0.01290720922 | BW18: 0.01111372457 | BX18: 0.009849464895 | BY18: 0.008775361914 | BZ18: 0.007964898552 | CA18: 0.005924766642 | CB18: 0.006604187219 | CC18: 0.006384961087 | CD18: 0.005836895758 | CE18: 0.006548951339 | CF18: 0.008151648291 | CG18: 0.009671447125 | CH18: 0.01113374846 | CI18: 0.01101896755 | CJ18: 0.009698987058 | CK18: 0.009191577569 | CL18: 0.007773292603 | CM18: 0.006099854893 | CN18: 0.006195687158 | CO18: 0.006383435254 | CP18: 0.006705289132 | CQ18: 0.006941371681 | CR18: 0.007494469027 | CS18: 0.008241150442 | CT18: 0.01028407654 | CU18: 0.01073365366 | CV18: 0.01062125938 | CW18: 0.009961808616 | CX18: 0.009294127073 | CY18: 0.008412787437 | CZ18: 0.008747119212 | DA18: 0.009349465745 | DB18: 0.009611355542 | DC18: 0.01534933909 | DD18: 0.02978149447 | DE18: 0.04790936067 | DF18: 0.06895726086 | DG18: 0.08166256302 | DH18: 0.08646969164 | DI18: 0.08386094501 | DJ18: 0.07480594808 | DK18: 0.05793099677 | DL18: 0.05280737592 | DM18: 0.0507370397 | DN18: 0.05080890506 | DO18: 0.05672286827 | DP18: 0.06545165051 | DQ18: 0.07292940206 | DR18: 0.08439588916 | DS18: 0.08562418184 | DT18: 0.08508865881 | DU18: 0.08014994645 | DV18: 0.06868306802 | DW18: 0.05597392379 | DX18: 0.0525922305 | DY18: 0.04957544279 | DZ18: 0.0504694488 | EA18: 0.05674418605 | EB18: 0.06481705108 | EC18: 0.07109648593 | ED18: 0.07819234084 | EE18: 0.0797655219 | EF18: 0.07712725387 | EG18: 0.07095062994 | EH18: 0.05958367442 | EI18: 0.04834085555 | EJ18: 0.04500387964 | EK18: 0.04431353975 | EL18: 0.04320893473 | EM18: 0.04577668279 | EN18: 0.05155579889 | EO18: 0.05743571082 | EP18: 0.06220261541 | EQ18: 0.06110587496 | ER18: 0.05699206795 | ES18: 0.04989654862 | ET18: 0.0399850308 | EU18: 0.02884189548 | EV18: 0.02761979841 | EW18: 0.0281982958 | EX18: 0.03073606406 | EY18: 0.03388198758 | EZ18: 0.03878881988 | FA18: 0.0440894173 | FB18: 0.04841370558 | FC18: 0.0467008612 | FD18: 0.04404398097 | FE18: 0.03832139328 | FF18: 0.03112499635 | FG18: 0.02484542838 | FH18: 0.02402679912 | FI18: 0.02408625402 | FJ18: 0.02327545753 | FK18: 0.02606918239 | FL18: 0.03037735849 | FM18: 0.03589904374 | FN18: 0.03927511725 | FO18: 0.03954532429 | FP18: 0.03733880798 | FQ18: 0.03394694264 | FR18: 0.02606361485 | FS18: 0.01971775443 | FT18: 0.01861295258 | FU18: 0.01894519741 | FV18: 0.01991775104 | FW18: 0.0221010152 | FX18: 0.02629421779 | FY18: 0.03039637884 | FZ18: 0.03328652582 | GA18: 0.0323299179 | GB18: 0.02988992915 | GC18: 0.02723341614 | GD18: 0.02090703474 | GE18: 0.01675203033 | GF18: 0.01550847458 | GG18: 0.0157991213 | GH18: 0.01637721587 | GI18: 0.01814151002 | GJ18: 0.02031694433 | GK18: 0.02358372848 | GL18: 0.02499146254 | GM18: 0.02330764231 | GN18: 0.0212294628 | GO18: 0.01831390949 | GP18: 0.01451183559 | GQ18: 0.01156327682 | GR18: 0.01020465535 | GS18: 0.01004748668 | GT18: 0.01056747963 | GU18: 0.01180648294 | GV18: 0.01528178642 | GW18: 0.02098177739 | GX18: 0.0368230833 | GY18: 0.03539116551 | GZ18: 0.02209408373 | HA18: 0.01881171263 | HB18: 0.01488673139 | HC18: 0.01309004363 | HD18: 0.01258144832 | HE18: 0.01267122362 | HF18: 0.01303964272 | HG18: 0.01457585944 | HH18: 0.01741835148 | HI18: 0.01899252152 | HJ18: 0.0219128053 | HK18: 0.02224409449 | HL18: 0.0212096525 | HM18: 0.01934855234 | HN18: 0.01625426507 | HO18: 0.01456272876 | HP18: 0.01446435478 | HQ18: 0.01550449657 | HR18: 0.0169800885 | HS18: 0.01877842574 | HT18: 0.02196201314 | HU18: 0.02517797752 | HV18: 0.02762635618 | HW18: 0.02880463402 | HX18: 0.02996068152 | HY18: 0.03212247016 | HZ18: 0.03056478405 | IA18: 0.02790870752 | IB18: 0.02629289512 | IC18: 0.02639920753 | ID18: 0.02780500387 | IE18: 0.03153386971 | IF18: 0.03747724317 | IG18: 0.04113989637 | IH18: 0.04583205168 | II18: 0.04698554291 | IJ18: 0.05196969697 | IK18: 0.1588364727 | IL18: 0.1171847425 | IM18: 0.08318128655 | IN18: 0.07386979682 | IO18: 0.07974870658 | IP18: 0.08794391099 | IQ18: 0.09973510274 | IR18: 0.1108031108 | IS18: 0.1157421596 | IT18: 0.1302193914 | IU18: 0.1239840816 | IV18: 0.1165681623 | IW18: 0.1065627385 | IX18: 0.08524012414 | IY18: 0.05465911112 | IZ18: 0.04318374259 | JA18: 0.03902475469 | JB18: 0.03868129646 | JC18: 0.04099247723 | JD18: 0.04425722513 | JE18: 0.04615751917 | JF18: 0.04922004737 | JG18: 0.04792166703 | JH18: 0.04408452215 | JI18: 0.03731790582 | JJ18: 0.02938153376 | JK18: 0.02610386696 | JL18: 0.02572706935 | JM18: 0.0261043122 | JN18: 0.02392660745 | JO18: 0.02615565282 | JP18: 0.02953677884 | JQ18: 0.0322953641 | JR18: 0.03386754594 | JS18: 0.03311409056 | JT18: 0.02990264256 | JU18: 0.02615451431 | JV18: 0.02270566134 | JW18: 0.02029860375 | JX18: 0.02016513548 | JY18: 0.02165022853 | JZ18: 0.02368730751 | KA18: 0.02774175503 | KB18: 0.03289625029 | KC18: 0.03647680024 | KD18: 0.04024887696 | KE18: 0.0403164844 | KF18: 0.03679812344 | KG18: 0.03338983051 | KH18: 0.02909691111 | KI18: 0.02671510533 | KJ18: 0.02660400138 | KK18: 0.02795092619 | KL18: 0.03030943822 | KM18: 0.03281307892 | KN18: 0.03736107284 | KO18: 0.0404209849 | KP18: 0.04609358102 | KQ18: 0.04560040534 | KR18: 0.04261989088 | KS18: 0.03886394094 | KT18: 0.03274358449 | KU18: 0.02936092891 | KV18: 0.02830984854 | KW18: 0.02804747161 | KX18: 0.02990797078 | KY18: 0.03746335084 | KZ18: 0.04426398709 | LA18: 0.04823044394 | LB18: 0.05311472344 | LC18: 0.05105826542 | LD18: 0.04760428894 | LE18: 0.04329732909 | LF18: 0.03727201163 | LG18: 0.03387659972
A19: Landsbyggð konur | C19: 0.0274513447 | D19: 0.0261043244 | E19: 0.02356795123 | F19: 0.02030815417 | G19: 0.01650589496 | H19: 0.01371004709 | I19: 0.01333333333 | J19: 0.01189071038 | K19: 0.01355508985 | L19: 0.01765321443 | M19: 0.02661631557 | N19: 0.03183350032 | O19: 0.03028508972 | P19: 0.02714272702 | Q19: 0.0318954365 | R19: 0.03406484006 | S19: 0.01769651114 | T19: 0.0142185904 | U19: 0.01336696091 | V19: 0.01397222698 | W19: 0.01722404372 | X19: 0.02159075701 | Y19: 0.02663157425 | Z19: 0.03427400133 | AA19: 0.03285896648 | AB19: 0.03011004449 | AC19: 0.02902804958 | AD19: 0.02598510008 | AE19: 0.02094831912 | AF19: 0.02083068716 | AG19: 0.02108212977 | AH19: 0.02180615756 | AI19: 0.02608813805 | AJ19: 0.03148041856 | AK19: 0.03468233058 | AL19: 0.04389041615 | AM19: 0.04517463451 | AN19: 0.04298020955 | AO19: 0.0422032799 | AP19: 0.03935742972 | AQ19: 0.03151505072 | AR19: 0.02891657547 | AS19: 0.02923525377 | AT19: 0.02834547716 | AU19: 0.03102904751 | AV19: 0.0334548009 | AW19: 0.03611612127 | AX19: 0.04396123848 | AY19: 0.04317862166 | AZ19: 0.04128163455 | BA19: 0.04088892996 | BB19: 0.03813634745 | BC19: 0.03180065509 | BD19: 0.03215380095 | BE19: 0.03030950752 | BF19: 0.02827011698 | BG19: 0.03054257995 | BH19: 0.03139229422 | BI19: 0.03413276231 | BJ19: 0.03949396935 | BK19: 0.03704543393 | BL19: 0.03387140655 | BM19: 0.0308580787 | BN19: 0.0280567168 | BO19: 0.02560013791 | BP19: 0.02396348421 | BQ19: 0.02337179325 | BR19: 0.02045560205 | BS19: 0.02307156538 | BT19: 0.02572697197 | BU19: 0.02746822218 | BV19: 0.03035935564 | BW19: 0.02858913082 | BX19: 0.02673039476 | BY19: 0.02401783461 | BZ19: 0.02334483049 | CA19: 0.01964330782 | CB19: 0.02062451017 | CC19: 0.0200882729 | CD19: 0.01835581405 | CE19: 0.01883065025 | CF19: 0.02131057963 | CG19: 0.02248749527 | CH19: 0.02577611355 | CI19: 0.02590673575 | CJ19: 0.02468759525 | CK19: 0.02267930307 | CL19: 0.0209824939 | CM19: 0.01781927907 | CN19: 0.01663268162 | CO19: 0.01571308624 | CP19: 0.01587301587 | CQ19: 0.01676138704 | CR19: 0.01783213903 | CS19: 0.01869697718 | CT19: 0.02133604267 | CU19: 0.02269071205 | CV19: 0.02150537634 | CW19: 0.02019958152 | CX19: 0.01991791405 | CY19: 0.01887172059 | CZ19: 0.01830808081 | DA19: 0.01803188131 | DB19: 0.01949179293 | DC19: 0.02507722322 | DD19: 0.03657941798 | DE19: 0.04539912209 | DF19: 0.05893015387 | DG19: 0.06809215717 | DH19: 0.07176108569 | DI19: 0.07124822471 | DJ19: 0.06968467779 | DK19: 0.06347045404 | DL19: 0.06297603567 | DM19: 0.06148987553 | DN19: 0.05958212154 | DO19: 0.06268176948 | DP19: 0.06769478035 | DQ19: 0.06868972907 | DR19: 0.07620810523 | DS19: 0.07710977599 | DT19: 0.0766721044 | DU19: 0.07595591453 | DV19: 0.07058688059 | DW19: 0.0636062153 | DX19: 0.06474490963 | DY19: 0.06279744631 | DZ19: 0.0597753515 | EA19: 0.06241800183 | EB19: 0.06686151259 | EC19: 0.06822276494 | ED19: 0.07271857433 | EE19: 0.07361768096 | EF19: 0.07270428323 | EG19: 0.06723520902 | EH19: 0.06163902943 | EI19: 0.05453763132 | EJ19: 0.05573817867 | EK19: 0.05655603512 | EL19: 0.05542769467 | EM19: 0.0607903944 | EN19: 0.06365298982 | EO19: 0.06583693369 | EP19: 0.06248030255 | EQ19: 0.0642209042 | ER19: 0.06376166491 | ES19: 0.05872064898 | ET19: 0.05133609603 | EU19: 0.04307798008 | EV19: 0.04393741391 | EW19: 0.04400528945 | EX19: 0.0438657948 | EY19: 0.05035530507 | EZ19: 0.05403087479 | FA19: 0.05672517001 | FB19: 0.05797449122 | FC19: 0.05666174534 | FD19: 0.05503275759 | FE19: 0.04932904933 | FF19: 0.04299653311 | FG19: 0.03613407276 | FH19: 0.03692813889 | FI19: 0.03672964217 | FJ19: 0.03568313678 | FK19: 0.03831852519 | FL19: 0.04074523465 | FM19: 0.04335440568 | FN19: 0.04654107963 | FO19: 0.0475532209 | FP19: 0.04716831053 | FQ19: 0.04450669157 | FR19: 0.03902887622 | FS19: 0.03205657465 | FT19: 0.02900509408 | FU19: 0.0290110999 | FV19: 0.02943163901 | FW19: 0.03196504542 | FX19: 0.0341113794 | FY19: 0.03592173647 | FZ19: 0.04001422026 | GA19: 0.04146648815 | GB19: 0.04129805058 | GC19: 0.03782944562 | GD19: 0.03086397651 | GE19: 0.02592592593 | GF19: 0.02540834846 | GG19: 0.02573965561 | GH19: 0.02438843588 | GI19: 0.02704993835 | GJ19: 0.02885023335 | GK19: 0.02990877247 | GL19: 0.03202400851 | GM19: 0.03094462541 | GN19: 0.02955349748 | GO19: 0.02681519649 | GP19: 0.02309064709 | GQ19: 0.01898543446 | GR19: 0.01866391185 | GS19: 0.01844429468 | GT19: 0.01850226708 | GU19: 0.01947264737 | GV19: 0.02226183252 | GW19: 0.02819726733 | GX19: 0.04569872691 | GY19: 0.04218990967 | GZ19: 0.02616098506 | HA19: 0.02311374678 | HB19: 0.02044212028 | HC19: 0.01808011188 | HD19: 0.01889055472 | HE19: 0.01943793115 | HF19: 0.01917608711 | HG19: 0.02047672938 | HH19: 0.02269187199 | HI19: 0.02395421142 | HJ19: 0.02684297759 | HK19: 0.02633091458 | HL19: 0.02539693944 | HM19: 0.02426586953 | HN19: 0.02213020162 | HO19: 0.02080005325 | HP19: 0.02113778706 | HQ19: 0.022326479 | HR19: 0.02145718748 | HS19: 0.0222464484 | HT19: 0.023897495 | HU19: 0.02598692094 | HV19: 0.03201048297 | HW19: 0.03256603774 | HX19: 0.03274766355 | HY19: 0.03451228593 | HZ19: 0.03313696613 | IA19: 0.03252707581 | IB19: 0.03208011244 | IC19: 0.03265379113 | ID19: 0.03309911243 | IE19: 0.03755605381 | IF19: 0.0429588015 | IG19: 0.04520701231 | IH19: 0.04915172439 | II19: 0.05063291139 | IJ19: 0.05681901548 | IK19: 0.1757110452 | IL19: 0.1299436922 | IM19: 0.09481614231 | IN19: 0.08753172052 | IO19: 0.09343136575 | IP19: 0.1032618362 | IQ19: 0.1170266379 | IR19: 0.1301760208 | IS19: 0.1324950602 | IT19: 0.1447265929 | IU19: 0.1413679519 | IV19: 0.1354978021 | IW19: 0.1278084575 | IX19: 0.1083846097 | IY19: 0.07402696515 | IZ19: 0.05813227953 | JA19: 0.05211214698 | JB19: 0.04620770937 | JC19: 0.04684763573 | JD19: 0.04912293632 | JE19: 0.05085802288 | JF19: 0.05484335887 | JG19: 0.05184289587 | JH19: 0.04796353903 | JI19: 0.04357206012 | JJ19: 0.04002888683 | JK19: 0.03272290603 | JL19: 0.03135750198 | JM19: 0.03082490116 | JN19: 0.02876537402 | JO19: 0.03050174872 | JP19: 0.03263346916 | JQ19: 0.03372081536 | JR19: 0.03605332256 | JS19: 0.03442053201 | JT19: 0.03198625384 | JU19: 0.03018036981 | JV19: 0.02734214111 | JW19: 0.0248200313 | JX19: 0.02432642891 | JY19: 0.02448420785 | JZ19: 0.02507307567 | KA19: 0.02738481506 | KB19: 0.03131375279 | KC19: 0.0342172246 | KD19: 0.0388020215 | KE19: 0.03992973448 | KF19: 0.03868845789 | KG19: 0.03641148644 | KH19: 0.0322427089 | KI19: 0.02807006873 | KJ19: 0.02753919154 | KK19: 0.02742235838 | KL19: 0.03034205484 | KM19: 0.03325491193 | KN19: 0.03859018049 | KO19: 0.04072456321 | KP19: 0.04163880615 | KQ19: 0.04115276591 | KR19: 0.03782139054 | KS19: 0.03516517927 | KT19: 0.03081325301 | KU19: 0.02729040815 | KV19: 0.02714303891 | KW19: 0.02663417289 | KX19: 0.02767620729 | KY19: 0.03471226862 | KZ19: 0.04197434093 | LA19: 0.04412662581 | LB19: 0.04704946739 | LC19: 0.04617690433 | LD19: 0.04353689553 | LE19: 0.04002641024 | LF19: 0.03431366074 | LG19: 0.03089810075
A20: Suðurnes alls | C20: 0.01396723073 | D20: 0.01235562718 | E20: 0.009867122747 | F20: 0.007148327802 | G20: 0.00508243461 | H20: 0.001807228916 | I20: 0.002355274575 | J20: 0.002654196158 | K20: 0.00438370294 | L20: 0.006578081831 | M20: 0.01157742402 | N20: 0.01553858309 | O20: 0.01474848565 | P20: 0.01132473005 | Q20: 0.01328517993 | R20: 0.01952440551 | S20: 0.008508569345 | T20: 0.005788541051 | U20: 0.004254284672 | V20: 0.005576899244 | W20: 0.009733282771 | X20: 0.01418805624 | Y20: 0.01767057913 | Z20: 0.02295081967 | AA20: 0.02384817081 | AB20: 0.02363861386 | AC20: 0.02192928422 | AD20: 0.0195683112 | AE20: 0.0160789532 | AF20: 0.01644479248 | AG20: 0.01968369553 | AH20: 0.0229216152 | AI20: 0.03102080077 | AJ20: 0.0384252711 | AK20: 0.04233291154 | AL20: 0.05300264384 | AM20: 0.05384519506 | AN20: 0.04781319496 | AO20: 0.0467404674 | AP20: 0.04641250296 | AQ20: 0.04085021588 | AR20: 0.03506420994 | AS20: 0.03146297138 | AT20: 0.02608489447 | AU20: 0.03252520403 | AV20: 0.03365101777 | AW20: 0.0364033073 | AX20: 0.04363500746 | AY20: 0.04394387001 | AZ20: 0.04258174719 | BA20: 0.04056351712 | BB20: 0.03694610078 | BC20: 0.03203236034 | BD20: 0.03032642258 | BE20: 0.02478689996 | BF20: 0.02365339578 | BG20: 0.02643119592 | BH20: 0.02928189635 | BI20: 0.02982535722 | BJ20: 0.03597036329 | BK20: 0.03381931166 | BL20: 0.03083173996 | BM20: 0.02760109041 | BN20: 0.02226260791 | BO20: 0.0176056338 | BP20: 0.0163733571 | BQ20: 0.01615059033 | BR20: 0.01459122299 | BS20: 0.01697831823 | BT20: 0.01984627739 | BU20: 0.02214064472 | BV20: 0.02509041591 | BW20: 0.02362115732 | BX20: 0.02192585895 | BY20: 0.01761735954 | BZ20: 0.01815447416 | CA20: 0.01708024492 | CB20: 0.01853997683 | CC20: 0.01875065838 | CD20: 0.01853997683 | CE20: 0.02058823529 | CF20: 0.02762605042 | CG20: 0.03035714286 | CH20: 0.03255813953 | CI20: 0.0322410148 | CJ20: 0.02906976744 | CK20: 0.02803174922 | CL20: 0.0253189993 | CM20: 0.02266877846 | CN20: 0.02057852844 | CO20: 0.01815181518 | CP20: 0.01873422636 | CQ20: 0.02059588082 | CR20: 0.0224955009 | CS20: 0.02429514097 | CT20: 0.02376142376 | CU20: 0.02712842713 | CV20: 0.02760942761 | CW20: 0.02679224579 | CX20: 0.02468910022 | CY20: 0.02395757132 | CZ20: 0.02465704295 | DA20: 0.0248363669 | DB20: 0.02600197256 | DC20: 0.04294818509 | DD20: 0.07194975524 | DE20: 0.0968874111 | DF20: 0.1163161848 | DG20: 0.135435822 | DH20: 0.142883413 | DI20: 0.142883413 | DJ20: 0.141888879 | DK20: 0.1206586056 | DL20: 0.1167200623 | DM20: 0.1136029093 | DN20: 0.1205743334 | DO20: 0.1238740747 | DP20: 0.1302060109 | DQ20: 0.1357353072 | DR20: 0.1454761036 | DS20: 0.149536144 | DT20: 0.1490768807 | DU20: 0.1460457426 | DV20: 0.1353093937 | DW20: 0.1190993654 | DX20: 0.1168045548 | DY20: 0.1100478469 | DZ20: 0.1125263447 | EA20: 0.1219014019 | EB20: 0.1292733047 | EC20: 0.131141416 | ED20: 0.1424285045 | EE20: 0.1444195177 | EF20: 0.1448615499 | EG20: 0.136021066 | EH20: 0.1207503963 | EI20: 0.1057042675 | EJ20: 0.1025485961 | EK20: 0.1042093085 | EL20: 0.106962664 | EM20: 0.1150483631 | EN20: 0.123046875 | EO20: 0.1273182493 | EP20: 0.1247379455 | EQ20: 0.1255106888 | ER20: 0.122213827 | ES20: 0.1104483008 | ET20: 0.09414316703 | EU20: 0.07450358752 | EV20: 0.07410249851 | EW20: 0.07573607662 | EX20: 0.07805334581 | EY20: 0.08872671404 | EZ20: 0.09592855771 | FA20: 0.1023456199 | FB20: 0.09687918821 | FC20: 0.09620712716 | FD20: 0.08955223881 | FE20: 0.07753150005 | FF20: 0.06522306288 | FG20: 0.05405634759 | FH20: 0.05479921226 | FI20: 0.05405164737 | FJ20: 0.05379834895 | FK20: 0.05755802982 | FL20: 0.06246461597 | FM20: 0.06962084862 | FN20: 0.0751800288 | FO20: 0.07695256349 | FP20: 0.07560928804 | FQ20: 0.07060452238 | FR20: 0.05689354276 | FS20: 0.04649974451 | FT20: 0.04238499706 | FU20: 0.04495757894 | FV20: 0.04537172012 | FW20: 0.0473212619 | FX20: 0.05105469479 | FY20: 0.05434074625 | FZ20: 0.05812854442 | GA20: 0.05729362985 | GB20: 0.05591982016 | GC20: 0.0486300127 | GD20: 0.03774556061 | GE20: 0.03147760569 | GF20: 0.02992810567 | GG20: 0.02970552781 | GH20: 0.02902796272 | GI20: 0.03140007388 | GJ20: 0.03365073495 | GK20: 0.03588891964 | GL20: 0.0355969818 | GM20: 0.03318877777 | GN20: 0.02955925046 | GO20: 0.02581253752 | GP20: 0.02051573143 | GQ20: 0.01788257636 | GR20: 0.01672832556 | GS20: 0.01681437919 | GT20: 0.01725021349 | GU20: 0.01891252955 | GV20: 0.02454202822 | GW20: 0.02764170749 | GX20: 0.04475661549 | GY20: 0.04369090316 | GZ20: 0.02806391435 | HA20: 0.02431730542 | HB20: 0.02019446522 | HC20: 0.01973008655 | HD20: 0.02085475106 | HE20: 0.02127181485 | HF20: 0.0210180373 | HG20: 0.02352481438 | HH20: 0.02698896973 | HI20: 0.02935665209 | HJ20: 0.03137821 | HK20: 0.0325080894 | HL20: 0.03173648191 | HM20: 0.02958404389 | HN20: 0.02783542039 | HO20: 0.02727146236 | HP20: 0.02817288532 | HQ20: 0.03060286946 | HR20: 0.03164787195 | HS20: 0.03434387815 | HT20: 0.03948703087 | HU20: 0.04278853151 | HV20: 0.04808238636 | HW20: 0.05124025514 | HX20: 0.05412844037 | HY20: 0.06351540616 | HZ20: 0.06565307533 | IA20: 0.06258411844 | IB20: 0.05910878113 | IC20: 0.06001339585 | ID20: 0.06325678497 | IE20: 0.07279102384 | IF20: 0.08376669009 | IG20: 0.08719384185 | IH20: 0.08988311165 | II20: 0.09132389452 | IJ20: 0.09660107335 | IK20: 0.2532590811 | IL20: 0.1956135514 | IM20: 0.1584579837 | IN20: 0.1647891659 | IO20: 0.1800421375 | IP20: 0.1963476319 | IQ20: 0.2115307887 | IR20: 0.2277833167 | IS20: 0.2331613074 | IT20: 0.2593871703 | IU20: 0.2540816327 | IV20: 0.2444139128 | IW20: 0.2300702776 | IX20: 0.1966365704 | IY20: 0.1374321881 | IZ20: 0.1088311688 | JA20: 0.09727601343 | JB20: 0.09068274145 | JC20: 0.09176389842 | JD20: 0.09504332756 | JE20: 0.09332965441 | JF20: 0.09529519644 | JG20: 0.09233340297 | JH20: 0.08572212317 | JI20: 0.07616247996 | JJ20: 0.06629227989 | JK20: 0.05992628368 | JL20: 0.05880092237 | JM20: 0.05913237514 | JN20: 0.05270448549 | JO20: 0.0554007431 | JP20: 0.0574347179 | JQ20: 0.05963151291 | JR20: 0.05973813421 | JS20: 0.05819610778 | JT20: 0.05220488883 | JU20: 0.04646706587 | JV20: 0.04127536232 | JW20: 0.03849689726 | JX20: 0.03811995386 | JY20: 0.0393588602 | JZ20: 0.04210074764 | KA20: 0.04753074974 | KB20: 0.05259245493 | KC20: 0.05600148185 | KD20: 0.06706100832 | KE20: 0.0689678511 | KF20: 0.06526511875 | KG20: 0.06176489914 | KH20: 0.05664446559 | KI20: 0.05309309309 | KJ20: 0.05108459232 | KK20: 0.05104228708 | KL20: 0.05566061523 | KM20: 0.05933320776 | KN20: 0.07093921276 | KO20: 0.07647907648 | KP20: 0.08124843633 | KQ20: 0.0813865387 | KR20: 0.07702556944 | KS20: 0.07045121874 | KT20: 0.06118772518 | KU20: 0.05621608809 | KV20: 0.05562533129 | KW20: 0.05383010261 | KX20: 0.05610093764 | KY20: 0.07113649734 | KZ20: 0.08558172022 | LA20: 0.08903024372 | LB20: 0.08858286611 | LC20: 0.08775010841 | LD20: 0.08176192619 | LE20: 0.07453986873 | LF20: 0.06476074791 | LG20: 0.05779864087
A21: Suðurnes karlar | C21: 0.005252790545 | D21: 0.005033924272 | E21: 0.004073756432 | F21: 0.002080299563 | G21: 0.001616161616 | H21: 0.0007853917141 | I21: 0.0008080808081 | J21: 0.001029866117 | K21: 0.001260769069 | L21: 0.002787307033 | M21: 0.006432246998 | N21: 0.007296137339 | O21: 0.006652360515 | P21: 0.004291845494 | Q21: 0.007778011352 | R21: 0.01040179482 | S21: 0.004160063391 | T21: 0.00269541779 | U21: 0.002575277338 | V21: 0.002625732175 | W21: 0.004738360115 | X21: 0.006306495691 | Y21: 0.01030060963 | Z21: 0.01465517241 | AA21: 0.01619778346 | AB21: 0.01690974424 | AC21: 0.0166280783 | AD21: 0.01518833536 | AE21: 0.01329029808 | AF21: 0.01184336199 | AG21: 0.01514269074 | AH21: 0.01649694501 | AI21: 0.02348094748 | AJ21: 0.0302108678 | AK21: 0.03397866456 | AL21: 0.04413347686 | AM21: 0.04492229082 | AN21: 0.0394764619 | AO21: 0.03847771236 | AP21: 0.03681974509 | AQ21: 0.03432581073 | AR21: 0.02442282007 | AS21: 0.02249369789 | AT21: 0.01851475076 | AU21: 0.0236576836 | AV21: 0.02511138113 | AW21: 0.02821625888 | AX21: 0.03599574015 | AY21: 0.03601516428 | AZ21: 0.03342385628 | BA21: 0.02953410982 | BB21: 0.02602081665 | BC21: 0.02326890599 | BD21: 0.01963375496 | BE21: 0.015729906 | BF21: 0.01731078905 | BG21: 0.0201506208 | BH21: 0.02063714686 | BI21: 0.020695041 | BJ21: 0.02330335241 | BK21: 0.02187244481 | BL21: 0.01941946034 | BM21: 0.01690305032 | BN21: 0.01360015543 | BO21: 0.01107441228 | BP21: 0.00933511145 | BQ21: 0.009906648886 | BR21: 0.009716136407 | BS21: 0.01118524333 | BT21: 0.0125588697 | BU21: 0.01432496075 | BV21: 0.01724472002 | BW21: 0.01569463282 | BX21: 0.01453206743 | BY21: 0.01104972376 | BZ21: 0.01197053407 | CA21: 0.01012891344 | CB21: 0.009570241965 | CC21: 0.009931383171 | CD21: 0.01065366558 | CE21: 0.01356174161 | CF21: 0.01891506067 | CG21: 0.02123483226 | CH21: 0.02068104832 | CI21: 0.02050276342 | CJ21: 0.01729363523 | CK21: 0.0172852059 | CL21: 0.01525165226 | CM21: 0.01318864775 | CN21: 0.01178781925 | CO21: 0.01096922069 | CP21: 0.01195153897 | CQ21: 0.01416526138 | CR21: 0.01416526138 | CS21: 0.01483979764 | CT21: 0.01493975904 | CU21: 0.01751004016 | CV21: 0.01799196787 | CW21: 0.01786532295 | CX21: 0.01526950679 | CY21: 0.01526950679 | CZ21: 0.01617008534 | DA21: 0.01706842342 | DB21: 0.01706842342 | DC21: 0.0333127699 | DD21: 0.06246144355 | DE21: 0.09346082665 | DF21: 0.1151445466 | DG21: 0.1361003861 | DH21: 0.1467181467 | DI21: 0.1483268983 | DJ21: 0.1465127165 | DK21: 0.1177794449 | DL21: 0.1096803515 | DM21: 0.1087713983 | DN21: 0.1184272117 | DO21: 0.1224840069 | DP21: 0.1304415665 | DQ21: 0.1377750039 | DR21: 0.1516113669 | DS21: 0.1557154277 | DT21: 0.1555555556 | DU21: 0.1513988809 | DV21: 0.1365342509 | DW21: 0.1170665047 | DX21: 0.1101615911 | DY21: 0.1015452539 | DZ21: 0.1059539052 | EA21: 0.1170747527 | EB21: 0.124959217 | EC21: 0.1277324633 | ED21: 0.1398080741 | EE21: 0.1420089065 | EF21: 0.1436301033 | EG21: 0.1379980564 | EH21: 0.1205027494 | EI21: 0.1028222731 | EJ21: 0.09590733591 | EK21: 0.09688195991 | EL21: 0.09954083306 | EM21: 0.1046093495 | EN21: 0.1145799281 | EO21: 0.1191329857 | EP21: 0.1245490466 | EQ21: 0.123158616 | ER21: 0.1179976162 | ES21: 0.1056073239 | ET21: 0.0856873823 | EU21: 0.06473517429 | EV21: 0.06201074444 | EW21: 0.0632183908 | EX21: 0.06968933669 | EY21: 0.07771757535 | EZ21: 0.08584490349 | FA21: 0.09284267387 | FB21: 0.08780403657 | FC21: 0.08658977449 | FD21: 0.07810894142 | FE21: 0.06749496306 | FF21: 0.05461184315 | FG21: 0.04539116964 | FH21: 0.0445909876 | FI21: 0.04490529066 | FJ21: 0.04201394795 | FK21: 0.04547785946 | FL21: 0.05197469653 | FM21: 0.06000681896 | FN21: 0.06488549618 | FO21: 0.06614718615 | FP21: 0.06220677672 | FQ21: 0.05870712401 | FR21: 0.04521359526 | FS21: 0.03514911747 | FT21: 0.0338179036 | FU21: 0.03660671654 | FV21: 0.03630636605 | FW21: 0.03797683924 | FX21: 0.04342643052 | FY21: 0.04685908319 | FZ21: 0.04776579353 | GA21: 0.0462536269 | GB21: 0.04360366474 | GC21: 0.0371771673 | GD21: 0.03017576606 | GE21: 0.02504553734 | GF21: 0.02348840733 | GG21: 0.02341189324 | GH21: 0.02365245374 | GI21: 0.02445561139 | GJ21: 0.0291750503 | GK21: 0.03095716198 | GL21: 0.03141614306 | GM21: 0.02891566265 | GN21: 0.02363084784 | GO21: 0.020578071 | GP21: 0.01693404635 | GQ21: 0.0150746485 | GR21: 0.01327691859 | GS21: 0.01427498122 | GT21: 0.0148721921 | GU21: 0.01622302725 | GV21: 0.02254809208 | GW21: 0.02533438238 | GX21: 0.04154561302 | GY21: 0.0404523706 | GZ21: 0.025678015 | HA21: 0.0217058578 | HB21: 0.01811690029 | HC21: 0.01789651148 | HD21: 0.01701519678 | HE21: 0.01775304716 | HF21: 0.01838583209 | HG21: 0.0205014545 | HH21: 0.02495840266 | HI21: 0.02726266261 | HJ21: 0.02945859873 | HK21: 0.03086581219 | HL21: 0.03070290044 | HM21: 0.02835685614 | HN21: 0.02599025365 | HO21: 0.0247494869 | HP21: 0.02614222329 | HQ21: 0.02854660544 | HR21: 0.03112540193 | HS21: 0.03503763301 | HT21: 0.0392482741 | HU21: 0.04333929941 | HV21: 0.04552941176 | HW21: 0.04836065574 | HX21: 0.05174825175 | HY21: 0.0615916955 | HZ21: 0.06409090909 | IA21: 0.05997794928 | IB21: 0.05542427497 | IC21: 0.05577557756 | ID21: 0.05905963303 | IE21: 0.06851211073 | IF21: 0.07953757225 | IG21: 0.08285385501 | IH21: 0.08588754135 | II21: 0.08566703418 | IJ21: 0.08917128272 | IK21: 0.2375455018 | IL21: 0.1828762271 | IM21: 0.1467806841 | IN21: 0.1483171127 | IO21: 0.1611741019 | IP21: 0.1773189118 | IQ21: 0.1928097345 | IR21: 0.2089634618 | IS21: 0.2138620387 | IT21: 0.2395577396 | IU21: 0.2334914265 | IV21: 0.2240818784 | IW21: 0.2073776306 | IX21: 0.1742156303 | IY21: 0.1192680776 | IZ21: 0.09419898455 | JA21: 0.08588095495 | JB21: 0.08290382717 | JC21: 0.08472635677 | JD21: 0.08927951891 | JE21: 0.08872266974 | JF21: 0.09181754056 | JG21: 0.08892815077 | JH21: 0.08071800811 | JI21: 0.06954760297 | JJ21: 0.05694489553 | JK21: 0.0524332472 | JL21: 0.05258535514 | JM21: 0.05285244414 | JN21: 0.04646649161 | JO21: 0.0500230521 | JP21: 0.05284695429 | JQ21: 0.05690396005 | JR21: 0.05644302449 | JS21: 0.05522765599 | JT21: 0.04977235099 | JU21: 0.04292751583 | JV21: 0.0367220719 | JW21: 0.03379091869 | JX21: 0.03275511193 | JY21: 0.03467976346 | JZ21: 0.03891497131 | KA21: 0.04587350355 | KB21: 0.05186368477 | KC21: 0.05579764056 | KD21: 0.06539038173 | KE21: 0.06562359298 | KF21: 0.05981226806 | KG21: 0.05646295295 | KH21: 0.05213819254 | KI21: 0.05006926578 | KJ21: 0.04824730354 | KK21: 0.04850452578 | KL21: 0.05247691016 | KM21: 0.05689458984 | KN21: 0.06821212432 | KO21: 0.07534387189 | KP21: 0.08571119758 | KQ21: 0.08637801287 | KR21: 0.08134963966 | KS21: 0.07418905899 | KT21: 0.06284638712 | KU21: 0.05763816206 | KV21: 0.05640982711 | KW21: 0.05395891879 | KX21: 0.05741879685 | KY21: 0.07209772405 | KZ21: 0.08646848057 | LA21: 0.09091888662 | LB21: 0.0893524934 | LC21: 0.08821447163 | LD21: 0.08028997272 | LE21: 0.07230851383 | LF21: 0.06387080171 | LG21: 0.05761579082
A22: Suðurnes konur | C22: 0.02780674314 | D22: 0.02398331595 | E22: 0.01906707525 | F22: 0.01519656426 | G22: 0.01058710298 | H22: 0.003429996882 | I22: 0.004812319538 | J22: 0.005233889434 | K22: 0.009342676009 | L22: 0.012597889 | M22: 0.01974804222 | N22: 0.02862985685 | O22: 0.02760736196 | P22: 0.02249488753 | Q22: 0.0220293725 | R22: 0.03401360544 | S22: 0.01541365209 | T22: 0.01070009172 | U22: 0.006920415225 | V22: 0.0102629891 | W22: 0.01766437684 | X22: 0.02670226969 | Y22: 0.02937249666 | Z22: 0.03465045593 | AA22: 0.03466988242 | AB22: 0.03314422216 | AC22: 0.02941176471 | AD22: 0.02575844305 | AE22: 0.01999466809 | AF22: 0.02294816415 | AG22: 0.02611324904 | AH22: 0.03190883191 | AI22: 0.04159445407 | AJ22: 0.04983108108 | AK22: 0.05397961994 | AL22: 0.06549423893 | AM22: 0.0664461816 | AN22: 0.05957700328 | AO22: 0.05838767042 | AP22: 0.05994861547 | AQ22: 0.05 | AR22: 0.05008077544 | AS22: 0.04414587332 | AT22: 0.03665814152 | AU22: 0.04494382022 | AV22: 0.04549283909 | AW22: 0.0478021978 | AX22: 0.05434458047 | AY22: 0.05509478673 | AZ22: 0.05544147844 | BA22: 0.05604203152 | BB22: 0.05229125668 | BC22: 0.04426401257 | BD22: 0.04534606205 | BE22: 0.03753713206 | BF22: 0.03247480403 | BG22: 0.03518728717 | BH22: 0.04121715076 | BI22: 0.04247835498 | BJ22: 0.05379746835 | BK22: 0.05063291139 | BL22: 0.04689298044 | BM22: 0.04265791632 | BN22: 0.03445447088 | BO22: 0.02679792179 | BP22: 0.02628050416 | BQ22: 0.02493966211 | BR22: 0.02145347278 | BS22: 0.02513117923 | BT22: 0.03010218172 | BU22: 0.03314001657 | BV22: 0.03607268782 | BW22: 0.03471657174 | BX22: 0.03227556279 | BY22: 0.02681103377 | BZ22: 0.02681103377 | CA22: 0.02681103377 | CB22: 0.03109987358 | CC22: 0.03109987358 | CD22: 0.02958280657 | CE22: 0.03064351379 | CF22: 0.04009193054 | CG22: 0.04341164454 | CH22: 0.04985717995 | CI22: 0.04933783433 | CJ22: 0.04622176058 | CK22: 0.04368213228 | CL22: 0.03998025666 | CM22: 0.03647859922 | CN22: 0.03338102051 | CO22: 0.02861230329 | CP22: 0.02861230329 | CQ22: 0.02996070727 | CR22: 0.03462671906 | CS22: 0.03806483301 | CT22: 0.03693045564 | CU22: 0.04148681055 | CV22: 0.04196642686 | CW22: 0.04011853203 | CX22: 0.0387508548 | CY22: 0.03692728516 | CZ22: 0.03732677693 | DA22: 0.0364327224 | DB22: 0.03933839964 | DC22: 0.05733364034 | DD22: 0.0861155883 | DE22: 0.1020032236 | DF22: 0.1178790535 | DG22: 0.1345493562 | DH22: 0.1377682403 | DI22: 0.1356223176 | DJ22: 0.1357202331 | DK22: 0.1244995997 | DL22: 0.1261115602 | DM22: 0.1200485044 | DN22: 0.123438801 | DO22: 0.1257285595 | DP22: 0.1298917569 | DQ22: 0.1330141549 | DR22: 0.1371918542 | DS22: 0.1411917098 | DT22: 0.140328152 | DU22: 0.1388169257 | DV22: 0.1336685523 | DW22: 0.1218222493 | DX22: 0.1257023933 | DY22: 0.121436114 | DZ22: 0.1213290461 | EA22: 0.1283666377 | EB22: 0.1350524476 | EC22: 0.135708042 | ED22: 0.1458558754 | EE22: 0.1475728155 | EF22: 0.1464722282 | EG22: 0.1334986567 | EH22: 0.121066346 | EI22: 0.1093810821 | EJ22: 0.1109803922 | EK22: 0.1135124217 | EL22: 0.1163855923 | EM22: 0.1288303841 | EN22: 0.1342252913 | EO22: 0.1381239243 | EP22: 0.1249732506 | EQ22: 0.128440367 | ER22: 0.1274655355 | ES22: 0.1164342025 | ET22: 0.1045992626 | EU22: 0.08658331778 | EV22: 0.0892171911 | EW22: 0.09138068635 | EX22: 0.08858350951 | EY22: 0.1031499556 | EZ22: 0.1091393079 | FA22: 0.1147976111 | FB22: 0.1081953108 | FC22: 0.1082009446 | FD22: 0.1038239692 | FE22: 0.08968883466 | FF22: 0.07807692308 | FG22: 0.06455244886 | FH22: 0.0670433145 | FI22: 0.06502154328 | FJ22: 0.06793145655 | FK22: 0.07243630238 | FL22: 0.07538429143 | FM22: 0.08146126391 | FN22: 0.08793807783 | FO22: 0.09034334764 | FP22: 0.09213627598 | FQ22: 0.08572626284 | FR22: 0.07173999207 | FS22: 0.06092843327 | FT22: 0.05283793876 | FU22: 0.05514563107 | FV22: 0.05643203883 | FW22: 0.05865344899 | FX22: 0.06030565882 | FY22: 0.06341362981 | FZ22: 0.07090103397 | GA22: 0.07090258784 | GB22: 0.07109995818 | GC22: 0.06271495043 | GD22: 0.04705432288 | GE22: 0.03938771701 | GF22: 0.03785194854 | GG22: 0.03744958709 | GH22: 0.03564356436 | GI22: 0.03993412927 | GJ22: 0.03915104059 | GK22: 0.04194941394 | GL22: 0.0407275603 | GM22: 0.03843121797 | GN22: 0.0368338558 | GO22: 0.03210576015 | GP22: 0.02482142857 | GQ22: 0.0212580589 | GR22: 0.02096774194 | GS22: 0.01993355482 | GT22: 0.02017126546 | GU22: 0.02227917981 | GV22: 0.02703769489 | GW22: 0.03052984046 | GX22: 0.04888059701 | GY22: 0.04784956247 | GZ22: 0.03112840467 | HA22: 0.0277173913 | HB22: 0.02289944904 | HC22: 0.02211717035 | HD22: 0.02584896097 | HE22: 0.02584869895 | HF22: 0.02444170916 | HG22: 0.02743902439 | HH22: 0.0296176629 | HI22: 0.03206735937 | HJ22: 0.03394952009 | HK22: 0.03473329789 | HL22: 0.03313840156 | HM22: 0.03122831367 | HN22: 0.03030810449 | HO22: 0.03070103431 | HP22: 0.03089797232 | HQ22: 0.03332239002 | HR22: 0.03232830821 | HS22: 0.03344537815 | HT22: 0.0397993311 | HU22: 0.04206081081 | HV22: 0.05197132616 | HW22: 0.05565529623 | HX22: 0.05778175313 | HY22: 0.06648841355 | HZ22: 0.06807760141 | IA22: 0.06666666667 | IB22: 0.06487394958 | IC22: 0.06660958904 | ID22: 0.06973451327 | IE22: 0.07942754919 | IF22: 0.09032258065 | IG22: 0.09392857143 | IH22: 0.09611416781 | II22: 0.1001200069 | IJ22: 0.1082229018 | IK22: 0.2776790044 | IL22: 0.2151505744 | IM22: 0.1762988011 | IN22: 0.1902523115 | IO22: 0.2086411821 | IP22: 0.2250411862 | IQ22: 0.2397465822 | IR22: 0.2562646174 | IS22: 0.2623960067 | IT22: 0.2889010788 | IU22: 0.2848826633 | IV22: 0.2749818972 | IW22: 0.264167703 | IX22: 0.2308495822 | IY22: 0.1655572623 | IZ22: 0.1308806772 | JA22: 0.1141940658 | JB22: 0.1022301807 | JC22: 0.1022960932 | JD22: 0.1036690897 | JE22: 0.1002238677 | JF22: 0.1005113737 | JG22: 0.09725770738 | JH22: 0.09298806121 | JI22: 0.08582703058 | JJ22: 0.08009592326 | JK22: 0.07071960298 | JL22: 0.06750730432 | JM22: 0.06775700935 | JN22: 0.06124043118 | JO22: 0.06269543465 | JP22: 0.06373414673 | JQ22: 0.06322718922 | JR22: 0.06450123153 | JS22: 0.0625 | JT22: 0.05575702629 | JU22: 0.05168073449 | JV22: 0.04810199942 | JW22: 0.04551309575 | JX22: 0.04600484262 | JY22: 0.0461560862 | JZ22: 0.04663597208 | KA22: 0.04985163205 | KB22: 0.05360580483 | KC22: 0.05628407249 | KD22: 0.06952965235 | KE22: 0.07401120353 | KF22: 0.07377747487 | KG22: 0.06996986943 | KH22: 0.06346675171 | KI22: 0.05776283619 | KJ22: 0.05553040592 | KK22: 0.05493510414 | KL22: 0.06044823232 | KM22: 0.06309904153 | KN22: 0.07515459014 | KO22: 0.07826367597 | KP22: 0.07511876485 | KQ22: 0.07452391663 | KR22: 0.07102832046 | KS22: 0.06497175141 | KT22: 0.05876052028 | KU22: 0.0541840446 | KV22: 0.05448403618 | KW22: 0.05364001055 | KX22: 0.05416236694 | KY22: 0.06971600905 | KZ22: 0.08428384136 | LA22: 0.08625954747 | LB22: 0.08745278943 | LC22: 0.08706791068 | LD22: 0.08393322101 | LE22: 0.07783511573 | LF22: 0.06607160738 | LG22: 0.05806769281
A23: Vesturland alls | C23: 0.01155417782 | D23: 0.0092997041 | E23: 0.008143547274 | F23: 0.007633587786 | G23: 0.006242684354 | H23: 0.004424219441 | I23: 0.00481206919 | J23: 0.004773902665 | K23: 0.006086838902 | L23: 0.009661835749 | M23: 0.01187025535 | N23: 0.01215805471 | O23: 0.01132909644 | P23: 0.01077645758 | Q23: 0.01299052774 | R23: 0.01221113445 | S23: 0.00688599847 | T23: 0.00483391175 | U23: 0.005100739607 | V23: 0.005720972565 | W23: 0.006896551724 | X23: 0.01055480379 | Y23: 0.01664411367 | Z23: 0.02347903131 | AA23: 0.02339181287 | AB23: 0.02376467179 | AC23: 0.02293710329 | AD23: 0.0190251354 | AE23: 0.01571224516 | AF23: 0.01152737752 | AG23: 0.01332267519 | AH23: 0.01557719054 | AI23: 0.01830212586 | AJ23: 0.02249827467 | AK23: 0.02613498585 | AL23: 0.03500805625 | AM23: 0.03683294664 | AN23: 0.03291175625 | AO23: 0.02933180713 | AP23: 0.02575757576 | AQ23: 0.01958005926 | AR23: 0.01299207483 | AS23: 0.01374388793 | AT23: 0.01462270658 | AU23: 0.01577991901 | AV23: 0.01834611172 | AW23: 0.02124248497 | AX23: 0.02871870398 | AY23: 0.02785068533 | AZ23: 0.02428096546 | BA23: 0.02186735721 | BB23: 0.02035729123 | BC23: 0.01385651386 | BD23: 0.01254082299 | BE23: 0.01381876163 | BF23: 0.01414701803 | BG23: 0.01642796967 | BH23: 0.01624449339 | BI23: 0.01679204729 | BJ23: 0.02102272727 | BK23: 0.01889204545 | BL23: 0.01605113636 | BM23: 0.01269069799 | BN23: 0.01066558661 | BO23: 0.007965438099 | BP23: 0.006354249404 | BQ23: 0.0064866296 | BR23: 0.005030447445 | BS23: 0.005726752113 | BT23: 0.006544859558 | BU23: 0.008044723207 | BV23: 0.01046195652 | BW23: 0.008831521739 | BX23: 0.008288043478 | BY23: 0.007877066116 | BZ23: 0.007102272727 | CA23: 0.004907024793 | CB23: 0.006458148664 | CC23: 0.006204887932 | CD23: 0.005571736102 | CE23: 0.005115743701 | CF23: 0.006010998849 | CG23: 0.006394679627 | CH23: 0.008151810771 | CI23: 0.008819991982 | CJ23: 0.009755445677 | CK23: 0.009018163343 | CL23: 0.007493966722 | CM23: 0.006257039169 | CN23: 0.005644864401 | CO23: 0.005644864401 | CP23: 0.006503865505 | CQ23: 0.007078751106 | CR23: 0.007078751106 | CS23: 0.006067500948 | CT23: 0.007567983581 | CU23: 0.008465879938 | CV23: 0.01013340174 | CW23: 0.009387954158 | CX23: 0.01060716898 | CY23: 0.01438673494 | CZ23: 0.01362984218 | DA23: 0.01362984218 | DB23: 0.0112386418 | DC23: 0.01354679803 | DD23: 0.0224137931 | DE23: 0.03140394089 | DF23: 0.0445563735 | DG23: 0.05147337802 | DH23: 0.05729100797 | DI23: 0.05817629948 | DJ23: 0.05140473562 | DK23: 0.04482717943 | DL23: 0.04419297201 | DM23: 0.04109589041 | DN23: 0.04085388296 | DO23: 0.04735615262 | DP23: 0.05827505828 | DQ23: 0.05839774261 | DR23: 0.06491002571 | DS23: 0.06368107688 | DT23: 0.0627750453 | DU23: 0.06031581672 | DV23: 0.05214993105 | DW23: 0.04368991116 | DX23: 0.03823163138 | DY23: 0.0371540503 | DZ23: 0.03796818881 | EA23: 0.04600987783 | EB23: 0.04759414226 | EC23: 0.04968619247 | ED23: 0.05296637674 | EE23: 0.0535852964 | EF23: 0.0513381369 | EG23: 0.04752325874 | EH23: 0.0412195122 | EI23: 0.03492777646 | EJ23: 0.03576555024 | EK23: 0.03461870149 | EL23: 0.03150006351 | EM23: 0.03413189078 | EN23: 0.03657908295 | EO23: 0.03762681392 | EP23: 0.03974459213 | EQ23: 0.04001559049 | ER23: 0.03706573679 | ES23: 0.03189122373 | ET23: 0.02753055654 | EU23: 0.022934733 | EV23: 0.02332361516 | EW23: 0.02522741055 | EX23: 0.02521115946 | EY23: 0.02757352941 | EZ23: 0.02967436975 | FA23: 0.03207226077 | FB23: 0.03682682154 | FC23: 0.03543670136 | FD23: 0.03487152596 | FE23: 0.03107165504 | FF23: 0.02590238638 | FG23: 0.02282036279 | FH23: 0.02361832782 | FI23: 0.02468377748 | FJ23: 0.02289881029 | FK23: 0.02550422902 | FL23: 0.02576447625 | FM23: 0.02646600934 | FN23: 0.03203600741 | FO23: 0.03170828379 | FP23: 0.03023441662 | FQ23: 0.02746759081 | FR23: 0.025 | FS23: 0.0197773567 | FT23: 0.01801169591 | FU23: 0.01788103637 | FV23: 0.01748384645 | FW23: 0.01817001947 | FX23: 0.01881894873 | FY23: 0.02174194383 | FZ23: 0.02798037396 | GA23: 0.02657675526 | GB23: 0.02549947424 | GC23: 0.02355187778 | GD23: 0.01913818007 | GE23: 0.01703277341 | GF23: 0.01630498534 | GG23: 0.01679352422 | GH23: 0.01532137519 | GI23: 0.01684592458 | GJ23: 0.01854734112 | GK23: 0.01941747573 | GL23: 0.01970887543 | GM23: 0.01939378371 | GN23: 0.01940755873 | GO23: 0.01767048283 | GP23: 0.01353100365 | GQ23: 0.01125401929 | GR23: 0.01085307504 | GS23: 0.01093881476 | GT23: 0.01202131615 | GU23: 0.01334349981 | GV23: 0.0137369626 | GW23: 0.01523229246 | GX23: 0.02671994007 | GY23: 0.02654536391 | GZ23: 0.01847489151 | HA23: 0.01756707977 | HB23: 0.01521216974 | HC23: 0.01289671414 | HD23: 0.01167620972 | HE23: 0.01316994961 | HF23: 0.0149567656 | HG23: 0.01445811925 | HH23: 0.0156679823 | HI23: 0.01468306076 | HJ23: 0.01740110165 | HK23: 0.01786157281 | HL23: 0.01809842568 | HM23: 0.01686010996 | HN23: 0.0139134536 | HO23: 0.01181192661 | HP23: 0.01154891304 | HQ23: 0.01466992665 | HR23: 0.01449622619 | HS23: 0.01627878934 | HT23: 0.01431810047 | HU23: 0.01666067362 | HV23: 0.02004920049 | HW23: 0.02088452088 | HX23: 0.02017114914 | HY23: 0.02148058252 | HZ23: 0.01949760766 | IA23: 0.01901983664 | IB23: 0.01829545455 | IC23: 0.01846689895 | ID23: 0.017973462 | IE23: 0.01944106926 | IF23: 0.02472594397 | IG23: 0.02715151515 | IH23: 0.03101242911 | II23: 0.03145336226 | IJ23: 0.03712959657 | IK23: 0.1197999545 | IL23: 0.08624862486 | IM23: 0.0621246861 | IN23: 0.05284687673 | IO23: 0.05661891117 | IP23: 0.06238207547 | IQ23: 0.06934829315 | IR23: 0.07874955256 | IS23: 0.08171991923 | IT23: 0.0950046376 | IU23: 0.08937960042 | IV23: 0.0812467397 | IW23: 0.07059726308 | IX23: 0.05278847348 | IY23: 0.03380825887 | IZ23: 0.02691317575 | JA23: 0.02360465116 | JB23: 0.02266288952 | JC23: 0.02472799209 | JD23: 0.02747595854 | JE23: 0.0305666004 | JF23: 0.03368475186 | JG23: 0.03171381454 | JH23: 0.02623688156 | JI23: 0.02203286671 | JJ23: 0.01870368192 | JK23: 0.01643708763 | JL23: 0.01644506648 | JM23: 0.0176779742 | JN23: 0.01596830352 | JO23: 0.01762646384 | JP23: 0.01920945696 | JQ23: 0.02245976459 | JR23: 0.02426897123 | JS23: 0.02405256365 | JT23: 0.02021952629 | JU23: 0.01847679135 | JV23: 0.01778505183 | JW23: 0.01816608997 | JX23: 0.01746772269 | JY23: 0.01797677535 | JZ23: 0.01728110599 | KA23: 0.01974677663 | KB23: 0.02328017693 | KC23: 0.02865429234 | KD23: 0.03086124402 | KE23: 0.02967498822 | KF23: 0.02746234067 | KG23: 0.02333562114 | KH23: 0.02086092715 | KI23: 0.02060023005 | KJ23: 0.0238558411 | KK23: 0.02695697252 | KL23: 0.02807633253 | KM23: 0.02798425885 | KN23: 0.03328995879 | KO23: 0.03398535679 | KP23: 0.03585271318 | KQ23: 0.03475530533 | KR23: 0.02944956093 | KS23: 0.02429886534 | KT23: 0.02167569821 | KU23: 0.02117627873 | KV23: 0.02281102023 | KW23: 0.02275423426 | KX23: 0.02180576974 | KY23: 0.02626322621 | KZ23: 0.0333387764 | LA23: 0.03636509821 | LB23: 0.04117579778 | LC23: 0.03722241203 | LD23: 0.03173941247 | LE23: 0.02786103404 | LF23: 0.02476356849 | LG23: 0.02385630499
A24: Vesturland karlar | C24: 0.008163265306 | D24: 0.005282112845 | E24: 0.004233301976 | F24: 0.00296668188 | G24: 0.002437403058 | H24: 0.001507645919 | I24: 0.001329492577 | J24: 0.00180750113 | K24: 0.002304678497 | L24: 0.005644402634 | M24: 0.007055503293 | N24: 0.006355932203 | O24: 0.005649717514 | P24: 0.006355932203 | Q24: 0.008531242795 | R24: 0.006040268456 | S24: 0.003476749239 | T24: 0.002111932418 | U24: 0.00173837462 | V24: 0.002436863093 | W24: 0.003163841808 | X24: 0.005994927369 | Y24: 0.01152870648 | Z24: 0.0170212766 | AA24: 0.01559405941 | AB24: 0.01742758959 | AC24: 0.01613297482 | AD24: 0.01129146083 | AE24: 0.01124586549 | AF24: 0.006878189483 | AG24: 0.007891770011 | AH24: 0.01040927372 | AI24: 0.01267942584 | AJ24: 0.01648222275 | AK24: 0.02042221202 | AL24: 0.02879841112 | AM24: 0.03166421208 | AN24: 0.02969814995 | AO24: 0.02666666667 | AP24: 0.02076043854 | AQ24: 0.01531058618 | AR24: 0.007700770077 | AS24: 0.008497316637 | AT24: 0.00961764016 | AU24: 0.01091340451 | AV24: 0.01214385801 | AW24: 0.01592718999 | AX24: 0.02174456386 | AY24: 0.02125556105 | AZ24: 0.01715686275 | BA24: 0.01440078106 | BB24: 0.01362141851 | BC24: 0.009026860414 | BD24: 0.009082853345 | BE24: 0.00945520036 | BF24: 0.00803023146 | BG24: 0.00931454502 | BH24: 0.01011051023 | BI24: 0.01214203895 | BJ24: 0.01682692308 | BK24: 0.01466346154 | BL24: 0.01274038462 | BM24: 0.009595613434 | BN24: 0.006168608636 | BO24: 0.004112405757 | BP24: 0.003808243728 | BQ24: 0.003136200717 | BR24: 0.002464157706 | BS24: 0.002307337333 | BT24: 0.003461005999 | BU24: 0.005306875865 | BV24: 0.005923900661 | BW24: 0.004329004329 | BX24: 0.003873319663 | BY24: 0.004763967085 | BZ24: 0.003248159376 | CA24: 0.003031615418 | CB24: 0.004884264175 | CC24: 0.004884264175 | CD24: 0.002973030367 | CE24: 0.002560819462 | CF24: 0.003627827571 | CG24: 0.004054630815 | CH24: 0.004686453917 | CI24: 0.004909618389 | CJ24: 0.005355947333 | CK24: 0.005514316013 | CL24: 0.004453870626 | CM24: 0.004596740493 | CN24: 0.00368852459 | CO24: 0.003893442623 | CP24: 0.004918032787 | CQ24: 0.005487547488 | CR24: 0.004854368932 | CS24: 0.004010130857 | CT24: 0.005781584582 | CU24: 0.006423982869 | CV24: 0.00835117773 | CW24: 0.007327498473 | CX24: 0.007734581722 | CY24: 0.01160187258 | CZ24: 0.0125748503 | DA24: 0.0129740519 | DB24: 0.008383233533 | DC24: 0.009662828947 | DD24: 0.01932565789 | DE24: 0.03063322368 | DF24: 0.04434939217 | DG24: 0.05180776014 | DH24: 0.05643738977 | DI24: 0.05665784832 | DJ24: 0.04769033362 | DK24: 0.03886489821 | DL24: 0.03903654485 | DM24: 0.03343023256 | DN24: 0.03250641574 | DO24: 0.04063301967 | DP24: 0.05367835757 | DQ24: 0.05603079555 | DR24: 0.06347062795 | DS24: 0.06187669991 | DT24: 0.06323662738 | DU24: 0.05915684497 | DV24: 0.04877510483 | DW24: 0.03856867367 | DX24: 0.03135277351 | DY24: 0.0300400534 | DZ24: 0.0325203252 | EA24: 0.04370709382 | EB24: 0.04719152855 | EC24: 0.04949355433 | ED24: 0.05470914127 | EE24: 0.05569620253 | EF24: 0.05307709906 | EG24: 0.04746835443 | EH24: 0.03924577943 | EI24: 0.0319284802 | EJ24: 0.03254310345 | EK24: 0.03107658158 | EL24: 0.02654462243 | EM24: 0.02760036496 | EN24: 0.03239051095 | EO24: 0.03456902433 | EP24: 0.0393258427 | EQ24: 0.03920653442 | ER24: 0.03665042913 | ES24: 0.03096458008 | ET24: 0.02630453379 | EU24: 0.02035780382 | EV24: 0.02154361012 | EW24: 0.02284098325 | EX24: 0.02150537634 | EY24: 0.02191464821 | EZ24: 0.02537485582 | FA24: 0.02897884085 | FB24: 0.03637222485 | FC24: 0.03465346535 | FD24: 0.03542106498 | FE24: 0.03011494253 | FF24: 0.02304347826 | FG24: 0.01994060246 | FH24: 0.02107073748 | FI24: 0.0207960644 | FJ24: 0.01933379921 | FK24: 0.02177476001 | FL24: 0.02294544603 | FM24: 0.02450980392 | FN24: 0.02987571702 | FO24: 0.02981159075 | FP24: 0.02767083734 | FQ24: 0.02337305225 | FR24: 0.01906412478 | FS24: 0.01585623679 | FT24: 0.01403359558 | FU24: 0.01437417072 | FV24: 0.01405206174 | FW24: 0.01443445338 | FX24: 0.0156176053 | FY24: 0.01746106654 | FZ24: 0.0235237638 | GA24: 0.0213020584 | GB24: 0.02046157507 | GC24: 0.02006920415 | GD24: 0.01374045802 | GE24: 0.01298424862 | GF24: 0.01147471313 | GG24: 0.01356970891 | GH24: 0.01376353791 | GI24: 0.01362141851 | GJ24: 0.01574988246 | GK24: 0.01783200375 | GL24: 0.01711606096 | GM24: 0.01683029453 | GN24: 0.01742970021 | GO24: 0.01463191587 | GP24: 0.009943795936 | GQ24: 0.008227848101 | GR24: 0.008067940552 | GS24: 0.00830964356 | GT24: 0.008568207441 | GU24: 0.009399358093 | GV24: 0.009866911427 | GW24: 0.01213647813 | GX24: 0.02030572667 | GY24: 0.02254611706 | GZ24: 0.01586222524 | HA24: 0.01442307692 | HB24: 0.01142501039 | HC24: 0.009775967413 | HD24: 0.008975928193 | HE24: 0.009155222638 | HF24: 0.009554140127 | HG24: 0.01044386423 | HH24: 0.01197735192 | HI24: 0.01086720278 | HJ24: 0.01338171921 | HK24: 0.01497876146 | HL24: 0.01563197856 | HM24: 0.01371984952 | HN24: 0.01153353268 | HO24: 0.009698720594 | HP24: 0.009633121541 | HQ24: 0.01039456937 | HR24: 0.009452626951 | HS24: 0.01220053239 | HT24: 0.01289053965 | HU24: 0.01638627922 | HV24: 0.01877637131 | HW24: 0.02037815126 | HX24: 0.02050209205 | HY24: 0.02215320911 | HZ24: 0.01894093686 | IA24: 0.01841584158 | IB24: 0.01753371869 | IC24: 0.0162055336 | ID24: 0.01728395062 | IE24: 0.0182194617 | IF24: 0.022406639 | IG24: 0.02727272727 | IH24: 0.03132036847 | II24: 0.03132036847 | IJ24: 0.03670094777 | IK24: 0.1125699942 | IL24: 0.08156361586 | IM24: 0.05940594059 | IN24: 0.04875753012 | IO24: 0.05272476884 | IP24: 0.05538648813 | IQ24: 0.06038200863 | IR24: 0.06927649108 | IS24: 0.0740363043 | IT24: 0.0876146789 | IU24: 0.07854710556 | IV24: 0.0705776579 | IW24: 0.06080634501 | IX24: 0.04464285714 | IY24: 0.02937551356 | IZ24: 0.02315280854 | JA24: 0.01993154822 | JB24: 0.02186797466 | JC24: 0.02474930659 | JD24: 0.02693965517 | JE24: 0.02915951973 | JF24: 0.03172504957 | JG24: 0.03068432671 | JH24: 0.02495659722 | JI24: 0.01898333685 | JJ24: 0.01379590181 | JK24: 0.01392251816 | JL24: 0.01440329218 | JM24: 0.01615302869 | JN24: 0.01390671801 | JO24: 0.01555075594 | JP24: 0.01687116564 | JQ24: 0.02089227421 | JR24: 0.02377476538 | JS24: 0.02394220846 | JT24: 0.01945288754 | JU24: 0.01633858268 | JV24: 0.01627246925 | JW24: 0.01842105263 | JX24: 0.01821631879 | JY24: 0.01864573111 | JZ24: 0.01756894791 | KA24: 0.01991701245 | KB24: 0.0244004171 | KC24: 0.02976066597 | KD24: 0.03147293328 | KE24: 0.02887569117 | KF24: 0.02701092354 | KG24: 0.02144824872 | KH24: 0.01801456497 | KI24: 0.02016564638 | KJ24: 0.02575784125 | KK24: 0.03150733978 | KL24: 0.03055184266 | KM24: 0.02973837756 | KN24: 0.03322135125 | KO24: 0.03380018674 | KP24: 0.03605677023 | KQ24: 0.03522353397 | KR24: 0.03069004956 | KS24: 0.02448598131 | KT24: 0.02164817173 | KU24: 0.02270024042 | KV24: 0.02393492598 | KW24: 0.02388829465 | KX24: 0.0220676205 | KY24: 0.02580451078 | KZ24: 0.03241862226 | LA24: 0.03549666472 | LB24: 0.04217507603 | LC24: 0.03715688239 | LD24: 0.03182270466 | LE24: 0.02792271392 | LF24: 0.02508234564 | LG24: 0.02597525024
A25: Vesturland konur | C25: 0.01637107776 | D25: 0.01500682128 | E25: 0.01369863014 | F25: 0.01426256078 | G25: 0.01164987406 | H25: 0.008567931457 | I25: 0.00976070529 | J25: 0.008988764045 | K25: 0.01146037983 | L25: 0.01536919479 | M25: 0.01871032409 | N25: 0.02040133779 | O25: 0.01939799331 | P25: 0.01705685619 | Q25: 0.01932525385 | R25: 0.02097902098 | S25: 0.01172839506 | T25: 0.008700870087 | U25: 0.00987654321 | V25: 0.0103871577 | W25: 0.01219903692 | X25: 0.01703242712 | Y25: 0.0239109073 | Z25: 0.03276917537 | AA25: 0.03464285714 | AB25: 0.03289706403 | AC25: 0.03273495248 | AD25: 0.03016949153 | AE25: 0.02210991788 | AF25: 0.01822833387 | AG25: 0.02116574406 | AH25: 0.02294971313 | AI25: 0.02634279849 | AJ25: 0.03102068045 | AK25: 0.03425774878 | AL25: 0.04394426581 | AM25: 0.04429482636 | AN25: 0.03754385965 | AO25: 0.03317039106 | AP25: 0.0329633367 | AQ25: 0.02569727358 | AR25: 0.02062182741 | AS25: 0.02132471729 | AT25: 0.02176825184 | AU25: 0.02274270197 | AV25: 0.02713434811 | AW25: 0.028802589 | AX25: 0.03872355683 | AY25: 0.03733997155 | AZ25: 0.0345191969 | BA25: 0.03258584443 | BB25: 0.03003712454 | BC25: 0.02075471698 | BD25: 0.01751034702 | BE25: 0.02010376135 | BF25: 0.02284946237 | BG25: 0.0265758092 | BH25: 0.02490866822 | BI25: 0.02338421565 | BJ25: 0.02708333333 | BK25: 0.025 | BL25: 0.02083333333 | BM25: 0.01716171617 | BN25: 0.01716171617 | BO25: 0.01353135314 | BP25: 0.01003236246 | BQ25: 0.01132686084 | BR25: 0.008737864078 | BS25: 0.01066666667 | BT25: 0.011 | BU25: 0.012 | BV25: 0.01716593739 | BW25: 0.01548300236 | BX25: 0.01480982834 | BY25: 0.01247600768 | BZ25: 0.01279590531 | CA25: 0.007677543186 | CB25: 0.00878293601 | CC25: 0.008155583438 | CD25: 0.009410288582 | CE25: 0.00893712097 | CF25: 0.009575486754 | CG25: 0.009894669646 | CH25: 0.01332445037 | CI25: 0.0146568954 | CJ25: 0.0163224517 | CK25: 0.01424952502 | CL25: 0.01203293224 | CM25: 0.008736349454 | CN25: 0.008565310493 | CO25: 0.008259406546 | CP25: 0.008871214439 | CQ25: 0.009454774661 | CR25: 0.01040025213 | CS25: 0.009139615506 | CT25: 0.01023672425 | CU25: 0.01151631478 | CV25: 0.01279590531 | CW25: 0.01246579507 | CX25: 0.01489814533 | CY25: 0.01854667072 | CZ25: 0.01520572451 | DA25: 0.01460942159 | DB25: 0.01550387597 | DC25: 0.01934889435 | DD25: 0.02702702703 | DE25: 0.03255528256 | DF25: 0.04483489852 | DG25: 0.05102343518 | DH25: 0.05843963216 | DI25: 0.06021951943 | DJ25: 0.0564028777 | DK25: 0.05285002767 | DL25: 0.05113160101 | DM25: 0.05141100866 | DN25: 0.05208633094 | DO25: 0.0564028777 | DP25: 0.06446043165 | DQ25: 0.06158273381 | DR25: 0.06682649086 | DS25: 0.06608328304 | DT25: 0.06216053108 | DU25: 0.06185878093 | DV25: 0.05658734765 | DW25: 0.05042253521 | DX25: 0.04727587201 | DY25: 0.04650482597 | DZ25: 0.04513064133 | EA25: 0.04903730445 | EB25: 0.04812348668 | EC25: 0.04993946731 | ED25: 0.0507267873 | EE25: 0.05087252292 | EF25: 0.04910320494 | EG25: 0.04759206799 | EH25: 0.04369332234 | EI25: 0.03868729989 | EJ25: 0.03978494624 | EK25: 0.03903654485 | EL25: 0.03768198687 | EM25: 0.0426035503 | EN25: 0.04201183432 | EO25: 0.04159292035 | EP25: 0.04027042916 | EQ25: 0.04103165299 | ER25: 0.03758741259 | ES25: 0.03304637601 | ET25: 0.02905891762 | EU25: 0.02614714176 | EV25: 0.02556668424 | EW25: 0.02823464912 | EX25: 0.02991577113 | EY25: 0.03505028955 | EZ25: 0.03535507467 | FA25: 0.03615922212 | FB25: 0.03740275284 | FC25: 0.03642878471 | FD25: 0.03417533432 | FE25: 0.03224893918 | FF25: 0.02941963092 | FG25: 0.02636387366 | FH25: 0.02672255698 | FI25: 0.02941977663 | FJ25: 0.02724177072 | FK25: 0.03016988869 | FL25: 0.02929115407 | FM25: 0.0289135514 | FN25: 0.03471810089 | FO25: 0.03406398104 | FP25: 0.03341288783 | FQ25: 0.03268164575 | FR25: 0.0325607064 | FS25: 0.02477113624 | FT25: 0.02287496751 | FU25: 0.02216815356 | FV25: 0.02167792793 | FW25: 0.02270767462 | FX25: 0.02270767462 | FY25: 0.02694181714 | FZ25: 0.03348148148 | GA25: 0.03308714919 | GB25: 0.03171806167 | GC25: 0.02784090909 | GD25: 0.02578565673 | GE25: 0.02201834862 | GF25: 0.02225713538 | GG25: 0.02076591154 | GH25: 0.01724137931 | GI25: 0.02081526453 | GJ25: 0.02199074074 | GK25: 0.02136875541 | GL25: 0.02287021155 | GM25: 0.02251995439 | GN25: 0.02181921224 | GO25: 0.02129983616 | GP25: 0.01781564679 | GQ25: 0.01486895161 | GR25: 0.01425239699 | GS25: 0.01414842499 | GT25: 0.01623555311 | GU25: 0.01824921585 | GV25: 0.01855022831 | GW25: 0.01908288237 | GX25: 0.03447324876 | GY25: 0.0313790256 | GZ25: 0.02163198248 | HA25: 0.02141900937 | HB25: 0.01985237974 | HC25: 0.01672073871 | HD25: 0.01498127341 | HE25: 0.01808456444 | HF25: 0.02156964657 | HG25: 0.01934799894 | HH25: 0.02016449987 | HI25: 0.01933262712 | HJ25: 0.02235261246 | HK25: 0.02145444413 | HL25: 0.02117581499 | HM25: 0.02073104201 | HN25: 0.01684653856 | HO25: 0.01445534331 | HP25: 0.01391348343 | HQ25: 0.01987096774 | HR25: 0.0205371248 | HS25: 0.02113606341 | HT25: 0.01603575184 | HU25: 0.01699415826 | HV25: 0.02182890855 | HW25: 0.02159763314 | HX25: 0.01970588235 | HY25: 0.02052785924 | HZ25: 0.02028985507 | IA25: 0.01988636364 | IB25: 0.01939058172 | IC25: 0.02169014085 | ID25: 0.01895043732 | IE25: 0.02117647059 | IF25: 0.02802359882 | IG25: 0.02697947214 | IH25: 0.03057025279 | II25: 0.03164371521 | IJ25: 0.03774680604 | IK25: 0.1301464493 | IL25: 0.09286282834 | IM25: 0.06594850236 | IN25: 0.05866595232 | IO25: 0.06205381658 | IP25: 0.07209236835 | IQ25: 0.08178968367 | IR25: 0.0919474586 | IS25: 0.09243458476 | IT25: 0.1051145278 | IU25: 0.1042772401 | IV25: 0.09599254427 | IW25: 0.08414634146 | IX25: 0.06423662982 | IY25: 0.04012888108 | IZ25: 0.03213188041 | JA25: 0.02862647949 | JB25: 0.02374965074 | JC25: 0.02469861805 | JD25: 0.02821502822 | JE25: 0.03250591017 | JF25: 0.03643099722 | JG25: 0.03310468237 | JH25: 0.02797408716 | JI25: 0.02619458837 | JJ25: 0.02547592385 | JK25: 0.01982079826 | JL25: 0.01911685514 | JM25: 0.01963457867 | JN25: 0.01860465116 | JO25: 0.02025732275 | JP25: 0.0222097273 | JQ25: 0.0243902439 | JR25: 0.02491785323 | JS25: 0.02419793366 | JT25: 0.02123655914 | JU25: 0.02133825079 | JV25: 0.01984536082 | JW25: 0.01782077393 | JX25: 0.0164682037 | JY25: 0.01709401709 | JZ25: 0.01690885073 | KA25: 0.01953021906 | KB25: 0.02186512118 | KC25: 0.02726081258 | KD25: 0.03005008347 | KE25: 0.03075644223 | KF25: 0.0280945758 | KG25: 0.02595628415 | KH25: 0.02472670484 | KI25: 0.02120229484 | KJ25: 0.02118226601 | KK25: 0.0206947524 | KL25: 0.02473589281 | KM25: 0.02555410691 | KN25: 0.03338509317 | KO25: 0.03424657534 | KP25: 0.03559155621 | KQ25: 0.03416072745 | KR25: 0.02785923754 | KS25: 0.02404809619 | KT25: 0.02171261283 | KU25: 0.0191676951 | KV25: 0.02131817908 | KW25: 0.02122250594 | KX25: 0.0214533101 | KY25: 0.02687930686 | KZ25: 0.03458482829 | LA25: 0.03753327418 | LB25: 0.03986439374 | LC25: 0.03730870712 | LD25: 0.03162938534 | LE25: 0.02777973382 | LF25: 0.02434131013 | LG25: 0.02104377104
A26: Vestfirðir alls | C26: 0.02136657022 | D26: 0.01914088582 | E26: 0.01482773659 | F26: 0.01332769198 | G26: 0.01150369762 | H26: 0.01118434192 | I26: 0.009244042728 | J26: 0.009844993716 | K26: 0.01196581197 | L26: 0.01264718709 | M26: 0.02267771478 | N26: 0.02444347447 | O26: 0.01789611523 | P26: 0.01396769969 | Q26: 0.01325352715 | R26: 0.01846090023 | S26: 0.009065269944 | T26: 0.00587429019 | U26: 0.005842062853 | V26: 0.005751848809 | W26: 0.008588186008 | X26: 0.009833262078 | Y26: 0.01154339461 | Z26: 0.01482444733 | AA26: 0.01544799176 | AB26: 0.0147996938 | AC26: 0.01625603251 | AD26: 0.01466992665 | AE26: 0.009375714612 | AF26: 0.007612456747 | AG26: 0.009150633505 | AH26: 0.01102130786 | AI26: 0.0121467526 | AJ26: 0.0162818955 | AK26: 0.018742586 | AL26: 0.0239096164 | AM26: 0.02548764629 | AN26: 0.02217066254 | AO26: 0.01924557352 | AP26: 0.01828063241 | AQ26: 0.01686301686 | AR26: 0.01444547996 | AS26: 0.01540649443 | AT26: 0.01904997526 | AU26: 0.02278988229 | AV26: 0.02455192733 | AW26: 0.02659956866 | AX26: 0.03200211584 | AY26: 0.03036649215 | AZ26: 0.02517518817 | BA26: 0.02325581395 | BB26: 0.0186520766 | BC26: 0.01930232558 | BD26: 0.01876612714 | BE26: 0.01550572519 | BF26: 0.01420029895 | BG26: 0.01487644982 | BH26: 0.01334981459 | BI26: 0.01423401689 | BJ26: 0.02058900182 | BK26: 0.019807141 | BL26: 0.01876465989 | BM26: 0.01461481298 | BN26: 0.0136239782 | BO26: 0.01733960862 | BP26: 0.01627398591 | BQ26: 0.01724556716 | BR26: 0.01627398591 | BS26: 0.01701701702 | BT26: 0.02127127127 | BU26: 0.01976976977 | BV26: 0.02201591512 | BW26: 0.01856763926 | BX26: 0.01618037135 | BY26: 0.01462430661 | BZ26: 0.01588502269 | CA26: 0.01386787695 | CB26: 0.01137206428 | CC26: 0.008899876391 | CD26: 0.006922126082 | CE26: 0.007384772091 | CF26: 0.006875477464 | CG26: 0.006111535523 | CH26: 0.006394884093 | CI26: 0.007194244604 | CJ26: 0.00826005862 | CK26: 0.007090402634 | CL26: 0.007343631299 | CM26: 0.005489021956 | CN26: 0.01125519941 | CO26: 0.01345730365 | CP26: 0.01590408613 | CQ26: 0.008820564516 | CR26: 0.005796370968 | CS26: 0.005796370968 | CT26: 0.00569259962 | CU26: 0.00569259962 | CV26: 0.004879371103 | CW26: 0.006182380216 | CX26: 0.004636785162 | CY26: 0.002833590933 | CZ26: 0.0007579585649 | DA26: 0.003789792825 | DB26: 0.006821627084 | DC26: 0.002862347125 | DD26: 0.005724694249 | DE26: 0.01014832162 | DF26: 0.01628484681 | DG26: 0.01757231684 | DH26: 0.0232495269 | DI26: 0.02487158692 | DJ26: 0.02307288936 | DK26: 0.01765002521 | DL26: 0.01349287169 | DM26: 0.01349287169 | DN26: 0.01756685894 | DO26: 0.0246460409 | DP26: 0.027792344 | DQ26: 0.03120083901 | DR26: 0.03410604849 | DS26: 0.03595385028 | DT26: 0.03246579018 | DU26: 0.03729541186 | DV26: 0.0360945209 | DW26: 0.03076147252 | DX26: 0.03095975232 | DY26: 0.02984293194 | DZ26: 0.02657454159 | EA26: 0.02746365105 | EB26: 0.02953129233 | EC26: 0.03765917096 | ED26: 0.04183266932 | EE26: 0.04909194098 | EF26: 0.04513399154 | EG26: 0.04190791288 | EH26: 0.03450120353 | EI26: 0.02596728123 | EJ26: 0.02570154734 | EK26: 0.02539854093 | EL26: 0.02395543175 | EM26: 0.02625635234 | EN26: 0.02766798419 | EO26: 0.02983394315 | EP26: 0.0378743394 | EQ26: 0.03745976002 | ER26: 0.03520512074 | ES26: 0.02700445434 | ET26: 0.01951349906 | EU26: 0.02159383033 | EV26: 0.02128218602 | EW26: 0.01639344262 | EX26: 0.0187373883 | EY26: 0.02218278616 | EZ26: 0.02514049098 | FA26: 0.02772043645 | FB26: 0.03406326034 | FC26: 0.03247344461 | FD26: 0.03594080338 | FE26: 0.03039158387 | FF26: 0.02431610942 | FG26: 0.02265372168 | FH26: 0.02367346939 | FI26: 0.02150537634 | FJ26: 0.01945754717 | FK26: 0.02158273381 | FL26: 0.02428057554 | FM26: 0.02571001495 | FN26: 0.02406015038 | FO26: 0.02370948379 | FP26: 0.02460510328 | FQ26: 0.0231264637 | FR26: 0.01854414614 | FS26: 0.01647757969 | FT26: 0.01574172892 | FU26: 0.0141509434 | FV26: 0.01473988439 | FW26: 0.01924215512 | FX26: 0.02042628774 | FY26: 0.02450546206 | FZ26: 0.02856274689 | GA26: 0.03756437443 | GB26: 0.0352303523 | GC26: 0.03675612602 | GD26: 0.02564809708 | GE26: 0.02206673843 | GF26: 0.02015045674 | GG26: 0.02103515084 | GH26: 0.02111872146 | GI26: 0.02672209026 | GJ26: 0.02228826152 | GK26: 0.02758825274 | GL26: 0.02863170585 | GM26: 0.02614182692 | GN26: 0.02658303465 | GO26: 0.02446126966 | GP26: 0.02202643172 | GQ26: 0.01773240193 | GR26: 0.01556101556 | GS26: 0.01434599156 | GT26: 0.01333719919 | GU26: 0.01397146254 | GV26: 0.01666170783 | GW26: 0.01930501931 | GX26: 0.05847432473 | GY26: 0.05272511848 | GZ26: 0.02534630121 | HA26: 0.02173291393 | HB26: 0.01630877956 | HC26: 0.01386296987 | HD26: 0.01467840939 | HE26: 0.01497005988 | HF26: 0.01555555556 | HG26: 0.01590457256 | HH26: 0.01989766913 | HI26: 0.02071509648 | HJ26: 0.02203147353 | HK26: 0.02096911306 | HL26: 0.01954120646 | HM26: 0.01702959241 | HN26: 0.01320043103 | HO26: 0.01074141996 | HP26: 0.008796895213 | HQ26: 0.009577015164 | HR26: 0.01177437021 | HS26: 0.01267916207 | HT26: 0.01581674393 | HU26: 0.0167077513 | HV26: 0.0185915493 | HW26: 0.01938202247 | HX26: 0.01932773109 | HY26: 0.02194444444 | HZ26: 0.02005494505 | IA26: 0.02139037433 | IB26: 0.01875 | IC26: 0.01888297872 | ID26: 0.02182320442 | IE26: 0.02311977716 | IF26: 0.02653631285 | IG26: 0.02590529248 | IH26: 0.03177727784 | II26: 0.0308988764 | IJ26: 0.03300970874 | IK26: 0.118410596 | IL26: 0.08025641026 | IM26: 0.0465648855 | IN26: 0.03246585931 | IO26: 0.03152551429 | IP26: 0.03710830126 | IQ26: 0.04507512521 | IR26: 0.04812239221 | IS26: 0.05647840532 | IT26: 0.06458459673 | IU26: 0.05866425993 | IV26: 0.05759474784 | IW26: 0.05422740525 | IX26: 0.04020385051 | IY26: 0.02586681343 | IZ26: 0.02293945052 | JA26: 0.02412513256 | JB26: 0.02475780409 | JC26: 0.02678319707 | JD26: 0.0279122757 | JE26: 0.02719546742 | JF26: 0.02925531915 | JG26: 0.03032954214 | JH26: 0.02958070075 | JI26: 0.02350307778 | JJ26: 0.01892915089 | JK26: 0.0143693454 | JL26: 0.01608579088 | JM26: 0.01757276222 | JN26: 0.01656086116 | JO26: 0.01887316125 | JP26: 0.01981318992 | JQ26: 0.02181717758 | JR26: 0.02404105889 | JS26: 0.02489293362 | JT26: 0.02530978118 | JU26: 0.02544987147 | JV26: 0.02140368342 | JW26: 0.01727115717 | JX26: 0.01683168317 | JY26: 0.01808917197 | JZ26: 0.02050473186 | KA26: 0.02385369732 | KB26: 0.02762284197 | KC26: 0.02832186342 | KD26: 0.03278229196 | KE26: 0.03365517241 | KF26: 0.03176758078 | KG26: 0.03057119871 | KH26: 0.02741143005 | KI26: 0.02156334232 | KJ26: 0.02039836813 | KK26: 0.02089407191 | KL26: 0.02415210689 | KM26: 0.02715859595 | KN26: 0.02770012706 | KO26: 0.0284396618 | KP26: 0.02953156823 | KQ26: 0.03508322663 | KR26: 0.03522205207 | KS26: 0.03419902289 | KT26: 0.02244696596 | KU26: 0.01682517279 | KV26: 0.0161069333 | KW26: 0.01859257216 | KX26: 0.02081339713 | KY26: 0.02654216516 | KZ26: 0.02940939597 | LA26: 0.03028643159 | LB26: 0.03172990882 | LC26: 0.03294039735 | LD26: 0.03085188212 | LE26: 0.03453264711 | LF26: 0.02531156876 | LG26: 0.02297702298
A27: Vestfirðir karlar | C27: 0.01757666417 | D27: 0.01421091997 | E27: 0.009527299377 | F27: 0.00924280128 | G27: 0.007594062824 | H27: 0.006711409396 | I27: 0.004142216086 | J27: 0.002815909891 | K27: 0.004308797127 | L27: 0.005496518871 | M27: 0.0128252107 | N27: 0.01430143014 | O27: 0.008434176751 | P27: 0.005133846718 | Q27: 0.005387931034 | R27: 0.008365284071 | S27: 0.003385240352 | T27: 0.002961500494 | U27: 0.003046716317 | V27: 0.002071108043 | W27: 0.005631819782 | X27: 0.008261494253 | Y27: 0.008979885057 | Z27: 0.01231310466 | AA27: 0.01347826087 | AB27: 0.01250539025 | AC27: 0.01459854015 | AD27: 0.01115241636 | AE27: 0.006196746708 | AF27: 0.005845674201 | AG27: 0.007128712871 | AH27: 0.009555463232 | AI27: 0.01008403361 | AJ27: 0.0153019024 | AK27: 0.01733172108 | AL27: 0.02173913043 | AM27: 0.02192982456 | AN27: 0.01739886907 | AO27: 0.01212646167 | AP27: 0.0108378491 | AQ27: 0.008206330598 | AR27: 0.006682389937 | AS27: 0.00599280863 | AT27: 0.007544006706 | AU27: 0.008902077151 | AV27: 0.01293283271 | AW27: 0.01504065041 | AX27: 0.02131438721 | AY27: 0.02107111501 | AZ27: 0.01567261646 | BA27: 0.01300954033 | BB27: 0.008760951189 | BC27: 0.01016816582 | BD27: 0.009838646202 | BE27: 0.007197121152 | BF27: 0.006294586655 | BG27: 0.006788290199 | BH27: 0.00417710944 | BI27: 0.004884004884 | BJ27: 0.01226993865 | BK27: 0.01270815074 | BL27: 0.01139351446 | BM27: 0.006247396918 | BN27: 0.003331945023 | BO27: 0.006247396918 | BP27: 0.006533278889 | BQ27: 0.006124948959 | BR27: 0.002858309514 | BS27: 0.002944888515 | BT27: 0.006310475389 | BU27: 0.006731173748 | BV27: 0.008115419297 | BW27: 0.006762849414 | BX27: 0.005410279531 | BY27: 0.003857693956 | BZ27: 0.003429061294 | CA27: 0.002571795971 | CB27: 0.002521008403 | CC27: 0.001260504202 | CD27: 0.001680672269 | CE27: 0.001731601732 | CF27: 0.0008658008658 | CG27: 0.001298701299 | CH27: 0.002254283138 | CI27: 0.002705139766 | CJ27: 0.003155996393 | CK27: 0.002142245073 | CL27: 0.003427592117 | CM27: 0.003799071338 | CN27: 0.01118012422 | CO27: 0.01283643892 | CP27: 0.01283643892 | CQ27: 0.005970149254 | CR27: 0.002985074627 | CS27: 0.002132196162 | CT27: 0.003216911765 | CU27: 0.003676470588 | CV27: 0.004136029412 | CW27: 0.006113537118 | CX27: 0.003930131004 | CY27: 0.001746724891 | CZ27: 0.0008565310493 | DA27: 0.002569593148 | DB27: 0.004282655246 | DC27: 0.002205558006 | DD27: 0.004411116012 | DE27: 0.01058667843 | DF27: 0.01689189189 | DG27: 0.01748582231 | DH27: 0.02457466919 | DI27: 0.02788279773 | DJ27: 0.02520623281 | DK27: 0.01542529749 | DL27: 0.009790832221 | DM27: 0.009345794393 | DN27: 0.01649862511 | DO27: 0.02474793767 | DP27: 0.02658111824 | DQ27: 0.03299725023 | DR27: 0.03457814661 | DS27: 0.03667595172 | DT27: 0.03156917363 | DU27: 0.03342618384 | DV27: 0.03292737934 | DW27: 0.02628120894 | DX27: 0.02554908113 | DY27: 0.02410186448 | DZ27: 0.01985226223 | EA27: 0.02198316183 | EB27: 0.02541176471 | EC27: 0.03576470588 | ED27: 0.04131408661 | EE27: 0.05111662531 | EF27: 0.04736063148 | EG27: 0.0433934666 | EH27: 0.03026004728 | EI27: 0.02203856749 | EJ27: 0.02137546468 | EK27: 0.01771182384 | EL27: 0.01727541955 | EM27: 0.02016724053 | EN27: 0.02361042794 | EO27: 0.02648357038 | EP27: 0.04421052632 | EQ27: 0.04144805876 | ER27: 0.03860198226 | ES27: 0.02804206309 | ET27: 0.02019230769 | EU27: 0.01710587147 | EV27: 0.01646284102 | EW27: 0.0141809291 | EX27: 0.01748971193 | EY27: 0.01815352697 | EZ27: 0.01919087137 | FA27: 0.02223371251 | FB27: 0.02852529602 | FC27: 0.02738990333 | FD27: 0.02993051844 | FE27: 0.02619172342 | FF27: 0.01981178801 | FG27: 0.02029966167 | FH27: 0.02106810387 | FI27: 0.02088639837 | FJ27: 0.01910828025 | FK27: 0.0192 | FL27: 0.02293333333 | FM27: 0.02393617021 | FN27: 0.02266594711 | FO27: 0.02477113624 | FP27: 0.02508178844 | FQ27: 0.02440290758 | FR27: 0.01718213058 | FS27: 0.0153330139 | FT27: 0.0134939759 | FU27: 0.01152882206 | FV27: 0.01252609603 | FW27: 0.01715817694 | FX27: 0.02144772118 | FY27: 0.02673796791 | FZ27: 0.03222282906 | GA27: 0.04302832244 | GB27: 0.03952355171 | GC27: 0.04041994751 | GD27: 0.02679900744 | GE27: 0.02179176755 | GF27: 0.01981633639 | GG27: 0.01892430279 | GH27: 0.01950718686 | GI27: 0.02725815072 | GJ27: 0.02300695559 | GK27: 0.02776294714 | GL27: 0.02765726681 | GM27: 0.02540540541 | GN27: 0.02740462117 | GO27: 0.02379693284 | GP27: 0.0185 | GQ27: 0.01317073171 | GR27: 0.0117820324 | GS27: 0.01062215478 | GT27: 0.007820646507 | GU27: 0.01060445387 | GV27: 0.01485411141 | GW27: 0.01694915254 | GX27: 0.04965296316 | GY27: 0.04901438466 | GZ27: 0.02810180276 | HA27: 0.02505112474 | HB27: 0.01360544218 | HC27: 0.01286939943 | HD27: 0.01431980907 | HE27: 0.0141187926 | HF27: 0.01689021361 | HG27: 0.01577608142 | HH27: 0.02139582272 | HI27: 0.02136317396 | HJ27: 0.02452733776 | HK27: 0.02467270896 | HL27: 0.023138833 | HM27: 0.01894317049 | HN27: 0.01443001443 | HO27: 0.01162250116 | HP27: 0.008771929825 | HQ27: 0.00812231247 | HR27: 0.01238236751 | HS27: 0.01249375312 | HT27: 0.01820866142 | HU27: 0.01919291339 | HV27: 0.02 | HW27: 0.02180094787 | HX27: 0.02122641509 | HY27: 0.02476635514 | HZ27: 0.02396313364 | IA27: 0.021875 | IB27: 0.01826086957 | IC27: 0.01696428571 | ID27: 0.02 | IE27: 0.01962616822 | IF27: 0.02394366197 | IG27: 0.02523364486 | IH27: 0.03126480341 | II27: 0.03031738513 | IJ27: 0.03453103126 | IK27: 0.1233243968 | IL27: 0.08391304348 | IM27: 0.0492653414 | IN27: 0.03092334495 | IO27: 0.03277196177 | IP27: 0.03615023474 | IQ27: 0.04562737643 | IR27: 0.04648956357 | IS27: 0.05615856536 | IT27: 0.0653526971 | IU27: 0.05752439651 | IV27: 0.05744789019 | IW27: 0.05536159601 | IX27: 0.03994225217 | IY27: 0.02231520223 | IZ27: 0.01959890611 | JA27: 0.01868732908 | JB27: 0.02267468764 | JC27: 0.02463768116 | JD27: 0.02733040508 | JE27: 0.02524271845 | JF27: 0.02721774194 | JG27: 0.03080808081 | JH27: 0.0317775571 | JI27: 0.02508441872 | JJ27: 0.01624883937 | JK27: 0.01569713758 | JL27: 0.01835294118 | JM27: 0.0218765192 | JN27: 0.01957905042 | JO27: 0.02173913043 | JP27: 0.02205513784 | JQ27: 0.02389248382 | JR27: 0.02693761815 | JS27: 0.02712815716 | JT27: 0.02664216812 | JU27: 0.02498884427 | JV27: 0.02144082333 | JW27: 0.01661695782 | JX27: 0.01677419355 | JY27: 0.01779359431 | JZ27: 0.0212962963 | KA27: 0.02444757875 | KB27: 0.03024574669 | KC27: 0.03018867925 | KD27: 0.03621730382 | KE27: 0.03681885125 | KF27: 0.03426939553 | KG27: 0.03161868806 | KH27: 0.02847955903 | KI27: 0.02244281398 | KJ27: 0.02099958001 | KK27: 0.02274678112 | KL27: 0.02380952381 | KM27: 0.02572202166 | KN27: 0.02729306488 | KO27: 0.02776533811 | KP27: 0.03069767442 | KQ27: 0.03554724041 | KR27: 0.03817504655 | KS27: 0.03633854646 | KT27: 0.02294792586 | KU27: 0.01654114027 | KV27: 0.01596275984 | KW27: 0.01785972076 | KX27: 0.01923154866 | KY27: 0.02364169422 | KZ27: 0.02551460029 | LA27: 0.02945367204 | LB27: 0.0314969176 | LC27: 0.03256422455 | LD27: 0.03129304408 | LE27: 0.03930456248 | LF27: 0.02958643775 | LG27: 0.02785792661
A28: Vestfirðir konur | C28: 0.02693787795 | D28: 0.02638812534 | E28: 0.02261712439 | F28: 0.01933124347 | G28: 0.01725012684 | H28: 0.0177602368 | I28: 0.01674277017 | J28: 0.0201758924 | K28: 0.02321899736 | L28: 0.02315562736 | M28: 0.03715670436 | N28: 0.03935309973 | O28: 0.03180592992 | P28: 0.0269541779 | Q28: 0.02481520591 | R28: 0.03329918033 | S28: 0.01741293532 | T28: 0.01015473888 | U28: 0.009950248756 | V28: 0.01116184678 | W28: 0.01293326436 | X28: 0.0121436114 | Y28: 0.01531151003 | Z28: 0.01845957989 | AA28: 0.01830808081 | AB28: 0.018125 | AC28: 0.01865671642 | AD28: 0.01977231875 | AE28: 0.0139586823 | AF28: 0.01017524025 | AG28: 0.01208981002 | AH28: 0.01312649165 | AI28: 0.01511487304 | AJ28: 0.01767825575 | AK28: 0.02076124567 | AL28: 0.02706185567 | AM28: 0.03067092652 | AN28: 0.02911392405 | AO28: 0.02959697733 | AP28: 0.02910855064 | AQ28: 0.02937853107 | AR28: 0.02574370709 | AS28: 0.02913752914 | AT28: 0.03562801932 | AU28: 0.04283965728 | AV28: 0.04116945107 | AW28: 0.04319906597 | AX28: 0.04774362328 | AY28: 0.04409857328 | AZ28: 0.03920308483 | BA28: 0.03836317136 | BB28: 0.03325123153 | BC28: 0.03270223752 | BD28: 0.03193960511 | BE28: 0.02779420461 | BF28: 0.02575107296 | BG28: 0.02672467371 | BH28: 0.02665051484 | BI28: 0.0278436019 | BJ28: 0.03279742765 | BK28: 0.03022508039 | BL28: 0.02958199357 | BM28: 0.02689486553 | BN28: 0.02872860636 | BO28: 0.03361858191 | BP28: 0.03057553957 | BQ28: 0.03357314149 | BR28: 0.03597122302 | BS28: 0.03767757875 | BT28: 0.04323656578 | BU28: 0.0389129092 | BV28: 0.0418814433 | BW28: 0.03543814433 | BX28: 0.03157216495 | BY28: 0.0300061237 | BZ28: 0.03368034293 | CA28: 0.0300061237 | CB28: 0.02402402402 | CC28: 0.01981981982 | CD28: 0.01441441441 | CE28: 0.01546072975 | CF28: 0.01546072975 | CG28: 0.01298701299 | CH28: 0.01237785016 | CI28: 0.01368078176 | CJ28: 0.01563517915 | CK28: 0.01424148607 | CL28: 0.01300309598 | CM28: 0.00793166565 | CN28: 0.01136363636 | CO28: 0.01435406699 | CP28: 0.02033492823 | CQ28: 0.01293900185 | CR28: 0.009858287123 | CS28: 0.01109057301 | CT28: 0.009253139458 | CU28: 0.008592200925 | CV28: 0.005948446794 | CW28: 0.006281407035 | CX28: 0.005653266332 | CY28: 0.004396984925 | CZ28: 0.0006161429452 | DA28: 0.005545286506 | DB28: 0.01047443007 | DC28: 0.003807106599 | DD28: 0.007614213198 | DE28: 0.009517766497 | DF28: 0.01547388781 | DG28: 0.0176879343 | DH28: 0.02147820594 | DI28: 0.020846494 | DJ28: 0.02022058824 | DK28: 0.0206246317 | DL28: 0.01844140393 | DM28: 0.01903628792 | DN28: 0.01899509804 | DO28: 0.02450980392 | DP28: 0.02941176471 | DQ28: 0.02879901961 | DR28: 0.03345959596 | DS28: 0.03496503497 | DT28: 0.03369357915 | DU28: 0.04259376987 | DV28: 0.04039167687 | DW28: 0.03683897802 | DX28: 0.03829787234 | DY28: 0.03763109192 | DZ28: 0.03569192235 | EA28: 0.03489847716 | EB28: 0.03512132822 | EC28: 0.04022988506 | ED28: 0.04252491694 | EE28: 0.04638833665 | EF28: 0.04216073781 | EG28: 0.03997461929 | EH28: 0.04002463054 | EI28: 0.03108188882 | EJ28: 0.0313064419 | EK28: 0.03535980149 | EL28: 0.03260869565 | EM28: 0.03445990722 | EN28: 0.03313452618 | EO28: 0.03434610304 | EP28: 0.02988047809 | EQ28: 0.03242885506 | ER28: 0.03092105263 | ES28: 0.02570532915 | ET28: 0.01866345575 | EU28: 0.02721482339 | EV28: 0.02738095238 | EW28: 0.01919504644 | EX28: 0.02032786885 | EY28: 0.02752924983 | EZ28: 0.03303509979 | FA28: 0.03500343171 | FB28: 0.04125874126 | FC28: 0.03907885555 | FD28: 0.04375 | FE28: 0.03569068077 | FF28: 0.03 | FG28: 0.02562538133 | FH28: 0.02692778458 | FI28: 0.02227880331 | FJ28: 0.0198938992 | FK28: 0.02464065708 | FL28: 0.02600958248 | FM28: 0.02798634812 | FN28: 0.02581521739 | FO28: 0.02237288136 | FP28: 0.02400548697 | FQ28: 0.02147651007 | FR28: 0.02030456853 | FS28: 0.01795665635 | FT28: 0.01852958757 | FU28: 0.01740211311 | FV28: 0.01748704663 | FW28: 0.02181097158 | FX28: 0.01916721745 | FY28: 0.02175346078 | FZ28: 0.02397260274 | GA28: 0.03071672355 | GB28: 0.02985074627 | GC28: 0.03217334209 | GD28: 0.02420856611 | GE28: 0.02241066021 | GF28: 0.02056866304 | GG28: 0.02367601246 | GH28: 0.02313624679 | GI28: 0.02605210421 | GJ28: 0.02139037433 | GK28: 0.02736982644 | GL28: 0.02985074627 | GM28: 0.02706359946 | GN28: 0.02555480834 | GO28: 0.02527543746 | GP28: 0.02634803922 | GQ28: 0.02332535885 | GR28: 0.02029520295 | GS28: 0.01901140684 | GT28: 0.02024820379 | GU28: 0.01826792963 | GV28: 0.0189701897 | GW28: 0.02231237323 | GX28: 0.06951871658 | GY28: 0.05737158105 | GZ28: 0.02189781022 | HA28: 0.0175210902 | HB28: 0.01974090068 | HC28: 0.01512401694 | HD28: 0.01513317191 | HE28: 0.01604938272 | HF28: 0.0138626339 | HG28: 0.01606683805 | HH28: 0.01800643087 | HI28: 0.01989730424 | HJ28: 0.0188556567 | HK28: 0.0162022035 | HL28: 0.01490602722 | HM28: 0.01459390863 | HN28: 0.01163502756 | HO28: 0.009603841537 | HP28: 0.008828722778 | HQ28: 0.01140456182 | HR28: 0.01102265769 | HS28: 0.01290719115 | HT28: 0.0128440367 | HU28: 0.01358863496 | HV28: 0.01655172414 | HW28: 0.01586206897 | HX28: 0.01655172414 | HY28: 0.01780821918 | HZ28: 0.01428571429 | IA28: 0.02066666667 | IB28: 0.01948051948 | IC28: 0.02171052632 | ID28: 0.02448979592 | IE28: 0.02827586207 | IF28: 0.03034482759 | IG28: 0.02689655172 | IH28: 0.03252595156 | II28: 0.03174603175 | IJ28: 0.03077975376 | IK28: 0.1112556929 | IL28: 0.075 | IM28: 0.0426980198 | IN28: 0.03470031546 | IO28: 0.0297542044 | IP28: 0.03846153846 | IQ28: 0.04429530201 | IR28: 0.05043712172 | IS28: 0.05693235097 | IT28: 0.06350364964 | IU28: 0.06027596224 | IV28: 0.05780346821 | IW28: 0.05263157895 | IX28: 0.04057771664 | IY28: 0.03101820634 | IZ28: 0.02765273312 | JA28: 0.03168567807 | JB28: 0.02765273312 | JC28: 0.0297901151 | JD28: 0.02872777018 | JE28: 0.02993197279 | JF28: 0.03214285714 | JG28: 0.02967563837 | JH28: 0.02656675749 | JI28: 0.02131912059 | JJ28: 0.02266839378 | JK28: 0.01256281407 | JL28: 0.01308411215 | JM28: 0.0119873817 | JN28: 0.01265822785 | JO28: 0.01519949335 | JP28: 0.01690507152 | JQ28: 0.01923076923 | JR28: 0.02017654477 | JS28: 0.02190237797 | JT28: 0.02351485149 | JU28: 0.02607640995 | JV28: 0.02135231317 | JW28: 0.01817116061 | JX28: 0.01690962099 | JY28: 0.01848539058 | JZ28: 0.01946472019 | KA28: 0.02308626974 | KB28: 0.02425712553 | KC28: 0.02593486128 | KD28: 0.0284629981 | KE28: 0.02959697733 | KF28: 0.02844500632 | KG28: 0.02919254658 | KH28: 0.02603550296 | KI28: 0.02040816327 | KJ28: 0.0195968645 | KK28: 0.01847704367 | KL28: 0.02459016393 | KM28: 0.02904564315 | KN28: 0.02823529412 | KO28: 0.02934131737 | KP28: 0.02812148481 | KQ28: 0.03452178834 | KR28: 0.03163841808 | KS28: 0.03148688047 | KT28: 0.02181208054 | KU28: 0.0171769603 | KV28: 0.0162867215 | KW28: 0.01951472687 | KX28: 0.02284435656 | KY28: 0.03025384493 | KZ28: 0.03438264059 | LA28: 0.03134902083 | LB28: 0.03202293202 | LC28: 0.03341303048 | LD28: 0.03029395754 | LE28: 0.02852627632 | LF28: 0.01990049751 | LG28: 0.01679785975
A29: Norðurland vestra alls | C29: 0.02573529412 | D29: 0.02530276817 | E29: 0.02520652404 | F29: 0.01768092105 | G29: 0.01257736075 | H29: 0.01028327513 | I29: 0.01038131364 | J29: 0.008548748219 | K29: 0.009136212625 | L29: 0.01694556238 | M29: 0.02330014827 | N29: 0.02735368957 | O29: 0.02608142494 | P29: 0.02523324852 | Q29: 0.02596053998 | R29: 0.01834307599 | S29: 0.01096104913 | T29: 0.007229832572 | U29: 0.007437854766 | V29: 0.00678507284 | W29: 0.00753257329 | X29: 0.01246105919 | Y29: 0.02139148494 | Z29: 0.02432308398 | AA29: 0.02158600318 | AB29: 0.02161675298 | AC29: 0.01770903385 | AD29: 0.0146741476 | AE29: 0.009485368315 | AF29: 0.00651465798 | AG29: 0.005797101449 | AH29: 0.007349762214 | AI29: 0.00853204988 | AJ29: 0.01244101244 | AK29: 0.0171655851 | AL29: 0.02383707475 | AM29: 0.02383134739 | AN29: 0.02453430259 | AO29: 0.02713090662 | AP29: 0.02459194777 | AQ29: 0.01323020558 | AR29: 0.009852216749 | AS29: 0.01106702861 | AT29: 0.01700457816 | AU29: 0.0161041253 | AV29: 0.01687216093 | AW29: 0.01878826261 | AX29: 0.02576003713 | AY29: 0.02526992878 | AZ29: 0.02186290139 | BA29: 0.02085694854 | BB29: 0.01833260585 | BC29: 0.0124464395 | BD29: 0.00946891725 | BE29: 0.01025748378 | BF29: 0.01136612022 | BG29: 0.01150442478 | BH29: 0.0151810887 | BI29: 0.01842049545 | BJ29: 0.02479908152 | BK29: 0.02433983927 | BL29: 0.01905855339 | BM29: 0.01615015277 | BN29: 0.01353120908 | BO29: 0.00960279354 | BP29: 0.008561643836 | BQ29: 0.008775684932 | BR29: 0.009417808219 | BS29: 0.01080008816 | BT29: 0.01520828741 | BU29: 0.01675115715 | BV29: 0.01720972923 | BW29: 0.01720972923 | BX29: 0.01514456173 | BY29: 0.01505235602 | BZ29: 0.0119982548 | CA29: 0.004581151832 | CB29: 0.003636363636 | CC29: 0.00449197861 | CD29: 0.002780748663 | CE29: 0.003303964758 | CF29: 0.004625550661 | CG29: 0.005066079295 | CH29: 0.009256738361 | CI29: 0.00871222434 | CJ29: 0.008167710319 | CK29: 0.00543618949 | CL29: 0.004918457158 | CM29: 0.002550369804 | CN29: 0.002500625156 | CO29: 0.002500625156 | CP29: 0.003500875219 | CQ29: 0.00360638846 | CR29: 0.005409582689 | CS29: 0.004379185987 | CT29: 0.006841817187 | CU29: 0.007662835249 | CV29: 0.008210180624 | CW29: 0.007804370447 | CX29: 0.007023933403 | CY29: 0.004422476587 | CZ29: 0.004081632653 | DA29: 0.004591836735 | DB29: 0.005357142857 | DC29: 0.005519053876 | DD29: 0.01024967148 | DE29: 0.014717477 | DF29: 0.0253411306 | DG29: 0.03272429779 | DH29: 0.0370875375 | DI29: 0.03736023998 | DJ29: 0.02989417989 | DK29: 0.02238616128 | DL29: 0.0205497046 | DM29: 0.01849473414 | DN29: 0.01825396825 | DO29: 0.02195767196 | DP29: 0.03227513228 | DQ29: 0.03597883598 | DR29: 0.04299319728 | DS29: 0.04934210526 | DT29: 0.04660087719 | DU29: 0.0430372807 | DV29: 0.03592181722 | DW29: 0.02641025641 | DX29: 0.02519023878 | DY29: 0.02396166134 | DZ29: 0.02243243243 | EA29: 0.02464403067 | EB29: 0.03112947658 | EC29: 0.03112947658 | ED29: 0.03807390817 | EE29: 0.04102707229 | EF29: 0.03940066593 | EG29: 0.04120357821 | EH29: 0.03156233561 | EI29: 0.02348736278 | EJ29: 0.02037657983 | EK29: 0.02205100956 | EL29: 0.02053669222 | EM29: 0.02194444444 | EN29: 0.02555555556 | EO29: 0.02851605759 | EP29: 0.02774663677 | EQ29: 0.0290583962 | ER29: 0.02805555556 | ES29: 0.02658160553 | ET29: 0.02066853789 | EU29: 0.01226692836 | EV29: 0.01153460381 | EW29: 0.01460615545 | EX29: 0.01348747592 | EY29: 0.014120305 | EZ29: 0.0192036148 | FA29: 0.02083333333 | FB29: 0.02247510669 | FC29: 0.02328222601 | FD29: 0.02175141243 | FE29: 0.02131729981 | FF29: 0.01757105943 | FG29: 0.01134930643 | FH29: 0.01221684907 | FI29: 0.01323451562 | FJ29: 0.01020126827 | FK29: 0.01318373072 | FL29: 0.01626928471 | FM29: 0.02041387025 | FN29: 0.02467010901 | FO29: 0.02919290212 | FP29: 0.02818128995 | FQ29: 0.02547592385 | FR29: 0.01694017999 | FS29: 0.01472487729 | FT29: 0.01504718184 | FU29: 0.01220159151 | FV29: 0.01326333241 | FW29: 0.01585055194 | FX29: 0.02122841778 | FY29: 0.02173299464 | FZ29: 0.02679871832 | GA29: 0.02584204413 | GB29: 0.02251732102 | GC29: 0.01956947162 | GD29: 0.01295268306 | GE29: 0.01160691256 | GF29: 0.01004636785 | GG29: 0.0103475723 | GH29: 0.01203501094 | GI29: 0.01109846329 | GJ29: 0.01168091168 | GK29: 0.01449687322 | GL29: 0.01781542056 | GM29: 0.01718112988 | GN29: 0.01649782923 | GO29: 0.01354019746 | GP29: 0.01013603628 | GQ29: 0.007810466024 | GR29: 0.008997089177 | GS29: 0.009811937858 | GT29: 0.008429334083 | GU29: 0.008354940939 | GV29: 0.0126910874 | GW29: 0.01583189407 | GX29: 0.01809824763 | GY29: 0.01834862385 | GZ29: 0.01597261837 | HA29: 0.01135105205 | HB29: 0.009473684211 | HC29: 0.005677419355 | HD29: 0.005941617153 | HE29: 0.005533596838 | HF29: 0.006184458188 | HG29: 0.009073412153 | HH29: 0.01073492981 | HI29: 0.0115352925 | HJ29: 0.01560242704 | HK29: 0.01545949041 | HL29: 0.01430615165 | HM29: 0.01325437112 | HN29: 0.009798584649 | HO29: 0.007678051364 | HP29: 0.008886565604 | HQ29: 0.008599838753 | HR29: 0.01271420674 | HS29: 0.01335187761 | HT29: 0.01321585903 | HU29: 0.01355463347 | HV29: 0.01346704871 | HW29: 0.01457142857 | HX29: 0.01253561254 | HY29: 0.01214689266 | HZ29: 0.009749303621 | IA29: 0.008967391304 | IB29: 0.009814323607 | IC29: 0.01029810298 | ID29: 0.008707865169 | IE29: 0.01218130312 | IF29: 0.01420454545 | IG29: 0.01779661017 | IH29: 0.02109464082 | II29: 0.02248790208 | IJ29: 0.02530222097 | IK29: 0.09100671141 | IL29: 0.06573135879 | IM29: 0.042547705 | IN29: 0.03368146214 | IO29: 0.03734776725 | IP29: 0.03841870824 | IQ29: 0.04396843292 | IR29: 0.05156382079 | IS29: 0.05412226584 | IT29: 0.05773321179 | IU29: 0.05667772083 | IV29: 0.05593778044 | IW29: 0.05035128806 | IX29: 0.03725824801 | IY29: 0.02322366602 | IZ29: 0.0198231985 | JA29: 0.01809954751 | JB29: 0.01728795246 | JC29: 0.01783187093 | JD29: 0.02115494568 | JE29: 0.0213371266 | JF29: 0.02495490078 | JG29: 0.02431791222 | JH29: 0.02190420561 | JI29: 0.01992031873 | JJ29: 0.01210121012 | JK29: 0.01054909386 | JL29: 0.008989376192 | JM29: 0.009207589286 | JN29: 0.008971124194 | JO29: 0.01014942205 | JP29: 0.01265458729 | JQ29: 0.01149425287 | JR29: 0.01454649173 | JS29: 0.01300169587 | JT29: 0.011967715 | JU29: 0.01112920738 | JV29: 0.009994739611 | JW29: 0.005733646078 | JX29: 0.006013071895 | JY29: 0.006186121571 | JZ29: 0.006381798002 | KA29: 0.00979020979 | KB29: 0.01372933595 | KC29: 0.01591734152 | KD29: 0.01739130435 | KE29: 0.01685548494 | KF29: 0.01496191513 | KG29: 0.01584743486 | KH29: 0.01035732781 | KI29: 0.009572901325 | KJ29: 0.008415484491 | KK29: 0.007787782916 | KL29: 0.01054798045 | KM29: 0.01180092355 | KN29: 0.01476202596 | KO29: 0.01617043121 | KP29: 0.01571354972 | KQ29: 0.01684810783 | KR29: 0.01418622646 | KS29: 0.0126516912 | KT29: 0.01160207356 | KU29: 0.01014036158 | KV29: 0.00980322295 | KW29: 0.01072773742 | KX29: 0.009384651936 | KY29: 0.01269413911 | KZ29: 0.01541982736 | LA29: 0.01619174677 | LB29: 0.01898130239 | LC29: 0.0198757764 | LD29: 0.01966084406 | LE29: 0.01789181692 | LF29: 0.01519647514 | LG29: 0.0135118803
A30: Norðurland vestra karlar | C30: 0.01744393022 | D30: 0.0177999288 | E30: 0.01847977685 | F30: 0.01218274112 | G30: 0.00985869208 | H30: 0.008304056212 | I30: 0.008215576733 | J30: 0.006030150754 | K30: 0.005468215995 | L30: 0.01011157601 | M30: 0.01778242678 | N30: 0.02164048866 | O30: 0.01919720768 | P30: 0.01815008726 | Q30: 0.02085470085 | R30: 0.01260783013 | S30: 0.006765463918 | T30: 0.004384591293 | U30: 0.005798969072 | V30: 0.004270696452 | W30: 0.003686327078 | X30: 0.009230769231 | Y30: 0.01743589744 | Z30: 0.01934235977 | AA30: 0.01644988523 | AB30: 0.01593323217 | AC30: 0.01548923309 | AD30: 0.01344965467 | AE30: 0.008520790729 | AF30: 0.004458161866 | AG30: 0.004181184669 | AH30: 0.006581352834 | AI30: 0.007393715342 | AJ30: 0.01055312955 | AK30: 0.01595744681 | AL30: 0.02279874214 | AM30: 0.02409638554 | AN30: 0.02428681573 | AO30: 0.02648752399 | AP30: 0.02326440177 | AQ30: 0.01177285319 | AR30: 0.007314524556 | AS30: 0.007433628319 | AT30: 0.01337295691 | AU30: 0.01577168607 | AV30: 0.01626617375 | AW30: 0.01945244957 | AX30: 0.02438065277 | AY30: 0.02410575428 | AZ30: 0.01735441573 | BA30: 0.01574500768 | BB30: 0.0133037694 | BC30: 0.009005888466 | BD30: 0.006273963053 | BE30: 0.007082152975 | BF30: 0.008918617614 | BG30: 0.009394964299 | BH30: 0.01405325444 | BI30: 0.01802451334 | BJ30: 0.02449455677 | BK30: 0.02410575428 | BL30: 0.01516329705 | BM30: 0.0125646711 | BN30: 0.008869179601 | BO30: 0.006651884701 | BP30: 0.006161652773 | BQ30: 0.006886553099 | BR30: 0.006161652773 | BS30: 0.006718924972 | BT30: 0.01231802912 | BU30: 0.01418439716 | BV30: 0.01518691589 | BW30: 0.01440809969 | BX30: 0.01090342679 | BY30: 0.01073676416 | BZ30: 0.009626064421 | CA30: 0.002961865976 | CB30: 0.001814882033 | CC30: 0.002177858439 | CD30: 0.0007259528131 | CE30: 0.001869158879 | CF30: 0.002242990654 | CG30: 0.003738317757 | CH30: 0.007410838351 | CI30: 0.006947660954 | CJ30: 0.00602130616 | CK30: 0.00308234258 | CL30: 0.00308234258 | CM30: 0.0008676789588 | CN30: 0.000850701829 | CO30: 0.000850701829 | CP30: 0.002126754573 | CQ30: 0.001314636284 | CR30: 0.001752848379 | CS30: 0.001314636284 | CT30: 0.004638218924 | CU30: 0.005102040816 | CV30: 0.006493506494 | CW30: 0.006172839506 | CX30: 0.006172839506 | CY30: 0.002204585538 | CZ30: 0.003026372676 | DA30: 0.00345871163 | DB30: 0.004323389537 | DC30: 0.004454342984 | DD30: 0.009799554566 | DE30: 0.01648106904 | DF30: 0.02790014684 | DG30: 0.03643336529 | DH30: 0.04074784276 | DI30: 0.03978906999 | DJ30: 0.02976744186 | DK30: 0.02191413238 | DL30: 0.01851015801 | DM30: 0.0158013544 | DN30: 0.01395348837 | DO30: 0.01906976744 | DP30: 0.03302325581 | DQ30: 0.03953488372 | DR30: 0.04397705545 | DS30: 0.0515166105 | DT30: 0.0476649013 | DU30: 0.04140587386 | DV30: 0.03213786679 | DW30: 0.02350813743 | DX30: 0.02545118001 | DY30: 0.02488262911 | DZ30: 0.02192564347 | EA30: 0.02510864317 | EB30: 0.03302574065 | EC30: 0.03351141331 | ED30: 0.03888334995 | EE30: 0.04572564612 | EF30: 0.04249011858 | EG30: 0.04441190825 | EH30: 0.03456439394 | EI30: 0.02895220588 | EJ30: 0.02280130293 | EK30: 0.02396931927 | EL30: 0.02173913043 | EM30: 0.02167487685 | EN30: 0.0236453202 | EO30: 0.029455081 | EP30: 0.0282542886 | EQ30: 0.03169014085 | ER30: 0.0275 | ES30: 0.02832453193 | ET30: 0.0202764977 | EU30: 0.009304386354 | EV30: 0.008562415502 | EW30: 0.01172058134 | EX30: 0.01183431953 | EY30: 0.01442068623 | EZ30: 0.01989060169 | FA30: 0.02130822597 | FB30: 0.02451481103 | FC30: 0.02701325178 | FD30: 0.02434077079 | FE30: 0.02286282306 | FF30: 0.01785714286 | FG30: 0.01146788991 | FH30: 0.01069270107 | FI30: 0.01015473888 | FJ30: 0.008559919436 | FK30: 0.01012658228 | FL30: 0.01265822785 | FM30: 0.01716304897 | FN30: 0.02195504443 | FO30: 0.02816901408 | FP30: 0.02584388186 | FQ30: 0.02260170768 | FR30: 0.01282051282 | FS30: 0.01112140871 | FT30: 0.01211556384 | FU30: 0.01114881241 | FV30: 0.01362948006 | FW30: 0.01711618257 | FX30: 0.02178423237 | FY30: 0.02430196484 | FZ30: 0.03164556962 | GA30: 0.03049421661 | GB30: 0.02404600105 | GC30: 0.01976685251 | GD30: 0.01197891711 | GE30: 0.01075268817 | GF30: 0.009337068161 | GG30: 0.007211538462 | GH30: 0.007433102081 | GI30: 0.007223942208 | GJ30: 0.007231404959 | GK30: 0.0118556701 | GL30: 0.01554959786 | GM30: 0.01389631213 | GN30: 0.0132837407 | GO30: 0.008363826451 | GP30: 0.005931784478 | GQ30: 0.004823926676 | GR30: 0.006310679612 | GS30: 0.0065 | GT30: 0.005154639175 | GU30: 0.005241090147 | GV30: 0.01049317943 | GW30: 0.01465968586 | GX30: 0.016985138 | GY30: 0.01694915254 | GZ30: 0.01527924131 | HA30: 0.01219512195 | HB30: 0.01014492754 | HC30: 0.006631927996 | HD30: 0.006166982922 | HE30: 0.005324298161 | HF30: 0.006913580247 | HG30: 0.009109311741 | HH30: 0.009625126646 | HI30: 0.01011122346 | HJ30: 0.01450053706 | HK30: 0.01482265749 | HL30: 0.01374933897 | HM30: 0.01257861635 | HN30: 0.008093070309 | HO30: 0.006842619746 | HP30: 0.006796116505 | HQ30: 0.008040201005 | HR30: 0.01613742842 | HS30: 0.01575630252 | HT30: 0.01397515528 | HU30: 0.01242236025 | HV30: 0.0101010101 | HW30: 0.01206030151 | HX30: 0.0095 | HY30: 0.01089108911 | HZ30: 0.009268292683 | IA30: 0.008056872038 | IB30: 0.009259259259 | IC30: 0.008056872038 | ID30: 0.006896551724 | IE30: 0.009900990099 | IF30: 0.01243781095 | IG30: 0.01831683168 | IH30: 0.02291978077 | II30: 0.02341803687 | IJ30: 0.0265095729 | IK30: 0.08693609023 | IL30: 0.06450137237 | IM30: 0.03819918145 | IN30: 0.02977553825 | IO30: 0.03256704981 | IP30: 0.03555555556 | IQ30: 0.0425 | IR30: 0.0494011976 | IS30: 0.05161290323 | IT30: 0.05797101449 | IU30: 0.0568544102 | IV30: 0.05578947368 | IW30: 0.04886831276 | IX30: 0.03475670308 | IY30: 0.02350119904 | IZ30: 0.0197461213 | JA30: 0.02021626704 | JB30: 0.0233778626 | JC30: 0.02341803687 | JD30: 0.02617010569 | JE30: 0.02553830746 | JF30: 0.02860169492 | JG30: 0.02919320594 | JH30: 0.02660406886 | JI30: 0.02281947262 | JJ30: 0.01268292683 | JK30: 0.01163918526 | JL30: 0.01137487636 | JM30: 0.01124169647 | JN30: 0.01131687243 | JO30: 0.01246753247 | JP30: 0.01738672287 | JQ30: 0.01412872841 | JR30: 0.01820072803 | JS30: 0.01595470921 | JT30: 0.01212121212 | JU30: 0.01030421982 | JV30: 0.0108490566 | JW30: 0.007029053421 | JX30: 0.008041627247 | JY30: 0.006849315068 | JZ30: 0.007641365257 | KA30: 0.01189860321 | KB30: 0.01664066563 | KC30: 0.01660612351 | KD30: 0.02004110997 | KE30: 0.01906673357 | KF30: 0.01507782101 | KG30: 0.0168756027 | KH30: 0.01126231816 | KI30: 0.009700176367 | KJ30: 0.009442060086 | KK30: 0.008771929825 | KL30: 0.01309635173 | KM30: 0.01658986175 | KN30: 0.01828153565 | KO30: 0.01875571821 | KP30: 0.017208413 | KQ30: 0.01866028708 | KR30: 0.01425178147 | KS30: 0.01260504202 | KT30: 0.01163831692 | KU30: 0.01200272227 | KV30: 0.01210219632 | KW30: 0.01274312542 | KX30: 0.01210847976 | KY30: 0.01549543844 | KZ30: 0.01833098922 | LA30: 0.0195417101 | LB30: 0.0231784934 | LC30: 0.02565959648 | LD30: 0.02600074822 | LE30: 0.02334089751 | LF30: 0.01809148856 | LG30: 0.01634146341
A31: Norðurland vestra konur | C31: 0.03856749311 | D31: 0.03691460055 | E31: 0.03561791689 | F31: 0.02619172342 | G31: 0.01678535097 | H31: 0.01334651508 | I31: 0.01373346897 | J31: 0.01244813278 | K31: 0.01481481481 | L31: 0.02752293578 | M31: 0.03184025904 | N31: 0.03619665046 | O31: 0.03673689897 | P31: 0.03619665046 | Q31: 0.03386243386 | R31: 0.0272213662 | S31: 0.0174563591 | T31: 0.01163354338 | U31: 0.009975062344 | V31: 0.01067615658 | W31: 0.01348547718 | X31: 0.01746031746 | Y31: 0.02751322751 | Z31: 0.03158488438 | AA31: 0.02909904868 | AB31: 0.02991689751 | AC31: 0.02094818082 | AD31: 0.01646309081 | AE31: 0.01088570015 | AF31: 0.009519038076 | AG31: 0.008163265306 | AH31: 0.008461131676 | AI31: 0.01018220793 | AJ31: 0.01515151515 | AK31: 0.01890648952 | AL31: 0.02532357907 | AM31: 0.02345058626 | AN31: 0.02488938053 | AO31: 0.02805280528 | AP31: 0.02649708532 | AQ31: 0.01530864198 | AR31: 0.01349325337 | AS31: 0.01629327902 | AT31: 0.02216358839 | AU31: 0.01657754011 | AV31: 0.01772679875 | AW31: 0.01784803672 | AX31: 0.02774631937 | AY31: 0.02695115104 | AZ31: 0.02836484983 | BA31: 0.02822357499 | BB31: 0.02558635394 | BC31: 0.01737835154 | BD31: 0.01407742584 | BE31: 0.01484895033 | BF31: 0.01486199575 | BG31: 0.0145239376 | BH31: 0.01678028317 | BI31: 0.01898409441 | BJ31: 0.02523836231 | BK31: 0.02467750981 | BL31: 0.02467750981 | BM31: 0.02132196162 | BN31: 0.02025586354 | BO31: 0.01385927505 | BP31: 0.01202300052 | BQ31: 0.01150026137 | BR31: 0.01411395714 | BS31: 0.0166846071 | BT31: 0.01937567277 | BU31: 0.02045209903 | BV31: 0.02011173184 | BW31: 0.02122905028 | BX31: 0.02122905028 | BY31: 0.02124269782 | BZ31: 0.01540095592 | CA31: 0.006903876792 | CB31: 0.00625 | CC31: 0.0078125 | CD31: 0.005729166667 | CE31: 0.005361930295 | CF31: 0.008042895442 | CG31: 0.006970509383 | CH31: 0.01188903567 | CI31: 0.01122853369 | CJ31: 0.01122853369 | CK31: 0.008793969849 | CL31: 0.007537688442 | CM31: 0.00495049505 | CN31: 0.004854368932 | CO31: 0.004854368932 | CP31: 0.005461165049 | CQ31: 0.006875 | CR31: 0.010625 | CS31: 0.00875 | CT31: 0.01001335113 | CU31: 0.01134846462 | CV31: 0.01068090788 | CW31: 0.01015228426 | CX31: 0.008248730964 | CY31: 0.007614213198 | CZ31: 0.005600497822 | DA31: 0.006222775358 | DB31: 0.006845052894 | DC31: 0.007051282051 | DD31: 0.0108974359 | DE31: 0.01217948718 | DF31: 0.02196382429 | DG31: 0.02783048703 | DH31: 0.03225806452 | DI31: 0.03415559772 | DJ31: 0.03006134969 | DK31: 0.02300884956 | DL31: 0.02324195471 | DM31: 0.02205005959 | DN31: 0.02392638037 | DO31: 0.02576687117 | DP31: 0.03128834356 | DQ31: 0.03128834356 | DR31: 0.041692988 | DS31: 0.04646721833 | DT31: 0.04519414386 | DU31: 0.04519414386 | DV31: 0.0408785845 | DW31: 0.03021327014 | DX31: 0.02484848485 | DY31: 0.02275522755 | DZ31: 0.02309612984 | EA31: 0.02403542062 | EB31: 0.02864417568 | EC31: 0.02800763845 | ED31: 0.03703703704 | EE31: 0.03500954806 | EF31: 0.03544303797 | EG31: 0.03719512195 | EH31: 0.02781065089 | EI31: 0.01665709362 | EJ31: 0.01736111111 | EK31: 0.01966626937 | EL31: 0.01904176904 | EM31: 0.02229299363 | EN31: 0.02802547771 | EO31: 0.0273015873 | EP31: 0.02711223203 | EQ31: 0.025769956 | ER31: 0.02875 | ES31: 0.0244192972 | ET31: 0.02115494568 | EU31: 0.01594282573 | EV31: 0.01526286037 | EW31: 0.01822457378 | EX31: 0.01557632399 | EY31: 0.0137254902 | EZ31: 0.01830065359 | FA31: 0.02020860495 | FB31: 0.01991008349 | FC31: 0.01858974359 | FD31: 0.01849489796 | FE31: 0.01942926533 | FF31: 0.01722158439 | FG31: 0.01120448179 | FH31: 0.01406074241 | FI31: 0.01695906433 | FJ31: 0.01218769043 | FK31: 0.01698113208 | FL31: 0.02075471698 | FM31: 0.02445141066 | FN31: 0.02797202797 | FO31: 0.03043753963 | FP31: 0.03104786546 | FQ31: 0.02909550917 | FR31: 0.0221291866 | FS31: 0.01926444834 | FT31: 0.0185915493 | FU31: 0.01347393087 | FV31: 0.01282051282 | FW31: 0.01433021807 | FX31: 0.02056074766 | FY31: 0.01864512119 | FZ31: 0.02081977879 | GA31: 0.02010376135 | GB31: 0.02063185042 | GC31: 0.01932668329 | GD31: 0.0141509434 | GE31: 0.01265822785 | GF31: 0.01091954023 | GG31: 0.01420959147 | GH31: 0.0177045177 | GI31: 0.01586294416 | GJ31: 0.01715374841 | GK31: 0.01774397972 | GL31: 0.02052597819 | GM31: 0.02111324376 | GN31: 0.02034329307 | GO31: 0.01960784314 | GP31: 0.01506373117 | GQ31: 0.01131221719 | GR31: 0.01221640489 | GS31: 0.01378070701 | GT31: 0.01235330451 | GU31: 0.01215611004 | GV31: 0.01537475977 | GW31: 0.01726342711 | GX31: 0.01941139637 | GY31: 0.02 | GZ31: 0.01679104478 | HA31: 0.0103406326 | HB31: 0.008670520231 | HC31: 0.004535147392 | HD31: 0.005672149745 | HE31: 0.005783689994 | HF31: 0.005312868949 | HG31: 0.009030704395 | HH31: 0.01205545509 | HI31: 0.01322910403 | HJ31: 0.01688555347 | HK31: 0.01620947631 | HL31: 0.01496259352 | HM31: 0.01404151404 | HN31: 0.01178550383 | HO31: 0.008665511265 | HP31: 0.01132502831 | HQ31: 0.009243212016 | HR31: 0.008839127873 | HS31: 0.010644589 | HT31: 0.01235294118 | HU31: 0.01485442662 | HV31: 0.0178807947 | HW31: 0.0178807947 | HX31: 0.01655629139 | HY31: 0.01381578947 | HZ31: 0.01038961039 | IA31: 0.0101910828 | IB31: 0.01055900621 | IC31: 0.01329113924 | ID31: 0.01111111111 | IE31: 0.01523178808 | IF31: 0.01655629139 | IG31: 0.01710526316 | IH31: 0.01865423051 | II31: 0.02124833997 | IJ31: 0.02368421053 | IK31: 0.09643080776 | IL31: 0.06734816597 | IM31: 0.04824300179 | IN31: 0.03885853066 | IO31: 0.0435594275 | IP31: 0.04211869815 | IQ31: 0.04586563307 | IR31: 0.05436893204 | IS31: 0.05738233398 | IT31: 0.05742296919 | IU31: 0.05644599303 | IV31: 0.05613305613 | IW31: 0.05230978261 | IX31: 0.04061251664 | IY31: 0.022845953 | IZ31: 0.0199252802 | JA31: 0.01533742331 | JB31: 0.009339975093 | JC31: 0.01048492792 | JD31: 0.01455989411 | JE31: 0.01581027668 | JF31: 0.02016689847 | JG31: 0.01814516129 | JH31: 0.01592568016 | JI31: 0.01621271077 | JJ31: 0.01134930643 | JK31: 0.009174311927 | JL31: 0.006064281383 | JM31: 0.00676090965 | JN31: 0.006161429452 | JO31: 0.007398273736 | JP31: 0.006966434452 | JQ31: 0.00845410628 | JR31: 0.01010739103 | JS31: 0.009404388715 | JT31: 0.01177929324 | JU31: 0.01215066829 | JV31: 0.008917954816 | JW31: 0.004110393423 | JX31: 0.003506721216 | JY31: 0.005376344086 | JZ31: 0.004875076173 | KA31: 0.00730816078 | KB31: 0.01032806804 | KC31: 0.01511487304 | KD31: 0.01420630019 | KE31: 0.01414514145 | KF31: 0.01481481481 | KG31: 0.01455427532 | KH31: 0.009243212016 | KI31: 0.009413067553 | KJ31: 0.007107709131 | KK31: 0.006560962274 | KL31: 0.007432818754 | KM31: 0.005787037037 | KN31: 0.0103388857 | KO31: 0.01286549708 | KP31: 0.01396648045 | KQ31: 0.01470588235 | KR31: 0.01410835214 | KS31: 0.01270941652 | KT31: 0.01155751238 | KU31: 0.007886592792 | KV31: 0.007048714449 | KW31: 0.008248968879 | KX31: 0.005840250509 | KY31: 0.009097146342 | KZ31: 0.01174556213 | LA31: 0.01196554748 | LB31: 0.01399469556 | LC31: 0.01292728403 | LD31: 0.0120576524 | LE31: 0.01137747758 | LF31: 0.01168443497 | LG31: 0.0101216726
A32: Norðurland eystra alls | C32: 0.02456323727 | D32: 0.02374197402 | E32: 0.02018576757 | F32: 0.01660634448 | G32: 0.01288677555 | H32: 0.01105231429 | I32: 0.01116394459 | J32: 0.009416063523 | K32: 0.009603669462 | L32: 0.01294522051 | M32: 0.02069772544 | N32: 0.02627918893 | O32: 0.02701119977 | P32: 0.0255471781 | Q32: 0.0272479564 | R32: 0.02344674042 | S32: 0.01540540541 | T32: 0.01333245764 | U32: 0.0122972973 | V32: 0.01343437823 | W32: 0.0169360506 | X32: 0.02115301879 | Y32: 0.02889717482 | Z32: 0.0378604801 | AA32: 0.03652895199 | AB32: 0.03154399557 | AC32: 0.03045805131 | AD32: 0.02598484848 | AE32: 0.02075511794 | AF32: 0.01915106474 | AG32: 0.01729902602 | AH32: 0.01653895759 | AI32: 0.01896790048 | AJ32: 0.02544605887 | AK32: 0.02872887583 | AL32: 0.03964828137 | AM32: 0.04226020893 | AN32: 0.03985251432 | AO32: 0.03880993284 | AP32: 0.03375178531 | AQ32: 0.02579602165 | AR32: 0.02141388357 | AS32: 0.02105870475 | AT32: 0.02145438121 | AU32: 0.02347024308 | AV32: 0.02666965486 | AW32: 0.02960262486 | AX32: 0.0357399282 | AY32: 0.03562119896 | AZ32: 0.03327331089 | BA32: 0.03304496922 | BB32: 0.03375843961 | BC32: 0.02897025814 | BD32: 0.02872912539 | BE32: 0.02814366947 | BF32: 0.02794891059 | BG32: 0.02981215302 | BH32: 0.03086327717 | BI32: 0.03652768682 | BJ32: 0.04031329187 | BK32: 0.0353221224 | BL32: 0.03217384627 | BM32: 0.02875702503 | BN32: 0.02729727757 | BO32: 0.02700532808 | BP32: 0.02540614041 | BQ32: 0.0245473413 | BR32: 0.02018177915 | BS32: 0.02543309989 | BT32: 0.02653888684 | BU32: 0.02712863988 | BV32: 0.02966999697 | BW32: 0.02770208901 | BX32: 0.02686951256 | BY32: 0.02467625899 | BZ32: 0.02489208633 | CA32: 0.02136690647 | CB32: 0.02292768959 | CC32: 0.02081128748 | CD32: 0.01805996473 | CE32: 0.01948287101 | CF32: 0.0209314116 | CG32: 0.02245237923 | CH32: 0.0223885918 | CI32: 0.02281639929 | CJ32: 0.02103386809 | CK32: 0.01978856059 | CL32: 0.01897533207 | CM32: 0.01589103292 | CN32: 0.01538663 | CO32: 0.01460092975 | CP32: 0.01302952923 | CQ32: 0.01483579473 | CR32: 0.01591476162 | CS32: 0.01814013082 | CT32: 0.02076923077 | CU32: 0.02027972028 | CV32: 0.01979020979 | CW32: 0.01788088274 | CX32: 0.01887795799 | CY32: 0.01714969423 | CZ32: 0.01727284578 | DA32: 0.01681658193 | DB32: 0.01707730413 | DC32: 0.02235649547 | DD32: 0.03551527358 | DE32: 0.05169519973 | DF32: 0.07122648182 | DG32: 0.08756494631 | DH32: 0.08839625909 | DI32: 0.08292344995 | DJ32: 0.07552748287 | DK32: 0.06454322264 | DL32: 0.06138691369 | DM32: 0.05956031052 | DN32: 0.05536890203 | DO32: 0.06054293778 | DP32: 0.06766563634 | DQ32: 0.07357882005 | DR32: 0.08418933926 | DS32: 0.07891793653 | DT32: 0.07884803579 | DU32: 0.07458409059 | DV32: 0.06611626176 | DW32: 0.05735497011 | DX32: 0.05566760791 | DY32: 0.05396370583 | DZ32: 0.04854234471 | EA32: 0.05261680932 | EB32: 0.06035152114 | EC32: 0.06451612903 | ED32: 0.06881551736 | EE32: 0.06803639983 | EF32: 0.06593639576 | EG32: 0.05785295133 | EH32: 0.05176454832 | EI32: 0.04420751528 | EJ32: 0.04393800079 | EK32: 0.04316060073 | EL32: 0.04226236139 | EM32: 0.04457021578 | EN32: 0.04761230987 | EO32: 0.05367470729 | EP32: 0.05637593657 | EQ32: 0.05541050189 | ER32: 0.05169057746 | ES32: 0.04642980338 | ET32: 0.03993641963 | EU32: 0.02935931728 | EV32: 0.0313761229 | EW32: 0.02951729741 | EX32: 0.03279508431 | EY32: 0.03659967728 | EZ32: 0.04246736101 | FA32: 0.04723948812 | FB32: 0.05012862918 | FC32: 0.04790199531 | FD32: 0.04598540146 | FE32: 0.0401694317 | FF32: 0.03384286763 | FG32: 0.0261203752 | FH32: 0.0259595163 | FI32: 0.02665573098 | FJ32: 0.0268403816 | FK32: 0.03035352072 | FL32: 0.03556940017 | FM32: 0.04058933988 | FN32: 0.04201865864 | FO32: 0.0414925592 | FP32: 0.04147801957 | FQ32: 0.03899760665 | FR32: 0.03341320554 | FS32: 0.02578591842 | FT32: 0.02346755578 | FU32: 0.02307281942 | FV32: 0.02417170244 | FW32: 0.02739433613 | FX32: 0.0319481998 | FY32: 0.03490351873 | FZ32: 0.03843114719 | GA32: 0.03724128053 | GB32: 0.03680501175 | GC32: 0.03544094325 | GD32: 0.02829573608 | GE32: 0.02131450022 | GF32: 0.02045743329 | GG32: 0.02139772281 | GH32: 0.02098090805 | GI32: 0.02365244245 | GJ32: 0.02697765913 | GK32: 0.028887954 | GL32: 0.03307174888 | GM32: 0.03171498428 | GN32: 0.02992639911 | GO32: 0.02584923535 | GP32: 0.02233028345 | GQ32: 0.01679675304 | GR32: 0.01618636537 | GS32: 0.01608368748 | GT32: 0.01691830682 | GU32: 0.01811018179 | GV32: 0.02096595627 | GW32: 0.03342079823 | GX32: 0.05238159859 | GY32: 0.04882177681 | GZ32: 0.02978235968 | HA32: 0.02484634497 | HB32: 0.02137841029 | HC32: 0.01919678225 | HD32: 0.01928004881 | HE32: 0.01935403572 | HF32: 0.01854203708 | HG32: 0.02038828647 | HH32: 0.02281442964 | HI32: 0.02510378827 | HJ32: 0.02808578448 | HK32: 0.02821811485 | HL32: 0.02655972651 | HM32: 0.02436179863 | HN32: 0.02107303652 | HO32: 0.01909627197 | HP32: 0.0184351168 | HQ32: 0.01846134848 | HR32: 0.01893506163 | HS32: 0.020144529 | HT32: 0.02284665527 | HU32: 0.02657342657 | HV32: 0.03107569721 | HW32: 0.03161033797 | HX32: 0.03265171504 | HY32: 0.03195808775 | HZ32: 0.02932816537 | IA32: 0.02696912413 | IB32: 0.02581238504 | IC32: 0.0272556391 | ID32: 0.02791151594 | IE32: 0.03182414698 | IF32: 0.03600525624 | IG32: 0.03916175508 | IH32: 0.04447528417 | II32: 0.04639957759 | IJ32: 0.05104302477 | IK32: 0.1513849984 | IL32: 0.1075365986 | IM32: 0.06564629917 | IN32: 0.05533692559 | IO32: 0.06125266725 | IP32: 0.06572406224 | IQ32: 0.07665664619 | IR32: 0.09081999347 | IS32: 0.09372357724 | IT32: 0.1068497131 | IU32: 0.09901989046 | IV32: 0.09023954237 | IW32: 0.08358960022 | IX32: 0.06755380542 | IY32: 0.04402640264 | IZ32: 0.03715071296 | JA32: 0.03481354425 | JB32: 0.03359989681 | JC32: 0.03628623556 | JD32: 0.04053777383 | JE32: 0.04434333831 | JF32: 0.04853003235 | JG32: 0.04493758669 | JH32: 0.0409180955 | JI32: 0.03454702789 | JJ32: 0.02940041173 | JK32: 0.0221504968 | JL32: 0.02256214149 | JM32: 0.02264569601 | JN32: 0.02295533548 | JO32: 0.02578645387 | JP32: 0.02912686668 | JQ32: 0.03095487933 | JR32: 0.03252988438 | JS32: 0.03100925746 | JT32: 0.02913797501 | JU32: 0.02536997886 | JV32: 0.02096385542 | JW32: 0.01773028476 | JX32: 0.01826456674 | JY32: 0.01860751694 | JZ32: 0.01893987543 | KA32: 0.02197450189 | KB32: 0.02625328968 | KC32: 0.0286591607 | KD32: 0.03188028627 | KE32: 0.03184672562 | KF32: 0.02952122627 | KG32: 0.02634201021 | KH32: 0.02258393898 | KI32: 0.01849954463 | KJ32: 0.01839669974 | KK32: 0.01901591243 | KL32: 0.02189998807 | KM32: 0.0241580388 | KN32: 0.0265037483 | KO32: 0.02910021423 | KP32: 0.03278982261 | KQ32: 0.03205704356 | KR32: 0.02919838249 | KS32: 0.02691573168 | KT32: 0.02261119082 | KU32: 0.01914972254 | KV32: 0.01838764668 | KW32: 0.01854213524 | KX32: 0.02217301173 | KY32: 0.0275769507 | KZ32: 0.03225661058 | LA32: 0.03634839374 | LB32: 0.04058441558 | LC32: 0.03759962347 | LD32: 0.03528823934 | LE32: 0.0311878311 | LF32: 0.02726226873 | LG32: 0.02381897578
A33: Norðurland eystra karlar | C33: 0.01725440806 | D33: 0.01662468514 | E33: 0.01381863048 | F33: 0.009098527475 | G33: 0.006277609858 | H33: 0.004971751412 | I33: 0.005580097652 | J33: 0.004978662873 | K33: 0.005803409503 | L33: 0.00974706971 | M33: 0.01801357187 | N33: 0.02358607063 | O33: 0.02469745616 | P33: 0.0218572487 | Q33: 0.02213620419 | R33: 0.0161971831 | S33: 0.01014476234 | T33: 0.00808774651 | U33: 0.007979026559 | V33: 0.009646675965 | W33: 0.01315945465 | X33: 0.01705576388 | Y33: 0.02636990444 | Z33: 0.03702672606 | AA33: 0.03551273228 | AB33: 0.03003003003 | AC33: 0.0274605764 | AD33: 0.02157991106 | AE33: 0.01643163703 | AF33: 0.01394029114 | AG33: 0.01316449348 | AH33: 0.01328597737 | AI33: 0.01636073424 | AJ33: 0.0242241718 | AK33: 0.02845113549 | AL33: 0.04115453667 | AM33: 0.04328826983 | AN33: 0.03819068256 | AO33: 0.03533378287 | AP33: 0.02699195432 | AQ33: 0.0197080292 | AR33: 0.01456548348 | AS33: 0.01330845771 | AT33: 0.01552916612 | AU33: 0.01755080496 | AV33: 0.02169394648 | AW33: 0.02430379747 | AX33: 0.02949689869 | AY33: 0.02780427968 | AZ33: 0.02392538524 | BA33: 0.02369094091 | BB33: 0.02409014376 | BC33: 0.01809130646 | BD33: 0.01600293183 | BE33: 0.017380509 | BF33: 0.01966914159 | BG33: 0.02186512118 | BH33: 0.02437443278 | BI33: 0.02969046115 | BJ33: 0.03321376378 | BK33: 0.02657101103 | BL33: 0.02324963465 | BM33: 0.019699457 | BN33: 0.01730016416 | BO33: 0.01565854275 | BP33: 0.01324913323 | BQ33: 0.01324913323 | BR33: 0.01225854383 | BS33: 0.0193877551 | BT33: 0.01951530612 | BU33: 0.01926020408 | BV33: 0.02000784621 | BW33: 0.01896168432 | BX33: 0.01778475219 | BY33: 0.01603480423 | BZ33: 0.01528899938 | CA33: 0.01280298322 | CB33: 0.01474890297 | CC33: 0.01243295953 | CD33: 0.01109215017 | CE33: 0.01262657832 | CF33: 0.01450181273 | CG33: 0.0162520315 | CH33: 0.01680981595 | CI33: 0.01705521472 | CJ33: 0.01570552147 | CK33: 0.01504373178 | CL33: 0.01259475219 | CM33: 0.009077329656 | CN33: 0.00923943662 | CO33: 0.009126760563 | CP33: 0.009352112676 | CQ33: 0.009980271556 | CR33: 0.01241731461 | CS33: 0.01485435767 | CT33: 0.01763012713 | CU33: 0.01619093308 | CV33: 0.01643079875 | CW33: 0.014249886 | CX33: 0.01413588691 | CY33: 0.01185590515 | CZ33: 0.011848871 | DA33: 0.01274312542 | DB33: 0.01430807065 | DC33: 0.01991940127 | DD33: 0.03500287853 | DE33: 0.05653425446 | DF33: 0.08179651236 | DG33: 0.1021135414 | DH33: 0.100761858 | DI33: 0.09289751782 | DJ33: 0.07878426698 | DK33: 0.06291542517 | DL33: 0.0577412636 | DM33: 0.05554269845 | DN33: 0.0505363528 | DO33: 0.05768772348 | DP33: 0.06710369487 | DQ33: 0.07699642431 | DR33: 0.08949127367 | DS33: 0.08514086263 | DT33: 0.08401894789 | DU33: 0.07778608826 | DV33: 0.06716688854 | DW33: 0.05440018799 | DX33: 0.05097992064 | DY33: 0.04880429478 | DZ33: 0.04693498452 | EA33: 0.05257214555 | EB33: 0.06311537491 | EC33: 0.07157283514 | ED33: 0.07675438596 | EE33: 0.07600308642 | EF33: 0.0713372539 | EG33: 0.06137913615 | EH33: 0.05145167218 | EI33: 0.0406755471 | EJ33: 0.0380539499 | EK33: 0.03696353262 | EL33: 0.03580104846 | EM33: 0.03836349732 | EN33: 0.04384399694 | EO33: 0.05247776366 | EP33: 0.05807573933 | EQ33: 0.05469583778 | ER33: 0.04919771914 | ES33: 0.04125811792 | ET33: 0.03398533007 | EU33: 0.02280474903 | EV33: 0.02259684362 | EW33: 0.02151206168 | EX33: 0.026942192 | EY33: 0.02993932999 | EZ33: 0.03798470061 | FA33: 0.04299802761 | FB33: 0.0477664155 | FC33: 0.04525312206 | FD33: 0.04302512026 | FE33: 0.03653745416 | FF33: 0.0298415057 | FG33: 0.02150797487 | FH33: 0.02020820576 | FI33: 0.0206343141 | FJ33: 0.02202467825 | FK33: 0.02654041078 | FL33: 0.0325420112 | FM33: 0.04055311794 | FN33: 0.04270847412 | FO33: 0.04005934718 | FP33: 0.04004299919 | FQ33: 0.03595649392 | FR33: 0.02819116757 | FS33: 0.01983705278 | FT33: 0.01769386059 | FU33: 0.01716685192 | FV33: 0.01904026759 | FW33: 0.0227302762 | FX33: 0.02788423417 | FY33: 0.03215179866 | FZ33: 0.03586553732 | GA33: 0.03351807865 | GB33: 0.03187303253 | GC33: 0.03039552334 | GD33: 0.02356902357 | GE33: 0.01619528224 | GF33: 0.01464386129 | GG33: 0.0152027027 | GH33: 0.01604677199 | GI33: 0.01929302085 | GJ33: 0.0217757615 | GK33: 0.02600258732 | GL33: 0.03018134715 | GM33: 0.02763786646 | GN33: 0.02580231065 | GO33: 0.02222783531 | GP33: 0.01827083831 | GQ33: 0.01270248223 | GR33: 0.01114238799 | GS33: 0.01075268817 | GT33: 0.01195665712 | GU33: 0.01392934026 | GV33: 0.01711243504 | GW33: 0.02884250474 | GX33: 0.04825538233 | GY33: 0.04655470487 | GZ33: 0.02801671172 | HA33: 0.02299123015 | HB33: 0.01914845686 | HC33: 0.01700905677 | HD33: 0.01626286094 | HE33: 0.01624915369 | HF33: 0.0154289004 | HG33: 0.01746106654 | HH33: 0.02090468879 | HI33: 0.02404526167 | HJ33: 0.0268061065 | HK33: 0.02653714015 | HL33: 0.02449994082 | HM33: 0.0219329111 | HN33: 0.01799660441 | HO33: 0.01552930884 | HP33: 0.0142298501 | HQ33: 0.01517706577 | HR33: 0.01677735058 | HS33: 0.01845538968 | HT33: 0.02327735958 | HU33: 0.0286045165 | HV33: 0.03271889401 | HW33: 0.0332187858 | HX33: 0.03443557583 | HY33: 0.03273137698 | HZ33: 0.02947719689 | IA33: 0.02613390929 | IB33: 0.02407991588 | IC33: 0.02543103448 | ID33: 0.02514029181 | IE33: 0.02870056497 | IF33: 0.03325791855 | IG33: 0.03664036077 | IH33: 0.04258711 | II33: 0.04475062628 | IJ33: 0.04947273951 | IK33: 0.1491944146 | IL33: 0.1066276396 | IM33: 0.0625584537 | IN33: 0.05319371728 | IO33: 0.0601948123 | IP33: 0.06533513879 | IQ33: 0.07563121216 | IR33: 0.08962371722 | IS33: 0.09462219197 | IT33: 0.1113820095 | IU33: 0.1016260163 | IV33: 0.09068041756 | IW33: 0.08306669948 | IX33: 0.06401425178 | IY33: 0.03878370625 | IZ33: 0.03328460587 | JA33: 0.03137298999 | JB33: 0.03150684932 | JC33: 0.03587604291 | JD33: 0.04104971711 | JE33: 0.04479578393 | JF33: 0.04869006426 | JG33: 0.04506065858 | JH33: 0.04113924051 | JI33: 0.03359356518 | JJ33: 0.02674101047 | JK33: 0.02014486193 | JL33: 0.0197322871 | JM33: 0.02074144713 | JN33: 0.02076083043 | JO33: 0.02398836928 | JP33: 0.02789383141 | JQ33: 0.03014768705 | JR33: 0.03147471413 | JS33: 0.03068486758 | JT33: 0.02909507446 | JU33: 0.02470509682 | JV33: 0.01957637997 | JW33: 0.01530286929 | JX33: 0.01630551384 | JY33: 0.01830689005 | JZ33: 0.0194017785 | KA33: 0.02415855518 | KB33: 0.02817399505 | KC33: 0.03235294118 | KD33: 0.03505882353 | KE33: 0.03536571363 | KF33: 0.03273577553 | KG33: 0.02901588703 | KH33: 0.02482002794 | KI33: 0.02008680731 | KJ33: 0.01905884665 | KK33: 0.02037334404 | KL33: 0.02398286938 | KM33: 0.02553550702 | KN33: 0.02804227268 | KO33: 0.03099801026 | KP33: 0.03548991513 | KQ33: 0.03366707008 | KR33: 0.03128065395 | KS33: 0.02926986169 | KT33: 0.02450879007 | KU33: 0.02043920387 | KV33: 0.01866079833 | KW33: 0.01975880661 | KX33: 0.02465999652 | KY33: 0.03074858182 | KZ33: 0.03610485687 | LA33: 0.04062745911 | LB33: 0.04624003829 | LC33: 0.04209692029 | LD33: 0.03906689151 | LE33: 0.03369203048 | LF33: 0.02995682224 | LG33: 0.02617608308
A34: Norðurland eystra konur | C34: 0.03520352035 | D34: 0.03410341034 | E34: 0.02945402299 | F34: 0.02753572673 | G34: 0.02250803859 | H34: 0.01990458957 | I34: 0.0192926045 | J34: 0.01587575496 | K34: 0.01513551566 | L34: 0.01760057471 | M34: 0.02460488506 | N34: 0.03019953263 | O34: 0.03037929175 | P34: 0.03091856912 | Q34: 0.03468920585 | R34: 0.03399965829 | S34: 0.02306288369 | T34: 0.02096774194 | U34: 0.01858304297 | V34: 0.01894772458 | W34: 0.02243313201 | X34: 0.02711745026 | Y34: 0.03257615777 | Z34: 0.03900573614 | AA34: 0.03792907263 | AB34: 0.03362765358 | AC34: 0.03457943925 | AD34: 0.03204897371 | AE34: 0.02666890305 | AF34: 0.02632472826 | AG34: 0.02300242131 | AH34: 0.02097150027 | AI34: 0.02252906977 | AJ34: 0.02709883103 | AK34: 0.02910602911 | AL34: 0.0375782881 | AM34: 0.04084321476 | AN34: 0.04214059295 | AO34: 0.04359117047 | AP34: 0.04305878149 | AQ34: 0.03412685201 | AR34: 0.03084442946 | AS34: 0.03175420529 | AT34: 0.02953211172 | AU34: 0.03155996393 | AV34: 0.03340365682 | AW34: 0.03680137575 | AX34: 0.04431818182 | AY34: 0.04639368896 | AZ34: 0.04613953488 | BA34: 0.04590892262 | BB34: 0.04706721341 | BC34: 0.0438538206 | BD34: 0.04624957955 | BE34: 0.04299417609 | BF34: 0.03923309072 | BG34: 0.04066942595 | BH34: 0.03964216804 | BI34: 0.04581331503 | BJ34: 0.0500363901 | BK34: 0.04730713246 | BL34: 0.04439592431 | BM34: 0.0411622276 | BN34: 0.04098927707 | BO34: 0.04254583189 | BP34: 0.04205528235 | BQ34: 0.04002034933 | BR34: 0.03103272851 | BS34: 0.03371179039 | BT34: 0.03615720524 | BU34: 0.03790393013 | BV34: 0.04294699012 | BW34: 0.03971248877 | BX34: 0.03935309973 | BY34: 0.0365499573 | BZ34: 0.03808710504 | CA34: 0.03313407344 | CB34: 0.03416513147 | CC34: 0.03232289399 | CD34: 0.02763356222 | CE34: 0.02892561983 | CF34: 0.02978650138 | CG34: 0.03099173554 | CH34: 0.03012765957 | CI34: 0.03080851064 | CJ34: 0.02842553191 | CK34: 0.02637113736 | CL34: 0.02782721243 | CM34: 0.02534268409 | CN34: 0.02391372304 | CO34: 0.02219443576 | CP34: 0.01813066583 | CQ34: 0.02157115261 | CR34: 0.02076625885 | CS34: 0.02269800386 | CT34: 0.0251593425 | CU34: 0.02599798725 | CV34: 0.0244884267 | CW34: 0.02295918367 | CX34: 0.02551020408 | CY34: 0.02455357143 | CZ34: 0.02485928705 | DA34: 0.02251407129 | DB34: 0.02095059412 | DC34: 0.02576489533 | DD34: 0.03623188406 | DE34: 0.04492753623 | DF34: 0.05756445598 | DG34: 0.06876290297 | DH34: 0.07241543592 | DI34: 0.07003334921 | DJ34: 0.0713185459 | DK34: 0.06664691943 | DL34: 0.06609839988 | DM34: 0.06475250486 | DN34: 0.06161429452 | DO34: 0.06423290203 | DP34: 0.06839186691 | DQ34: 0.06916204559 | DR34: 0.07742139359 | DS34: 0.07097390197 | DT34: 0.07224697645 | DU34: 0.07049649905 | DV34: 0.06478354314 | DW34: 0.06110283159 | DX34: 0.06161354278 | DY34: 0.06050758279 | DZ34: 0.05058121269 | EA34: 0.0526734564 | EB34: 0.05684547638 | EC34: 0.05556445156 | ED34: 0.05900175411 | EE34: 0.05818759936 | EF34: 0.05926042984 | EG34: 0.05360134003 | EH34: 0.05214180207 | EI34: 0.04846572985 | EJ34: 0.05099682173 | EK34: 0.0505952381 | EL34: 0.05001534213 | EM34: 0.05231356336 | EN34: 0.05231356336 | EO34: 0.05516804058 | EP34: 0.05435129104 | EQ34: 0.0562619199 | ER34: 0.05466034755 | ES34: 0.05254441433 | ET34: 0.0469721058 | EU34: 0.03710910354 | EV34: 0.04186910546 | EW34: 0.03908455937 | EX34: 0.03984251969 | EY34: 0.04494382022 | EZ34: 0.04808327826 | FA34: 0.05255354201 | FB34: 0.05297262271 | FC34: 0.05109135004 | FD34: 0.04954954955 | FE34: 0.0444172155 | FF34: 0.03852280956 | FG34: 0.03151498021 | FH34: 0.0326194866 | FI34: 0.03362831858 | FJ34: 0.03241665386 | FK34: 0.03488740882 | FL34: 0.03916904535 | FM34: 0.04063241107 | FN34: 0.04119729643 | FO34: 0.04319897222 | FP34: 0.04318618042 | FQ34: 0.04271631982 | FR34: 0.0397987868 | FS34: 0.03305904432 | FT34: 0.03024390244 | FU34: 0.03000434846 | FV34: 0.03019323671 | FW34: 0.03283490057 | FX34: 0.03668876214 | FY34: 0.0381128016 | FZ34: 0.04147682639 | GA34: 0.04166014096 | GB34: 0.04265919352 | GC34: 0.04141566265 | GD34: 0.03389347764 | GE34: 0.02737632018 | GF34: 0.02734591893 | GG34: 0.02873891907 | GH34: 0.02682783019 | GI34: 0.02881226054 | GJ34: 0.03313391624 | GK34: 0.03230251072 | GL34: 0.03647741148 | GM34: 0.0365185636 | GN34: 0.03478523896 | GO34: 0.03002915452 | GP34: 0.02701585114 | GQ34: 0.02152273339 | GR34: 0.02213613724 | GS34: 0.02237104588 | GT34: 0.02277067724 | GU34: 0.02313546423 | GV34: 0.02559804967 | GW34: 0.03892352136 | GX34: 0.05739182692 | GY34: 0.05157421289 | GZ34: 0.03192600328 | HA34: 0.02712952159 | HB34: 0.02412311105 | HC34: 0.02188987084 | HD34: 0.02299006938 | HE34: 0.02317191619 | HF34: 0.02237009769 | HG34: 0.02397111913 | HH34: 0.02515177797 | HI34: 0.02639930756 | HJ34: 0.0296647879 | HK34: 0.03031647442 | HL34: 0.02913339249 | HM34: 0.02735958309 | HN34: 0.0248707559 | HO34: 0.0235648719 | HP34: 0.02363367799 | HQ34: 0.02246267635 | HR34: 0.0215234102 | HS34: 0.0221598878 | HT34: 0.02232765839 | HU34: 0.02410147992 | HV34: 0.02884012539 | HW34: 0.02940251572 | HX34: 0.03020344288 | HY34: 0.03088923557 | HZ34: 0.02912172573 | IA34: 0.02813918306 | IB34: 0.02823529412 | IC34: 0.02979041916 | ID34: 0.03173374613 | IE34: 0.03615023474 | IF34: 0.03981191223 | IG34: 0.04265625 | IH34: 0.04708661417 | II34: 0.04867326111 | IJ34: 0.05322128852 | IK34: 0.1544041451 | IL34: 0.1087729276 | IM34: 0.06982964944 | IN34: 0.0582747237 | IO34: 0.06267470943 | IP34: 0.06624415271 | IQ34: 0.07802717972 | IR34: 0.09242540168 | IS34: 0.0925163847 | IT34: 0.1009373954 | IU34: 0.09560293138 | IV34: 0.08965860126 | IW34: 0.08427693303 | IX34: 0.07227769853 | IY34: 0.05112665113 | IZ34: 0.04224725763 | JA34: 0.03928154206 | JB34: 0.03631781797 | JC34: 0.03682321735 | JD34: 0.03986763315 | JE34: 0.04375098008 | JF34: 0.04831864185 | JG34: 0.04478082624 | JH34: 0.04063521719 | JI34: 0.03577409042 | JJ34: 0.03285968028 | JK34: 0.02469490309 | JL34: 0.02605353075 | JM34: 0.02494952408 | JN34: 0.02560023141 | JO34: 0.02793457809 | JP34: 0.03061831153 | JQ34: 0.03189227498 | JR34: 0.03384119543 | JS34: 0.03141361257 | JT34: 0.02919183204 | JU34: 0.02621195039 | JV34: 0.02275234418 | JW34: 0.02084184716 | JX34: 0.02074013827 | JY34: 0.01898295691 | JZ34: 0.0183745583 | KA34: 0.01934481785 | KB34: 0.02395715896 | KC34: 0.02425687044 | KD34: 0.02794759825 | KE34: 0.02740321879 | KF34: 0.0253201397 | KG34: 0.0228767515 | KH34: 0.01974938709 | KI34: 0.01644693904 | KJ34: 0.01752803196 | KK34: 0.01727249291 | KL34: 0.01927743327 | KM34: 0.02237685905 | KN34: 0.02451245937 | KO34: 0.02660234321 | KP34: 0.0295958279 | KQ34: 0.03013157895 | KR34: 0.02669807617 | KS34: 0.02396015614 | KT34: 0.02024500322 | KU34: 0.01756939883 | KV34: 0.01804334465 | KW34: 0.01701137388 | KX34: 0.01899601687 | KY34: 0.0235315872 | KZ34: 0.02734855736 | LA34: 0.03095233851 | LB34: 0.0336063259 | LC34: 0.03200760242 | LD34: 0.03056492411 | LE34: 0.02806285879 | LF34: 0.02390568505 | LG34: 0.0208939434
A35: Austurland alls | C35: 0.01737731295 | D35: 0.01705551086 | E35: 0.01780649228 | F35: 0.01192842942 | G35: 0.009504009504 | H35: 0.007072748268 | I35: 0.007870507871 | J35: 0.006056935191 | K35: 0.006023166023 | L35: 0.01055783171 | M35: 0.01985502679 | N35: 0.02429405269 | O35: 0.02050796656 | P35: 0.02035021297 | Q35: 0.0347705146 | R35: 0.03673163418 | S35: 0.01033779849 | T35: 0.007642230399 | U35: 0.009609784508 | V35: 0.008758907363 | W35: 0.008782556027 | X35: 0.0143718127 | Y35: 0.02178952248 | Z35: 0.03109452736 | AA35: 0.02726473175 | AB35: 0.02737099024 | AC35: 0.02430133657 | AD35: 0.02138322753 | AE35: 0.01859375 | AF35: 0.01639085894 | AG35: 0.0181118769 | AH35: 0.01656903766 | AI35: 0.01829268293 | AJ35: 0.02773625644 | AK35: 0.03128545956 | AL35: 0.03918076581 | AM35: 0.03913963329 | AN35: 0.038273331 | AO35: 0.03670842032 | AP35: 0.02713113381 | AQ35: 0.01879404855 | AR35: 0.01295214026 | AS35: 0.01413654618 | AT35: 0.0124119423 | AU35: 0.01612903226 | AV35: 0.01981351981 | AW35: 0.02404549147 | AX35: 0.02687038988 | AY35: 0.02155771905 | AZ35: 0.01913133402 | BA35: 0.0211050103 | BB35: 0.01783649876 | BC35: 0.01312944084 | BD35: 0.01230721296 | BE35: 0.01235937252 | BF35: 0.01191264064 | BG35: 0.01306095111 | BH35: 0.01247947455 | BI35: 0.01554238103 | BJ35: 0.01617057813 | BK35: 0.01545506583 | BL35: 0.01488265598 | BM35: 0.01319548361 | BN35: 0.01047476534 | BO35: 0.007481975241 | BP35: 0.006402561024 | BQ35: 0.005869014272 | BR35: 0.005869014272 | BS35: 0.006457818082 | BT35: 0.006457818082 | BU35: 0.008793624622 | BV35: 0.008712121212 | BW35: 0.008207070707 | BX35: 0.007449494949 | BY35: 0.007680307212 | BZ35: 0.005640225609 | CA35: 0.003000120005 | CB35: 0.002588844434 | CC35: 0.002824193928 | CD35: 0.002824193928 | CE35: 0.00350877193 | CF35: 0.004912280702 | CG35: 0.005614035088 | CH35: 0.005897854185 | CI35: 0.005144936629 | CJ35: 0.004768477852 | CK35: 0.004413167939 | CL35: 0.003578244275 | CM35: 0.002115407216 | CN35: 0.002246349682 | CO35: 0.002495944091 | CP35: 0.002870335704 | CQ35: 0.004263015114 | CR35: 0.0054256556 | CS35: 0.0054256556 | CT35: 0.008653974171 | CU35: 0.01038476901 | CV35: 0.008787112235 | CW35: 0.007718587878 | CX35: 0.005820574465 | CY35: 0.003922561053 | CZ35: 0.003350291599 | DA35: 0.003598461348 | DB35: 0.003722546222 | DC35: 0.005751533742 | DD35: 0.0157208589 | DE35: 0.02402862986 | DF35: 0.04296636086 | DG35: 0.0510708402 | DH35: 0.05496480455 | DI35: 0.05241875094 | DJ35: 0.04111579253 | DK35: 0.02542254505 | DL35: 0.01974890676 | DM35: 0.02017209762 | DN35: 0.02310039227 | DO35: 0.02847595525 | DP35: 0.03617608601 | DQ35: 0.04097050705 | DR35: 0.05167640726 | DS35: 0.05600750939 | DT35: 0.05804130163 | DU35: 0.05209637046 | DV35: 0.04256285974 | DW35: 0.03058373769 | DX35: 0.02994282275 | DY35: 0.03130248893 | DZ35: 0.03363298202 | EA35: 0.03768252473 | EB35: 0.04849921011 | EC35: 0.05592417062 | ED35: 0.05440331844 | EE35: 0.05870187719 | EF35: 0.055028463 | EG35: 0.05008502087 | EH35: 0.04168541011 | EI35: 0.03130460105 | EJ35: 0.02868068834 | EK35: 0.02878351765 | EL35: 0.03092300484 | EM35: 0.03513214116 | EN35: 0.04146225669 | EO35: 0.04354686021 | EP35: 0.04365262996 | EQ35: 0.04260227622 | ER35: 0.04127809203 | ES35: 0.03848405034 | ET35: 0.02922169149 | EU35: 0.02417938674 | EV35: 0.01890959282 | EW35: 0.01837496411 | EX35: 0.02195971528 | EY35: 0.02732494954 | EZ35: 0.02825648191 | FA35: 0.03019043196 | FB35: 0.03704275351 | FC35: 0.03419066687 | FD35: 0.03280196199 | FE35: 0.03056379822 | FF35: 0.0262345679 | FG35: 0.02026009582 | FH35: 0.01920420006 | FI35: 0.01810344828 | FJ35: 0.01856009579 | FK35: 0.02313194339 | FL35: 0.02526251712 | FM35: 0.02563713592 | FN35: 0.03054958551 | FO35: 0.03033552934 | FP35: 0.02791878173 | FQ35: 0.02505729565 | FR35: 0.02137801531 | FS35: 0.01508316888 | FT35: 0.01393339836 | FU35: 0.01405593392 | FV35: 0.01675471698 | FW35: 0.01933188989 | FX35: 0.02567274977 | FY35: 0.02636447734 | FZ35: 0.02713241267 | GA35: 0.02753928398 | GB35: 0.0260827564 | GC35: 0.02277335829 | GD35: 0.01887627194 | GE35: 0.01453446539 | GF35: 0.01480097715 | GG35: 0.01494967436 | GH35: 0.01647848642 | GI35: 0.01905064296 | GJ35: 0.02018436109 | GK35: 0.02315622522 | GL35: 0.0256121134 | GM35: 0.02409251526 | GN35: 0.02123243934 | GO35: 0.01930562043 | GP35: 0.01619314 | GQ35: 0.01278368285 | GR35: 0.01167371954 | GS35: 0.01127310988 | GT35: 0.01162070034 | GU35: 0.01349849135 | GV35: 0.01478537361 | GW35: 0.01586797842 | GX35: 0.02953318514 | GY35: 0.02757090794 | GZ35: 0.01907915484 | HA35: 0.01774514303 | HB35: 0.01366875091 | HC35: 0.01126158232 | HD35: 0.01013417071 | HE35: 0.01033779849 | HF35: 0.01158645276 | HG35: 0.0124563269 | HH35: 0.01611922141 | HI35: 0.0180604037 | HJ35: 0.02072213501 | HK35: 0.01974809516 | HL35: 0.01895881896 | HM35: 0.01731270109 | HN35: 0.01404494382 | HO35: 0.01221966647 | HP35: 0.01263486655 | HQ35: 0.01299459775 | HR35: 0.01157198677 | HS35: 0.0127060959 | HT35: 0.01780903921 | HU35: 0.02044497895 | HV35: 0.02584615385 | HW35: 0.02806748466 | HX35: 0.02970903522 | HY35: 0.02655538695 | HZ35: 0.02107623318 | IA35: 0.01763848397 | IB35: 0.01590909091 | IC35: 0.01351744186 | ID35: 0.01417797888 | IE35: 0.01534954407 | IF35: 0.0202435312 | IG35: 0.02397572079 | IH35: 0.02813260341 | II35: 0.02794653706 | IJ35: 0.03284835758 | IK35: 0.1303538175 | IL35: 0.09054353855 | IM35: 0.06069364162 | IN35: 0.03984396768 | IO35: 0.04146799595 | IP35: 0.05262375502 | IQ35: 0.06996689738 | IR35: 0.0792600391 | IS35: 0.0807007037 | IT35: 0.08981740418 | IU35: 0.09041945487 | IV35: 0.08599190283 | IW35: 0.05324165029 | IX35: 0.04312154169 | IY35: 0.02837537092 | IZ35: 0.02031278087 | JA35: 0.01875669882 | JB35: 0.01867972434 | JC35: 0.01994680851 | JD35: 0.0207253886 | JE35: 0.02539621921 | JF35: 0.02867879747 | JG35: 0.02713253953 | JH35: 0.02652825836 | JI35: 0.02491103203 | JJ35: 0.02099167571 | JK35: 0.01674385465 | JL35: 0.01597558787 | JM35: 0.01526015812 | JN35: 0.01459988911 | JO35: 0.01895910781 | JP35: 0.02084912813 | JQ35: 0.02200443787 | JR35: 0.02510536925 | JS35: 0.02088251317 | JT35: 0.01752503577 | JU35: 0.01551603905 | JV35: 0.0145172181 | JW35: 0.01104417671 | JX35: 0.009403862301 | JY35: 0.01105927078 | JZ35: 0.012662743 | KA35: 0.01654676259 | KB35: 0.02253064167 | KC35: 0.02317226513 | KD35: 0.02622316086 | KE35: 0.02789811125 | KF35: 0.02710535288 | KG35: 0.02373337822 | KH35: 0.0191682911 | KI35: 0.01307692308 | KJ35: 0.01205363869 | KK35: 0.01373207202 | KL35: 0.01549386701 | KM35: 0.02010616053 | KN35: 0.02122227541 | KO35: 0.02283325293 | KP35: 0.02747989276 | KQ35: 0.02567567568 | KR35: 0.02583892617 | KS35: 0.02301360658 | KT35: 0.01835887612 | KU35: 0.01427551749 | KV35: 0.01167088869 | KW35: 0.01122078439 | KX35: 0.01262986498 | KY35: 0.01861376617 | KZ35: 0.02609135345 | LA35: 0.03031655029 | LB35: 0.03345683528 | LC35: 0.03006263048 | LD35: 0.02724444584 | LE35: 0.02477148365 | LF35: 0.02056330713 | LG35: 0.0155683483
A36: Austurland karlar | C36: 0.0156873172 | D36: 0.01462377027 | E36: 0.01484375 | F36: 0.009097801365 | G36: 0.005889570552 | H36: 0.004055343511 | I36: 0.005398773006 | J36: 0.003753753754 | K36: 0.003062787136 | L36: 0.006770833333 | M36: 0.01432291667 | N36: 0.01511991658 | O36: 0.01511991658 | P36: 0.0153806048 | Q36: 0.02196118488 | R36: 0.02205153617 | S36: 0.006737247353 | T36: 0.003274087933 | U36: 0.004331087584 | V36: 0.004661432777 | W36: 0.004254254254 | X36: 0.009193054137 | Y36: 0.01608784474 | Z36: 0.02459988145 | AA36: 0.02168815944 | AB36: 0.02324905551 | AC36: 0.02083936324 | AD36: 0.01837928154 | AE36: 0.0138381201 | AF36: 0.01182033097 | AG36: 0.01174586225 | AH36: 0.01092436975 | AI36: 0.01104502974 | AJ36: 0.02174519097 | AK36: 0.02417821244 | AL36: 0.03223898255 | AM36: 0.03246563323 | AN36: 0.0310324826 | AO36: 0.03004043905 | AP36: 0.01917732073 | AQ36: 0.01276706618 | AR36: 0.006815203145 | AS36: 0.007458710709 | AT36: 0.005030743432 | AU36: 0.009609949124 | AV36: 0.01474680022 | AW36: 0.01897533207 | AX36: 0.02215097639 | AY36: 0.01844380403 | AZ36: 0.01515151515 | BA36: 0.01793339026 | BB36: 0.01424267324 | BC36: 0.009758602979 | BD36: 0.006458279514 | BE36: 0.006563402468 | BF36: 0.007162534435 | BG36: 0.007799442897 | BH36: 0.008225939128 | BI36: 0.009350788138 | BJ36: 0.01028392578 | BK36: 0.009613234965 | BL36: 0.008942544154 | BM36: 0.008076514346 | BN36: 0.005526036132 | BO36: 0.00340063762 | BP36: 0.002917274432 | BQ36: 0.002708897687 | BR36: 0.002292144197 | BS36: 0.003004936682 | BT36: 0.003219575016 | BU36: 0.006653788367 | BV36: 0.00639736794 | BW36: 0.005117894352 | BX36: 0.004203984646 | BY36: 0.004343293954 | BZ36: 0.003127171647 | CA36: 0.0008686587908 | CB36: 0.001192504259 | CC36: 0.00136286201 | CD36: 0.00136286201 | CE36: 0.001856853477 | CF36: 0.002532072924 | CG36: 0.003038487508 | CH36: 0.002746246796 | CI36: 0.002563163676 | CJ36: 0.002563163676 | CK36: 0.002958579882 | CL36: 0.002262443439 | CM36: 0.001200274348 | CN36: 0.001325004732 | CO36: 0.001892863903 | CP36: 0.001325004732 | CQ36: 0.002750491159 | CR36: 0.00373280943 | CS36: 0.00373280943 | CT36: 0.005847953216 | CU36: 0.006452913894 | CV36: 0.005242992539 | CW36: 0.004982752012 | CX36: 0.003832886163 | CY36: 0.002299731698 | CZ36: 0.002255215185 | DA36: 0.002443149784 | DB36: 0.001691411389 | DC36: 0.003484320557 | DD36: 0.01548586914 | DE36: 0.02380952381 | DF36: 0.04516620147 | DG36: 0.05392644135 | DH36: 0.05889662028 | DI36: 0.05193836978 | DJ36: 0.03929604629 | DK36: 0.02109411219 | DL36: 0.01287453184 | DM36: 0.01334269663 | DN36: 0.01567020251 | DO36: 0.0200096432 | DP36: 0.02796528447 | DQ36: 0.03447444552 | DR36: 0.0461297889 | DS36: 0.05063626723 | DT36: 0.05169671262 | DU36: 0.04400848356 | DV36: 0.03425186711 | DW36: 0.0225 | DX36: 0.02097723203 | DY36: 0.02154724818 | DZ36: 0.02371541502 | EA36: 0.02856380139 | EB36: 0.03894708568 | EC36: 0.04807950577 | ED36: 0.04847986853 | EE36: 0.05297651557 | EF36: 0.04940282302 | EG36: 0.04424778761 | EH36: 0.03511966701 | EI36: 0.02525890376 | EJ36: 0.02377908463 | EK36: 0.02291282592 | EL36: 0.02335052946 | EM36: 0.0251691475 | EN36: 0.02814614344 | EO36: 0.03291958985 | EP36: 0.03427041499 | EQ36: 0.03283502403 | ER36: 0.0302467498 | ES36: 0.02828025478 | ET36: 0.02030332681 | EU36: 0.01505174036 | EV36: 0.01244019139 | EW36: 0.0124409057 | EX36: 0.01596023025 | EY36: 0.01820580475 | EZ36: 0.01767810026 | FA36: 0.01946856091 | FB36: 0.02571658184 | FC36: 0.02325581395 | FD36: 0.02208034052 | FE36: 0.02059973924 | FF36: 0.01775147929 | FG36: 0.0137118114 | FH36: 0.01170446233 | FI36: 0.01115618661 | FJ36: 0.0118858954 | FK36: 0.01593202337 | FL36: 0.01779075943 | FM36: 0.01879301218 | FN36: 0.02280654682 | FO36: 0.02329317269 | FP36: 0.02159468439 | FQ36: 0.01871869233 | FR36: 0.01595214357 | FS36: 0.01094624179 | FT36: 0.009542451676 | FU36: 0.009669211196 | FV36: 0.01219188974 | FW36: 0.01497821351 | FX36: 0.02287581699 | FY36: 0.02361563518 | FZ36: 0.02239229025 | GA36: 0.02119841718 | GB36: 0.02106741573 | GC36: 0.0187959684 | GD36: 0.01364924028 | GE36: 0.009801457653 | GF36: 0.009784244857 | GG36: 0.01033591731 | GH36: 0.01225359616 | GI36: 0.01358846367 | GJ36: 0.01443642421 | GK36: 0.01911886949 | GL36: 0.0202759786 | GM36: 0.01881493962 | GN36: 0.01535026514 | GO36: 0.01373249107 | GP36: 0.01038691249 | GQ36: 0.008867494299 | GR36: 0.00714103545 | GS36: 0.007354872603 | GT36: 0.00839425941 | GU36: 0.01128854626 | GV36: 0.01267916207 | GW36: 0.01320495186 | GX36: 0.02756892231 | GY36: 0.02473596442 | GZ36: 0.01742256637 | HA36: 0.0165377434 | HB36: 0.01242393509 | HC36: 0.009445687298 | HD36: 0.008217131474 | HE36: 0.007874015748 | HF36: 0.009328841669 | HG36: 0.01062134891 | HH36: 0.01302498671 | HI36: 0.01564986737 | HJ36: 0.01915602443 | HK36: 0.01806239737 | HL36: 0.01667577911 | HM36: 0.01327553509 | HN36: 0.008888888889 | HO36: 0.007325082091 | HP36: 0.008529854491 | HQ36: 0.009867566866 | HR36: 0.01022604952 | HS36: 0.01248981808 | HT36: 0.01658197379 | HU36: 0.01604707141 | HV36: 0.01953125 | HW36: 0.02227979275 | HX36: 0.02480620155 | HY36: 0.02071611253 | HZ36: 0.01557788945 | IA36: 0.01243902439 | IB36: 0.01214285714 | IC36: 0.01048780488 | ID36: 0.01116751269 | IE36: 0.01202046036 | IF36: 0.01611253197 | IG36: 0.02091836735 | IH36: 0.02449604491 | II36: 0.02526154631 | IJ36: 0.0289089995 | IK36: 0.1162734714 | IL36: 0.07683298196 | IM36: 0.05146716348 | IN36: 0.03425621774 | IO36: 0.03605592347 | IP36: 0.04501770359 | IQ36: 0.06067588326 | IR36: 0.06872764435 | IS36: 0.07195525044 | IT36: 0.08102766798 | IU36: 0.08023483366 | IV36: 0.07500691946 | IW36: 0.04795439302 | IX36: 0.03689320388 | IY36: 0.02313946216 | IZ36: 0.01746858719 | JA36: 0.01593625498 | JB36: 0.01773490977 | JC36: 0.01753816174 | JD36: 0.01804461942 | JE36: 0.023179889 | JF36: 0.02614817298 | JG36: 0.026536782 | JH36: 0.02542932629 | JI36: 0.02406931964 | JJ36: 0.02068539673 | JK36: 0.01627264354 | JL36: 0.01534126487 | JM36: 0.01455368693 | JN36: 0.01497883426 | JO36: 0.01873767258 | JP36: 0.02067355785 | JQ36: 0.02284768212 | JR36: 0.02405063291 | JS36: 0.02098340119 | JT36: 0.01691266913 | JU36: 0.01523297491 | JV36: 0.01320700546 | JW36: 0.009127210496 | JX36: 0.008926000576 | JY36: 0.01012507445 | JZ36: 0.01146931184 | KA36: 0.01699716714 | KB36: 0.02151898734 | KC36: 0.0217871803 | KD36: 0.02515337423 | KE36: 0.02664670659 | KF36: 0.02555168409 | KG36: 0.02042577675 | KH36: 0.01709641256 | KI36: 0.01237167676 | KJ36: 0.01152959262 | KK36: 0.01361256545 | KL36: 0.01591289782 | KM36: 0.02146395157 | KN36: 0.02347161572 | KO36: 0.0243036592 | KP36: 0.03086969427 | KQ36: 0.02988643156 | KR36: 0.03042959427 | KS36: 0.02661596958 | KT36: 0.02181818182 | KU36: 0.01560398171 | KV36: 0.01296267199 | KW36: 0.0125704378 | KX36: 0.01359388275 | KY36: 0.0214368482 | KZ36: 0.02753348864 | LA36: 0.03102468866 | LB36: 0.03439879086 | LC36: 0.03054037644 | LD36: 0.02950485784 | LE36: 0.02794169635 | LF36: 0.02340387498 | LG36: 0.01667616876
A37: Austurland konur | C37: 0.01996740016 | D37: 0.02078239609 | E37: 0.02234636872 | F37: 0.01626646011 | G37: 0.01504324934 | H37: 0.01169590643 | I37: 0.01165851824 | J37: 0.009585889571 | K37: 0.01055924912 | L37: 0.01636073424 | M37: 0.02833200319 | N37: 0.03835397523 | O37: 0.02876548142 | P37: 0.02796644027 | Q37: 0.05440313112 | R37: 0.05922551253 | S37: 0.01585545723 | T37: 0.01433691756 | U37: 0.01769911504 | V37: 0.01503759398 | W37: 0.0157208589 | X37: 0.02230919765 | Y37: 0.03052837573 | Z37: 0.04081632653 | AA37: 0.03563572371 | AB37: 0.03355119826 | AC37: 0.02948829141 | AD37: 0.02588726514 | AE37: 0.02568093385 | AF37: 0.02324665091 | AG37: 0.02767749699 | AH37: 0.02494802495 | AI37: 0.02907711757 | AJ37: 0.03656532457 | AK37: 0.04180064309 | AL37: 0.0496866607 | AM37: 0.04926764314 | AN37: 0.04925241865 | AO37: 0.04680664917 | AP37: 0.0391908976 | AQ37: 0.02787593247 | AR37: 0.02225755167 | AS37: 0.02428166734 | AT37: 0.02348993289 | AU37: 0.02593537415 | AV37: 0.02736318408 | AW37: 0.03163017032 | AX37: 0.0340256297 | AY37: 0.02629272568 | AZ37: 0.02517361111 | BA37: 0.02591792657 | BB37: 0.02329450915 | BC37: 0.01821705426 | BD37: 0.02119309262 | BE37: 0.02118305356 | BF37: 0.01905550953 | BG37: 0.02099076406 | BH37: 0.01882930823 | BI37: 0.02481985588 | BJ37: 0.02664015905 | BK37: 0.02584493042 | BL37: 0.0254473161 | BM37: 0.02229780801 | BN37: 0.01927437642 | BO37: 0.01473922902 | BP37: 0.01260192735 | BQ37: 0.01148999259 | BR37: 0.01223128243 | BS37: 0.0126002291 | BT37: 0.01221840397 | BU37: 0.0126002291 | BV37: 0.01388321764 | BW37: 0.01510820743 | BX37: 0.0146998775 | BY37: 0.0151338766 | BZ37: 0.01125339542 | CA37: 0.007760962359 | CB37: 0.005707762557 | CC37: 0.006088280061 | CD37: 0.006088280061 | CE37: 0.007235338919 | CF37: 0.01028179741 | CG37: 0.01142421935 | CH37: 0.01276426007 | CI37: 0.01076984444 | CJ37: 0.009573195054 | CK37: 0.007581501137 | CL37: 0.006444275967 | CM37: 0.004109077325 | CN37: 0.004029304029 | CO37: 0.003663003663 | CP37: 0.005860805861 | CQ37: 0.007167106752 | CR37: 0.008675971332 | CS37: 0.008675971332 | CT37: 0.01410658307 | CU37: 0.01802507837 | CV37: 0.01567398119 | CW37: 0.01303538175 | CX37: 0.009683426443 | CY37: 0.007076350093 | CZ37: 0.005478451424 | DA37: 0.005843681519 | DB37: 0.007669831994 | DC37: 0.01015801354 | DD37: 0.01617757713 | DE37: 0.02445447705 | DF37: 0.03963062716 | DG37: 0.04673954014 | DH37: 0.0490011308 | DI37: 0.05314738032 | DJ37: 0.04387568556 | DK37: 0.03198594025 | DL37: 0.03017394391 | DM37: 0.03052893149 | DN37: 0.03436928702 | DO37: 0.04131627057 | DP37: 0.04862888483 | DQ37: 0.0508226691 | DR37: 0.05966228893 | DS37: 0.06374045802 | DT37: 0.06717557252 | DU37: 0.06374045802 | DV37: 0.05443177639 | DW37: 0.0421278115 | DX37: 0.0427475338 | DY37: 0.04523544679 | DZ37: 0.04779826872 | EA37: 0.05070529928 | EB37: 0.06214039125 | EC37: 0.06712696586 | ED37: 0.06266717616 | EE37: 0.06669207317 | EF37: 0.06287878788 | EG37: 0.05802919708 | EH37: 0.05061946903 | EI37: 0.03953248539 | EJ37: 0.03531855956 | EK37: 0.03673323823 | EL37: 0.04117647059 | EM37: 0.04916158537 | EN37: 0.06021341463 | EO37: 0.0585106383 | EP37: 0.05640465793 | EQ37: 0.05587808418 | ER37: 0.05627705628 | ES37: 0.05225163286 | ET37: 0.04125412541 | EU37: 0.03649635036 | EV37: 0.0277324633 | EW37: 0.02646759416 | EX37: 0.03020496224 | EY37: 0.0403621275 | EZ37: 0.04337985666 | FA37: 0.04552294959 | FB37: 0.0524399126 | FC37: 0.04905523256 | FD37: 0.04737793852 | FE37: 0.04371772806 | FF37: 0.03743489583 | FG37: 0.02890724269 | FH37: 0.02900860695 | FI37: 0.02718832891 | FJ37: 0.02728842832 | FK37: 0.03279857398 | FL37: 0.03529411765 | FM37: 0.03482587065 | FN37: 0.04090419806 | FO37: 0.03975644699 | FP37: 0.03640416048 | FQ37: 0.03379360465 | FR37: 0.02885606321 | FS37: 0.02078444519 | FT37: 0.01974110032 | FU37: 0.01985863346 | FV37: 0.02279102384 | FW37: 0.02505368647 | FX37: 0.02934860415 | FY37: 0.02997858672 | FZ37: 0.03349828702 | GA37: 0.03605313093 | GB37: 0.0328178046 | GC37: 0.02810218978 | GD37: 0.02587991718 | GE37: 0.02087542088 | GF37: 0.02152707703 | GG37: 0.02113652114 | GH37: 0.02214285714 | GI37: 0.02636464909 | GJ37: 0.02788104089 | GK37: 0.02856083086 | GL37: 0.0327436959 | GM37: 0.03114446529 | GN37: 0.02909362178 | GO37: 0.02659956866 | GP37: 0.02379333787 | GQ37: 0.01791044776 | GR37: 0.01773533424 | GS37: 0.01651440618 | GT37: 0.01593625498 | GU37: 0.01651031895 | GV37: 0.01765589782 | GW37: 0.0194975628 | GX37: 0.03213889915 | GY37: 0.0313306303 | GZ37: 0.02127659574 | HA37: 0.0193687231 | HB37: 0.01534265257 | HC37: 0.01370320856 | HD37: 0.0127090301 | HE37: 0.01364721938 | HF37: 0.0146188653 | HG37: 0.01490947817 | HH37: 0.02025586354 | HI37: 0.02128414331 | HJ37: 0.02276011561 | HK37: 0.02196615052 | HL37: 0.02196615052 | HM37: 0.02256699577 | HN37: 0.02075535897 | HO37: 0.01868535202 | HP37: 0.01798561151 | HQ37: 0.01701134089 | HR37: 0.01327433628 | HS37: 0.01297814208 | HT37: 0.01936799185 | HU37: 0.02608994164 | HV37: 0.03496240602 | HW37: 0.03646616541 | HX37: 0.03684210526 | HY37: 0.03507462687 | HZ37: 0.02915129151 | IA37: 0.02536231884 | IB37: 0.02147887324 | IC37: 0.01798561151 | ID37: 0.01858736059 | IE37: 0.0202247191 | IF37: 0.02631578947 | IG37: 0.02846441948 | IH37: 0.03349642454 | II37: 0.03189493433 | IJ37: 0.03867608776 | IK37: 0.151043509 | IL37: 0.1104315324 | IM37: 0.07402422611 | IN37: 0.04801097394 | IO37: 0.04922644163 | IP37: 0.06346916697 | IQ37: 0.08321167883 | IR37: 0.09433272395 | IS37: 0.09322651129 | IT37: 0.1020890816 | IU37: 0.1047058824 | IV37: 0.1014832162 | IW37: 0.06072106262 | IX37: 0.05206880521 | IY37: 0.03600729262 | IZ37: 0.02434782609 | JA37: 0.02269807281 | JB37: 0.02 | JC37: 0.0233409611 | JD37: 0.02450300509 | JE37: 0.02851885925 | JF37: 0.03232030873 | JG37: 0.02795899348 | JH37: 0.02805887764 | JI37: 0.0260908682 | JJ37: 0.02142544819 | JK37: 0.01739499364 | JL37: 0.01682793437 | JM37: 0.01619088198 | JN37: 0.0141025641 | JO37: 0.01924721985 | JP37: 0.02108036891 | JQ37: 0.02093802345 | JR37: 0.02655637788 | JS37: 0.02074330164 | JT37: 0.01837606838 | JU37: 0.01591289782 | JV37: 0.01638672675 | JW37: 0.01376518219 | JX37: 0.01007252216 | JY37: 0.01235076163 | JZ37: 0.01427971441 | KA37: 0.01594628619 | KB37: 0.02386934673 | KC37: 0.025 | KD37: 0.02766308836 | KE37: 0.02961744138 | KF37: 0.02931461602 | KG37: 0.02839756592 | KH37: 0.02202472952 | KI37: 0.01406886338 | KJ37: 0.01280175567 | KK37: 0.01389904901 | KL37: 0.01491966335 | KM37: 0.01819589624 | KN37: 0.01805608913 | KO37: 0.02072741494 | KP37: 0.02308580223 | KQ37: 0.0202020202 | KR37: 0.01993865031 | KS37: 0.0181531176 | KT37: 0.01375976199 | KU37: 0.0125251093 | KV37: 0.009917430913 | KW37: 0.009403761505 | KX37: 0.01131683741 | KY37: 0.01474044377 | KZ37: 0.02410964386 | LA37: 0.02934429701 | LB37: 0.03221768106 | LC37: 0.02942135289 | LD37: 0.02423754256 | LE37: 0.02054073671 | LF37: 0.01676234636 | LG37: 0.01409349664
A38: Suðurland alls | C38: 0.01435638762 | D38: 0.01328935881 | E38: 0.01254275941 | F38: 0.01032638761 | G38: 0.009042886561 | H38: 0.008180315029 | I38: 0.006983615364 | J38: 0.006025746371 | K38: 0.006891413671 | L38: 0.009217027746 | M38: 0.0186240973 | N38: 0.02120779838 | O38: 0.02101759391 | P38: 0.01512125535 | Q38: 0.01826143669 | R38: 0.01699358221 | S38: 0.008778860504 | T38: 0.00656996587 | U38: 0.006671933983 | V38: 0.007518796992 | W38: 0.009951611431 | X38: 0.0121121774 | Y38: 0.01509363645 | Z38: 0.02308687432 | AA38: 0.02049059206 | AB38: 0.0166015625 | AC38: 0.01798386313 | AD38: 0.01497146065 | AE38: 0.01295064753 | AF38: 0.01394650896 | AG38: 0.01310710118 | AH38: 0.01452807198 | AI38: 0.01783512001 | AJ38: 0.02399776765 | AK38: 0.02623694961 | AL38: 0.03679717398 | AM38: 0.03759836782 | AN38: 0.03283898305 | AO38: 0.03192101227 | AP38: 0.02454553843 | AQ38: 0.01846738005 | AR38: 0.01740795544 | AS38: 0.01894475921 | AT38: 0.01783733826 | AU38: 0.01936570306 | AV38: 0.02494955054 | AW38: 0.02971981022 | AX38: 0.03772660461 | AY38: 0.03599495489 | AZ38: 0.03000288489 | BA38: 0.03024791806 | BB38: 0.02340582381 | BC38: 0.01697690452 | BD38: 0.0159930465 | BE38: 0.01750353607 | BF38: 0.0179049377 | BG38: 0.01896487294 | BH38: 0.02024180253 | BI38: 0.0225281602 | BJ38: 0.02552750565 | BK38: 0.02100602864 | BL38: 0.01714393369 | BM38: 0.01602506714 | BN38: 0.01289167413 | BO38: 0.01065353626 | BP38: 0.01088674276 | BQ38: 0.01044776119 | BR38: 0.009833187006 | BS38: 0.01130403328 | BT38: 0.01374570447 | BU38: 0.01727256285 | BV38: 0.01858168761 | BW38: 0.01561938959 | BX38: 0.01283662478 | BY38: 0.01075085324 | BZ38: 0.008959044369 | CA38: 0.007167235495 | CB38: 0.008701472557 | CC38: 0.009789156627 | CD38: 0.009789156627 | CE38: 0.008970127782 | CF38: 0.009562494711 | CG38: 0.01193196243 | CH38: 0.01676416659 | CI38: 0.01641491312 | CJ38: 0.01423207893 | CK38: 0.01303012698 | CL38: 0.01020831604 | CM38: 0.007931316435 | CN38: 0.006414368185 | CO38: 0.007216164208 | CP38: 0.008017960231 | CQ38: 0.007762821042 | CR38: 0.00834090346 | CS38: 0.009084152283 | CT38: 0.013146806 | CU38: 0.01289398281 | CV38: 0.01036575088 | CW38: 0.00969240628 | CX38: 0.008891380968 | CY38: 0.006968920218 | CZ38: 0.007697141062 | DA38: 0.008089852341 | DB38: 0.01076028904 | DC38: 0.01626213592 | DD38: 0.02669902913 | DE38: 0.04336569579 | DF38: 0.06233787968 | DG38: 0.06899942637 | DH38: 0.07350651479 | DI38: 0.07186757355 | DJ38: 0.06629570747 | DK38: 0.05487618465 | DL38: 0.05209137213 | DM38: 0.05054792406 | DN38: 0.04292527822 | DO38: 0.04642289348 | DP38: 0.05182829889 | DQ38: 0.05802861685 | DR38: 0.07059015324 | DS38: 0.07421842607 | DT38: 0.07372087238 | DU38: 0.07056969898 | DV38: 0.06043558627 | DW38: 0.0518061949 | DX38: 0.05301397206 | DY38: 0.04933970672 | DZ38: 0.04942434211 | EA38: 0.05089820359 | EB38: 0.0574230866 | EC38: 0.06329113924 | ED38: 0.07173067163 | EE38: 0.07135025723 | EF38: 0.06933266264 | EG38: 0.06373392316 | EH38: 0.05546726001 | EI38: 0.04675565157 | EJ38: 0.0453624318 | EK38: 0.04495825305 | EL38: 0.03989075561 | EM38: 0.04262817823 | EN38: 0.04732734749 | EO38: 0.0537940266 | EP38: 0.05618455776 | EQ38: 0.05755029284 | ER38: 0.05635704041 | ES38: 0.05078724263 | ET38: 0.04216727385 | EU38: 0.03189982858 | EV38: 0.03123095673 | EW38: 0.03319337717 | EX38: 0.03143287076 | EY38: 0.03345055322 | EZ38: 0.03713869114 | FA38: 0.04224388575 | FB38: 0.04921700224 | FC38: 0.04765993989 | FD38: 0.04579630895 | FE38: 0.04142207524 | FF38: 0.03541275797 | FG38: 0.03036082081 | FH38: 0.02909482759 | FI38: 0.02889849504 | FJ38: 0.02685123416 | FK38: 0.02646310433 | FL38: 0.02977099237 | FM38: 0.03568710359 | FN38: 0.03802118934 | FO38: 0.03905184175 | FP38: 0.03543239533 | FQ38: 0.03215939153 | FR38: 0.0254045181 | FS38: 0.0196811351 | FT38: 0.01898734177 | FU38: 0.01935281674 | FV38: 0.01950701926 | FW38: 0.02149009114 | FX38: 0.02282799565 | FY38: 0.02767819925 | FZ38: 0.02915849604 | GA38: 0.03034682081 | GB38: 0.02830587241 | GC38: 0.0253703249 | GD38: 0.02166847237 | GE38: 0.01887932337 | GF38: 0.01817222138 | GG38: 0.01801941748 | GH38: 0.01737529026 | GI38: 0.01891036321 | GJ38: 0.02201467645 | GK38: 0.02430295464 | GL38: 0.02498982499 | GM38: 0.02386169954 | GN38: 0.02234591804 | GO38: 0.02068097822 | GP38: 0.0174734181 | GQ38: 0.01472935713 | GR38: 0.01312684366 | GS38: 0.01253323205 | GT38: 0.01245105717 | GU38: 0.01276595745 | GV38: 0.01655682366 | GW38: 0.02382289244 | GX38: 0.0394685424 | GY38: 0.03587863661 | GZ38: 0.02072337783 | HA38: 0.01822563639 | HB38: 0.01553439759 | HC38: 0.01305538008 | HD38: 0.01328179902 | HE38: 0.01318901871 | HF38: 0.01272767171 | HG38: 0.01406027971 | HH38: 0.01609642884 | HI38: 0.01725941423 | HJ38: 0.02073124764 | HK38: 0.01971473378 | HL38: 0.01858347638 | HM38: 0.01846402825 | HN38: 0.01654242102 | HO38: 0.01532725766 | HP38: 0.01588491955 | HQ38: 0.01661525519 | HR38: 0.01630591631 | HS38: 0.01662794075 | HT38: 0.01817920529 | HU38: 0.02049801516 | HV38: 0.02264426589 | HW38: 0.0209439528 | HX38: 0.02068214804 | HY38: 0.02132564841 | HZ38: 0.01991465149 | IA38: 0.01878031878 | IB38: 0.01997300945 | IC38: 0.01977946244 | ID38: 0.0201861131 | IE38: 0.02236652237 | IF38: 0.02655571635 | IG38: 0.03011527378 | IH38: 0.03370465581 | II38: 0.03587475929 | IJ38: 0.04409382264 | IK38: 0.1627875689 | IL38: 0.1221354167 | IM38: 0.08729081863 | IN38: 0.07268563952 | IO38: 0.07447602252 | IP38: 0.08387997209 | IQ38: 0.09966800876 | IR38: 0.1105854106 | IS38: 0.1146492338 | IT38: 0.1229679344 | IU38: 0.1180170181 | IV38: 0.1129790046 | IW38: 0.1115487316 | IX38: 0.09032550901 | IY38: 0.05408472012 | IZ38: 0.03976301002 | JA38: 0.03465436669 | JB38: 0.03123844732 | JC38: 0.03227472244 | JD38: 0.03442206141 | JE38: 0.03703943954 | JF38: 0.04116094987 | JG38: 0.04053350683 | JH38: 0.03812880487 | JI38: 0.03353106463 | JJ38: 0.02794037777 | JK38: 0.02410496942 | JL38: 0.02183014354 | JM38: 0.02070190482 | JN38: 0.0189596799 | JO38: 0.01912602129 | JP38: 0.02361111111 | JQ38: 0.02610515946 | JR38: 0.02826534318 | JS38: 0.0280727011 | JT38: 0.02676039698 | JU38: 0.0252894752 | JV38: 0.02282238714 | JW38: 0.0210695128 | JX38: 0.02075011096 | JY38: 0.02197864931 | JZ38: 0.024204947 | KA38: 0.0258876618 | KB38: 0.03081682432 | KC38: 0.03539665599 | KD38: 0.03805743638 | KE38: 0.03850574713 | KF38: 0.03563549975 | KG38: 0.03300569641 | KH38: 0.02844521065 | KI38: 0.02608606871 | KJ38: 0.02594610808 | KK38: 0.02631712131 | KL38: 0.02777926457 | KM38: 0.0308981269 | KN38: 0.03467443092 | KO38: 0.03692439037 | KP38: 0.04092754862 | KQ38: 0.03939862451 | KR38: 0.03671706263 | KS38: 0.0354767184 | KT38: 0.03163686382 | KU38: 0.02852906328 | KV38: 0.0275479839 | KW38: 0.02701286163 | KX38: 0.02774656468 | KY38: 0.03348230707 | KZ38: 0.03801542336 | LA38: 0.0409807665 | LB38: 0.04523615716 | LC38: 0.04512055734 | LD38: 0.04429715508 | LE38: 0.04100304818 | LF38: 0.03535641971 | LG38: 0.033868733
A39: Suðurland karlar | C39: 0.007339748817 | D39: 0.006524221171 | E39: 0.006231027321 | F39: 0.004496124031 | G39: 0.003914483589 | H39: 0.002926543752 | I39: 0.0027100271 | J39: 0.002763279091 | K39: 0.002818665832 | L39: 0.003994248282 | M39: 0.009745965809 | N39: 0.01167439629 | O39: 0.01007516392 | P39: 0.006237006237 | Q39: 0.008303305656 | R39: 0.00683994528 | S39: 0.002657218778 | T39: 0.001147776184 | U39: 0.001771479185 | V39: 0.002709211318 | W39: 0.004451949647 | X39: 0.0070499765 | Y39: 0.01096663011 | Z39: 0.01659403285 | AA39: 0.01441829632 | AB39: 0.01150558843 | AC39: 0.01227495908 | AD39: 0.01007874016 | AE39: 0.009449283921 | AF39: 0.008764111705 | AG39: 0.008452830189 | AH39: 0.009819448844 | AI39: 0.01121076233 | AJ39: 0.0182878764 | AK39: 0.02027961284 | AL39: 0.03055463301 | AM39: 0.03119868637 | AN39: 0.02507734897 | AO39: 0.02497162316 | AP39: 0.01934779217 | AQ39: 0.01243417203 | AR39: 0.01103752759 | AS39: 0.01286077464 | AT39: 0.01129766201 | AU39: 0.01237702317 | AV39: 0.01765073415 | AW39: 0.02359208524 | AX39: 0.02953866578 | AY39: 0.02691171644 | AZ39: 0.02082994304 | BA39: 0.0218765192 | BB39: 0.01465772649 | BC39: 0.009941520468 | BD39: 0.008236505368 | BE39: 0.01046181438 | BF39: 0.01207464325 | BG39: 0.0112591183 | BH39: 0.01186387761 | BI39: 0.01475509583 | BJ39: 0.01643529599 | BK39: 0.01116961864 | BL39: 0.00893569491 | BM39: 0.007885956931 | BN39: 0.006672732787 | BO39: 0.004549590537 | BP39: 0.006246281975 | BQ39: 0.005800118977 | BR39: 0.005651397977 | BS39: 0.005514705882 | BT39: 0.007352941176 | BU39: 0.01026348039 | BV39: 0.0120463556 | BW39: 0.008081732235 | BX39: 0.006709362611 | BY39: 0.005797941731 | BZ39: 0.004348456298 | CA39: 0.003043919409 | CB39: 0.00369528141 | CC39: 0.005116543491 | CD39: 0.004974417283 | CE39: 0.004005149478 | CF39: 0.004720354742 | CG39: 0.007295093692 | CH39: 0.01152141802 | CI39: 0.01078286558 | CJ39: 0.008124076809 | CK39: 0.007160909857 | CL39: 0.005335579893 | CM39: 0.004011619864 | CN39: 0.003119913185 | CO39: 0.003798155182 | CP39: 0.003662506782 | CQ39: 0.003352891869 | CR39: 0.003772003353 | CS39: 0.005029337804 | CT39: 0.007501769285 | CU39: 0.008067940552 | CV39: 0.005803255485 | CW39: 0.005515942419 | CX39: 0.005785012781 | CY39: 0.004439660971 | CZ39: 0.004749340369 | DA39: 0.004881266491 | DB39: 0.007124010554 | DC39: 0.01358880283 | DD39: 0.02568283734 | DE39: 0.04701725778 | DF39: 0.07060539752 | DG39: 0.07771428571 | DH39: 0.084 | DI39: 0.08214285714 | DJ39: 0.07289356984 | DK39: 0.05609593604 | DL39: 0.05166150948 | DM39: 0.04923987623 | DN39: 0.04448447894 | DO39: 0.04961197339 | DP39: 0.05640243902 | DQ39: 0.06568736142 | DR39: 0.07982954545 | DS39: 0.08251445087 | DT39: 0.08265895954 | DU39: 0.07774566474 | DV39: 0.06310611384 | DW39: 0.05130304271 | DX39: 0.05012566322 | DY39: 0.046897138 | DZ39: 0.0488997555 | EA39: 0.05143523241 | EB39: 0.05996188242 | EC39: 0.06831842838 | ED39: 0.07847533632 | EE39: 0.07690014903 | EF39: 0.07377777778 | EG39: 0.06746670569 | EH39: 0.05678591709 | EI39: 0.04493452791 | EJ39: 0.04046888083 | EK39: 0.03967227253 | EL39: 0.03674618462 | EM39: 0.03913749815 | EN39: 0.04548811106 | EO39: 0.05330584597 | EP39: 0.05784493284 | EQ39: 0.05828640998 | ER39: 0.05445469672 | ES39: 0.04778503994 | ET39: 0.03806469604 | EU39: 0.02654511329 | EV39: 0.02441020046 | EW39: 0.02623741313 | EX39: 0.02446300716 | EY39: 0.02662454874 | EZ39: 0.03008423586 | FA39: 0.03914217157 | FB39: 0.04778733866 | FC39: 0.04554516179 | FD39: 0.04302715899 | FE39: 0.03798982949 | FF39: 0.03182011031 | FG39: 0.02525531328 | FH39: 0.02391608392 | FI39: 0.02414545455 | FJ39: 0.02272727273 | FK39: 0.02360645751 | FL39: 0.02817544928 | FM39: 0.03538344723 | FN39: 0.03798246963 | FO39: 0.03852056476 | FP39: 0.03395585739 | FQ39: 0.03086419753 | FR39: 0.02306837132 | FS39: 0.01695145104 | FT39: 0.01746010094 | FU39: 0.01773049645 | FV39: 0.018321513 | FW39: 0.01897389192 | FX39: 0.02064359441 | FY39: 0.02860169492 | FZ39: 0.03023327195 | GA39: 0.02907421576 | GB39: 0.02509505703 | GC39: 0.02226810205 | GD39: 0.01896527681 | GE39: 0.01646482515 | GF39: 0.01562075523 | GG39: 0.01567091087 | GH39: 0.01586614741 | GI39: 0.01711711712 | GJ39: 0.01984067338 | GK39: 0.02250225023 | GL39: 0.02248853381 | GM39: 0.02168461425 | GN39: 0.01979472141 | GO39: 0.01774379688 | GP39: 0.01432273905 | GQ39: 0.01197923599 | GR39: 0.009914255091 | GS39: 0.00869325238 | GT39: 0.009674206857 | GU39: 0.00925658085 | GV39: 0.01274069784 | GW39: 0.02051726629 | GX39: 0.03598243377 | GY39: 0.03237664357 | GZ39: 0.01828925155 | HA39: 0.01519674355 | HB39: 0.01186484395 | HC39: 0.009610520991 | HD39: 0.009753008233 | HE39: 0.009819121447 | HF39: 0.009756097561 | HG39: 0.01121167094 | HH39: 0.01271129141 | HI39: 0.01363022942 | HJ39: 0.01629770474 | HK39: 0.0161959577 | HL39: 0.01470784864 | HM39: 0.01537034583 | HN39: 0.01329923274 | HO39: 0.01223128243 | HP39: 0.01202601546 | HQ39: 0.01219357297 | HR39: 0.01197841253 | HS39: 0.01195219124 | HT39: 0.0138670853 | HU39: 0.01726844584 | HV39: 0.01849056604 | HW39: 0.01727158949 | HX39: 0.01731008717 | HY39: 0.0186189889 | HZ39: 0.01713244228 | IA39: 0.01521226415 | IB39: 0.0159586682 | IC39: 0.01682352941 | ID39: 0.01887254902 | IE39: 0.02096177559 | IF39: 0.02620519159 | IG39: 0.02931034483 | IH39: 0.03326050012 | II39: 0.03641660597 | IJ39: 0.04436737623 | IK39: 0.1567617085 | IL39: 0.1177847114 | IM39: 0.08397031129 | IN39: 0.06942739145 | IO39: 0.07128689768 | IP39: 0.07939372068 | IQ39: 0.09268055048 | IR39: 0.1013735262 | IS39: 0.1066763425 | IT39: 0.1141706715 | IU39: 0.1095679012 | IV39: 0.1037687802 | IW39: 0.0990970132 | IX39: 0.07798011395 | IY39: 0.04501295337 | IZ39: 0.03268803554 | JA39: 0.02729292288 | JB39: 0.02534636452 | JC39: 0.02736039471 | JD39: 0.02933182333 | JE39: 0.03211629479 | JF39: 0.03466422606 | JG39: 0.03484240688 | JH39: 0.03403200361 | JI39: 0.02935056401 | JJ39: 0.02265065318 | JK39: 0.02116512992 | JL39: 0.01933760684 | JM39: 0.0183202737 | JN39: 0.01688888889 | JO39: 0.01693394639 | JP39: 0.02229806598 | JQ39: 0.02531359476 | JR39: 0.02657735523 | JS39: 0.02673224979 | JT39: 0.02477430191 | JU39: 0.02284315725 | JV39: 0.02068424664 | JW39: 0.01957537982 | JX39: 0.01907196225 | JY39: 0.02094560244 | JZ39: 0.02338871838 | KA39: 0.02439810834 | KB39: 0.03025064823 | KC39: 0.03471698113 | KD39: 0.03655107779 | KE39: 0.03719512195 | KF39: 0.03321178673 | KG39: 0.03046875 | KH39: 0.02539229672 | KI39: 0.02394567548 | KJ39: 0.02391304348 | KK39: 0.02416274318 | KL39: 0.02549279757 | KM39: 0.02764546558 | KN39: 0.03047142725 | KO39: 0.03299351251 | KP39: 0.03909760061 | KQ39: 0.03780627871 | KR39: 0.03517540551 | KS39: 0.03330241187 | KT39: 0.02924766019 | KU39: 0.02701655454 | KV39: 0.02597536959 | KW39: 0.02572244644 | KX39: 0.02652106084 | KY39: 0.03245023548 | KZ39: 0.03638107417 | LA39: 0.04058132629 | LB39: 0.04637714427 | LC39: 0.04595574024 | LD39: 0.04537188501 | LE39: 0.04167059489 | LF39: 0.03491214902 | LG39: 0.03283081383
A40: Suðurland konur | C40: 0.02465294399 | D40: 0.02321685017 | E40: 0.02180539273 | F40: 0.01888080073 | G40: 0.01656726309 | H40: 0.01589005798 | I40: 0.01325381047 | J40: 0.01081324623 | K40: 0.01286764706 | L40: 0.01688159437 | M40: 0.03165298945 | N40: 0.03519474425 | O40: 0.03707179728 | P40: 0.0281557954 | Q40: 0.03287356322 | R40: 0.0318911686 | S40: 0.01776045051 | T40: 0.01452631579 | U40: 0.01386181503 | V40: 0.01457597173 | W40: 0.01802207704 | X40: 0.01954022989 | Y40: 0.02114942529 | Z40: 0.03257408768 | AA40: 0.02939033277 | AB40: 0.02406159769 | AC40: 0.02633468997 | AD40: 0.02213511644 | AE40: 0.01804511278 | AF40: 0.02153578421 | AG40: 0.01993797076 | AH40: 0.02135476464 | AI40: 0.02746101932 | AJ40: 0.03221415608 | AK40: 0.03484243231 | AL40: 0.04581434397 | AM40: 0.04687128242 | AN40: 0.04407259015 | AO40: 0.04196951934 | AP40: 0.03206865402 | AQ40: 0.02714646465 | AR40: 0.02662974009 | AS40: 0.02777175092 | AT40: 0.02720935462 | AU40: 0.02940506041 | AV40: 0.03533333333 | AW40: 0.03846989785 | AX40: 0.04953338119 | AY40: 0.04913363399 | AZ40: 0.04325340856 | BA40: 0.0423292797 | BB40: 0.03604415409 | BC40: 0.02707808564 | BD40: 0.02719932002 | BE40: 0.02769963211 | BF40: 0.02624495289 | BG40: 0.03001364256 | BH40: 0.03213652482 | BI40: 0.03360797918 | BJ40: 0.03862957002 | BK40: 0.03518050126 | BL40: 0.02897217751 | BM40: 0.0277534965 | BN40: 0.02185314685 | BO40: 0.0194493007 | BP40: 0.01757393913 | BQ40: 0.01714530647 | BR40: 0.01585940849 | BS40: 0.01964679912 | BT40: 0.0229580574 | BU40: 0.02737306843 | BV40: 0.02793539939 | BW40: 0.02640768223 | BX40: 0.02160628546 | BY40: 0.01783862269 | BZ40: 0.01555693839 | CA40: 0.01306782825 | CB40: 0.01586655818 | CC40: 0.01647681041 | CD40: 0.01668022783 | CE40: 0.01616245338 | CF40: 0.01657687526 | CG40: 0.01864898467 | CH40: 0.02434336963 | CI40: 0.02455690796 | CJ40: 0.02306213965 | CK40: 0.02151410595 | CL40: 0.01725187741 | CM40: 0.01359728054 | CN40: 0.01117647059 | CO40: 0.01215686275 | CP40: 0.01431372549 | CQ40: 0.01413855787 | CR40: 0.01494647546 | CS40: 0.01494647546 | CT40: 0.02145386378 | CU40: 0.0199958342 | CV40: 0.01707977505 | CW40: 0.01583844783 | CX40: 0.01346268066 | CY40: 0.01069095229 | CZ40: 0.01203416149 | DA40: 0.01281055901 | DB40: 0.01611024845 | DC40: 0.02019596081 | DD40: 0.02819436113 | DE40: 0.03799240152 | DF40: 0.0512166405 | DG40: 0.05727464924 | DH40: 0.05938881415 | DI40: 0.05804343648 | DJ40: 0.05741983594 | DK40: 0.05323534684 | DL40: 0.05266968326 | DM40: 0.05230769231 | DN40: 0.04082774049 | DO40: 0.04213273676 | DP40: 0.0456748695 | DQ40: 0.04772557793 | DR40: 0.05814843152 | DS40: 0.06304728546 | DT40: 0.06168515275 | DU40: 0.0609067912 | DV40: 0.05686936937 | DW40: 0.05247813411 | DX40: 0.0568711542 | DY40: 0.05260170293 | DZ40: 0.05012483196 | EA40: 0.05018407285 | EB40: 0.05403288958 | EC40: 0.05657791699 | ED40: 0.06293842557 | EE40: 0.06411501846 | EF40: 0.06353804558 | EG40: 0.05898771865 | EH40: 0.05379061372 | EI40: 0.04907115317 | EJ40: 0.05155367232 | EK40: 0.05164575377 | EL40: 0.04386951631 | EM40: 0.04722114264 | EN40: 0.0497473766 | EO40: 0.05443626501 | EP40: 0.05409047161 | EQ40: 0.056621881 | ER40: 0.05875619992 | ES40: 0.05454545455 | ET40: 0.04730319427 | EU40: 0.03860355824 | EV40: 0.03986194996 | EW40: 0.04199569275 | EX40: 0.04031951312 | EY40: 0.04250648573 | EZ40: 0.04649770505 | FA40: 0.04635893355 | FB40: 0.05103637075 | FC40: 0.05035128806 | FD40: 0.04932038835 | FE40: 0.04566463302 | FF40: 0.03985317252 | FG40: 0.03667064643 | FH40: 0.03543307087 | FI40: 0.03471604059 | FJ40: 0.03189910979 | FK40: 0.03005359877 | FL40: 0.03177641654 | FM40: 0.03606870229 | FN40: 0.038069602 | FO40: 0.03971603991 | FP40: 0.03728027815 | FQ40: 0.03382464097 | FR40: 0.02840807575 | FS40: 0.02319093287 | FT40: 0.02087190709 | FU40: 0.02135480483 | FV40: 0.02097009482 | FW40: 0.02457642897 | FX40: 0.02550735431 | FY40: 0.02654538704 | FZ40: 0.02781507769 | GA40: 0.0319372729 | GB40: 0.03231939163 | GC40: 0.0292386907 | GD40: 0.02503912363 | GE40: 0.02189037842 | GF40: 0.0213559322 | GG40: 0.02094972067 | GH40: 0.01925845932 | GI40: 0.02114520958 | GJ40: 0.02472373104 | GK40: 0.02654701813 | GL40: 0.02804922186 | GM40: 0.02652472032 | GN40: 0.02546628407 | GO40: 0.02420051858 | GP40: 0.02124877411 | GQ40: 0.01802520338 | GR40: 0.01706036745 | GS40: 0.01723555255 | GT40: 0.01585089706 | GU40: 0.01714491969 | GV40: 0.02131887986 | GW40: 0.02794807068 | GX40: 0.04375871688 | GY40: 0.04018789144 | GZ40: 0.02371883657 | HA40: 0.02200406229 | HB40: 0.02011263073 | HC40: 0.01735289478 | HD40: 0.01767955801 | HE40: 0.01738850427 | HF40: 0.01643115347 | HG40: 0.01759383378 | HH40: 0.02029520295 | HI40: 0.02176096418 | HJ40: 0.02626228397 | HK40: 0.02415540541 | HL40: 0.02347972973 | HM40: 0.02232511989 | HN40: 0.0205905826 | HO40: 0.01924882629 | HP40: 0.02070869765 | HQ40: 0.02206227507 | HR40: 0.02155516526 | HS40: 0.02226850368 | HT40: 0.02343376375 | HU40: 0.02447270971 | HV40: 0.02839721254 | HW40: 0.02621184919 | HX40: 0.02539130435 | HY40: 0.02512998267 | HZ40: 0.02384219554 | IA40: 0.02386554622 | IB40: 0.02569558101 | IC40: 0.02396006656 | ID40: 0.02203098107 | IE40: 0.02434782609 | IF40: 0.02705061082 | IG40: 0.03125 | IH40: 0.03433922997 | II40: 0.03510288777 | IJ40: 0.04370179949 | IK40: 0.1713680091 | IL40: 0.1282492953 | IM40: 0.0919379845 | IN40: 0.07730003162 | IO40: 0.07890473104 | IP40: 0.09007811202 | IQ40: 0.109317188 | IR40: 0.1233569262 | IS40: 0.1257133266 | IT40: 0.1348275258 | IU40: 0.1294650636 | IV40: 0.125520111 | IW40: 0.128508357 | IX40: 0.1074022562 | IY40: 0.06681818182 | IZ40: 0.04942910825 | JA40: 0.04456150342 | JB40: 0.03916750976 | JC40: 0.03894128385 | JD40: 0.04132739284 | JE40: 0.04371751758 | JF40: 0.05000778938 | JG40: 0.04800601956 | JH40: 0.04352993612 | JI40: 0.03907611854 | JJ40: 0.03503319678 | JK40: 0.02794903411 | JL40: 0.025 | JM40: 0.0236718965 | JN40: 0.0215320911 | JO40: 0.02182621909 | JP40: 0.02524822695 | JQ40: 0.02705261734 | JR40: 0.03041563446 | JS40: 0.02978548982 | JT40: 0.02931640097 | JU40: 0.02846551039 | JV40: 0.02564766839 | JW40: 0.02303262956 | JX40: 0.02292409577 | JY40: 0.02330122364 | JZ40: 0.02522905325 | KA40: 0.02772618732 | KB40: 0.03151065802 | KC40: 0.03622711105 | KD40: 0.03997874884 | KE40: 0.04021164021 | KF40: 0.03890069039 | KG40: 0.03639446908 | KH40: 0.03243444762 | KI40: 0.02893890675 | KJ40: 0.02869575444 | KK40: 0.02916960715 | KL40: 0.03074652564 | KM40: 0.03523406375 | KN40: 0.04028172495 | KO40: 0.04225883537 | KP40: 0.04324651726 | KQ40: 0.0414008906 | KR40: 0.03866809882 | KS40: 0.03834844401 | KT40: 0.03475402137 | KU40: 0.03049116334 | KV40: 0.02961534538 | KW40: 0.02871650452 | KX40: 0.02938939764 | KY40: 0.03486769125 | KZ40: 0.04022060636 | LA40: 0.04152239656 | LB40: 0.04377104377 | LC40: 0.04404361371 | LD40: 0.042909001 | LE40: 0.04014081389 | LF40: 0.03592939791 | LG40: 0.03520698052
A42: Atvinnulausir, meðalfjöldi á mánuði
A43: Landið allt | C43: 2444 | D43: 2375 | E43: 2199 | F43: 1942 | G43: 1804 | H43: 1675 | I43: 1548 | J43: 1279 | K43: 1284 | L43: 1454 | M43: 1912 | N43: 2170 | O43: 2124 | P43: 2013 | Q43: 2260 | R43: 2255 | S43: 1826 | T43: 1705 | U43: 1603 | V43: 1524 | W43: 1765 | X43: 2164 | Y43: 2708 | Z43: 3306 | AA43: 3557 | AB43: 3688 | AC43: 3691 | AD43: 3564 | AE43: 3555 | AF43: 3527 | AG43: 3398 | AH43: 3176 | AI43: 3526 | AJ43: 4075 | AK43: 4481 | AL43: 5204 | AM43: 5755 | AN43: 5643 | AO43: 5508 | AP43: 5292 | AQ43: 5080 | AR43: 4674 | AS43: 4456 | AT43: 3899 | AU43: 4061 | AV43: 4399 | AW43: 4730 | AX43: 5085 | AY43: 5096 | AZ43: 4990 | BA43: 4903 | BB43: 4899 | BC43: 4876 | BD43: 4711 | BE43: 4455 | BF43: 3889 | BG43: 3879 | BH43: 3881 | BI43: 4090 | BJ43: 4351 | BK43: 4154 | BL43: 3796 | BM43: 3535 | BN43: 3332 | BO43: 3241 | BP43: 3135 | BQ43: 2850 | BR43: 2268 | BS43: 2192 | BT43: 2243 | BU43: 2311 | BV43: 2440 | BW43: 2335 | BX43: 2185 | BY43: 2111 | BZ43: 2062 | CA43: 2032 | CB43: 2185 | CC43: 1948 | CD43: 1624 | CE43: 1643 | CF43: 1747 | CG43: 1878 | CH43: 1978 | CI43: 2032 | CJ43: 1932 | CK43: 1862 | CL43: 1757 | CM43: 1628 | CN43: 1576 | CO43: 1475 | CP43: 1331 | CQ43: 1315 | CR43: 1318 | CS43: 1357 | CT43: 1541 | CU43: 1629 | CV43: 1675 | CW43: 1711 | CX43: 1732 | CY43: 1836 | CZ43: 1964 | DA43: 2129 | DB43: 2220 | DC43: 3102 | DD43: 5433 | DE43: 7889 | DF43: 10439 | DG43: 13255 | DH43: 14527 | DI43: 14800 | DJ43: 14587 | DK43: 14081 | DL43: 13747 | DM43: 13379 | DN43: 12132 | DO43: 12671 | DP43: 13349 | DQ43: 13765 | DR43: 14695 | DS43: 15016 | DT43: 15055 | DU43: 14665 | DV43: 13870 | DW43: 12978 | DX43: 12560 | DY43: 12088 | DZ43: 11540 | EA43: 12055 | EB43: 12354 | EC43: 12737 | ED43: 13456 | EE43: 13764 | EF43: 13753 | EG43: 13256 | EH43: 12543 | EI43: 11700 | EJ43: 11416 | EK43: 11288 | EL43: 10755 | EM43: 10912 | EN43: 11346 | EO43: 11752 | EP43: 11440 | EQ43: 11620 | ER43: 11449 | ES43: 10829 | ET43: 9817 | EU43: 8703 | EV43: 8367 | EW43: 8196 | EX43: 7874 | EY43: 8188 | EZ43: 8561 | FA43: 8957 | FB43: 8684 | FC43: 8713 | FD43: 8485 | FE43: 7998 | FF43: 7514 | FG43: 6932 | FH43: 6872 | FI43: 6721 | FJ43: 6124 | FK43: 6228 | FL43: 6526 | FM43: 6827 | FN43: 7187 | FO43: 7210 | FP43: 7104 | FQ43: 6801 | FR43: 6289 | FS43: 5720 | FT43: 5580 | FU43: 5425 | FV43: 5023 | FW43: 5215 | FX43: 5428 | FY43: 5632 | FZ43: 5727 | GA43: 5838 | GB43: 5832 | GC43: 5636 | GD43: 5156 | GE43: 4758 | GF43: 4674 | GG43: 4496 | GH43: 4115 | GI43: 4215 | GJ43: 4405 | GK43: 4591 | GL43: 4854 | GM43: 4792 | GN43: 4601 | GO43: 4348 | GP43: 4014 | GQ43: 3786 | GR43: 3669 | GS43: 3553 | GT43: 3281 | GU43: 3336 | GV43: 3580 | GW43: 3916 | GX43: 5197 | GY43: 5082 | GZ43: 4099 | HA43: 3819 | HB43: 3595 | HC43: 3481 | HD43: 3512 | HE43: 3518 | HF43: 3360 | HG43: 3465 | HH43: 3723 | HI43: 3914 | HJ43: 4219 | HK43: 4300 | HL43: 4301 | HM43: 4188 | HN43: 4092 | HO43: 4067 | HP43: 4167 | HQ43: 4257 | HR43: 4098 | HS43: 4235 | HT43: 4608 | HU43: 4844 | HV43: 5402 | HW43: 5687 | HX43: 5958 | HY43: 6799 | HZ43: 6768 | IA43: 6719 | IB43: 6826 | IC43: 6745 | ID43: 6565 | IE43: 7042 | IF43: 7619 | IG43: 8018 | IH43: 8806 | II43: 9161 | IJ43: 10707 | IK43: 34520 | IL43: 26097 | IM43: 19263 | IN43: 17598 | IO43: 18184 | IP43: 18633 | IQ43: 20664 | IR43: 22337 | IS43: 22618 | IT43: 22876 | IU43: 22392 | IV43: 21836 | IW43: 21091 | IX43: 18692 | IY43: 13969 | IZ43: 11971 | JA43: 10957 | JB43: 9790 | JC43: 9365 | JD43: 9280 | JE43: 9357 | JF43: 9620 | JG43: 9540 | JH43: 9119 | JI43: 8527 | JJ43: 7715 | JK43: 7036 | JL43: 6764 | JM43: 6617 | JN43: 6123 | JO43: 6134 | JP43: 6184 | JQ43: 6449 | JR43: 6786 | JS43: 6855 | JT43: 6661 | JU43: 6343 | JV43: 6040 | JW43: 5832 | JX43: 5709 | JY43: 5765 | JZ43: 5736 | KA43: 6010 | KB43: 6522 | KC43: 6843 | KD43: 7338 | KE43: 7592 | KF43: 7516 | KG43: 7290 | KH43: 7003 | KI43: 6723 | KJ43: 6781 | KK43: 6814 | KL43: 6785 | KM43: 7035 | KN43: 7604 | KO43: 7874 | KP43: 8564 | KQ43: 8731 | KR43: 8509 | KS43: 8102 | KT43: 7697 | KU43: 7398.095238 | KV43: 7448.26087 | KW43: 7403.190476 | KX43: 7347.681818 | KY43: 8029.73913 | KZ43: 8749.4 | LA43: 9043.347826 | LB43: 9747.772727 | LC43: 9772.45 | LD43: 9626.636364 | LE43: 9385.318182 | LF43: 8831.047619 | LG43: 8512.727273
A44: Karlar | C44: 1053 | D44: 1021 | E44: 927 | F44: 740 | G44: 621 | H44: 539 | I44: 508 | J44: 457 | K44: 468 | L44: 570 | M44: 817 | N44: 935 | O44: 912 | P44: 856 | Q44: 953 | R44: 874 | S44: 654 | T44: 581 | U44: 558 | V44: 598 | W44: 740 | X44: 987 | Y44: 1329 | Z44: 1689 | AA44: 1835 | AB44: 1895 | AC44: 1856 | AD44: 1719 | AE44: 1682 | AF44: 1560 | AG44: 1537 | AH44: 1528 | AI44: 1737 | AJ44: 2091 | AK44: 2386 | AL44: 2850 | AM44: 3203 | AN44: 3098 | AO44: 2982 | AP44: 2667 | AQ44: 2415 | AR44: 2072 | AS44: 1998 | AT44: 1824 | AU44: 1966 | AV44: 2185 | AW44: 2445 | AX44: 2664 | AY44: 2647 | AZ44: 2542 | BA44: 2450 | BB44: 2302 | BC44: 2195 | BD44: 2021 | BE44: 1897 | BF44: 1767 | BG44: 1788 | BH44: 1796 | BI44: 1935 | BJ44: 2087 | BK44: 1958 | BL44: 1758 | BM44: 1576 | BN44: 1393 | BO44: 1229 | BP44: 1128 | BQ44: 1059 | BR44: 943 | BS44: 951 | BT44: 993 | BU44: 1039 | BV44: 1098 | BW44: 1043 | BX44: 965 | BY44: 928 | BZ44: 838 | CA44: 783 | CB44: 852 | CC44: 772 | CD44: 695 | CE44: 745 | CF44: 802 | CG44: 884 | CH44: 919 | CI44: 958 | CJ44: 908 | CK44: 861 | CL44: 766 | CM44: 672 | CN44: 641 | CO44: 613 | CP44: 571 | CQ44: 562 | CR44: 580 | CS44: 620 | CT44: 718 | CU44: 763 | CV44: 814 | CW44: 842 | CX44: 813 | CY44: 825 | CZ44: 900 | DA44: 1021 | DB44: 1109 | DC44: 1687 | DD44: 3263 | DE44: 5089 | DF44: 6726 | DG44: 8618 | DH44: 9448 | DI44: 9590 | DJ44: 9227 | DK44: 8484 | DL44: 8021 | DM44: 7740 | DN44: 7228 | DO44: 7585 | DP44: 8066 | DQ44: 8424 | DR44: 9050 | DS44: 9308 | DT44: 9313 | DU44: 8942 | DV44: 8211 | DW44: 7431 | DX44: 6995 | DY44: 6718 | DZ44: 6567 | EA44: 6983 | EB44: 7291 | EC44: 7625 | ED44: 8047 | EE44: 8225 | EF44: 8150 | EG44: 7763 | EH44: 7119 | EI44: 6448 | EJ44: 6105 | EK44: 5966 | EL44: 5721 | EM44: 5808 | EN44: 6136 | EO44: 6478 | EP44: 6533 | EQ44: 6618 | ER44: 6428 | ES44: 5904 | ET44: 5116 | EU44: 4281 | EV44: 3988 | EW44: 3928 | EX44: 3916 | EY44: 4123 | EZ44: 4412 | FA44: 4694 | FB44: 4500 | FC44: 4531 | FD44: 4372 | FE44: 4011 | FF44: 3613 | FG44: 3193 | FH44: 3036 | FI44: 2955 | FJ44: 2783 | FK44: 2892 | FL44: 3144 | FM44: 3401 | FN44: 3617 | FO44: 3616 | FP44: 3549 | FQ44: 3330 | FR44: 2893 | FS44: 2543 | FT44: 2426 | FU44: 2377 | FV44: 2254 | FW44: 2378 | FX44: 2566 | FY44: 2753 | FZ44: 2820 | GA44: 2839 | GB44: 2834 | GC44: 2698 | GD44: 2378 | GE44: 2092 | GF44: 1991 | GG44: 1916 | GH44: 1834 | GI44: 1899 | GJ44: 2044 | GK44: 2210 | GL44: 2359 | GM44: 2326 | GN44: 2242 | GO44: 2025 | GP44: 1791 | GQ44: 1636 | GR44: 1531 | GS44: 1495 | GT44: 1429 | GU44: 1495 | GV44: 1668 | GW44: 1855 | GX44: 2549 | GY44: 2538 | GZ44: 2055 | HA44: 1899 | HB44: 1731 | HC44: 1632 | HD44: 1587 | HE44: 1614 | HF44: 1610 | HG44: 1696 | HH44: 1883 | HI44: 2041 | HJ44: 2223 | HK44: 2321 | HL44: 2322 | HM44: 2218 | HN44: 2134 | HO44: 2079 | HP44: 2086 | HQ44: 2169 | HR44: 2166 | HS44: 2249 | HT44: 2485 | HU44: 2618 | HV44: 2939 | HW44: 3110 | HX44: 3296 | HY44: 3733 | HZ44: 3699 | IA44: 3601 | IB44: 3608 | IC44: 3572 | ID44: 3582 | IE44: 3912 | IF44: 4322 | IG44: 4605 | IH44: 5104 | II44: 5320 | IJ44: 6205 | IK44: 19568 | IL44: 15011 | IM44: 10891 | IN44: 9674 | IO44: 10014 | IP44: 10302 | IQ44: 11364 | IR44: 12337 | IS44: 12683 | IT44: 12905 | IU44: 12633 | IV44: 12259 | IW44: 11697 | IX44: 10214 | IY44: 7509 | IZ44: 6401 | JA44: 5921 | JB44: 5492 | JC44: 5291 | JD44: 5315 | JE44: 5418 | JF44: 5602 | JG44: 5541 | JH44: 5278 | JI44: 4882 | JJ44: 4237 | JK44: 3837 | JL44: 3664 | JM44: 3607 | JN44: 3359 | JO44: 3376 | JP44: 3430 | JQ44: 3618 | JR44: 3825 | JS44: 3910 | JT44: 3759 | JU44: 3525 | JV44: 3334 | JW44: 3186 | JX44: 3092 | JY44: 3138 | JZ44: 3176 | KA44: 3376 | KB44: 3736 | KC44: 3972 | KD44: 4261 | KE44: 4392 | KF44: 4345 | KG44: 4154 | KH44: 3952 | KI44: 3785 | KJ44: 3777 | KK44: 3827 | KL44: 3810 | KM44: 3979 | KN44: 4308 | KO44: 4571 | KP44: 4998 | KQ44: 5130 | KR44: 5038 | KS44: 4801 | KT44: 4494 | KU44: 4291.619048 | KV44: 4287.782609 | KW44: 4247.52381 | KX44: 4249.454545 | KY44: 4660.652174 | KZ44: 5129.6 | LA44: 5427.608696 | LB44: 5851.818182 | LC44: 5849 | LD44: 5760.909091 | LE44: 5597.772727 | LF44: 5251.333333 | LG44: 5047.636364
A45: Konur | C45: 1391 | D45: 1354 | E45: 1272 | F45: 1201 | G45: 1182 | H45: 1136 | I45: 1039 | J45: 822 | K45: 816 | L45: 885 | M45: 1095 | N45: 1235 | O45: 1211 | P45: 1156 | Q45: 1307 | R45: 1380 | S45: 1173 | T45: 1124 | U45: 1045 | V45: 926 | W45: 1025 | X45: 1177 | Y45: 1380 | Z45: 1617 | AA45: 1722 | AB45: 1793 | AC45: 1835 | AD45: 1844 | AE45: 1873 | AF45: 1967 | AG45: 1862 | AH45: 1648 | AI45: 1789 | AJ45: 1984 | AK45: 2095 | AL45: 2354 | AM45: 2552 | AN45: 2545 | AO45: 2526 | AP45: 2625 | AQ45: 2666 | AR45: 2602 | AS45: 2458 | AT45: 2075 | AU45: 2096 | AV45: 2214 | AW45: 2285 | AX45: 2421 | AY45: 2449 | AZ45: 2448 | BA45: 2453 | BB45: 2597 | BC45: 2681 | BD45: 2690 | BE45: 2558 | BF45: 2122 | BG45: 2091 | BH45: 2085 | BI45: 2154 | BJ45: 2264 | BK45: 2196 | BL45: 2038 | BM45: 1959 | BN45: 1939 | BO45: 2011 | BP45: 2007 | BQ45: 1791 | BR45: 1325 | BS45: 1241 | BT45: 1250 | BU45: 1272 | BV45: 1342 | BW45: 1292 | BX45: 1220 | BY45: 1183 | BZ45: 1224 | CA45: 1249 | CB45: 1333 | CC45: 1176 | CD45: 929 | CE45: 898 | CF45: 944 | CG45: 994 | CH45: 1059 | CI45: 1075 | CJ45: 1024 | CK45: 1001 | CL45: 991 | CM45: 956 | CN45: 935 | CO45: 862 | CP45: 761 | CQ45: 753 | CR45: 738 | CS45: 738 | CT45: 823 | CU45: 866 | CV45: 861 | CW45: 870 | CX45: 919 | CY45: 1010 | CZ45: 1064 | DA45: 1107 | DB45: 1111 | DC45: 1415 | DD45: 2171 | DE45: 2801 | DF45: 3713 | DG45: 4637 | DH45: 5080 | DI45: 5210 | DJ45: 5360 | DK45: 5598 | DL45: 5725 | DM45: 5639 | DN45: 4904 | DO45: 5086 | DP45: 5283 | DQ45: 5341 | DR45: 5645 | DS45: 5708 | DT45: 5742 | DU45: 5723 | DV45: 5659 | DW45: 5547 | DX45: 5565 | DY45: 5370 | DZ45: 4973 | EA45: 5072 | EB45: 5063 | EC45: 5112 | ED45: 5409 | EE45: 5540 | EF45: 5603 | EG45: 5493 | EH45: 5424 | EI45: 5252 | EJ45: 5311 | EK45: 5323 | EL45: 5034 | EM45: 5104 | EN45: 5210 | EO45: 5275 | EP45: 4907 | EQ45: 5002 | ER45: 5021 | ES45: 4925 | ET45: 4701 | EU45: 4422 | EV45: 4379 | EW45: 4268 | EX45: 3959 | EY45: 4064 | EZ45: 4149 | FA45: 4263 | FB45: 4184 | FC45: 4182 | FD45: 4113 | FE45: 3988 | FF45: 3902 | FG45: 3739 | FH45: 3836 | FI45: 3766 | FJ45: 3341 | FK45: 3336 | FL45: 3382 | FM45: 3427 | FN45: 3570 | FO45: 3594 | FP45: 3555 | FQ45: 3471 | FR45: 3396 | FS45: 3178 | FT45: 3155 | FU45: 3048 | FV45: 2769 | FW45: 2837 | FX45: 2862 | FY45: 2879 | FZ45: 2907 | GA45: 2999 | GB45: 2998 | GC45: 2938 | GD45: 2779 | GE45: 2666 | GF45: 2682 | GG45: 2580 | GH45: 2282 | GI45: 2316 | GJ45: 2362 | GK45: 2381 | GL45: 2494 | GM45: 2466 | GN45: 2359 | GO45: 2323 | GP45: 2224 | GQ45: 2150 | GR45: 2137 | GS45: 2058 | GT45: 1852 | GU45: 1841 | GV45: 1913 | GW45: 2061 | GX45: 2649 | GY45: 2544 | GZ45: 2044 | HA45: 1920 | HB45: 1864 | HC45: 1849 | HD45: 1925 | HE45: 1903 | HF45: 1749 | HG45: 1770 | HH45: 1841 | HI45: 1873 | HJ45: 1996 | HK45: 1979 | HL45: 1979 | HM45: 1970 | HN45: 1959 | HO45: 1988 | HP45: 2081 | HQ45: 2088 | HR45: 1932 | HS45: 1986 | HT45: 2123 | HU45: 2226 | HV45: 2464 | HW45: 2578 | HX45: 2662 | HY45: 3066 | HZ45: 3068 | IA45: 3119 | IB45: 3218 | IC45: 3174 | ID45: 2983 | IE45: 3129 | IF45: 3297 | IG45: 3414 | IH45: 3702 | II45: 3842 | IJ45: 4502 | IK45: 14952 | IL45: 11086 | IM45: 8371 | IN45: 7925 | IO45: 8170 | IP45: 8330 | IQ45: 9300 | IR45: 10000 | IS45: 9934 | IT45: 9970 | IU45: 9759 | IV45: 9577 | IW45: 9394 | IX45: 8479 | IY45: 6461 | IZ45: 5570 | JA45: 5035 | JB45: 4298 | JC45: 4074 | JD45: 3965 | JE45: 3938 | JF45: 4017 | JG45: 4000 | JH45: 3841 | JI45: 3646 | JJ45: 3478 | JK45: 3198 | JL45: 3100 | JM45: 3010 | JN45: 2764 | JO45: 2758 | JP45: 2753 | JQ45: 2831 | JR45: 2961 | JS45: 2945 | JT45: 2902 | JU45: 2818 | JV45: 2707 | JW45: 2646 | JX45: 2618 | JY45: 2627 | JZ45: 2560 | KA45: 2634 | KB45: 2786 | KC45: 2871 | KD45: 3078 | KE45: 3200 | KF45: 3171 | KG45: 3136 | KH45: 3051 | KI45: 2938 | KJ45: 3004 | KK45: 2987 | KL45: 2974 | KM45: 3056 | KN45: 3297 | KO45: 3303 | KP45: 3565 | KQ45: 3600 | KR45: 3471 | KS45: 3301 | KT45: 3203 | KU45: 3106.47619 | KV45: 3160.478261 | KW45: 3155.666667 | KX45: 3098.227273 | KY45: 3369.086957 | KZ45: 3619.8 | LA45: 3615.73913 | LB45: 3895.954545 | LC45: 3923.45 | LD45: 3865.727273 | LE45: 3787.545455 | LF45: 3579.714286 | LG45: 3465.090909
A46: Íslenskt ríkisfang | C46: 2376 | D46: 2315 | E46: 2137 | F46: 1885 | G46: 1745 | H46: 1622 | I46: 1501 | J46: 1246 | K46: 1251 | L46: 1422 | M46: 1865 | N46: 2111 | O46: 2067 | P46: 1957 | Q46: 2176 | R46: 2114 | S46: 1757 | T46: 1637 | U46: 1543 | V46: 1464 | W46: 1694 | X46: 2080 | Y46: 2617 | Z46: 3195 | AA46: 3433 | AB46: 3543 | AC46: 3538 | AD46: 3419 | AE46: 3410 | AF46: 3380 | AG46: 3254 | AH46: 3018 | AI46: 3358 | AJ46: 3888 | AK46: 4291 | AL46: 4985 | AM46: 5509 | AN46: 5405 | AO46: 5279 | AP46: 5069 | AQ46: 4872 | AR46: 4474 | AS46: 4265 | AT46: 3709 | AU46: 3860 | AV46: 4195 | AW46: 4524 | AX46: 4872 | AY46: 4878 | AZ46: 4772 | BA46: 4677 | BB46: 4684 | BC46: 4668 | BD46: 4528 | BE46: 4277 | BF46: 3728 | BG46: 3706 | BH46: 3708 | BI46: 3909 | BJ46: 4160 | BK46: 3963 | BL46: 3616 | BM46: 3364 | BN46: 3183 | BO46: 3096 | BP46: 3002 | BQ46: 2723 | BR46: 2154 | BS46: 2082 | BT46: 2137 | BU46: 2207 | BV46: 2339 | BW46: 2230 | BX46: 2082 | BY46: 2020 | BZ46: 1967 | CA46: 1944 | CB46: 2094 | CC46: 1867 | CD46: 1549 | CE46: 1576 | CF46: 1675 | CG46: 1786 | CH46: 1871 | CI46: 1916 | CJ46: 1831 | CK46: 1762 | CL46: 1655 | CM46: 1523 | CN46: 1481 | CO46: 1368 | CP46: 1220 | CQ46: 1199 | CR46: 1191 | CS46: 1230 | CT46: 1376 | CU46: 1449 | CV46: 1479 | CW46: 1504 | CX46: 1529 | CY46: 1624 | CZ46: 1759 | DA46: 1868 | DB46: 1892 | DC46: 2621 | DD46: 4558 | DE46: 6657 | DF46: 8976 | DG46: 11437 | DH46: 12525 | DI46: 12778 | DJ46: 12643 | DK46: 12295 | DL46: 12115 | DM46: 11828 | DN46: 10513 | DO46: 11031 | DP46: 11641 | DQ46: 11826 | DR46: 12659 | DS46: 12776 | DT46: 12769 | DU46: 12422 | DV46: 11674 | DW46: 10881 | DX46: 10601 | DY46: 10178 | DZ46: 9633 | EA46: 10030 | EB46: 10268 | EC46: 10643 | ED46: 11230 | EE46: 11477 | EF46: 11458 | EG46: 11043 | EH46: 10446 | EI46: 9756 | EJ46: 9607 | EK46: 9467 | EL46: 8981 | EM46: 9092 | EN46: 9438 | EO46: 9783 | EP46: 9379 | EQ46: 9506 | ER46: 9365 | ES46: 8884 | ET46: 8053 | EU46: 7089 | EV46: 6844 | EW46: 6633 | EX46: 6325 | EY46: 6620 | EZ46: 6935 | FA46: 7278 | FB46: 7070 | FC46: 7113 | FD46: 6910 | FE46: 6523 | FF46: 6113 | FG46: 5644 | FH46: 5625 | FI46: 5481 | FJ46: 4961 | FK46: 5069 | FL46: 5341 | FM46: 5550 | FN46: 5838 | FO46: 5853 | FP46: 5791 | FQ46: 5507 | FR46: 5045 | FS46: 4605 | FT46: 4556 | FU46: 4398 | FV46: 4040 | FW46: 4192 | FX46: 4319 | FY46: 4477 | FZ46: 4580 | GA46: 4683 | GB46: 4657 | GC46: 4533 | GD46: 4134 | GE46: 3793 | GF46: 3762 | GG46: 3596 | GH46: 3282 | GI46: 3354 | GJ46: 3495 | GK46: 3602 | GL46: 3841 | GM46: 3806 | GN46: 3645 | GO46: 3449 | GP46: 3172 | GQ46: 2986 | GR46: 2887 | GS46: 2802 | GT46: 2573 | GU46: 2611 | GV46: 2784 | GW46: 2986 | GX46: 3664 | GY46: 3631 | GZ46: 3087 | HA46: 2845 | HB46: 2673 | HC46: 2576 | HD46: 2606 | HE46: 2598 | HF46: 2453 | HG46: 2550 | HH46: 2679 | HI46: 2784 | HJ46: 3017 | HK46: 3033 | HL46: 3004 | HM46: 2900 | HN46: 2769 | HO46: 2699 | HP46: 2787 | HQ46: 2839 | HR46: 2731 | HS46: 2797 | HT46: 3011 | HU46: 3106 | HV46: 3457 | HW46: 3644 | HX46: 3829 | HY46: 4468 | HZ46: 4328 | IA46: 4249 | IB46: 4363 | IC46: 4277 | ID46: 4081 | IE46: 4346 | IF46: 4556 | IG46: 4743 | IH46: 5225 | II46: 5438 | IJ46: 6624 | IK46: 24160 | IL46: 17544 | IM46: 11871 | IN46: 10668 | IO46: 11126 | IP46: 10978 | IQ46: 12340 | IR46: 13427 | IS46: 13468 | IT46: 13716 | IU46: 13370 | IV46: 13084 | IW46: 12689 | IX46: 11282 | IY46: 8286 | IZ46: 7142 | JA46: 6602 | JB46: 5823 | JC46: 5533 | JD46: 5408 | JE46: 5331 | JF46: 5465 | JG46: 5363 | JH46: 5145 | JI46: 4822 | JJ46: 4368 | JK46: 3887 | JL46: 3777 | JM46: 3652 | JN46: 3340 | JO46: 3323 | JP46: 3274 | JQ46: 3360 | JR46: 3536 | JS46: 3611 | JT46: 3498 | JU46: 3305 | JV46: 3076 | JW46: 2957 | JX46: 2921 | JY46: 2952 | JZ46: 2824 | KA46: 2848 | KB46: 2972 | KC46: 3042 | KD46: 3278 | KE46: 3415 | KF46: 3344 | KG46: 3213 | KH46: 3061 | KI46: 2953 | KJ46: 3089 | KK46: 3143 | KL46: 3073 | KM46: 3207 | KN46: 3322 | KO46: 3277 | KP46: 3590 | KQ46: 3702 | KR46: 3667 | KS46: 3516 | KT46: 3351 | KU46: 3249.952381 | KV46: 3303.782609 | KW46: 3247.380952 | KX46: 3164.318182 | KY46: 3468.913043 | KZ46: 3610.35 | LA46: 3594.913043 | LB46: 4008.136364 | LC46: 4081.8 | LD46: 4126.272727 | LE46: 4061.681818 | LF46: 3875.52381 | LG46: 3804.954545
A47: Erlent ríkisfang | C47: 68 | D47: 59 | E47: 63 | F47: 56 | G47: 59 | H47: 53 | I47: 47 | J47: 33 | K47: 33 | L47: 32 | M47: 47 | N47: 59 | O47: 57 | P47: 55 | Q47: 85 | R47: 140 | S47: 70 | T47: 68 | U47: 60 | V47: 59 | W47: 71 | X47: 85 | Y47: 91 | Z47: 111 | AA47: 124 | AB47: 144 | AC47: 153 | AD47: 145 | AE47: 146 | AF47: 147 | AG47: 144 | AH47: 158 | AI47: 169 | AJ47: 187 | AK47: 190 | AL47: 220 | AM47: 246 | AN47: 237 | AO47: 229 | AP47: 223 | AQ47: 209 | AR47: 200 | AS47: 191 | AT47: 190 | AU47: 201 | AV47: 204 | AW47: 206 | AX47: 213 | AY47: 218 | AZ47: 219 | BA47: 225 | BB47: 215 | BC47: 208 | BD47: 183 | BE47: 178 | BF47: 161 | BG47: 173 | BH47: 173 | BI47: 181 | BJ47: 191 | BK47: 191 | BL47: 179 | BM47: 171 | BN47: 149 | BO47: 145 | BP47: 133 | BQ47: 127 | BR47: 114 | BS47: 109 | BT47: 106 | BU47: 104 | BV47: 101 | BW47: 105 | BX47: 103 | BY47: 91 | BZ47: 94 | CA47: 88 | CB47: 91 | CC47: 80 | CD47: 75 | CE47: 67 | CF47: 72 | CG47: 92 | CH47: 107 | CI47: 116 | CJ47: 101 | CK47: 101 | CL47: 102 | CM47: 105 | CN47: 95 | CO47: 107 | CP47: 111 | CQ47: 116 | CR47: 126 | CS47: 127 | CT47: 166 | CU47: 180 | CV47: 196 | CW47: 207 | CX47: 203 | CY47: 211 | CZ47: 205 | DA47: 261 | DB47: 328 | DC47: 481 | DD47: 876 | DE47: 1232 | DF47: 1463 | DG47: 1819 | DH47: 2002 | DI47: 2022 | DJ47: 1945 | DK47: 1786 | DL47: 1631 | DM47: 1552 | DN47: 1619 | DO47: 1641 | DP47: 1708 | DQ47: 1939 | DR47: 2036 | DS47: 2240 | DT47: 2287 | DU47: 2243 | DV47: 2196 | DW47: 2097 | DX47: 1958 | DY47: 1911 | DZ47: 1907 | EA47: 2025 | EB47: 2086 | EC47: 2093 | ED47: 2226 | EE47: 2287 | EF47: 2295 | EG47: 2213 | EH47: 2097 | EI47: 1945 | EJ47: 1808 | EK47: 1822 | EL47: 1774 | EM47: 1820 | EN47: 1908 | EO47: 1969 | EP47: 2061 | EQ47: 2114 | ER47: 2084 | ES47: 1945 | ET47: 1765 | EU47: 1614 | EV47: 1524 | EW47: 1564 | EX47: 1549 | EY47: 1568 | EZ47: 1626 | FA47: 1678 | FB47: 1613 | FC47: 1601 | FD47: 1575 | FE47: 1475 | FF47: 1401 | FG47: 1288 | FH47: 1248 | FI47: 1240 | FJ47: 1163 | FK47: 1160 | FL47: 1185 | FM47: 1278 | FN47: 1349 | FO47: 1357 | FP47: 1314 | FQ47: 1294 | FR47: 1245 | FS47: 1116 | FT47: 1025 | FU47: 1028 | FV47: 982 | FW47: 1023 | FX47: 1109 | FY47: 1155 | FZ47: 1147 | GA47: 1155 | GB47: 1174 | GC47: 1102 | GD47: 1022 | GE47: 965 | GF47: 912 | GG47: 900 | GH47: 834 | GI47: 861 | GJ47: 911 | GK47: 990 | GL47: 1012 | GM47: 987 | GN47: 956 | GO47: 899 | GP47: 843 | GQ47: 800 | GR47: 781 | GS47: 750 | GT47: 709 | GU47: 725 | GV47: 797 | GW47: 930 | GX47: 1534 | GY47: 1451 | GZ47: 1012 | HA47: 974 | HB47: 922 | HC47: 905 | HD47: 906 | HE47: 920 | HF47: 907 | HG47: 916 | HH47: 1045 | HI47: 1129 | HJ47: 1202 | HK47: 1267 | HL47: 1298 | HM47: 1288 | HN47: 1323 | HO47: 1368 | HP47: 1381 | HQ47: 1418 | HR47: 1367 | HS47: 1438 | HT47: 1597 | HU47: 1738 | HV47: 1945 | HW47: 2043 | HX47: 2129 | HY47: 2331 | HZ47: 2440 | IA47: 2470 | IB47: 2463 | IC47: 2468 | ID47: 2484 | IE47: 2696 | IF47: 3064 | IG47: 3275 | IH47: 3581 | II47: 3723 | IJ47: 4083 | IK47: 10360 | IL47: 8552 | IM47: 7392 | IN47: 6930 | IO47: 7058 | IP47: 7655 | IQ47: 8324 | IR47: 8909 | IS47: 9150 | IT47: 9159 | IU47: 9022 | IV47: 8752 | IW47: 8402 | IX47: 7411 | IY47: 5683 | IZ47: 4829 | JA47: 4354 | JB47: 3967 | JC47: 3832 | JD47: 3872 | JE47: 4025 | JF47: 4154 | JG47: 4177 | JH47: 3974 | JI47: 3705 | JJ47: 3347 | JK47: 3149 | JL47: 2987 | JM47: 2965 | JN47: 2782 | JO47: 2811 | JP47: 2909 | JQ47: 3089 | JR47: 3250 | JS47: 3244 | JT47: 3163 | JU47: 3037 | JV47: 2965 | JW47: 2875 | JX47: 2788 | JY47: 2813 | JZ47: 2911 | KA47: 3161 | KB47: 3550 | KC47: 3801 | KD47: 4060 | KE47: 4177 | KF47: 4172 | KG47: 4077 | KH47: 3943 | KI47: 3770 | KJ47: 3691 | KK47: 3671 | KL47: 3712 | KM47: 3828 | KN47: 4282 | KO47: 4597 | KP47: 4973 | KQ47: 5029 | KR47: 4842 | KS47: 4586 | KT47: 4346 | KU47: 4148.142857 | KV47: 4144.478261 | KW47: 4155.809524 | KX47: 4183.363636 | KY47: 4560.826087 | KZ47: 5139.05 | LA47: 5448.434783 | LB47: 5739.636364 | LC47: 5690.3 | LD47: 5500.363636 | LE47: 5323.636364 | LF47: 4955.52381 | LG47: 4707.772727
A48: Höfuðborgarsvæði alls | C48: 1444 | D48: 1437 | E48: 1344 | F48: 1241 | G48: 1236 | H48: 1201 | I48: 1096 | J48: 888 | K48: 856 | L48: 853 | M48: 919 | N48: 987 | O48: 998 | P48: 1018 | Q48: 1064 | R48: 1053 | S48: 1185 | T48: 1201 | U48: 1129 | V48: 1024 | W48: 1140 | X48: 1337 | Y48: 1563 | Z48: 1890 | AA48: 2173 | AB48: 2401 | AC48: 2449 | AD48: 2454 | AE48: 2587 | AF48: 2654 | AG48: 2523 | AH48: 2272 | AI48: 2454 | AJ48: 2638 | AK48: 2815 | AL48: 3166 | AM48: 3607 | AN48: 3653 | AO48: 3590 | AP48: 3569 | AQ48: 3649 | AR48: 3502 | AS48: 3305 | AT48: 2828 | AU48: 2853 | AV48: 3002 | AW48: 3110 | AX48: 3274 | AY48: 3333 | AZ48: 3387 | BA48: 3331 | BB48: 3428 | BC48: 3595 | BD48: 3507 | BE48: 3307 | BF48: 2807 | BG48: 2725 | BH48: 2655 | BI48: 2676 | BJ48: 2777 | BK48: 2735 | BL48: 2543 | BM48: 2378 | BN48: 2325 | BO48: 2352 | BP48: 2285 | BQ48: 2022 | BR48: 1542 | BS48: 1359 | BT48: 1302 | BU48: 1271 | BV48: 1299 | BW48: 1295 | BX48: 1230 | BY48: 1218 | BZ48: 1214 | CA48: 1338 | CB48: 1434 | CC48: 1221 | CD48: 962 | CE48: 958 | CF48: 942 | CG48: 990 | CH48: 994 | CI48: 1051 | CJ48: 1025 | CK48: 976 | CL48: 964 | CM48: 956 | CN48: 917 | CO48: 834 | CP48: 680 | CQ48: 652 | CR48: 613 | CS48: 599 | CT48: 665 | CU48: 705 | CV48: 779 | CW48: 825 | CX48: 879 | CY48: 1041 | CZ48: 1154 | DA48: 1305 | DB48: 1343 | DC48: 1889 | DD48: 3390 | DE48: 4934 | DF48: 6580 | DG48: 8616 | DH48: 9608 | DI48: 9968 | DJ48: 9966 | DK48: 10059 | DL48: 9964 | DM48: 9711 | DN48: 8642 | DO48: 8865 | DP48: 9106 | DQ48: 9234 | DR48: 9695 | DS48: 9997 | DT48: 10057 | DU48: 9855 | DV48: 9471 | DW48: 9105 | DX48: 8868 | DY48: 8606 | DZ48: 8164 | EA48: 8433 | EB48: 8386 | EC48: 8518 | ED48: 8909 | EE48: 9123 | EF48: 9190 | EG48: 8953 | EH48: 8660 | EI48: 8312 | EJ48: 8150 | EK48: 8125 | EL48: 7754 | EM48: 7743 | EN48: 7893 | EO48: 8037 | EP48: 7726 | EQ48: 7869 | ER48: 7818 | ES48: 7423 | ET48: 6838 | EU48: 6252 | EV48: 6014 | EW48: 5902 | EX48: 5623 | EY48: 5720 | EZ48: 5851 | FA48: 6006 | FB48: 5710 | FC48: 5817 | FD48: 5707 | FE48: 5452 | FF48: 5246 | FG48: 5030 | FH48: 4990 | FI48: 4911 | FJ48: 4440 | FK48: 4417 | FL48: 4517 | FM48: 4575 | FN48: 4782 | FO48: 4767 | FP48: 4756 | FQ48: 4545 | FR48: 4329 | FS48: 4125 | FT48: 4089 | FU48: 3974 | FV48: 3595 | FW48: 3681 | FX48: 3705 | FY48: 3723 | FZ48: 3671 | GA48: 3772 | GB48: 3830 | GC48: 3749 | GD48: 3575 | GE48: 3423 | GF48: 3400 | GG48: 3238 | GH48: 2915 | GI48: 2933 | GJ48: 3010 | GK48: 3061 | GL48: 3207 | GM48: 3223 | GN48: 3123 | GO48: 3004 | GP48: 2836 | GQ48: 2808 | GR48: 2764 | GS48: 2687 | GT48: 2427 | GU48: 2431 | GV48: 2494 | GW48: 2482 | GX48: 2714 | GY48: 2736 | GZ48: 2635 | HA48: 2512 | HB48: 2443 | HC48: 2444 | HD48: 2473 | HE48: 2478 | HF48: 2335 | HG48: 2372 | HH48: 2469 | HI48: 2565 | HJ48: 2707 | HK48: 2774 | HL48: 2843 | HM48: 2807 | HN48: 2833 | HO48: 2879 | HP48: 2961 | HQ48: 3006 | HR48: 2856 | HS48: 2909 | HT48: 3107 | HU48: 3172 | HV48: 3503 | HW48: 3732 | HX48: 3942 | HY48: 4637 | HZ48: 4671 | IA48: 4695 | IB48: 4828 | IC48: 4769 | ID48: 4590 | IE48: 4819 | IF48: 5029 | IG48: 5220 | IH48: 5696 | II48: 5961 | IJ48: 7105 | IK48: 22889 | IL48: 17198 | IM48: 12839 | IN48: 11878 | IO48: 12250 | IP48: 12268 | IQ48: 13537 | IR48: 14410 | IS48: 14400 | IT48: 14562 | IU48: 14320 | IV48: 14111 | IW48: 13803 | IX48: 12528 | IY48: 9785 | IZ48: 8557 | JA48: 7864 | JB48: 6928 | JC48: 6526 | JD48: 6291 | JE48: 6232 | JF48: 6364 | JG48: 6371 | JH48: 6149 | JI48: 5865 | JJ48: 5381 | JK48: 5009 | JL48: 4807 | JM48: 4704 | JN48: 4365 | JO48: 4245 | JP48: 4148 | JQ48: 4223 | JR48: 4391 | JS48: 4517 | JT48: 4489 | JU48: 4329 | JV48: 4199 | JW48: 4160 | JX48: 4062 | JY48: 4094 | JZ48: 4016 | KA48: 4076 | KB48: 4273 | KC48: 4355 | KD48: 4637 | KE48: 4809 | KF48: 4871 | KG48: 4818 | KH48: 4751 | KI48: 4593 | KJ48: 4631 | KK48: 4630 | KL48: 4529 | KM48: 4574 | KN48: 4753 | KO48: 4846 | KP48: 5276 | KQ48: 5493 | KR48: 5485 | KS48: 5326 | KT48: 5236 | KU48: 5127.619048 | KV48: 5195.434783 | KW48: 5185.047619 | KX48: 5092.318182 | KY48: 5373.913043 | KZ48: 5571.9 | LA48: 5658.043478 | LB48: 6113.454545 | LC48: 6233.35 | LD48: 6294.590909 | LE48: 6301.318182 | LF48: 6121.52381 | LG48: 6026.136364
A49: Höfuðborgarsvæði karlar | C49: 645 | D49: 647 | E49: 591 | F49: 504 | G49: 442 | H49: 401 | I49: 371 | J49: 340 | K49: 344 | L49: 354 | M49: 406 | N49: 447 | O49: 454 | P49: 456 | Q49: 472 | R49: 461 | S49: 435 | T49: 427 | U49: 411 | V49: 423 | W49: 508 | X49: 644 | Y49: 780 | Z49: 998 | AA49: 1156 | AB49: 1262 | AC49: 1250 | AD49: 1209 | AE49: 1228 | AF49: 1194 | AG49: 1155 | AH49: 1125 | AI49: 1249 | AJ49: 1385 | AK49: 1537 | AL49: 1762 | AM49: 2038 | AN49: 2059 | AO49: 1999 | AP49: 1851 | AQ49: 1765 | AR49: 1603 | AS49: 1543 | AT49: 1397 | AU49: 1458 | AV49: 1560 | AW49: 1683 | AX49: 1792 | AY49: 1814 | AZ49: 1835 | BA49: 1772 | BB49: 1698 | BC49: 1688 | BD49: 1589 | BE49: 1466 | BF49: 1326 | BG49: 1320 | BH49: 1293 | BI49: 1323 | BJ49: 1388 | BK49: 1357 | BL49: 1250 | BM49: 1138 | BN49: 1037 | BO49: 936 | BP49: 852 | BQ49: 788 | BR49: 699 | BS49: 645 | BT49: 643 | BU49: 634 | BV49: 646 | BW49: 653 | BX49: 621 | BY49: 606 | BZ49: 550 | CA49: 565 | CB49: 607 | CC49: 536 | CD49: 472 | CE49: 504 | CF49: 501 | CG49: 530 | CH49: 522 | CI49: 569 | CJ49: 564 | CK49: 522 | CL49: 475 | CM49: 433 | CN49: 405 | CO49: 372 | CP49: 317 | CQ49: 308 | CR49: 303 | CS49: 313 | CT49: 348 | CU49: 373 | CV49: 425 | CW49: 458 | CX49: 458 | CY49: 503 | CZ49: 561 | DA49: 660 | DB49: 732 | DC49: 1100 | DD49: 2132 | DE49: 3265 | DF49: 4352 | DG49: 5744 | DH49: 6391 | DI49: 6615 | DJ49: 6479 | DK49: 6237 | DL49: 5998 | DM49: 5791 | DN49: 5327 | DO49: 5461 | DP49: 5635 | DQ49: 5726 | DR49: 6031 | DS49: 6279 | DT49: 6303 | DU49: 6102 | DV49: 5707 | DW49: 5317 | DX49: 5054 | DY49: 4916 | DZ49: 4757 | EA49: 4975 | EB49: 5031 | EC49: 5155 | ED49: 5367 | EE49: 5478 | EF49: 5472 | EG49: 5271 | EH49: 4952 | EI49: 4625 | EJ49: 4424 | EK49: 4360 | EL49: 4195 | EM49: 4207 | EN49: 4325 | EO49: 4464 | EP49: 4445 | EQ49: 4543 | ER49: 4459 | ES49: 4120 | ET49: 3623 | EU49: 3142 | EV49: 2928 | EW49: 2883 | EX49: 2836 | EY49: 2937 | EZ49: 3066 | FA49: 3181 | FB49: 2976 | FC49: 3053 | FD49: 2977 | FE49: 2766 | FF49: 2545 | FG49: 2322 | FH49: 2209 | FI49: 2156 | FJ49: 2038 | FK49: 2063 | FL49: 2175 | FM49: 2259 | FN49: 2384 | FO49: 2373 | FP49: 2388 | FQ49: 2218 | FR49: 1994 | FS49: 1840 | FT49: 1771 | FU49: 1732 | FV49: 1607 | FW49: 1673 | FX49: 1729 | FY49: 1782 | FZ49: 1779 | GA49: 1824 | GB49: 1885 | GC49: 1810 | GD49: 1657 | GE49: 1496 | GF49: 1445 | GG49: 1373 | GH49: 1288 | GI49: 1318 | GJ49: 1397 | GK49: 1456 | GL49: 1553 | GM49: 1574 | GN49: 1549 | GO49: 1419 | GP49: 1284 | GQ49: 1222 | GR49: 1166 | GS49: 1145 | GT49: 1079 | GU49: 1102 | GV49: 1164 | GW49: 1162 | GX49: 1303 | GY49: 1340 | GZ49: 1305 | HA49: 1237 | HB49: 1180 | HC49: 1133 | HD49: 1110 | HE49: 1144 | HF49: 1138 | HG49: 1179 | HH49: 1268 | HI49: 1367 | HJ49: 1456 | HK49: 1523 | HL49: 1570 | HM49: 1523 | HN49: 1525 | HO49: 1517 | HP49: 1525 | HQ49: 1587 | HR49: 1554 | HS49: 1575 | HT49: 1686 | HU49: 1704 | HV49: 1898 | HW49: 2018 | HX49: 2154 | HY49: 2493 | HZ49: 2502 | IA49: 2476 | IB49: 2525 | IC49: 2505 | ID49: 2504 | IE49: 2696 | IF49: 2879 | IG49: 3019 | IH49: 3316 | II49: 3481 | IJ49: 4157 | IK49: 12990 | IL49: 10011 | IM49: 7329 | IN49: 6539 | IO49: 6775 | IP49: 6842 | IQ49: 7486 | IR49: 8020 | IS49: 8147 | IT49: 8306 | IU49: 8210 | IV49: 8055 | IW49: 7791 | IX49: 6977 | IY49: 5362 | IZ49: 4666 | JA49: 4356 | JB49: 3961 | JC49: 3736 | JD49: 3656 | JE49: 3679 | JF49: 3790 | JG49: 3786 | JH49: 3635 | JI49: 3449 | JJ49: 3062 | JK49: 2789 | JL49: 2651 | JM49: 2610 | JN49: 2452 | JO49: 2392 | JP49: 2341 | JQ49: 2415 | JR49: 2503 | JS49: 2601 | JT49: 2552 | JU49: 2439 | JV49: 2354 | JW49: 2305 | JX49: 2224 | JY49: 2233 | JZ49: 2228 | KA49: 2286 | KB49: 2453 | KC49: 2545 | KD49: 2705 | KE49: 2789 | KF49: 2838 | KG49: 2774 | KH49: 2713 | KI49: 2579 | KJ49: 2543 | KK49: 2555 | KL49: 2520 | KM49: 2563 | KN49: 2679 | KO49: 2812 | KP49: 3080 | KQ49: 3241 | KR49: 3258 | KS49: 3148 | KT49: 3056 | KU49: 2966.619048 | KV49: 2981 | KW49: 2952.095238 | KX49: 2912 | KY49: 3086.217391 | KZ49: 3264.05 | LA49: 3412.347826 | LB49: 3683.090909 | LC49: 3750.25 | LD49: 3792.090909 | LE49: 3784.090909 | LF49: 3655.047619 | LG49: 3578.272727
A50: Höfuðborgarsvæði konur | C50: 799 | D50: 791 | E50: 752 | F50: 737 | G50: 794 | H50: 800 | I50: 725 | J50: 548 | K50: 513 | L50: 500 | M50: 513 | N50: 540 | O50: 544 | P50: 563 | Q50: 593 | R50: 592 | S50: 751 | T50: 774 | U50: 718 | V50: 601 | W50: 632 | X50: 693 | Y50: 783 | Z50: 892 | AA50: 1017 | AB50: 1139 | AC50: 1199 | AD50: 1245 | AE50: 1359 | AF50: 1460 | AG50: 1367 | AH50: 1146 | AI50: 1205 | AJ50: 1253 | AK50: 1278 | AL50: 1404 | AM50: 1570 | AN50: 1594 | AO50: 1591 | AP50: 1719 | AQ50: 1884 | AR50: 1900 | AS50: 1762 | AT50: 1431 | AU50: 1395 | AV50: 1442 | AW50: 1428 | AX50: 1482 | AY50: 1519 | AZ50: 1552 | BA50: 1559 | BB50: 1730 | BC50: 1907 | BD50: 1918 | BE50: 1842 | BF50: 1482 | BG50: 1405 | BH50: 1362 | BI50: 1353 | BJ50: 1389 | BK50: 1377 | BL50: 1293 | BM50: 1240 | BN50: 1288 | BO50: 1416 | BP50: 1432 | BQ50: 1234 | BR50: 843 | BS50: 714 | BT50: 659 | BU50: 637 | BV50: 653 | BW50: 642 | BX50: 609 | BY50: 612 | BZ50: 664 | CA50: 773 | CB50: 827 | CC50: 685 | CD50: 489 | CE50: 454 | CF50: 441 | CG50: 460 | CH50: 472 | CI50: 482 | CJ50: 461 | CK50: 454 | CL50: 488 | CM50: 522 | CN50: 512 | CO50: 462 | CP50: 363 | CQ50: 344 | CR50: 311 | CS50: 286 | CT50: 317 | CU50: 333 | CV50: 354 | CW50: 367 | CX50: 421 | CY50: 538 | CZ50: 594 | DA50: 645 | DB50: 611 | DC50: 789 | DD50: 1258 | DE50: 1669 | DF50: 2228 | DG50: 2872 | DH50: 3217 | DI50: 3352 | DJ50: 3487 | DK50: 3822 | DL50: 3966 | DM50: 3920 | DN50: 3315 | DO50: 3404 | DP50: 3471 | DQ50: 3508 | DR50: 3664 | DS50: 3718 | DT50: 3754 | DU50: 3754 | DV50: 3765 | DW50: 3788 | DX50: 3814 | DY50: 3690 | DZ50: 3407 | EA50: 3458 | EB50: 3355 | EC50: 3363 | ED50: 3542 | EE50: 3645 | EF50: 3718 | EG50: 3682 | EH50: 3708 | EI50: 3687 | EJ50: 3727 | EK50: 3765 | EL50: 3559 | EM50: 3537 | EN50: 3568 | EO50: 3572 | EP50: 3281 | EQ50: 3326 | ER50: 3358 | ES50: 3303 | ET50: 3215 | EU50: 3110 | EV50: 3086 | EW50: 3020 | EX50: 2787 | EY50: 2782 | EZ50: 2785 | FA50: 2825 | FB50: 2734 | FC50: 2764 | FD50: 2729 | FE50: 2686 | FF50: 2700 | FG50: 2708 | FH50: 2781 | FI50: 2755 | FJ50: 2401 | FK50: 2354 | FL50: 2342 | FM50: 2316 | FN50: 2398 | FO50: 2394 | FP50: 2369 | FQ50: 2327 | FR50: 2334 | FS50: 2285 | FT50: 2318 | FU50: 2243 | FV50: 1987 | FW50: 2008 | FX50: 1977 | FY50: 1940 | FZ50: 1893 | GA50: 1948 | GB50: 1946 | GC50: 1939 | GD50: 1918 | GE50: 1928 | GF50: 1956 | GG50: 1865 | GH50: 1626 | GI50: 1616 | GJ50: 1612 | GK50: 1605 | GL50: 1654 | GM50: 1649 | GN50: 1574 | GO50: 1585 | GP50: 1552 | GQ50: 1586 | GR50: 1598 | GS50: 1541 | GT50: 1348 | GU50: 1329 | GV50: 1330 | GW50: 1319 | GX50: 1411 | GY50: 1396 | GZ50: 1330 | HA50: 1275 | HB50: 1263 | HC50: 1311 | HD50: 1363 | HE50: 1334 | HF50: 1197 | HG50: 1193 | HH50: 1201 | HI50: 1199 | HJ50: 1252 | HK50: 1251 | HL50: 1273 | HM50: 1284 | HN50: 1308 | HO50: 1363 | HP50: 1436 | HQ50: 1419 | HR50: 1302 | HS50: 1334 | HT50: 1421 | HU50: 1468 | HV50: 1606 | HW50: 1714 | HX50: 1787 | HY50: 2144 | HZ50: 2170 | IA50: 2219 | IB50: 2304 | IC50: 2263 | ID50: 2086 | IE50: 2123 | IF50: 2150 | IG50: 2201 | IH50: 2380 | II50: 2480 | IJ50: 2948 | IK50: 9900 | IL50: 7187 | IM50: 5511 | IN50: 5339 | IO50: 5475 | IP50: 5426 | IQ50: 6051 | IR50: 6390 | IS50: 6253 | IT50: 6255 | IU50: 6111 | IV50: 6056 | IW50: 6012 | IX50: 5551 | IY50: 4423 | IZ50: 3891 | JA50: 3508 | JB50: 2967 | JC50: 2790 | JD50: 2635 | JE50: 2554 | JF50: 2573 | JG50: 2584 | JH50: 2514 | JI50: 2417 | JJ50: 2319 | JK50: 2220 | JL50: 2156 | JM50: 2095 | JN50: 1913 | JO50: 1854 | JP50: 1806 | JQ50: 1809 | JR50: 1888 | JS50: 1915 | JT50: 1937 | JU50: 1890 | JV50: 1845 | JW50: 1855 | JX50: 1838 | JY50: 1860 | JZ50: 1788 | KA50: 1790 | KB50: 1819 | KC50: 1810 | KD50: 1932 | KE50: 2019 | KF50: 2033 | KG50: 2044 | KH50: 2038 | KI50: 2015 | KJ50: 2087 | KK50: 2074 | KL50: 2009 | KM50: 2012 | KN50: 2074 | KO50: 2034 | KP50: 2196 | KQ50: 2252 | KR50: 2227 | KS50: 2178 | KT50: 2180 | KU50: 2161 | KV50: 2214.434783 | KW50: 2232.952381 | KX50: 2180.318182 | KY50: 2287.695652 | KZ50: 2307.85 | LA50: 2245.695652 | LB50: 2430.363636 | LC50: 2483.1 | LD50: 2502.5 | LE50: 2517.227273 | LF50: 2466.47619 | LG50: 2447.863636
A51: Landsbyggð alls | C51: 999 | D51: 938 | E51: 855 | F51: 701 | G51: 568 | H51: 474 | I51: 452 | J51: 391 | K51: 428 | L51: 601 | M51: 993 | N51: 1183 | O51: 1125 | P51: 995 | Q51: 1196 | R51: 1201 | S51: 641 | T51: 504 | U51: 474 | V51: 500 | W51: 626 | X51: 828 | Y51: 1146 | Z51: 1416 | AA51: 1384 | AB51: 1287 | AC51: 1242 | AD51: 1110 | AE51: 969 | AF51: 873 | AG51: 876 | AH51: 904 | AI51: 1072 | AJ51: 1437 | AK51: 1666 | AL51: 2038 | AM51: 2148 | AN51: 1990 | AO51: 1918 | AP51: 1723 | AQ51: 1431 | AR51: 1172 | AS51: 1151 | AT51: 1071 | AU51: 1208 | AV51: 1397 | AW51: 1620 | AX51: 1811 | AY51: 1763 | AZ51: 1603 | BA51: 1571 | BB51: 1471 | BC51: 1281 | BD51: 1205 | BE51: 1148 | BF51: 1082 | BG51: 1154 | BH51: 1226 | BI51: 1414 | BJ51: 1574 | BK51: 1419 | BL51: 1253 | BM51: 1157 | BN51: 1007 | BO51: 889 | BP51: 851 | BQ51: 828 | BR51: 726 | BS51: 833 | BT51: 941 | BU51: 1040 | BV51: 1141 | BW51: 1040 | BX51: 955 | BY51: 893 | BZ51: 848 | CA51: 694 | CB51: 750 | CC51: 726 | CD51: 663 | CE51: 685 | CF51: 805 | CG51: 889 | CH51: 985 | CI51: 981 | CJ51: 907 | CK51: 887 | CL51: 793 | CM51: 672 | CN51: 660 | CO51: 641 | CP51: 651 | CQ51: 663 | CR51: 704 | CS51: 758 | CT51: 876 | CU51: 923 | CV51: 896 | CW51: 887 | CX51: 853 | CY51: 795 | CZ51: 810 | DA51: 824 | DB51: 877 | DC51: 1213 | DD51: 2043 | DE51: 2956 | DF51: 3859 | DG51: 4640 | DH51: 4919 | DI51: 4833 | DJ51: 4621 | DK51: 4023 | DL51: 3783 | DM51: 3669 | DN51: 3490 | DO51: 3806 | DP51: 4243 | DQ51: 4531 | DR51: 5000 | DS51: 5019 | DT51: 4998 | DU51: 4810 | DV51: 4399 | DW51: 3873 | DX51: 3691 | DY51: 3482 | DZ51: 3376 | EA51: 3622 | EB51: 3968 | EC51: 4219 | ED51: 4547 | EE51: 4641 | EF51: 4563 | EG51: 4303 | EH51: 3883 | EI51: 3388 | EJ51: 3265 | EK51: 3164 | EL51: 3001 | EM51: 3169 | EN51: 3453 | EO51: 3715 | EP51: 3714 | EQ51: 3751 | ER51: 3631 | ES51: 3407 | ET51: 2979 | EU51: 2451 | EV51: 2354 | EW51: 2294 | EX51: 2251 | EY51: 2468 | EZ51: 2710 | FA51: 2950 | FB51: 2974 | FC51: 2896 | FD51: 2778 | FE51: 2546 | FF51: 2269 | FG51: 1902 | FH51: 1882 | FI51: 1810 | FJ51: 1684 | FK51: 1811 | FL51: 2009 | FM51: 2252 | FN51: 2406 | FO51: 2443 | FP51: 2348 | FQ51: 2256 | FR51: 1961 | FS51: 1596 | FT51: 1492 | FU51: 1451 | FV51: 1428 | FW51: 1534 | FX51: 1723 | FY51: 1909 | FZ51: 2056 | GA51: 2066 | GB51: 2001 | GC51: 1887 | GD51: 1581 | GE51: 1335 | GF51: 1273 | GG51: 1258 | GH51: 1201 | GI51: 1282 | GJ51: 1396 | GK51: 1531 | GL51: 1646 | GM51: 1569 | GN51: 1478 | GO51: 1344 | GP51: 1178 | GQ51: 978 | GR51: 905 | GS51: 866 | GT51: 855 | GU51: 905 | GV51: 1086 | GW51: 1435 | GX51: 2484 | GY51: 2346 | GZ51: 1464 | HA51: 1307 | HB51: 1151 | HC51: 1037 | HD51: 1039 | HE51: 1040 | HF51: 1024 | HG51: 1093 | HH51: 1254 | HI51: 1349 | HJ51: 1512 | HK51: 1526 | HL51: 1459 | HM51: 1382 | HN51: 1259 | HO51: 1187 | HP51: 1206 | HQ51: 1251 | HR51: 1242 | HS51: 1326 | HT51: 1501 | HU51: 1672 | HV51: 1899 | HW51: 1955 | HX51: 2016 | HY51: 2162 | HZ51: 2096 | IA51: 2024 | IB51: 1998 | IC51: 1977 | ID51: 1975 | IE51: 2223 | IF51: 2591 | IG51: 2799 | IH51: 3110 | II51: 3200 | IJ51: 3602 | IK51: 11631 | IL51: 8899 | IM51: 6424 | IN51: 5720 | IO51: 5934 | IP51: 6365 | IQ51: 7127 | IR51: 7927 | IS51: 8218 | IT51: 8314 | IU51: 8072 | IV51: 7725 | IW51: 7288 | IX51: 6165 | IY51: 4185 | IZ51: 3414 | JA51: 3093 | JB51: 2862 | JC51: 2839 | JD51: 2989 | JE51: 3124 | JF51: 3256 | JG51: 3169 | JH51: 2970 | JI51: 2662 | JJ51: 2334 | JK51: 2027 | JL51: 1957 | JM51: 1912 | JN51: 1758 | JO51: 1888 | JP51: 2036 | JQ51: 2225 | JR51: 2395 | JS51: 2338 | JT51: 2172 | JU51: 2013 | JV51: 1841 | JW51: 1672 | JX51: 1648 | JY51: 1671 | JZ51: 1720 | KA51: 1934 | KB51: 2249 | KC51: 2488 | KD51: 2701 | KE51: 2784 | KF51: 2645 | KG51: 2472 | KH51: 2253 | KI51: 2130 | KJ51: 2150 | KK51: 2184 | KL51: 2256 | KM51: 2460 | KN51: 2851 | KO51: 3028 | KP51: 3288 | KQ51: 3238 | KR51: 3024 | KS51: 2776 | KT51: =KT54+KT57+KT60+KT63+KT66+KT69+KT72 -> 2461 | KU51: 2270.47619 | KV51: 2252.826087 | KW51: 2218.142857 | KX51: 2255.363636 | KY51: 2655.826087 | KZ51: 3177.5 | LA51: 3385.304348 | LB51: 3634.318182 | LC51: 3539.1 | LD51: 3332.045455 | LE51: 3084 | LF51: 2709.52381 | LG51: 2486.590909
A52: Landsbyggð karlar | C52: 407 | D52: 374 | E52: 336 | F52: 236 | G52: 180 | H52: 138 | I52: 138 | J52: 118 | K52: 125 | L52: 216 | M52: 410 | N52: 487 | O52: 459 | P52: 400 | Q52: 481 | R52: 412 | S52: 219 | T52: 153 | U52: 148 | V52: 175 | W52: 232 | X52: 343 | Y52: 548 | Z52: 691 | AA52: 680 | AB52: 631 | AC52: 605 | AD52: 512 | AE52: 455 | AF52: 365 | AG52: 381 | AH52: 402 | AI52: 488 | AJ52: 705 | AK52: 851 | AL52: 1088 | AM52: 1165 | AN52: 1040 | AO52: 983 | AP52: 816 | AQ52: 649 | AR52: 468 | AS52: 455 | AT52: 428 | AU52: 507 | AV52: 625 | AW52: 763 | AX52: 873 | AY52: 834 | AZ52: 708 | BA52: 678 | BB52: 603 | BC52: 508 | BD52: 433 | BE52: 433 | BF52: 440 | BG52: 468 | BH52: 504 | BI52: 612 | BJ52: 700 | BK52: 601 | BL52: 507 | BM52: 438 | BN52: 354 | BO52: 293 | BP52: 277 | BQ52: 270 | BR52: 243 | BS52: 306 | BT52: 349 | BU52: 407 | BV52: 452 | BW52: 391 | BX52: 343 | BY52: 322 | BZ52: 289 | CA52: 218 | CB52: 245 | CC52: 236 | CD52: 223 | CE52: 243 | CF52: 302 | CG52: 354 | CH52: 397 | CI52: 390 | CJ52: 344 | CK52: 340 | CL52: 290 | CM52: 238 | CN52: 236 | CO52: 241 | CP52: 253 | CQ52: 254 | CR52: 279 | CS52: 306 | CT52: 369 | CU52: 391 | CV52: 391 | CW52: 384 | CX52: 355 | CY52: 322 | CZ52: 338 | DA52: 361 | DB52: 376 | DC52: 588 | DD52: 1130 | DE52: 1823 | DF52: 2374 | DG52: 2875 | DH52: 3056 | DI52: 2974 | DJ52: 2749 | DK52: 2247 | DL52: 2025 | DM52: 1950 | DN52: 1901 | DO52: 2124 | DP52: 2431 | DQ52: 2699 | DR52: 3018 | DS52: 3030 | DT52: 3010 | DU52: 2840 | DV52: 2505 | DW52: 2114 | DX52: 1942 | DY52: 1802 | DZ52: 1811 | EA52: 2009 | EB52: 2259 | EC52: 2470 | ED52: 2679 | EE52: 2746 | EF52: 2678 | EG52: 2491 | EH52: 2167 | EI52: 1821 | EJ52: 1681 | EK52: 1606 | EL52: 1527 | EM52: 1601 | EN52: 1813 | EO52: 2014 | EP52: 2088 | EQ52: 2075 | ER52: 1968 | ES52: 1784 | ET52: 1492 | EU52: 1139 | EV52: 1061 | EW52: 1045 | EX52: 1080 | EY52: 1186 | EZ52: 1348 | FA52: 1513 | FB52: 1524 | FC52: 1479 | FD52: 1394 | FE52: 1244 | FF52: 1068 | FG52: 870 | FH52: 828 | FI52: 799 | FJ52: 745 | FK52: 828 | FL52: 969 | FM52: 1141 | FN52: 1232 | FO52: 1242 | FP52: 1162 | FQ52: 1110 | FR52: 899 | FS52: 703 | FT52: 657 | FU52: 645 | FV52: 645 | FW52: 704 | FX52: 838 | FY52: 970 | FZ52: 1042 | GA52: 1015 | GB52: 949 | GC52: 886 | GD52: 721 | GE52: 598 | GF52: 547 | GG52: 545 | GH52: 546 | GI52: 583 | GJ52: 646 | GK52: 754 | GL52: 807 | GM52: 753 | GN52: 694 | GO52: 608 | GP52: 508 | GQ52: 413 | GR52: 366 | GS52: 349 | GT52: 349 | GU52: 393 | GV52: 504 | GW52: 692 | GX52: 1247 | GY52: 1198 | GZ52: 748 | HA52: 663 | HB52: 551 | HC52: 499 | HD52: 478 | HE52: 470 | HF52: 473 | HG52: 517 | HH52: 613 | HI52: 673 | HJ52: 768 | HK52: 798 | HL52: 753 | HM52: 696 | HN52: 609 | HO52: 561 | HP52: 561 | HQ52: 582 | HR52: 612 | HS52: 673 | HT52: 797 | HU52: 914 | HV52: 1042 | HW52: 1092 | HX52: 1143 | HY52: 1239 | HZ52: 1198 | IA52: 1124 | IB52: 1084 | IC52: 1066 | ID52: 1077 | IE52: 1217 | IF52: 1443 | IG52: 1586 | IH52: 1788 | II52: 1839 | IJ52: 2048 | IK52: 6578 | IL52: 4999 | IM52: 3563 | IN52: 3134 | IO52: 3239 | IP52: 3461 | IQ52: 3877 | IR52: 4317 | IS52: 4537 | IT52: 4599 | IU52: 4423 | IV52: 4204 | IW52: 3905 | IX52: 3238 | IY52: 2146 | IZ52: 1735 | JA52: 1565 | JB52: 1531 | JC52: 1554 | JD52: 1658 | JE52: 1740 | JF52: 1812 | JG52: 1755 | JH52: 1642 | JI52: 1434 | JJ52: 1176 | JK52: 1049 | JL52: 1015 | JM52: 996 | JN52: 908 | JO52: 985 | JP52: 1090 | JQ52: 1204 | JR52: 1322 | JS52: 1308 | JT52: 1207 | JU52: 1087 | JV52: 980 | JW52: 881 | JX52: 868 | JY52: 905 | JZ52: 948 | KA52: 1091 | KB52: 1282 | KC52: 1427 | KD52: 1555 | KE52: 1604 | KF52: 1508 | KG52: 1381 | KH52: 1238 | KI52: 1206 | KJ52: 1234 | KK52: 1273 | KL52: 1289 | KM52: 1417 | KN52: 1627 | KO52: 1759 | KP52: 1918 | KQ52: 1890 | KR52: 1780 | KS52: 1653 | KT52: =KT55+KT58+KT61+KT64+KT67+KT70+KT73 -> 1438 | KU52: 1325 | KV52: 1306.782609 | KW52: 1295.428571 | KX52: 1337.454545 | KY52: 1574.434783 | KZ52: 1865.55 | LA52: 2015.26087 | LB52: 2168.727273 | LC52: 2098.75 | LD52: 1968.818182 | LE52: 1813.681818 | LF52: 1596.285714 | LG52: 1469.363636
A53: Landsbyggð konur | C53: 592 | D53: 564 | E53: 519 | F53: 465 | G53: 388 | H53: 336 | I53: 314 | J53: 273 | K53: 303 | L53: 385 | M53: 583 | N53: 696 | O53: 666 | P53: 595 | Q53: 715 | R53: 789 | S53: 422 | T53: 351 | U53: 326 | V53: 325 | W53: 394 | X53: 485 | Y53: 598 | Z53: 725 | AA53: 704 | AB53: 656 | AC53: 637 | AD53: 598 | AE53: 514 | AF53: 508 | AG53: 495 | AH53: 502 | AI53: 584 | AJ53: 732 | AK53: 815 | AL53: 950 | AM53: 983 | AN53: 950 | AO53: 935 | AP53: 907 | AQ53: 782 | AR53: 704 | AS53: 696 | AT53: 643 | AU53: 701 | AV53: 772 | AW53: 857 | AX53: 938 | AY53: 929 | AZ53: 895 | BA53: 893 | BB53: 868 | BC53: 773 | BD53: 772 | BE53: 715 | BF53: 642 | BG53: 686 | BH53: 722 | BI53: 802 | BJ53: 874 | BK53: 818 | BL53: 746 | BM53: 719 | BN53: 653 | BO53: 596 | BP53: 574 | BQ53: 558 | BR53: 483 | BS53: 527 | BT53: 592 | BU53: 633 | BV53: 689 | BW53: 649 | BX53: 612 | BY53: 571 | BZ53: 559 | CA53: 476 | CB53: 505 | CC53: 490 | CD53: 440 | CE53: 442 | CF53: 503 | CG53: 535 | CH53: 588 | CI53: 591 | CJ53: 563 | CK53: 547 | CL53: 503 | CM53: 434 | CN53: 424 | CO53: 400 | CP53: 398 | CQ53: 409 | CR53: 425 | CS53: 452 | CT53: 507 | CU53: 532 | CV53: 505 | CW53: 503 | CX53: 498 | CY53: 473 | CZ53: 472 | DA53: 463 | DB53: 501 | DC53: 625 | DD53: 913 | DE53: 1133 | DF53: 1485 | DG53: 1765 | DH53: 1863 | DI53: 1859 | DJ53: 1872 | DK53: 1776 | DL53: 1758 | DM53: 1719 | DN53: 1589 | DO53: 1682 | DP53: 1812 | DQ53: 1832 | DR53: 1982 | DS53: 1989 | DT53: 1988 | DU53: 1970 | DV53: 1894 | DW53: 1759 | DX53: 1749 | DY53: 1680 | DZ53: 1565 | EA53: 1613 | EB53: 1709 | EC53: 1749 | ED53: 1868 | EE53: 1895 | EF53: 1885 | EG53: 1812 | EH53: 1716 | EI53: 1567 | EJ53: 1584 | EK53: 1558 | EL53: 1474 | EM53: 1568 | EN53: 1640 | EO53: 1701 | EP53: 1626 | EQ53: 1676 | ER53: 1663 | ES53: 1623 | ET53: 1487 | EU53: 1312 | EV53: 1293 | EW53: 1249 | EX53: 1171 | EY53: 1282 | EZ53: 1362 | FA53: 1437 | FB53: 1450 | FC53: 1417 | FD53: 1384 | FE53: 1302 | FF53: 1201 | FG53: 1032 | FH53: 1054 | FI53: 1011 | FJ53: 939 | FK53: 983 | FL53: 1040 | FM53: 1111 | FN53: 1174 | FO53: 1201 | FP53: 1186 | FQ53: 1146 | FR53: 1062 | FS53: 893 | FT53: 835 | FU53: 806 | FV53: 783 | FW53: 830 | FX53: 885 | FY53: 939 | FZ53: 1014 | GA53: 1051 | GB53: 1052 | GC53: 1001 | GD53: 860 | GE53: 737 | GF53: 726 | GG53: 713 | GH53: 655 | GI53: 699 | GJ53: 750 | GK53: 777 | GL53: 839 | GM53: 816 | GN53: 784 | GO53: 736 | GP53: 670 | GQ53: 565 | GR53: 539 | GS53: 517 | GT53: 506 | GU53: 512 | GV53: 582 | GW53: 743 | GX53: 1237 | GY53: 1148 | GZ53: 716 | HA53: 644 | HB53: 600 | HC53: 538 | HD53: 561 | HE53: 570 | HF53: 551 | HG53: 576 | HH53: 641 | HI53: 676 | HJ53: 744 | HK53: 728 | HL53: 706 | HM53: 686 | HN53: 650 | HO53: 626 | HP53: 645 | HQ53: 669 | HR53: 630 | HS53: 653 | HT53: 704 | HU53: 758 | HV53: 857 | HW53: 863 | HX53: 873 | HY53: 923 | HZ53: 898 | IA53: 900 | IB53: 914 | IC53: 911 | ID53: 898 | IE53: 1006 | IF53: 1148 | IG53: 1213 | IH53: 1322 | II53: 1361 | IJ53: 1554 | IK53: 5053 | IL53: 3900 | IM53: 2861 | IN53: 2586 | IO53: 2695 | IP53: 2904 | IQ53: 3250 | IR53: 3610 | IS53: 3681 | IT53: 3715 | IU53: 3649 | IV53: 3521 | IW53: 3383 | IX53: 2927 | IY53: 2039 | IZ53: 1679 | JA53: 1528 | JB53: 1331 | JC53: 1285 | JD53: 1331 | JE53: 1384 | JF53: 1444 | JG53: 1414 | JH53: 1328 | JI53: 1228 | JJ53: 1158 | JK53: 978 | JL53: 942 | JM53: 916 | JN53: 850 | JO53: 903 | JP53: 946 | JQ53: 1021 | JR53: 1073 | JS53: 1030 | JT53: 965 | JU53: 926 | JV53: 861 | JW53: 791 | JX53: 780 | JY53: 766 | JZ53: 772 | KA53: 843 | KB53: 967 | KC53: 1061 | KD53: 1146 | KE53: 1180 | KF53: 1137 | KG53: 1091 | KH53: 1015 | KI53: 924 | KJ53: 916 | KK53: 911 | KL53: 967 | KM53: 1043 | KN53: 1224 | KO53: 1269 | KP53: 1370 | KQ53: 1348 | KR53: 1244 | KS53: 1123 | KT53: 1023 | KU53: 945.4761905 | KV53: 946.0434783 | KW53: 922.7142857 | KX53: 917.9090909 | KY53: 1081.391304 | KZ53: 1311.95 | LA53: 1370.043478 | LB53: 1465.590909 | LC53: 1440.35 | LD53: 1363.227273 | LE53: 1270.318182 | LF53: 1113.238095 | LG53: 1017.227273
A54: Suðurnes alls | C54: 103 | D54: 92 | E54: 75 | F54: 58 | G54: 43 | H54: 17 | I54: 20 | J54: 22 | K54: 34 | L54: 48 | M54: 86 | N54: 116 | O54: 112 | P54: 87 | Q54: 104 | R54: 155 | S54: 69 | T54: 49 | U54: 35 | V54: 42 | W54: 75 | X54: 110 | Y54: 136 | Z54: 183 | AA54: 193 | AB54: 191 | AC54: 181 | AD54: 171 | AE54: 154 | AF54: 154 | AG54: 180 | AH54: 205 | AI54: 269 | AJ54: 336 | AK54: 380 | AL54: 435 | AM54: 452 | AN54: 407 | AO54: 396 | AP54: 405 | AQ54: 379 | AR54: 324 | AS54: 286 | AT54: 230 | AU54: 281 | AV54: 296 | AW54: 328 | AX54: 360 | AY54: 366 | AZ54: 357 | BA54: 344 | BB54: 324 | BC54: 301 | BD54: 281 | BE54: 228 | BF54: 206 | BG54: 226 | BH54: 256 | BI54: 267 | BJ54: 305 | BK54: 290 | BL54: 266 | BM54: 248 | BN54: 198 | BO54: 157 | BP54: 149 | BQ54: 149 | BR54: 132 | BS54: 150 | BT54: 172 | BU54: 195 | BV54: 224 | BW54: 211 | BX54: 196 | BY54: 164 | BZ54: 170 | CA54: 163 | CB54: 177 | CC54: 179 | CD54: 175 | CE54: 196 | CF54: 259 | CG54: 285 | CH54: 306 | CI54: 306 | CJ54: 276 | CK54: 279 | CL54: 250 | CM54: 229 | CN54: 215 | CO54: 191 | CP54: 198 | CQ54: 209 | CR54: 225 | CS54: 246 | CT54: 249 | CU54: 286 | CV54: 290 | CW54: 296 | CX54: 274 | CY54: 266 | CZ54: 278 | DA54: 281 | DB54: 297 | DC54: 471 | DD54: 791 | DE54: 1063 | DF54: 1254 | DG54: 1492 | DH54: 1574 | DI54: 1574 | DJ54: 1618 | DK54: 1440 | DL54: 1380 | DM54: 1345 | DN54: 1371 | DO54: 1405 | DP54: 1475 | DQ54: 1535 | DR54: 1606 | DS54: 1643 | DT54: 1642 | DU54: 1605 | DV54: 1530 | DW54: 1390 | DX54: 1335 | DY54: 1235 | DZ54: 1239 | EA54: 1326 | EB54: 1397 | EC54: 1412 | ED54: 1525 | EE54: 1554 | EF54: 1562 | EG54: 1500 | EH54: 1376 | EI54: 1243 | EJ54: 1192 | EK54: 1182 | EL54: 1179 | EM54: 1249 | EN54: 1330 | EO54: 1380 | EP54: 1318 | EQ54: 1322 | ER54: 1299 | ES54: 1223 | ET54: 1092 | EU54: 913 | EV54: 885 | EW54: 867 | EX54: 842 | EY54: 938 | EZ54: 1010 | FA54: 1078 | FB54: 1012 | FC54: 1008 | FD54: 942 | FE54: 843 | FF54: 750 | FG54: 636 | FH54: 640 | FI54: 606 | FJ54: 580 | FK54: 610 | FL54: 662 | FM54: 740 | FN54: 783 | FO54: 802 | FP54: 788 | FQ54: 764 | FR54: 650 | FS54: 546 | FT54: 504 | FU54: 514 | FV54: 498 | FW54: 505 | FX54: 546 | FY54: 584 | FZ54: 614 | GA54: 608 | GB54: 597 | GC54: 537 | GD54: 440 | GE54: 377 | GF54: 358 | GG54: 345 | GH54: 327 | GI54: 340 | GJ54: 363 | GK54: 389 | GL54: 402 | GM54: 375 | GN54: 337 | GO54: 301 | GP54: 254 | GQ54: 227 | GR54: 209 | GS54: 203 | GT54: 201 | GU54: 217 | GV54: 280 | GW54: 315 | GX54: 548 | GY54: 537 | GZ54: 346 | HA54: 309 | HB54: 271 | HC54: 270 | HD54: 283 | HE54: 283 | HF54: 275 | HG54: 301 | HH54: 344 | HI54: 376 | HJ54: 413 | HK54: 433 | HL54: 422 | HM54: 399 | HN54: 390 | HO54: 392 | HP54: 409 | HQ54: 434 | HR54: 435 | HS54: 469 | HT54: 546 | HU54: 588 | HV54: 677 | HW54: 723 | HX54: 766 | HY54: 906 | HZ54: 951 | IA54: 929 | IB54: 901 | IC54: 895 | ID54: 910 | IE54: 1038 | IF54: 1192 | IG54: 1245 | IH54: 1336 | II54: 1361 | IJ54: 1458 | IK54: 4007 | IL54: 3210 | IM54: 2614 | IN54: 2676 | IO54: 2820 | IP54: 2990 | IQ54: 3181 | IR54: 3427 | IS54: 3524 | IT54: 3531 | IU54: 3487 | IV54: 3380 | IW54: 3241 | IX54: 2853 | IY54: 2052 | IZ54: 1677 | JA54: 1507 | JB54: 1384 | JC54: 1337 | JD54: 1371 | JE54: 1352 | JF54: 1352 | JG54: 1325 | JH54: 1251 | JI54: 1139 | JJ54: 1026 | JK54: 943 | JL54: 917 | JM54: 901 | JN54: 799 | JO54: 836 | JP54: 849 | JQ54: 903 | JR54: 950 | JS54: 932 | JT54: 850 | JU54: 776 | JV54: 712 | JW54: 668 | JX54: 661 | JY54: 663 | JZ54: 688 | KA54: 769 | KB54: 849 | KC54: 907 | KD54: 975 | KE54: 1018 | KF54: 980 | KG54: 941 | KH54: 894 | KI54: 884 | KJ54: 869 | KK54: 857 | KL54: 883 | KM54: 944 | KN54: 1139 | KO54: 1219 | KP54: 1299 | KQ54: 1289 | KR54: 1215 | KS54: 1107 | KT54: 985 | KU54: 926.047619 | KV54: 926.2173913 | KW54: 890.6190476 | KX54: 891.5 | KY54: 1067.26087 | KZ54: 1286.55 | LA54: 1329.043478 | LB54: 1426.272727 | LC54: 1416.55 | LD54: 1321.272727 | LE54: 1213.136364 | LF54: 1066.285714 | LG54: 962.6363636
A55: Suðurnes karlar | C55: 24 | D55: 23 | E55: 20 | F55: 10 | G55: 8 | H55: 3 | I55: 5 | J55: 5 | K55: 6 | L55: 13 | M55: 30 | N55: 36 | O55: 32 | P55: 20 | Q55: 38 | R55: 51 | S55: 21 | T55: 15 | U55: 12 | V55: 12 | W55: 21 | X55: 32 | Y55: 51 | Z55: 70 | AA55: 80 | AB55: 81 | AC55: 83 | AD55: 79 | AE55: 76 | AF55: 68 | AG55: 83 | AH55: 89 | AI55: 124 | AJ55: 157 | AK55: 183 | AL55: 216 | AM55: 225 | AN55: 203 | AO55: 198 | AP55: 193 | AQ55: 190 | AR55: 137 | AS55: 125 | AT55: 99 | AU55: 124 | AV55: 135 | AW55: 154 | AX55: 178 | AY55: 179 | AZ55: 165 | BA55: 148 | BB55: 135 | BC55: 131 | BD55: 110 | BE55: 88 | BF55: 91 | BG55: 101 | BH55: 106 | BI55: 109 | BJ55: 120 | BK55: 114 | BL55: 103 | BM55: 91 | BN55: 72 | BO55: 58 | BP55: 51 | BQ55: 54 | BR55: 51 | BS55: 58 | BT55: 63 | BU55: 75 | BV55: 89 | BW55: 83 | BX55: 76 | BY55: 61 | BZ55: 65 | CA55: 57 | CB55: 54 | CC55: 55 | CD55: 59 | CE55: 77 | CF55: 106 | CG55: 119 | CH55: 118 | CI55: 117 | CJ55: 99 | CK55: 103 | CL55: 91 | CM55: 80 | CN55: 73 | CO55: 69 | CP55: 75 | CQ55: 86 | CR55: 86 | CS55: 90 | CT55: 94 | CU55: 112 | CV55: 115 | CW55: 120 | CX55: 104 | CY55: 101 | CZ55: 108 | DA55: 116 | DB55: 119 | DC55: 219 | DD55: 414 | DE55: 616 | DF55: 709 | DG55: 860 | DH55: 927 | DI55: 936 | DJ55: 959 | DK55: 807 | DL55: 743 | DM55: 737 | DN55: 772 | DO55: 796 | DP55: 845 | DQ55: 894 | DR55: 960 | DS55: 981 | DT55: 983 | DU55: 953 | DV55: 881 | DW55: 780 | DX55: 719 | DY55: 653 | DZ55: 670 | EA55: 729 | EB55: 776 | EC55: 786 | ED55: 852 | EE55: 872 | EF55: 885 | EG55: 857 | EH55: 771 | EI55: 675 | EJ55: 622 | EK55: 610 | EL55: 611 | EM55: 645 | EN55: 701 | EO55: 733 | EP55: 728 | EQ55: 719 | ER55: 696 | ES55: 644 | ET55: 554 | EU55: 443 | EV55: 414 | EW55: 405 | EX55: 422 | EY55: 468 | EZ55: 517 | FA55: 559 | FB55: 509 | FC55: 505 | FD55: 456 | FE55: 401 | FF55: 344 | FG55: 292 | FH55: 284 | FI55: 274 | FJ55: 248 | FK55: 266 | FL55: 304 | FM55: 352 | FN55: 374 | FO55: 382 | FP55: 358 | FQ55: 355 | FR55: 288 | FS55: 232 | FT55: 221 | FU55: 231 | FV55: 218 | FW55: 222 | FX55: 254 | FY55: 276 | FZ55: 278 | GA55: 271 | GB55: 256 | GC55: 228 | GD55: 193 | GE55: 166 | GF55: 156 | GG55: 150 | GH55: 147 | GI55: 148 | GJ55: 173 | GK55: 185 | GL55: 196 | GM55: 180 | GN55: 147 | GO55: 131 | GP55: 115 | GQ55: 104 | GR55: 92 | GS55: 95 | GT55: 95 | GU55: 104 | GV55: 143 | GW55: 160 | GX55: 287 | GY55: 279 | GZ55: 177 | HA55: 156 | HB55: 137 | HC55: 139 | HD55: 132 | HE55: 133 | HF55: 136 | HG55: 148 | HH55: 178 | HI55: 195 | HJ55: 221 | HK55: 237 | HL55: 235 | HM55: 219 | HN55: 208 | HO55: 205 | HP55: 217 | HQ55: 232 | HR55: 243 | HS55: 269 | HT55: 308 | HU55: 340 | HV55: 386 | HW55: 413 | HX55: 442 | HY55: 533 | HZ55: 565 | IA55: 541 | IB55: 514 | IC55: 505 | ID55: 514 | IE55: 594 | IF55: 688 | IG55: 719 | IH55: 779 | II55: 778 | IJ55: 822 | IK55: 2288 | IL55: 1818 | IM55: 1464 | IN55: 1464 | IO55: 1521 | IP55: 1623 | IQ55: 1742 | IR55: 1894 | IS55: 1948 | IT55: 1950 | IU55: 1922 | IV55: 1861 | IW55: 1754 | IX55: 1527 | IY55: 1081 | IZ55: 874 | JA55: 795 | JB55: 756 | JC55: 739 | JD55: 771 | JE55: 771 | JF55: 783 | JG55: 754 | JH55: 698 | JI55: 618 | JJ55: 526 | JK55: 488 | JL55: 478 | JM55: 467 | JN55: 408 | JO55: 435 | JP55: 451 | JQ55: 491 | JR55: 531 | JS55: 522 | JT55: 481 | JU55: 427 | JV55: 380 | JW55: 350 | JX55: 338 | JY55: 345 | JZ55: 374 | KA55: 433 | KB55: 487 | KC55: 524 | KD55: 568 | KE55: 583 | KF55: 548 | KG55: 522 | KH55: 495 | KI55: 506 | KJ55: 500 | KK55: 493 | KL55: 501 | KM55: 550 | KN55: 665 | KO55: 734 | KP55: 793 | KQ55: 792 | KR55: 746 | KS55: 693 | KT55: 601 | KU55: 558.5714286 | KV55: 556.6521739 | KW55: 532.1428571 | KX55: 543.1818182 | KY55: 645.1304348 | KZ55: 772.25 | LA55: 807.0869565 | LB55: 855.8181818 | LC55: 847.3 | LD55: 773.2727273 | LE55: 701.6818182 | LF55: 626.3809524 | LG55: 571.3181818
A56: Suðurnes konur | C56: 79 | D56: 69 | E56: 55 | F56: 47 | G56: 34 | H56: 14 | I56: 15 | J56: 17 | K56: 27 | L56: 35 | M56: 56 | N56: 81 | O56: 81 | P56: 66 | Q56: 67 | R56: 103 | S56: 47 | T56: 34 | U56: 23 | V56: 30 | W56: 53 | X56: 78 | Y56: 85 | Z56: 113 | AA56: 113 | AB56: 110 | AC56: 98 | AD56: 93 | AE56: 77 | AF56: 86 | AG56: 97 | AH56: 115 | AI56: 145 | AJ56: 179 | AK56: 197 | AL56: 219 | AM56: 227 | AN56: 204 | AO56: 198 | AP56: 212 | AQ56: 189 | AR56: 187 | AS56: 161 | AT56: 131 | AU56: 157 | AV56: 161 | AW56: 174 | AX56: 182 | AY56: 187 | AZ56: 192 | BA56: 195 | BB56: 189 | BC56: 170 | BD56: 171 | BE56: 140 | BF56: 115 | BG56: 125 | BH56: 150 | BI56: 158 | BJ56: 186 | BK56: 177 | BL56: 163 | BM56: 156 | BN56: 125 | BO56: 98 | BP56: 98 | BQ56: 94 | BR56: 80 | BS56: 91 | BT56: 108 | BU56: 120 | BV56: 135 | BW56: 128 | BX56: 120 | BY56: 103 | BZ56: 105 | CA56: 106 | CB56: 123 | CC56: 124 | CD56: 116 | CE56: 119 | CF56: 154 | CG56: 166 | CH56: 187 | CI56: 189 | CJ56: 177 | CK56: 177 | CL56: 159 | CM56: 149 | CN56: 142 | CO56: 121 | CP56: 123 | CQ56: 123 | CR56: 140 | CS56: 156 | CT56: 154 | CU56: 174 | CV56: 175 | CW56: 176 | CX56: 171 | CY56: 165 | CZ56: 169 | DA56: 165 | DB56: 179 | DC56: 252 | DD56: 377 | DE56: 446 | DF56: 544 | DG56: 632 | DH56: 647 | DI56: 639 | DJ56: 659 | DK56: 633 | DL56: 637 | DM56: 608 | DN56: 599 | DO56: 609 | DP56: 630 | DQ56: 641 | DR56: 645 | DS56: 662 | DT56: 659 | DU56: 652 | DV56: 649 | DW56: 610 | DX56: 617 | DY56: 581 | DZ56: 569 | EA56: 597 | EB56: 621 | EC56: 626 | ED56: 673 | EE56: 681 | EF56: 677 | EG56: 643 | EH56: 605 | EI56: 567 | EJ56: 570 | EK56: 572 | EL56: 568 | EM56: 604 | EN56: 629 | EO56: 647 | EP56: 590 | EQ56: 603 | ER56: 602 | ES56: 579 | ET56: 538 | EU56: 470 | EV56: 471 | EW56: 462 | EX56: 421 | EY56: 470 | EZ56: 493 | FA56: 519 | FB56: 503 | FC56: 503 | FD56: 486 | FE56: 442 | FF56: 406 | FG56: 344 | FH56: 356 | FI56: 333 | FJ56: 332 | FK56: 344 | FL56: 358 | FM56: 388 | FN56: 409 | FO56: 420 | FP56: 430 | FQ56: 409 | FR56: 362 | FS56: 314 | FT56: 283 | FU56: 283 | FV56: 279 | FW56: 283 | FX56: 292 | FY56: 308 | FZ56: 336 | GA56: 337 | GB56: 341 | GC56: 309 | GD56: 247 | GE56: 211 | GF56: 202 | GG56: 195 | GH56: 180 | GI56: 192 | GJ56: 190 | GK56: 203 | GL56: 206 | GM56: 196 | GN56: 190 | GO56: 170 | GP56: 139 | GQ56: 123 | GR56: 117 | GS56: 107 | GT56: 106 | GU56: 113 | GV56: 138 | GW56: 155 | GX56: 261 | GY56: 258 | GZ56: 169 | HA56: 153 | HB56: 134 | HC56: 131 | HD56: 152 | HE56: 151 | HF56: 140 | HG56: 153 | HH56: 166 | HI56: 180 | HJ56: 192 | HK56: 196 | HL56: 187 | HM56: 180 | HN56: 182 | HO56: 187 | HP56: 192 | HQ56: 202 | HR56: 193 | HS56: 199 | HT56: 237 | HU56: 248 | HV56: 290 | HW56: 311 | HX56: 325 | HY56: 373 | HZ56: 386 | IA56: 388 | IB56: 388 | IC56: 391 | ID56: 397 | IE56: 444 | IF56: 504 | IG56: 526 | IH56: 558 | II56: 583 | IJ56: 636 | IK56: 1719 | IL56: 1392 | IM56: 1150 | IN56: 1212 | IO56: 1299 | IP56: 1367 | IQ56: 1439 | IR56: 1533 | IS56: 1576 | IT56: 1580 | IU56: 1565 | IV56: 1520 | IW56: 1487 | IX56: 1327 | IY56: 971 | IZ56: 803 | JA56: 713 | JB56: 628 | JC56: 598 | JD56: 599 | JE56: 581 | JF56: 569 | JG56: 571 | JH56: 553 | JI56: 522 | JJ56: 500 | JK56: 455 | JL56: 439 | JM56: 435 | JN56: 391 | JO56: 401 | JP56: 398 | JQ56: 412 | JR56: 419 | JS56: 409 | JT56: 369 | JU56: 349 | JV56: 332 | JW56: 318 | JX56: 322 | JY56: 317 | JZ56: 314 | KA56: 336 | KB56: 362 | KC56: 383 | KD56: 407 | KE56: 435 | KF56: 432 | KG56: 419 | KH56: 398 | KI56: 378 | KJ56: 369 | KK56: 363 | KL56: 382 | KM56: 394 | KN56: 474 | KO56: 485 | KP56: 506 | KQ56: 497 | KR56: 469 | KS56: 414 | KT56: 384 | KU56: 367.4761905 | KV56: 369.5652174 | KW56: 358.4761905 | KX56: 348.3181818 | KY56: 422.1304348 | KZ56: 514.3 | LA56: 521.9565217 | LB56: 570.4545455 | LC56: 569.25 | LD56: 548 | LE56: 511.4545455 | LF56: 439.9047619 | LG56: 391.3181818
A57: Vesturland alls | C57: 84 | D57: 71 | E57: 64 | F57: 60 | G57: 50 | H57: 36 | I57: 38 | J57: 38 | K57: 47 | L57: 71 | M57: 87 | N57: 87 | O57: 85 | P57: 83 | Q57: 96 | R57: 95 | S57: 58 | T57: 40 | U57: 42 | V57: 45 | W57: 56 | X57: 83 | Y57: 127 | Z57: 166 | AA57: 169 | AB57: 173 | AC57: 171 | AD57: 149 | AE57: 133 | AF57: 100 | AG57: 111 | AH57: 119 | AI57: 136 | AJ57: 172 | AK57: 203 | AL57: 255 | AM57: 267 | AN57: 242 | AO57: 219 | AP57: 192 | AQ57: 166 | AR57: 112 | AS57: 113 | AT57: 109 | AU57: 116 | AV57: 136 | AW57: 165 | AX57: 197 | AY57: 193 | AZ57: 171 | BA57: 156 | BB57: 150 | BC57: 112 | BD57: 102 | BE57: 112 | BF57: 106 | BG57: 122 | BH57: 121 | BI57: 129 | BJ57: 149 | BK57: 131 | BL57: 111 | BM57: 94 | BN57: 77 | BO57: 56 | BP57: 48 | BQ57: 49 | BR57: 38 | BS57: 42 | BT57: 49 | BU57: 62 | BV57: 80 | BW57: 67 | BX57: 62 | BY57: 63 | BZ57: 57 | CA57: 37 | CB57: 52 | CC57: 48 | CD57: 45 | CE57: 42 | CF57: 49 | CG57: 52 | CH57: 63 | CI57: 68 | CJ57: 74 | CK57: 72 | CL57: 59 | CM57: 51 | CN57: 47 | CO57: 47 | CP57: 54 | CQ57: 57 | CR57: 54 | CS57: 48 | CT57: 59 | CU57: 67 | CV57: 81 | CW57: 77 | CX57: 88 | CY57: 117 | CZ57: 115 | DA57: 117 | DB57: 98 | DC57: 113 | DD57: 186 | DE57: 268 | DF57: 369 | DG57: 433 | DH57: 485 | DI57: 491 | DJ57: 445 | DK57: 405 | DL57: 393 | DM57: 370 | DN57: 353 | DO57: 414 | DP57: 505 | DQ57: 499 | DR57: 533 | DS57: 521 | DT57: 518 | DU57: 502 | DV57: 445 | DW57: 387 | DX57: 335 | DY57: 319 | DZ57: 315 | EA57: 372 | EB57: 390 | EC57: 407 | ED57: 443 | EE57: 452 | EF57: 443 | EG57: 423 | EH57: 381 | EI57: 338 | EJ57: 339 | EK57: 313 | EL57: 265 | EM57: 289 | EN57: 310 | EO57: 326 | EP57: 341 | EQ57: 343 | ER57: 324 | ES57: 298 | ET57: 263 | EU57: 231 | EV57: 228 | EW57: 233 | EX57: 222 | EY57: 235 | EZ57: 252 | FA57: 270 | FB57: 275 | FC57: 266 | FD57: 261 | FE57: 243 | FF57: 212 | FG57: 191 | FH57: 196 | FI57: 198 | FJ57: 176 | FK57: 194 | FL57: 195 | FM57: 199 | FN57: 237 | FO57: 235 | FP57: 221 | FQ57: 210 | FR57: 201 | FS57: 163 | FT57: 151 | FU57: 144 | FV57: 134 | FW57: 138 | FX57: 144 | FY57: 167 | FZ57: 208 | GA57: 200 | GB57: 193 | GC57: 183 | GD57: 158 | GE57: 144 | GF57: 137 | GG57: 138 | GH57: 122 | GI57: 128 | GJ57: 142 | GK57: 149 | GL57: 152 | GM57: 150 | GN57: 151 | GO57: 141 | GP57: 113 | GQ57: 97 | GR57: 91 | GS57: 91 | GT57: 96 | GU57: 105 | GV57: 108 | GW57: 119 | GX57: 214 | GY57: 213 | GZ57: 150 | HA57: 145 | HB57: 133 | HC57: 115 | HD57: 104 | HE57: 116 | HF57: 127 | HG57: 120 | HH57: 129 | HI57: 123 | HJ57: 137 | HK57: 143 | HL57: 144 | HM57: 137 | HN57: 115 | HO57: 102 | HP57: 102 | HQ57: 127 | HR57: 119 | HS57: 133 | HT57: 118 | HU57: 137 | HV57: 164 | HW57: 169 | HX57: 163 | HY57: 176 | HZ57: 161 | IA57: 163 | IB57: 159 | IC57: 158 | ID57: 148 | IE57: 159 | IF57: 200 | IG57: 223 | IH57: 255 | II57: 258 | IJ57: 308 | IK57: 1049 | IL57: 779 | IM57: 564 | IN57: 471 | IO57: 488 | IP57: 528 | IQ57: 580 | IR57: 655 | IS57: 680 | IT57: 707 | IU57: 670 | IV57: 616 | IW57: 545 | IX57: 421 | IY57: 278 | IZ57: 229 | JA57: 202 | JB57: 192 | JC57: 200 | JD57: 218 | JE57: 244 | JF57: 262 | JG57: 250 | JH57: 208 | JI57: 178 | JJ57: 157 | JK57: 142 | JL57: 140 | JM57: 147 | JN57: 131 | JO57: 145 | JP57: 155 | JQ57: 185 | JR57: 205 | JS57: 207 | JT57: 176 | JU57: 164 | JV57: 164 | JW57: 168 | JX57: 162 | JY57: 162 | JZ57: 151 | KA57: 169 | KB57: 199 | KC57: 247 | KD57: 258 | KE57: 254 | KF57: 237 | KG57: 205 | KH57: 189 | KI57: 197 | KJ57: 233 | KK57: 259 | KL57: 256 | KM57: 256 | KN57: 307 | KO57: 311 | KP57: 333 | KQ57: 321 | KR57: 275 | KS57: 227 | KT57: 208 | KU57: 210.2380952 | KV57: 230.3913043 | KW57: 227.4285714 | KX57: 210.8181818 | KY57: 238.3913043 | KZ57: 306.25 | LA57: 334.3043478 | LB57: 360 | LC57: 326.85 | LD57: 280.2272727 | LE57: 250.1363636 | LF57: 226.8095238 | LG57: 221.8636364
A58: Vesturland karlar | C58: 34 | D58: 25 | E58: 21 | F58: 16 | G58: 12 | H58: 7 | I58: 6 | J58: 8 | K58: 11 | L58: 23 | M58: 29 | N58: 25 | O58: 27 | P58: 32 | Q58: 37 | R58: 27 | S58: 20 | T58: 11 | U58: 9 | V58: 13 | W58: 17 | X58: 30 | Y58: 54 | Z58: 74 | AA58: 71 | AB58: 80 | AC58: 75 | AD58: 56 | AE58: 61 | AF58: 37 | AG58: 44 | AH58: 49 | AI58: 60 | AJ58: 76 | AK58: 96 | AL58: 129 | AM58: 139 | AN58: 132 | AO58: 119 | AP58: 93 | AQ58: 78 | AR58: 42 | AS58: 45 | AT58: 43 | AU58: 48 | AV58: 56 | AW58: 74 | AX58: 90 | AY58: 88 | AZ58: 73 | BA58: 61 | BB58: 58 | BC58: 42 | BD58: 45 | BE58: 48 | BF58: 37 | BG58: 42 | BH58: 44 | BI58: 55 | BJ58: 70 | BK58: 60 | BL58: 52 | BM58: 41 | BN58: 26 | BO58: 18 | BP58: 18 | BQ58: 14 | BR58: 12 | BS58: 12 | BT58: 16 | BU58: 23 | BV58: 27 | BW58: 19 | BX58: 17 | BY58: 21 | BZ58: 17 | CA58: 13 | CB58: 24 | CC58: 22 | CD58: 17 | CE58: 14 | CF58: 18 | CG58: 19 | CH58: 22 | CI58: 22 | CJ58: 24 | CK58: 26 | CL58: 21 | CM58: 22 | CN58: 18 | CO58: 19 | CP58: 24 | CQ58: 25 | CR58: 23 | CS58: 20 | CT58: 27 | CU58: 31 | CV58: 40 | CW58: 36 | CX58: 39 | CY58: 56 | CZ58: 63 | DA58: 67 | DB58: 46 | DC58: 51 | DD58: 98 | DE58: 161 | DF58: 217 | DG58: 252 | DH58: 274 | DI58: 277 | DJ58: 239 | DK58: 206 | DL58: 202 | DM58: 177 | DN58: 172 | DO58: 211 | DP58: 273 | DQ58: 280 | DR58: 300 | DS58: 293 | DT58: 300 | DU58: 282 | DV58: 236 | DW58: 199 | DX58: 164 | DY58: 152 | DZ58: 159 | EA58: 209 | EB58: 227 | EC58: 238 | ED58: 265 | EE58: 271 | EF58: 267 | EG58: 248 | EH58: 218 | EI58: 189 | EJ58: 188 | EK58: 170 | EL58: 135 | EM58: 143 | EN58: 164 | EO58: 178 | EP58: 194 | EQ58: 194 | ER58: 187 | ES58: 166 | ET58: 142 | EU58: 119 | EV58: 120 | EW58: 122 | EX58: 115 | EY58: 117 | EZ58: 132 | FA58: 148 | FB58: 154 | FC58: 146 | FD58: 146 | FE58: 132 | FF58: 105 | FG58: 95 | FH58: 97 | FI58: 93 | FJ58: 82 | FK58: 92 | FL58: 97 | FM58: 102 | FN58: 124 | FO58: 124 | FP58: 111 | FQ58: 100 | FR58: 85 | FS58: 72 | FT58: 65 | FU58: 63 | FV58: 60 | FW58: 62 | FX58: 67 | FY58: 73 | FZ58: 96 | GA58: 88 | GB58: 87 | GC58: 85 | GD58: 61 | GE58: 60 | GF58: 53 | GG58: 62 | GH58: 60 | GI58: 57 | GJ58: 67 | GK58: 77 | GL58: 74 | GM58: 72 | GN58: 75 | GO58: 63 | GP58: 46 | GQ58: 40 | GR58: 38 | GS58: 39 | GT58: 39 | GU58: 41 | GV58: 43 | GW58: 53 | GX58: 89 | GY58: 99 | GZ58: 71 | HA58: 66 | HB58: 56 | HC58: 48 | HD58: 43 | HE58: 45 | HF58: 44 | HG58: 47 | HH58: 53 | HI58: 49 | HJ58: 57 | HK58: 67 | HL58: 68 | HM58: 61 | HN58: 52 | HO58: 46 | HP58: 46 | HQ58: 49 | HR58: 41 | HS58: 53 | HT58: 58 | HU58: 73 | HV58: 88 | HW58: 96 | HX58: 96 | HY58: 106 | HZ58: 92 | IA58: 92 | IB58: 90 | IC58: 81 | ID58: 84 | IE58: 87 | IF58: 106 | IG58: 130 | IH58: 152 | II58: 152 | IJ58: 179 | IK58: 579 | IL58: 429 | IM58: 315 | IN58: 254 | IO58: 265 | IP58: 273 | IQ58: 295 | IR58: 335 | IS58: 359 | IT58: 377 | IU58: 340 | IV58: 312 | IW58: 273 | IX58: 209 | IY58: 142 | IZ58: 114 | JA58: 97 | JB58: 108 | JC58: 116 | JD58: 125 | JE58: 135 | JF58: 145 | JG58: 140 | JH58: 115 | JI58: 89 | JJ58: 68 | JK58: 68 | JL58: 70 | JM58: 75 | JN58: 64 | JO58: 72 | JP58: 76 | JQ58: 96 | JR58: 113 | JS58: 117 | JT58: 97 | JU58: 84 | JV58: 86 | JW58: 98 | JX58: 96 | JY58: 96 | JZ58: 87 | KA58: 95 | KB58: 116 | KC58: 143 | KD58: 149 | KE58: 144 | KF58: 137 | KG58: 111 | KH58: 95 | KI58: 114 | KJ58: 148 | KK58: 174 | KL58: 160 | KM58: 158 | KN58: 178 | KO58: 181 | KP58: 188 | KQ58: 182 | KR58: 161 | KS58: 131 | KT58: 119 | KU58: 128.1428571 | KV58: 137.9130435 | KW58: 137.1904762 | KX58: 122.4090909 | KY58: 134.2608696 | KZ58: 171.3 | LA58: 187.173913 | LB58: 209.2727273 | LC58: 185.45 | LD58: 159.9090909 | LE58: 142.5454545 | LF58: 130.9047619 | LG58: 137.7727273
A59: Vesturland konur | C59: 50 | D59: 46 | E59: 43 | F59: 44 | G59: 38 | H59: 29 | I59: 32 | J59: 30 | K59: 36 | L59: 48 | M59: 57 | N59: 62 | O59: 58 | P59: 51 | Q59: 59 | R59: 68 | S59: 37 | T59: 29 | U59: 34 | V59: 32 | W59: 39 | X59: 53 | Y59: 72 | Z59: 92 | AA59: 98 | AB59: 93 | AC59: 96 | AD59: 94 | AE59: 72 | AF59: 62 | AG59: 67 | AH59: 70 | AI59: 76 | AJ59: 96 | AK59: 108 | AL59: 126 | AM59: 127 | AN59: 110 | AO59: 101 | AP59: 99 | AQ59: 88 | AR59: 69 | AS59: 68 | AT59: 66 | AU59: 67 | AV59: 80 | AW59: 91 | AX59: 107 | AY59: 105 | AZ59: 98 | BA59: 95 | BB59: 92 | BC59: 71 | BD59: 57 | BE59: 64 | BF59: 69 | BG59: 80 | BH59: 77 | BI59: 74 | BJ59: 80 | BK59: 71 | BL59: 59 | BM59: 53 | BN59: 51 | BO59: 38 | BP59: 30 | BQ59: 35 | BR59: 26 | BS59: 30 | BT59: 33 | BU59: 39 | BV59: 53 | BW59: 48 | BX59: 45 | BY59: 42 | BZ59: 40 | CA59: 24 | CB59: 28 | CC59: 25 | CD59: 27 | CE59: 28 | CF59: 31 | CG59: 33 | CH59: 41 | CI59: 45 | CJ59: 50 | CK59: 45 | CL59: 38 | CM59: 29 | CN59: 29 | CO59: 29 | CP59: 29 | CQ59: 31 | CR59: 32 | CS59: 29 | CT59: 32 | CU59: 36 | CV59: 41 | CW59: 42 | CX59: 49 | CY59: 61 | CZ59: 52 | DA59: 50 | DB59: 51 | DC59: 62 | DD59: 88 | DE59: 107 | DF59: 152 | DG59: 181 | DH59: 211 | DI59: 214 | DJ59: 206 | DK59: 198 | DL59: 191 | DM59: 193 | DN59: 181 | DO59: 203 | DP59: 232 | DQ59: 219 | DR59: 233 | DS59: 228 | DT59: 218 | DU59: 221 | DV59: 209 | DW59: 189 | DX59: 171 | DY59: 167 | DZ59: 156 | EA59: 163 | EB59: 163 | EC59: 169 | ED59: 178 | EE59: 181 | EF59: 176 | EG59: 174 | EH59: 163 | EI59: 148 | EJ59: 150 | EK59: 143 | EL59: 130 | EM59: 146 | EN59: 146 | EO59: 148 | EP59: 146 | EQ59: 150 | ER59: 138 | ES59: 132 | ET59: 121 | EU59: 112 | EV59: 108 | EW59: 110 | EX59: 107 | EY59: 117 | EZ59: 120 | FA59: 123 | FB59: 122 | FC59: 120 | FD59: 115 | FE59: 112 | FF59: 107 | FG59: 96 | FH59: 98 | FI59: 104 | FJ59: 94 | FK59: 101 | FL59: 98 | FM59: 96 | FN59: 113 | FO59: 110 | FP59: 110 | FQ59: 110 | FR59: 116 | FS59: 92 | FT59: 87 | FU59: 81 | FV59: 73 | FW59: 77 | FX59: 77 | FY59: 94 | FZ59: 113 | GA59: 112 | GB59: 106 | GC59: 98 | GD59: 96 | GE59: 84 | GF59: 84 | GG59: 76 | GH59: 62 | GI59: 71 | GJ59: 75 | GK59: 72 | GL59: 78 | GM59: 78 | GN59: 77 | GO59: 78 | GP59: 67 | GQ59: 57 | GR59: 53 | GS59: 52 | GT59: 57 | GU59: 64 | GV59: 65 | GW59: 67 | GX59: 125 | GY59: 115 | GZ59: 79 | HA59: 80 | HB59: 77 | HC59: 67 | HD59: 61 | HE59: 70 | HF59: 83 | HG59: 73 | HH59: 76 | HI59: 74 | HJ59: 81 | HK59: 76 | HL59: 76 | HM59: 75 | HN59: 63 | HO59: 56 | HP59: 55 | HQ59: 78 | HR59: 78 | HS59: 80 | HT59: 60 | HU59: 64 | HV59: 75 | HW59: 73 | HX59: 67 | HY59: 70 | HZ59: 69 | IA59: 70 | IB59: 70 | IC59: 77 | ID59: 64 | IE59: 72 | IF59: 95 | IG59: 92 | IH59: 103 | II59: 106 | IJ59: 130 | IK59: 470 | IL59: 351 | IM59: 250 | IN59: 217 | IO59: 223 | IP59: 256 | IQ59: 285 | IR59: 320 | IS59: 321 | IT59: 330 | IU59: 330 | IV59: 304 | IW59: 272 | IX59: 213 | IY59: 136 | IZ59: 115 | JA59: 105 | JB59: 84 | JC59: 84 | JD59: 94 | JE59: 109 | JF59: 117 | JG59: 110 | JH59: 93 | JI59: 89 | JJ59: 89 | JK59: 74 | JL59: 70 | JM59: 72 | JN59: 67 | JO59: 73 | JP59: 80 | JQ59: 89 | JR59: 92 | JS59: 90 | JT59: 79 | JU59: 80 | JV59: 78 | JW59: 70 | JX59: 66 | JY59: 67 | JZ59: 65 | KA59: 75 | KB59: 83 | KC59: 104 | KD59: 109 | KE59: 110 | KF59: 100 | KG59: 95 | KH59: 94 | KI59: 84 | KJ59: 85 | KK59: 86 | KL59: 96 | KM59: 97 | KN59: 129 | KO59: 130 | KP59: 145 | KQ59: 139 | KR59: 114 | KS59: 96 | KT59: 89 | KU59: 82.0952381 | KV59: 92.47826087 | KW59: 90.23809524 | KX59: 88.40909091 | KY59: 104.1304348 | KZ59: 134.95 | LA59: 147.1304348 | LB59: 150.7272727 | LC59: 141.4 | LD59: 120.3181818 | LE59: 107.5909091 | LF59: 95.9047619 | LG59: 84.09090909
A60: Vestfirðir alls | C60: 101 | D60: 91 | E60: 72 | F60: 67 | G60: 59 | H60: 58 | I60: 47 | J60: 50 | K60: 57 | L60: 59 | M60: 105 | N60: 114 | O60: 82 | P60: 65 | Q60: 64 | R60: 89 | S60: 48 | T60: 33 | U60: 29 | V60: 31 | W60: 43 | X60: 48 | Y60: 57 | Z60: 58 | AA60: 65 | AB60: 65 | AC60: 70 | AD60: 68 | AE60: 52 | AF60: 40 | AG60: 44 | AH60: 53 | AI60: 55 | AJ60: 73 | AK60: 87 | AL60: 99 | AM60: 107 | AN60: 94 | AO60: 82 | AP60: 82 | AQ60: 74 | AR60: 64 | AS60: 70 | AT60: 79 | AU60: 94 | AV60: 100 | AW60: 112 | AX60: 122 | AY60: 116 | AZ60: 99 | BA60: 93 | BB60: 76 | BC60: 84 | BD60: 82 | BE60: 67 | BF60: 60 | BG60: 61 | BH60: 54 | BI60: 63 | BJ60: 81 | BK60: 79 | BL60: 71 | BM60: 59 | BN60: 57 | BO60: 68 | BP60: 68 | BQ60: 72 | BR60: 68 | BS60: 68 | BT60: 82 | BU60: 80 | BV60: 82 | BW60: 70 | BX60: 59 | BY60: 58 | BZ60: 62 | CA60: 55 | CB60: 43 | CC60: 34 | CD60: 27 | CE60: 27 | CF60: 27 | CG60: 22 | CH60: 24 | CI60: 26 | CJ60: 32 | CK60: 30 | CL60: 30 | CM60: 23 | CN60: 47 | CO60: 56 | CP60: 65 | CQ60: 35 | CR60: 24 | CS60: 24 | CT60: 21 | CU60: 21 | CV60: 18 | CW60: 23 | CX60: 19 | CY60: 11 | CZ60: 5 | DA60: 17 | DB60: 28 | DC60: 13 | DD60: 25 | DE60: 42 | DF60: 66 | DG60: 77 | DH60: 101 | DI60: 108 | DJ60: 101 | DK60: 82 | DL60: 69 | DM60: 73 | DN60: 84 | DO60: 113 | DP60: 123 | DQ60: 138 | DR60: 149 | DS60: 158 | DT60: 141 | DU60: 155 | DV60: 156 | DW60: 141 | DX60: 138 | DY60: 134 | DZ60: 121 | EA60: 118 | EB60: 124 | EC60: 156 | ED60: 168 | EE60: 192 | EF60: 180 | EG60: 171 | EH60: 145 | EI60: 115 | EJ60: 111 | EK60: 108 | EL60: 102 | EM60: 111 | EN60: 119 | EO60: 126 | EP60: 142 | EQ60: 143 | ER60: 133 | ES60: 109 | ET60: 79 | EU60: 87 | EV60: 82 | EW60: 66 | EX60: 71 | EY60: 88 | EZ60: 100 | FA60: 109 | FB60: 116 | FC60: 110 | FD60: 122 | FE60: 106 | FF60: 90 | FG60: 85 | FH60: 88 | FI60: 79 | FJ60: 69 | FK60: 74 | FL60: 85 | FM60: 88 | FN60: 86 | FO60: 82 | FP60: 86 | FQ60: 82 | FR60: 72 | FS60: 65 | FT60: 61 | FU60: 54 | FV60: 53 | FW60: 66 | FX60: 71 | FY60: 86 | FZ60: 97 | GA60: 126 | GB60: 119 | GC60: 127 | GD60: 95 | GE60: 84 | GF60: 76 | GG60: 78 | GH60: 75 | GI60: 90 | GJ60: 77 | GK60: 95 | GL60: 97 | GM60: 88 | GN60: 90 | GO60: 86 | GP60: 81 | GQ60: 68 | GR60: 58 | GS60: 52 | GT60: 47 | GU60: 48 | GV60: 55 | GW60: 65 | GX60: 197 | GY60: 178 | GZ60: 86 | HA60: 76 | HB60: 60 | HC60: 51 | HD60: 56 | HE60: 55 | HF60: 56 | HG60: 55 | HH60: 70 | HI60: 71 | HJ60: 77 | HK60: 77 | HL60: 69 | HM60: 62 | HN60: 51 | HO60: 41 | HP60: 35 | HQ60: 36 | HR60: 42 | HS60: 47 | HT60: 57 | HU60: 62 | HV60: 67 | HW60: 71 | HX60: 72 | HY60: 80 | HZ60: 74 | IA60: 80 | IB60: 73 | IC60: 71 | ID60: 79 | IE60: 85 | IF60: 97 | IG60: 94 | IH60: 115 | II60: 113 | IJ60: 123 | IK60: 452 | IL60: 318 | IM60: 189 | IN60: 131 | IO60: 124 | IP60: 137 | IQ60: 166 | IR60: 180 | IS60: 211 | IT60: 222 | IU60: 205 | IV60: 201 | IW60: 194 | IX60: 146 | IY60: 96 | IZ60: 86 | JA60: 91 | JB60: 92 | JC60: 94 | JD60: 97 | JE60: 96 | JF60: 101 | JG60: 105 | JH60: 105 | JI60: 86 | JJ60: 70 | JK60: 54 | JL60: 61 | JM60: 64 | JN60: 62 | JO60: 69 | JP60: 71 | JQ60: 82 | JR60: 88 | JS60: 92 | JT60: 95 | JU60: 99 | JV60: 85 | JW60: 70 | JX60: 68 | JY60: 70 | JZ60: 77 | KA60: 92 | KB60: 103 | KC60: 106 | KD60: 116 | KE60: 122 | KF60: 116 | KG60: 113 | KH60: 106 | KI60: 88 | KJ60: 86 | KK60: 86 | KL60: 93 | KM60: 105 | KN60: 109 | KO60: 111 | KP60: 116 | KQ60: 137 | KR60: 138 | KS60: 133 | KT60: 91 | KU60: 71.52380952 | KV60: 66.95652174 | KW60: 77.04761905 | KX60: 83.04545455 | KY60: 98.86956522 | KZ60: 109.55 | LA60: 115.3913043 | LB60: 119.2727273 | LC60: 124.35 | LD60: 116.6818182 | LE60: 132.3636364 | LF60: 99.9047619 | LG60: 92
A61: Vestfirðir karlar | C61: 49 | D61: 41 | E61: 28 | F61: 25 | G61: 22 | H61: 21 | I61: 12 | J61: 10 | K61: 13 | L61: 15 | M61: 35 | N61: 42 | O61: 23 | P61: 16 | Q61: 17 | R61: 24 | S61: 14 | T61: 12 | U61: 10 | V61: 11 | W61: 19 | X61: 26 | Y61: 27 | Z61: 29 | AA61: 32 | AB61: 32 | AC61: 36 | AD61: 33 | AE61: 22 | AF61: 17 | AG61: 22 | AH61: 27 | AI61: 27 | AJ61: 39 | AK61: 48 | AL61: 55 | AM61: 61 | AN61: 47 | AO61: 33 | AP61: 30 | AQ61: 21 | AR61: 20 | AS61: 19 | AT61: 20 | AU61: 23 | AV61: 32 | AW61: 39 | AX61: 48 | AY61: 49 | AZ61: 38 | BA61: 33 | BB61: 24 | BC61: 26 | BD61: 26 | BE61: 21 | BF61: 20 | BG61: 20 | BH61: 12 | BI61: 18 | BJ61: 32 | BK61: 35 | BL61: 29 | BM61: 20 | BN61: 13 | BO61: 17 | BP61: 19 | BQ61: 17 | BR61: 10 | BS61: 10 | BT61: 14 | BU61: 20 | BV61: 20 | BW61: 18 | BX61: 10 | BY61: 10 | BZ61: 8 | CA61: 7 | CB61: 5 | CC61: 4 | CD61: 4 | CE61: 5 | CF61: 4 | CG61: 3 | CH61: 5 | CI61: 6 | CJ61: 7 | CK61: 6 | CL61: 9 | CM61: 10 | CN61: 27 | CO61: 32 | CP61: 31 | CQ61: 14 | CR61: 9 | CS61: 6 | CT61: 7 | CU61: 8 | CV61: 10 | CW61: 14 | CX61: 10 | CY61: 6 | CZ61: 3 | DA61: 8 | DB61: 10 | DC61: 7 | DD61: 14 | DE61: 25 | DF61: 42 | DG61: 46 | DH61: 64 | DI61: 70 | DJ61: 64 | DK61: 45 | DL61: 34 | DM61: 36 | DN61: 50 | DO61: 69 | DP61: 74 | DQ61: 90 | DR61: 96 | DS61: 103 | DT61: 87 | DU61: 88 | DV61: 89 | DW61: 77 | DX61: 70 | DY61: 67 | DZ61: 63 | EA61: 63 | EB61: 67 | EC61: 92 | ED61: 100 | EE61: 119 | EF61: 114 | EG61: 105 | EH61: 78 | EI61: 60 | EJ61: 57 | EK61: 50 | EL61: 50 | EM61: 55 | EN61: 65 | EO61: 71 | EP61: 98 | EQ61: 94 | ER61: 88 | ES61: 69 | ET61: 48 | EU61: 43 | EV61: 40 | EW61: 36 | EX61: 41 | EY61: 47 | EZ61: 47 | FA61: 52 | FB61: 55 | FC61: 53 | FD61: 58 | FE61: 51 | FF61: 41 | FG61: 40 | FH61: 42 | FI61: 41 | FJ61: 37 | FK61: 37 | FL61: 44 | FM61: 45 | FN61: 45 | FO61: 47 | FP61: 48 | FQ61: 48 | FR61: 37 | FS61: 35 | FT61: 28 | FU61: 24 | FV61: 25 | FW61: 34 | FX61: 42 | FY61: 53 | FZ61: 61 | GA61: 79 | GB61: 74 | GC61: 77 | GD61: 56 | GE61: 48 | GF61: 40 | GG61: 40 | GH61: 39 | GI61: 50 | GJ61: 43 | GK61: 53 | GL61: 52 | GM61: 47 | GN61: 51 | GO61: 46 | GP61: 38 | GQ61: 27 | GR61: 25 | GS61: 20 | GT61: 16 | GU61: 20 | GV61: 26 | GW61: 33 | GX61: 94 | GY61: 92 | GZ61: 53 | HA61: 49 | HB61: 29 | HC61: 27 | HD61: 31 | HE61: 29 | HF61: 33 | HG61: 32 | HH61: 43 | HI61: 42 | HJ61: 50 | HK61: 53 | HL61: 47 | HM61: 41 | HN61: 33 | HO61: 25 | HP61: 21 | HQ61: 17 | HR61: 24 | HS61: 27 | HT61: 37 | HU61: 40 | HV61: 43 | HW61: 48 | HX61: 48 | HY61: 54 | HZ61: 51 | IA61: 49 | IB61: 43 | IC61: 38 | ID61: 43 | IE61: 43 | IF61: 52 | IG61: 55 | IH61: 68 | II61: 68 | IJ61: 76 | IK61: 280 | IL61: 197 | IM61: 118 | IN61: 76 | IO61: 75 | IP61: 79 | IQ61: 99 | IR61: 102 | IS61: 123 | IT61: 131 | IU61: 117 | IV61: 118 | IW61: 115 | IX61: 84 | IY61: 48 | IZ61: 43 | JA61: 42 | JB61: 49 | JC61: 51 | JD61: 55 | JE61: 52 | JF61: 55 | JG61: 61 | JH61: 65 | JI61: 54 | JJ61: 36 | JK61: 35 | JL61: 41 | JM61: 45 | JN61: 41 | JO61: 45 | JP61: 45 | JQ61: 50 | JR61: 55 | JS61: 58 | JT61: 58 | JU61: 57 | JV61: 50 | JW61: 40 | JX61: 39 | JY61: 40 | JZ61: 44 | KA61: 54 | KB61: 63 | KC61: 64 | KD61: 70 | KE61: 75 | KF61: 72 | KG61: 67 | KH61: 62 | KI61: 52 | KJ61: 50 | KK61: 52 | KL61: 51 | KM61: 57 | KN61: 61 | KO61: 62 | KP61: 66 | KQ61: 76 | KR61: 82 | KS61: 79 | KT61: 52 | KU61: 38.9047619 | KV61: 36.82608696 | KW61: 41.23809524 | KX61: 43.13636364 | KY61: 49.43478261 | KZ61: 53.3 | LA61: 62.91304348 | LB61: 65.95454545 | LC61: 68.45 | LD61: 66.09090909 | LE61: 83.95454545 | LF61: 65.23809524 | LG61: 62.31818182
A62: Vestfirðir konur | C62: 52 | D62: 49 | E62: 44 | F62: 41 | G62: 37 | H62: 36 | I62: 35 | J62: 40 | K62: 45 | L62: 43 | M62: 70 | N62: 72 | O62: 59 | P62: 50 | Q62: 47 | R62: 65 | S62: 34 | T62: 21 | U62: 19 | V62: 20 | W62: 24 | X62: 22 | Y62: 29 | Z62: 29 | AA62: 33 | AB62: 33 | AC62: 34 | AD62: 35 | AE62: 30 | AF62: 23 | AG62: 21 | AH62: 26 | AI62: 28 | AJ62: 33 | AK62: 39 | AL62: 44 | AM62: 46 | AN62: 47 | AO62: 49 | AP62: 52 | AQ62: 53 | AR62: 43 | AS62: 51 | AT62: 59 | AU62: 71 | AV62: 69 | AW62: 73 | AX62: 74 | AY62: 67 | AZ62: 60 | BA62: 60 | BB62: 53 | BC62: 58 | BD62: 56 | BE62: 47 | BF62: 41 | BG62: 41 | BH62: 42 | BI62: 45 | BJ62: 49 | BK62: 44 | BL62: 42 | BM62: 39 | BN62: 44 | BO62: 51 | BP62: 49 | BQ62: 55 | BR62: 58 | BS62: 58 | BT62: 68 | BU62: 61 | BV62: 62 | BW62: 52 | BX62: 48 | BY62: 48 | BZ62: 54 | CA62: 48 | CB62: 38 | CC62: 30 | CD62: 23 | CE62: 22 | CF62: 24 | CG62: 20 | CH62: 18 | CI62: 20 | CJ62: 25 | CK62: 23 | CL62: 21 | CM62: 14 | CN62: 20 | CO62: 24 | CP62: 34 | CQ62: 21 | CR62: 16 | CS62: 18 | CT62: 14 | CU62: 14 | CV62: 8 | CW62: 9 | CX62: 9 | CY62: 5 | CZ62: 2 | DA62: 9 | DB62: 17 | DC62: 6 | DD62: 11 | DE62: 16 | DF62: 24 | DG62: 31 | DH62: 37 | DI62: 38 | DJ62: 37 | DK62: 37 | DL62: 35 | DM62: 37 | DN62: 34 | DO62: 44 | DP62: 50 | DQ62: 49 | DR62: 52 | DS62: 55 | DT62: 54 | DU62: 67 | DV62: 68 | DW62: 64 | DX62: 68 | DY62: 66 | DZ62: 58 | EA62: 55 | EB62: 57 | EC62: 64 | ED62: 67 | EE62: 73 | EF62: 67 | EG62: 66 | EH62: 67 | EI62: 55 | EJ62: 53 | EK62: 58 | EL62: 53 | EM62: 56 | EN62: 54 | EO62: 55 | EP62: 44 | EQ62: 49 | ER62: 45 | ES62: 40 | ET62: 31 | EU62: 44 | EV62: 43 | EW62: 30 | EX62: 30 | EY62: 41 | EZ62: 54 | FA62: 57 | FB62: 61 | FC62: 57 | FD62: 63 | FE62: 55 | FF62: 49 | FG62: 44 | FH62: 47 | FI62: 37 | FJ62: 32 | FK62: 37 | FL62: 40 | FM62: 43 | FN62: 40 | FO62: 35 | FP62: 38 | FQ62: 33 | FR62: 35 | FS62: 30 | FT62: 33 | FU62: 30 | FV62: 28 | FW62: 33 | FX62: 29 | FY62: 33 | FZ62: 36 | GA62: 47 | GB62: 45 | GC62: 50 | GD62: 39 | GE62: 36 | GF62: 36 | GG62: 38 | GH62: 36 | GI62: 40 | GJ62: 34 | GK62: 42 | GL62: 44 | GM62: 41 | GN62: 39 | GO62: 40 | GP62: 44 | GQ62: 41 | GR62: 33 | GS62: 32 | GT62: 31 | GU62: 28 | GV62: 29 | GW62: 32 | GX62: 103 | GY62: 86 | GZ62: 32 | HA62: 27 | HB62: 31 | HC62: 24 | HD62: 25 | HE62: 26 | HF62: 22 | HG62: 24 | HH62: 27 | HI62: 29 | HJ62: 28 | HK62: 24 | HL62: 22 | HM62: 21 | HN62: 18 | HO62: 15 | HP62: 15 | HQ62: 19 | HR62: 18 | HS62: 20 | HT62: 20 | HU62: 22 | HV62: 24 | HW62: 23 | HX62: 24 | HY62: 26 | HZ62: 22 | IA62: 31 | IB62: 30 | IC62: 33 | ID62: 36 | IE62: 42 | IF62: 45 | IG62: 39 | IH62: 47 | II62: 46 | IJ62: 47 | IK62: 172 | IL62: 121 | IM62: 71 | IN62: 56 | IO62: 49 | IP62: 58 | IQ62: 67 | IR62: 78 | IS62: 87 | IT62: 91 | IU62: 88 | IV62: 83 | IW62: 79 | IX62: 63 | IY62: 47 | IZ62: 43 | JA62: 49 | JB62: 43 | JC62: 43 | JD62: 42 | JE62: 44 | JF62: 46 | JG62: 44 | JH62: 40 | JI62: 32 | JJ62: 34 | JK62: 19 | JL62: 20 | JM62: 19 | JN62: 21 | JO62: 25 | JP62: 26 | JQ62: 32 | JR62: 33 | JS62: 35 | JT62: 38 | JU62: 41 | JV62: 35 | JW62: 30 | JX62: 29 | JY62: 31 | JZ62: 33 | KA62: 38 | KB62: 40 | KC62: 43 | KD62: 46 | KE62: 47 | KF62: 44 | KG62: 46 | KH62: 44 | KI62: 37 | KJ62: 35 | KK62: 34 | KL62: 42 | KM62: 48 | KN62: 48 | KO62: 49 | KP62: 50 | KQ62: 61 | KR62: 56 | KS62: 54 | KT62: 39 | KU62: 32.61904762 | KV62: 30.13043478 | KW62: 35.80952381 | KX62: 39.90909091 | KY62: 49.43478261 | KZ62: 56.25 | LA62: 52.47826087 | LB62: 53.31818182 | LC62: 55.9 | LD62: 50.59090909 | LE62: 48.40909091 | LF62: 34.66666667 | LG62: 29.68181818
